Workbook

Sheet Velkomst

Sheet Tabel 1 B
A1: Tabel 1. Forsikrede medlemmer
A3: Bornholm
C5: Mænd | E5: Kvinder | G5: I alt
A7: Civ. ing. | C7: 29 | E7: 5 | G7: 34
A8: Diplom ing. | C8: 55 | E8: 8 | G8: 63
A9: Cand. Scient. Tek. | C9: 15 | E9: 14 | G9: 29
A10: MA. Hum. | C10: 41 | E10: 83 | G10: 124
A11: MA. Nat. | C11: 25 | E11: 21 | G11: 46
A12: MA. Ph.d. | C12: 4 | E12: 3 | G12: 7
A13: MA. Samf. | C13: 4 | E13: 12 | G13: 16
A14: Øvrige Mag. | C14: 7 | E14: 10 | G14: 17
A15: Agronom | C15: 3 | E15: 7 | G15: 10
A16: Landsk. Arkt. | C16: 1 | E16: 2 | G16: 3
A17: Hortonom | C17: 1 | E17: 1 | G17: 2
A18: Forstkand. | C18: 1 | E18: 0 | G18: 1
A19: Jordbrugsakad. | C19: 6 | E19: 10 | G19: 16
A20: Mejeriing. | C20: 0 | E20: 0 | G20: 0
A21: Levn.m.kand. | C21: 0 | E21: 1 | G21: 1
A22: Dyrlæge | C22: 4 | E22: 10 | G22: 14
A23: Farmaceut | C23: 1 | E23: 5 | G23: 6
A24: Læge | C24: 11 | E24: 22 | G24: 33
A25: Tandlæge | C25: 1 | E25: 9 | G25: 10
A26: Arkitekt | C26: 9 | E26: 5 | G26: 14
A27: Landinspek. | C27: 1 | E27: 0 | G27: 1
A28: Bibliotekar | C28: 6 | E28: 9 | G28: 15
A29: Musikudd. | C29: 0 | E29: 2 | G29: 2
A30: Teolog | C30: 10 | E30: 3 | G30: 13
A31: Psykolog | C31: 6 | E31: 24 | G31: 30
A32: Jurist | C32: 11 | E32: 21 | G32: 32
A33: Økonom | C33: 6 | E33: 3 | G33: 9
A34: Samf. Adm. | C34: 25 | E34: 27 | G34: 52
A35: Cand. Merc. | C35: 13 | E35: 16 | G35: 29
A36: HA | C36: 6 | E36: 6 | G36: 12
A37: HD | C37: 8 | E37: 1 | G37: 9
A38: Komm. og Sprog | C38: 4 | E38: 11 | G38: 15
A39: Bygningskonst. | C39: 28 | E39: 0 | G39: 28
A40: Cand. IT. | C40: 2 | E40: 0 | G40: 2
A41: Bac. Samf. | C41: 4 | E41: 1 | G41: 5
A42: Bac. Hum. | C42: 8 | E42: 5 | G42: 13
A43: Bac. Nat. | C43: 3 | E43: 7 | G43: 10
A44: Andre | C44: 64 | E44: 43 | G44: 107
A46: Total | C46: 417 | E46: 397 | G46: 814
A48: Ingeniører i alt | C48: 84 | E48: 13 | G48: 97
A49: Magistre i alt | C49: 81 | E49: 129 | G49: 210
A50: DJØF'ere i alt | C50: 61 | E50: 73 | G50: 134
A57: Bornholm
C59: Mænd | E59: Kvinder | G59: I alt
A61: Civ. ing. | C61: 29 | E61: 5 | G61: 34
A62: Diplom ing. | C62: 55 | E62: 8 | G62: 63
A63: Cand. Scient. Tek. | C63: 15 | E63: 14 | G63: 29
A64: MA. Hum. | C64: 41 | E64: 83 | G64: 124
A65: MA. Nat. | C65: 25 | E65: 21 | G65: 46
A66: MA. Ph.d. | C66: 4 | E66: 3 | G66: 7
A67: MA. Samf. | C67: 4 | E67: 12 | G67: 16
A68: Øvrige Mag. | C68: 7 | E68: 10 | G68: 17
A69: Agronom | C69: 3 | E69: 7 | G69: 10
A70: Landsk. Arkt. | C70: 1 | E70: 2 | G70: 3
A71: Hortonom | C71: 1 | E71: 1 | G71: 2
A72: Forstkand. | C72: 1 | E72: 0 | G72: 1
A73: Jordbrugsakad. | C73: 6 | E73: 10 | G73: 16
A74: Mejeriing. | C74: 0 | E74: 0 | G74: 0
A75: Levn.m.kand. | C75: 0 | E75: 1 | G75: 1
A76: Dyrlæge | C76: 4 | E76: 10 | G76: 14
A77: Farmaceut | C77: 1 | E77: 5 | G77: 6
A78: Læge | C78: 10 | E78: 22 | G78: 32
A79: Tandlæge | C79: 1 | E79: 9 | G79: 10
A80: Arkitekt | C80: 9 | E80: 5 | G80: 14
A81: Landinspek. | C81: 1 | E81: 0 | G81: 1
A82: Bibliotekar | C82: 6 | E82: 9 | G82: 15
A83: Musikudd. | C83: 0 | E83: 2 | G83: 2
A84: Teolog | C84: 10 | E84: 3 | G84: 13
A85: Psykolog | C85: 6 | E85: 24 | G85: 30
A86: Jurist | C86: 11 | E86: 21 | G86: 32
A87: Økonom | C87: 6 | E87: 3 | G87: 9
A88: Samf. Adm. | C88: 25 | E88: 27 | G88: 52
A89: Cand. Merc. | C89: 13 | E89: 16 | G89: 29
A90: HA | C90: 6 | E90: 6 | G90: 12
A91: HD | C91: 8 | E91: 1 | G91: 9
A92: Komm. og Sprog | C92: 4 | E92: 11 | G92: 15
A93: Bygningskonst. | C93: 28 | E93: 0 | G93: 28
A94: Cand. IT. | C94: 2 | E94: 0 | G94: 2
A95: Bac. Samf. | C95: 4 | E95: 1 | G95: 5
A96: Bac. Hum. | C96: 8 | E96: 5 | G96: 13
A97: Bac. Nat. | C97: 3 | E97: 7 | G97: 10
A98: Andre | C98: 64 | E98: 43 | G98: 107
A100: Total | C100: 416 | E100: 397 | G100: 813
A102: Ingeniører i alt | C102: 84 | E102: 13 | G102: 97
A103: Magistre i alt | C103: 81 | E103: 129 | G103: 210
A104: DJØF'ere i alt | C104: 61 | E104: 73 | G104: 134
A111: Christiansø
C113: Mænd | E113: Kvinder | G113: I alt
A115: Civ. ing. | C115: 0 | E115: 0 | G115: 0
A116: Diplom ing. | C116: 0 | E116: 0 | G116: 0
A117: Cand. Scient. Tek. | C117: 0 | E117: 0 | G117: 0
A118: MA. Hum. | C118: 0 | E118: 0 | G118: 0
A119: MA. Nat. | C119: 0 | E119: 0 | G119: 0
A120: MA. Ph.d. | C120: 0 | E120: 0 | G120: 0
A121: MA. Samf. | C121: 0 | E121: 0 | G121: 0
A122: Øvrige Mag. | C122: 0 | E122: 0 | G122: 0
A123: Agronom | C123: 0 | E123: 0 | G123: 0
A124: Landsk. Arkt. | C124: 0 | E124: 0 | G124: 0
A125: Hortonom | C125: 0 | E125: 0 | G125: 0
A126: Forstkand. | C126: 0 | E126: 0 | G126: 0
A127: Jordbrugsakad. | C127: 0 | E127: 0 | G127: 0
A128: Mejeriing. | C128: 0 | E128: 0 | G128: 0
A129: Levn.m.kand. | C129: 0 | E129: 0 | G129: 0
A130: Dyrlæge | C130: 0 | E130: 0 | G130: 0
A131: Farmaceut | C131: 0 | E131: 0 | G131: 0
A132: Læge | C132: 1 | E132: 0 | G132: 1
A133: Tandlæge | C133: 0 | E133: 0 | G133: 0
A134: Arkitekt | C134: 0 | E134: 0 | G134: 0
A135: Landinspek. | C135: 0 | E135: 0 | G135: 0
A136: Bibliotekar | C136: 0 | E136: 0 | G136: 0
A137: Musikudd. | C137: 0 | E137: 0 | G137: 0
A138: Teolog | C138: 0 | E138: 0 | G138: 0
A139: Psykolog | C139: 0 | E139: 0 | G139: 0
A140: Jurist | C140: 0 | E140: 0 | G140: 0
A141: Økonom | C141: 0 | E141: 0 | G141: 0
A142: Samf. Adm. | C142: 0 | E142: 0 | G142: 0
A143: Cand. Merc. | C143: 0 | E143: 0 | G143: 0
A144: HA | C144: 0 | E144: 0 | G144: 0
A145: HD | C145: 0 | E145: 0 | G145: 0
A146: Komm. og Sprog | C146: 0 | E146: 0 | G146: 0
A147: Bygnigskonst | C147: 0 | E147: 0 | G147: 0
A148: Cand. IT. | C148: 0 | E148: 0 | G148: 0
A149: Bac. Samf. | C149: 0 | E149: 0 | G149: 0
A150: Bac. Hum. | C150: 0 | E150: 0 | G150: 0
A151: Bac. Nat. | C151: 0 | E151: 0 | G151: 0
A152: Andre | C152: 0 | E152: 0 | G152: 0
A154: Total | C154: 1 | E154: 0 | G154: 1
A156: Ingeniører i alt | C156: 0 | E156: 0 | G156: 0
A157: Magistre i alt | C157: 0 | E157: 0 | G157: 0
A158: DJØF'ere i alt | C158: 0 | E158: 0 | G158: 0

Sheet Tabel 2 B
A1: Tabel 2. Antal bruttoledighedsberørte og gennemsnitlig antal ledige brutto
A3: Bornholm
C5: Mænd | F5: Kvinder | I5: I alt
C6: Ledigheds- berørte | D6: Gns. brutto- ledighed | F6: Ledigheds- berørte | G6: Gns. brutto- ledighed | I6: Ledigheds- berørte | J6: Gns. brutto- ledighed
A9: Civ. ing. | C9: 2 | D9: 1.999625772 | F9: 1 | G9: 0.9998128859 | I9: 3 | J9: 2.999438658
A10: Diplom ing. | C10: 2 | D10: 1.71271752 | F10: 1 | G10: 0.9998128859 | I10: 3 | J10: 2.712530406
A11: Cand. Scient. Tek. | C11: 3 | D11: 2.584045406 | F11: 3 | G11: 2.053888854 | I11: 6 | J11: 4.637934261
A12: MA. Hum. | C12: 7 | D12: 5.853552049 | F12: 15 | G12: 11.92976985 | I12: 22 | J12: 17.7833219
A13: MA. Nat. | C13: 3 | D13: 2.999438658 | F13: 0 | G13: 0 | I13: 3 | J13: 2.999438658
A14: MA. Ph.d. | C14: 0 | D14: 0 | F14: 1 | G14: 0.9998128859 | I14: 1 | J14: 0.9998128859
A15: MA. Samf. | C15: 2 | D15: 1.999625772 | F15: 0 | G15: 0 | I15: 2 | J15: 1.999625772
A16: Øvrige Mag. | C16: 2 | D16: 1.90731616 | F16: 3 | G16: 2.999438658 | I16: 5 | J16: 4.906754818
A17: Agronom | C17: 0 | D17: 0 | F17: 0 | G17: 0 | I17: 0 | J17: 0
A18: Landsk. Arkt. | C18: 0 | D18: 0 | F18: 0 | G18: 0 | I18: 0 | J18: 0
A19: Hortonom | C19: 0 | D19: 0 | F19: 0 | G19: 0 | I19: 0 | J19: 0
A20: Forstkand. | C20: 0 | D20: 0 | F20: 0 | G20: 0 | I20: 0 | J20: 0
A21: Jordbrugsakad. | C21: 0 | D21: 0 | F21: 0 | G21: 0 | I21: 0 | J21: 0
A22: Mejeriing. | C22: 0 | D22: 0 | F22: 0 | G22: 0 | I22: 0 | J22: 0
A23: Levn.m.kand. | C23: 0 | D23: 0 | F23: 0 | G23: 0 | I23: 0 | J23: 0
A24: Dyrlæge | C24: 1 | D24: 0.5382648288 | F24: 0 | G24: 0 | I24: 1 | J24: 0.5382648288
A25: Farmaceut | C25: 0 | D25: 0 | F25: 0 | G25: 0 | I25: 0 | J25: 0
A26: Læge | C26: 0 | D26: 0 | F26: 1 | G26: 0.3074908002 | I26: 1 | J26: 0.3074908002
A27: Tandlæge | C27: 0 | D27: 0 | F27: 0 | G27: 0 | I27: 0 | J27: 0
A28: Arkitekt | C28: 0 | D28: 0 | F28: 1 | G28: 0.9998128859 | I28: 1 | J28: 0.9998128859
A29: Landinspek. | C29: 0 | D29: 0 | F29: 0 | G29: 0 | I29: 0 | J29: 0
A30: Bibliotekar | C30: 0 | D30: 0 | F30: 1 | G30: 0.9998128859 | I30: 1 | J30: 0.9998128859
A31: Musikudd. | C31: 0 | D31: 0 | F31: 1 | G31: 0.9998128859 | I31: 1 | J31: 0.9998128859
A32: Teolog | C32: 0 | D32: 0 | F32: 0 | G32: 0 | I32: 0 | J32: 0
A33: Psykolog | C33: 0 | D33: 0 | F33: 2 | G33: 1.58423252 | I33: 2 | J33: 1.58423252
A34: Jurist | C34: 0 | D34: 0 | F34: 0 | G34: 0 | I34: 0 | J34: 0
A35: Økonom | C35: 0 | D35: 0 | F35: 0 | G35: 0 | I35: 0 | J35: 0
A36: Samf. Adm. | C36: 2 | D36: 1.999625772 | F36: 1 | G36: 0.9998128859 | I36: 3 | J36: 2.999438658
A37: Cand. Merc. | C37: 2 | D37: 1.999625772 | F37: 1 | G37: 0.6006361879 | I37: 3 | J37: 2.60026196
A38: HA | C38: 0 | D38: 0 | F38: 0 | G38: 0 | I38: 0 | J38: 0
A39: HD | C39: 0 | D39: 0 | F39: 0 | G39: 0 | I39: 0 | J39: 0
A40: Komm. og Sprog | C40: 0 | D40: 0 | F40: 4 | G40: 3.999251544 | I40: 4 | J40: 3.999251544
A41: Bygningskonst. | C41: 0 | D41: 0 | F41: 0 | G41: 0 | I41: 0 | J41: 0
A42: Cand. IT. | C42: 0 | D42: 0 | F42: 0 | G42: 0 | I42: 0 | J42: 0
A43: Bac. Samf. | C43: 0 | D43: 0 | F43: 0 | G43: 0 | I43: 0 | J43: 0
A44: Bac. Hum. | C44: 2 | D44: 1.999625772 | F44: 0 | G44: 0 | I44: 2 | J44: 1.999625772
A45: Bac. Nat. | C45: 1 | D45: 0.9998128859 | F45: 1 | G45: 0.99357575 | I45: 2 | J45: 1.993388636
A46: Andre | C46: 5 | D46: 4.762053265 | F46: 6 | G46: 5.426931953 | I46: 11 | J46: 10.18898522
A48: Total | C48: 34 | D48: 31.35532963 | F48: 43 | G48: 36.89390632 | I48: 77 | J48: 68.24923595
A50: Ingeniører i alt | C50: 4 | D50: 3.712343292 | F50: 2 | G50: 1.999625772 | I50: 6 | J50: 5.711969064
A51: Magistre i alt | C51: 14 | D51: 12.75993264 | F51: 19 | G51: 15.92902139 | I51: 33 | J51: 28.68895403
A52: DJØF'ere i alt | C52: 4 | D52: 3.999251544 | F52: 2 | G52: 1.600449074 | I52: 6 | J52: 5.599700617
A57: Bornholm
C59: Mænd | F59: Kvinder | I59: I alt
C60: Ledigheds- berørte | D60: Gns. brutto- ledighed | F60: Ledigheds- berørte | G60: Gns. brutto- ledighed | I60: Ledigheds- berørte | J60: Gns. brutto- ledighed
A63: Civ. ing. | C63: 2 | D63: 1.999625772 | F63: 1 | G63: 0.9998128859 | I63: 3 | J63: 2.999438658
A64: Diplom ing. | C64: 2 | D64: 1.71271752 | F64: 1 | G64: 0.9998128859 | I64: 3 | J64: 2.712530406
A65: Cand. Scient. Tek. | C65: 3 | D65: 2.584045406 | F65: 3 | G65: 2.053888854 | I65: 6 | J65: 4.637934261
A66: MA. Hum. | C66: 7 | D66: 5.853552049 | F66: 15 | G66: 11.92976985 | I66: 22 | J66: 17.7833219
A67: MA. Nat. | C67: 3 | D67: 2.999438658 | F67: 0 | G67: 0 | I67: 3 | J67: 2.999438658
A68: MA. Ph.d. | C68: 0 | D68: 0 | F68: 1 | G68: 0.9998128859 | I68: 1 | J68: 0.9998128859
A69: MA. Samf. | C69: 2 | D69: 1.999625772 | F69: 0 | G69: 0 | I69: 2 | J69: 1.999625772
A70: Øvrige Mag. | C70: 2 | D70: 1.90731616 | F70: 3 | G70: 2.999438658 | I70: 5 | J70: 4.906754818
A71: Agronom | C71: 0 | D71: 0 | F71: 0 | G71: 0 | I71: 0 | J71: 0
A72: Landsk. Arkt. | C72: 0 | D72: 0 | F72: 0 | G72: 0 | I72: 0 | J72: 0
A73: Hortonom | C73: 0 | D73: 0 | F73: 0 | G73: 0 | I73: 0 | J73: 0
A74: Forstkand. | C74: 0 | D74: 0 | F74: 0 | G74: 0 | I74: 0 | J74: 0
A75: Jordbrugsakad. | C75: 0 | D75: 0 | F75: 0 | G75: 0 | I75: 0 | J75: 0
A76: Mejeriing. | C76: 0 | D76: 0 | F76: 0 | G76: 0 | I76: 0 | J76: 0
A77: Levn.m.kand. | C77: 0 | D77: 0 | F77: 0 | G77: 0 | I77: 0 | J77: 0
A78: Dyrlæge | C78: 1 | D78: 0.5382648288 | F78: 0 | G78: 0 | I78: 1 | J78: 0.5382648288
A79: Farmaceut | C79: 0 | D79: 0 | F79: 0 | G79: 0 | I79: 0 | J79: 0
A80: Læge | C80: 0 | D80: 0 | F80: 1 | G80: 0.3074908002 | I80: 1 | J80: 0.3074908002
A81: Tandlæge | C81: 0 | D81: 0 | F81: 0 | G81: 0 | I81: 0 | J81: 0
A82: Arkitekt | C82: 0 | D82: 0 | F82: 1 | G82: 0.9998128859 | I82: 1 | J82: 0.9998128859
A83: Landinspek. | C83: 0 | D83: 0 | F83: 0 | G83: 0 | I83: 0 | J83: 0
A84: Bibliotekar | C84: 0 | D84: 0 | F84: 1 | G84: 0.9998128859 | I84: 1 | J84: 0.9998128859
A85: Musikudd. | C85: 0 | D85: 0 | F85: 1 | G85: 0.9998128859 | I85: 1 | J85: 0.9998128859
A86: Teolog | C86: 0 | D86: 0 | F86: 0 | G86: 0 | I86: 0 | J86: 0
A87: Psykolog | C87: 0 | D87: 0 | F87: 2 | G87: 1.58423252 | I87: 2 | J87: 1.58423252
A88: Jurist | C88: 0 | D88: 0 | F88: 0 | G88: 0 | I88: 0 | J88: 0
A89: Økonom | C89: 0 | D89: 0 | F89: 0 | G89: 0 | I89: 0 | J89: 0
A90: Samf. Adm. | C90: 2 | D90: 1.999625772 | F90: 1 | G90: 0.9998128859 | I90: 3 | J90: 2.999438658
A91: Cand. Merc. | C91: 2 | D91: 1.999625772 | F91: 1 | G91: 0.6006361879 | I91: 3 | J91: 2.60026196
A92: HA | C92: 0 | D92: 0 | F92: 0 | G92: 0 | I92: 0 | J92: 0
A93: HD | C93: 0 | D93: 0 | F93: 0 | G93: 0 | I93: 0 | J93: 0
A94: Komm. og Sprog | C94: 0 | D94: 0 | F94: 4 | G94: 3.999251544 | I94: 4 | J94: 3.999251544
A95: Bygningskonst. | C95: 0 | D95: 0 | F95: 0 | G95: 0 | I95: 0 | J95: 0
A96: Cand. IT. | C96: 0 | D96: 0 | F96: 0 | G96: 0 | I96: 0 | J96: 0
A97: Bac. Samf. | C97: 0 | D97: 0 | F97: 0 | G97: 0 | I97: 0 | J97: 0
A98: Bac. Hum. | C98: 2 | D98: 1.999625772 | F98: 0 | G98: 0 | I98: 2 | J98: 1.999625772
A99: Bac. Nat. | C99: 1 | D99: 0.9998128859 | F99: 1 | G99: 0.99357575 | I99: 2 | J99: 1.993388636
A100: Andre | C100: 5 | D100: 4.762053265 | F100: 6 | G100: 5.426931953 | I100: 11 | J100: 10.18898522
A102: Total | C102: 34 | D102: 31.35532963 | F102: 43 | G102: 36.89390632 | I102: 77 | J102: 68.24923595
A104: Ingeniører i alt | C104: 4 | D104: 3.712343292 | F104: 2 | G104: 1.999625772 | I104: 6 | J104: 5.711969064
A105: Magistre i alt | C105: 14 | D105: 12.75993264 | F105: 19 | G105: 15.92902139 | I105: 33 | J105: 28.68895403
A106: DJØF'ere i alt | C106: 4 | D106: 3.999251544 | F106: 2 | G106: 1.600449074 | I106: 6 | J106: 5.599700617
A111: Christiansø
C113: Mænd | F113: Kvinder | I113: I alt
C114: Ledigheds- berørte | D114: Gns. brutto- ledighed | F114: Ledigheds- berørte | G114: Gns. brutto- ledighed | I114: Ledigheds- berørte | J114: Gns. brutto- ledighed
A117: Civ. ing. | C117: 0 | D117: 0 | F117: 0 | G117: 0 | I117: 0 | J117: 0
A118: Diplom ing. | C118: 0 | D118: 0 | F118: 0 | G118: 0 | I118: 0 | J118: 0
A119: Cand. Scient. Tek. | C119: 0 | D119: 0 | F119: 0 | G119: 0 | I119: 0 | J119: 0
A120: MA. Hum. | C120: 0 | D120: 0 | F120: 0 | G120: 0 | I120: 0 | J120: 0
A121: MA. Nat. | C121: 0 | D121: 0 | F121: 0 | G121: 0 | I121: 0 | J121: 0
A122: MA. Ph.d. | C122: 0 | D122: 0 | F122: 0 | G122: 0 | I122: 0 | J122: 0
A123: MA. Samf. | C123: 0 | D123: 0 | F123: 0 | G123: 0 | I123: 0 | J123: 0
A124: Øvrige Mag. | C124: 0 | D124: 0 | F124: 0 | G124: 0 | I124: 0 | J124: 0
A125: Agronom | C125: 0 | D125: 0 | F125: 0 | G125: 0 | I125: 0 | J125: 0
A126: Landsk. Arkt. | C126: 0 | D126: 0 | F126: 0 | G126: 0 | I126: 0 | J126: 0
A127: Hortonom | C127: 0 | D127: 0 | F127: 0 | G127: 0 | I127: 0 | J127: 0
A128: Forstkand. | C128: 0 | D128: 0 | F128: 0 | G128: 0 | I128: 0 | J128: 0
A129: Jordbrugsakad. | C129: 0 | D129: 0 | F129: 0 | G129: 0 | I129: 0 | J129: 0
A130: Mejeriing. | C130: 0 | D130: 0 | F130: 0 | G130: 0 | I130: 0 | J130: 0
A131: Levn.m.kand. | C131: 0 | D131: 0 | F131: 0 | G131: 0 | I131: 0 | J131: 0
A132: Dyrlæge | C132: 0 | D132: 0 | F132: 0 | G132: 0 | I132: 0 | J132: 0
A133: Farmaceut | C133: 0 | D133: 0 | F133: 0 | G133: 0 | I133: 0 | J133: 0
A134: Læge | C134: 0 | D134: 0 | F134: 0 | G134: 0 | I134: 0 | J134: 0
A135: Tandlæge | C135: 0 | D135: 0 | F135: 0 | G135: 0 | I135: 0 | J135: 0
A136: Arkitekt | C136: 0 | D136: 0 | F136: 0 | G136: 0 | I136: 0 | J136: 0
A137: Landinspek. | C137: 0 | D137: 0 | F137: 0 | G137: 0 | I137: 0 | J137: 0
A138: Bibliotekar | C138: 0 | D138: 0 | F138: 0 | G138: 0 | I138: 0 | J138: 0
A139: Musikudd. | C139: 0 | D139: 0 | F139: 0 | G139: 0 | I139: 0 | J139: 0
A140: Teolog | C140: 0 | D140: 0 | F140: 0 | G140: 0 | I140: 0 | J140: 0
A141: Psykolog | C141: 0 | D141: 0 | F141: 0 | G141: 0 | I141: 0 | J141: 0
A142: Jurist | C142: 0 | D142: 0 | F142: 0 | G142: 0 | I142: 0 | J142: 0
A143: Økonom | C143: 0 | D143: 0 | F143: 0 | G143: 0 | I143: 0 | J143: 0
A144: Samf. Adm. | C144: 0 | D144: 0 | F144: 0 | G144: 0 | I144: 0 | J144: 0
A145: Cand. Merc. | C145: 0 | D145: 0 | F145: 0 | G145: 0 | I145: 0 | J145: 0
A146: HA | C146: 0 | D146: 0 | F146: 0 | G146: 0 | I146: 0 | J146: 0
A147: HD | C147: 0 | D147: 0 | F147: 0 | G147: 0 | I147: 0 | J147: 0
A148: Komm. og Sprog | C148: 0 | D148: 0 | F148: 0 | G148: 0 | I148: 0 | J148: 0
A149: Bygningskonst | C149: 0 | D149: 0 | F149: 0 | G149: 0 | I149: 0 | J149: 0
A150: Cand. IT. | C150: 0 | D150: 0 | F150: 0 | G150: 0 | I150: 0 | J150: 0
A151: Bac. Samf. | C151: 0 | D151: 0 | F151: 0 | G151: 0 | I151: 0 | J151: 0
A152: Bac. Hum. | C152: 0 | D152: 0 | F152: 0 | G152: 0 | I152: 0 | J152: 0
A153: Bac. Nat. | C153: 0 | D153: 0 | F153: 0 | G153: 0 | I153: 0 | J153: 0
A154: Andre | C154: 0 | D154: 0 | F154: 0 | G154: 0 | I154: 0 | J154: 0
A156: Total | C156: 0 | D156: 0 | F156: 0 | G156: 0 | I156: 0 | J156: 0
A158: Ingeniører i alt | C158: 0 | D158: 0 | F158: 0 | G158: 0 | I158: 0 | J158: 0
A159: Magistre i alt | C159: 0 | D159: 0 | F159: 0 | G159: 0 | I159: 0 | J159: 0
A160: DJØF'ere i alt | C160: 0 | D160: 0 | F160: 0 | G160: 0 | I160: 0 | J160: 0

Sheet Tabel 3 B
A1: Tabel 3. Ledige i procent af forsikrede
A3: Bornholm
C5: Mænd | F5: Kvinder | I5: I alt
C6: Ledigheds- berørte | D6: Gns. brutto- ledighed | F6: Ledigheds- berørte | G6: Gns. brutto- ledighed | I6: Ledigheds- berørte | J6: Gns. brutto- ledighed
A9: Civ. ing. | C9: =IF(OR('Tabel 1 B'!C7<5, 'Tabel 2 B'!C9<0.5),"-",IFERROR('Tabel 2 B'!C9/'Tabel 1 B'!C7*100,"-")) -> 6.896551724 | D9: =IF(OR('Tabel 1 B'!C7<5,'Tabel 2 B'!D9<0.5),"-",IFERROR('Tabel 2 B'!D9/'Tabel 1 B'!C7*100,"-")) -> 6.895261282 | F9: =IF(OR('Tabel 1 B'!E7<5, 'Tabel 2 B'!F9<0.5),"-",IFERROR('Tabel 2 B'!F9/'Tabel 1 B'!E7*100,"-")) -> 20 | G9: =IF(OR('Tabel 1 B'!E7<5,'Tabel 2 B'!G9<0.5),"-",IFERROR('Tabel 2 B'!G9/'Tabel 1 B'!E7*100,"-")) -> 19.99625772 | I9: =IF(OR('Tabel 1 B'!G7<5,'Tabel 2 B'!I9<0.5),"-",IFERROR('Tabel 2 B'!I9/'Tabel 1 B'!G7*100,"-")) -> 8.823529412 | J9: =IF(OR('Tabel 1 B'!G7<5,'Tabel 2 B'!J9<0.5),"-",IFERROR('Tabel 2 B'!J9/'Tabel 1 B'!G7*100,"-")) -> 8.821878405
A10: Diplom ing. | C10: =IF(OR('Tabel 1 B'!C8<5, 'Tabel 2 B'!C10<0.5),"-",IFERROR('Tabel 2 B'!C10/'Tabel 1 B'!C8*100,"-")) -> 3.636363636 | D10: =IF(OR('Tabel 1 B'!C8<5,'Tabel 2 B'!D10<0.5),"-",IFERROR('Tabel 2 B'!D10/'Tabel 1 B'!C8*100,"-")) -> 3.114031855 | F10: =IF(OR('Tabel 1 B'!E8<5, 'Tabel 2 B'!F10<0.5),"-",IFERROR('Tabel 2 B'!F10/'Tabel 1 B'!E8*100,"-")) -> 12.5 | G10: =IF(OR('Tabel 1 B'!E8<5,'Tabel 2 B'!G10<0.5),"-",IFERROR('Tabel 2 B'!G10/'Tabel 1 B'!E8*100,"-")) -> 12.49766107 | I10: =IF(OR('Tabel 1 B'!G8<5,'Tabel 2 B'!I10<0.5),"-",IFERROR('Tabel 2 B'!I10/'Tabel 1 B'!G8*100,"-")) -> 4.761904762 | J10: =IF(OR('Tabel 1 B'!G8<5,'Tabel 2 B'!J10<0.5),"-",IFERROR('Tabel 2 B'!J10/'Tabel 1 B'!G8*100,"-")) -> 4.305603819
A11: Cand. Scient. Tek. | C11: =IF(OR('Tabel 1 B'!C9<5, 'Tabel 2 B'!C11<0.5),"-",IFERROR('Tabel 2 B'!C11/'Tabel 1 B'!C9*100,"-")) -> 20 | D11: =IF(OR('Tabel 1 B'!C9<5,'Tabel 2 B'!D11<0.5),"-",IFERROR('Tabel 2 B'!D11/'Tabel 1 B'!C9*100,"-")) -> 17.22696938 | F11: =IF(OR('Tabel 1 B'!E9<5, 'Tabel 2 B'!F11<0.5),"-",IFERROR('Tabel 2 B'!F11/'Tabel 1 B'!E9*100,"-")) -> 21.42857143 | G11: =IF(OR('Tabel 1 B'!E9<5,'Tabel 2 B'!G11<0.5),"-",IFERROR('Tabel 2 B'!G11/'Tabel 1 B'!E9*100,"-")) -> 14.67063467 | I11: =IF(OR('Tabel 1 B'!G9<5,'Tabel 2 B'!I11<0.5),"-",IFERROR('Tabel 2 B'!I11/'Tabel 1 B'!G9*100,"-")) -> 20.68965517 | J11: =IF(OR('Tabel 1 B'!G9<5,'Tabel 2 B'!J11<0.5),"-",IFERROR('Tabel 2 B'!J11/'Tabel 1 B'!G9*100,"-")) -> 15.99287676
A12: MA. Hum. | C12: =IF(OR('Tabel 1 B'!C10<5, 'Tabel 2 B'!C12<0.5),"-",IFERROR('Tabel 2 B'!C12/'Tabel 1 B'!C10*100,"-")) -> 17.07317073 | D12: =IF(OR('Tabel 1 B'!C10<5,'Tabel 2 B'!D12<0.5),"-",IFERROR('Tabel 2 B'!D12/'Tabel 1 B'!C10*100,"-")) -> 14.27695622 | F12: =IF(OR('Tabel 1 B'!E10<5, 'Tabel 2 B'!F12<0.5),"-",IFERROR('Tabel 2 B'!F12/'Tabel 1 B'!E10*100,"-")) -> 18.07228916 | G12: =IF(OR('Tabel 1 B'!E10<5,'Tabel 2 B'!G12<0.5),"-",IFERROR('Tabel 2 B'!G12/'Tabel 1 B'!E10*100,"-")) -> 14.37321669 | I12: =IF(OR('Tabel 1 B'!G10<5,'Tabel 2 B'!I12<0.5),"-",IFERROR('Tabel 2 B'!I12/'Tabel 1 B'!G10*100,"-")) -> 17.74193548 | J12: =IF(OR('Tabel 1 B'!G10<5,'Tabel 2 B'!J12<0.5),"-",IFERROR('Tabel 2 B'!J12/'Tabel 1 B'!G10*100,"-")) -> 14.34138863
A13: MA. Nat. | C13: =IF(OR('Tabel 1 B'!C11<5, 'Tabel 2 B'!C13<0.5),"-",IFERROR('Tabel 2 B'!C13/'Tabel 1 B'!C11*100,"-")) -> 12 | D13: =IF(OR('Tabel 1 B'!C11<5,'Tabel 2 B'!D13<0.5),"-",IFERROR('Tabel 2 B'!D13/'Tabel 1 B'!C11*100,"-")) -> 11.99775463 | F13: =IF(OR('Tabel 1 B'!E11<5, 'Tabel 2 B'!F13<0.5),"-",IFERROR('Tabel 2 B'!F13/'Tabel 1 B'!E11*100,"-")) -> - | G13: =IF(OR('Tabel 1 B'!E11<5,'Tabel 2 B'!G13<0.5),"-",IFERROR('Tabel 2 B'!G13/'Tabel 1 B'!E11*100,"-")) -> - | I13: =IF(OR('Tabel 1 B'!G11<5,'Tabel 2 B'!I13<0.5),"-",IFERROR('Tabel 2 B'!I13/'Tabel 1 B'!G11*100,"-")) -> 6.52173913 | J13: =IF(OR('Tabel 1 B'!G11<5,'Tabel 2 B'!J13<0.5),"-",IFERROR('Tabel 2 B'!J13/'Tabel 1 B'!G11*100,"-")) -> 6.520518821
A14: MA. Ph.d. | C14: =IF(OR('Tabel 1 B'!C12<5, 'Tabel 2 B'!C14<0.5),"-",IFERROR('Tabel 2 B'!C14/'Tabel 1 B'!C12*100,"-")) -> - | D14: =IF(OR('Tabel 1 B'!C12<5,'Tabel 2 B'!D14<0.5),"-",IFERROR('Tabel 2 B'!D14/'Tabel 1 B'!C12*100,"-")) -> - | F14: =IF(OR('Tabel 1 B'!E12<5, 'Tabel 2 B'!F14<0.5),"-",IFERROR('Tabel 2 B'!F14/'Tabel 1 B'!E12*100,"-")) -> - | G14: =IF(OR('Tabel 1 B'!E12<5,'Tabel 2 B'!G14<0.5),"-",IFERROR('Tabel 2 B'!G14/'Tabel 1 B'!E12*100,"-")) -> - | I14: =IF(OR('Tabel 1 B'!G12<5,'Tabel 2 B'!I14<0.5),"-",IFERROR('Tabel 2 B'!I14/'Tabel 1 B'!G12*100,"-")) -> 14.28571429 | J14: =IF(OR('Tabel 1 B'!G12<5,'Tabel 2 B'!J14<0.5),"-",IFERROR('Tabel 2 B'!J14/'Tabel 1 B'!G12*100,"-")) -> 14.28304123
A15: MA. Samf. | C15: =IF(OR('Tabel 1 B'!C13<5, 'Tabel 2 B'!C15<0.5),"-",IFERROR('Tabel 2 B'!C15/'Tabel 1 B'!C13*100,"-")) -> - | D15: =IF(OR('Tabel 1 B'!C13<5,'Tabel 2 B'!D15<0.5),"-",IFERROR('Tabel 2 B'!D15/'Tabel 1 B'!C13*100,"-")) -> - | F15: =IF(OR('Tabel 1 B'!E13<5, 'Tabel 2 B'!F15<0.5),"-",IFERROR('Tabel 2 B'!F15/'Tabel 1 B'!E13*100,"-")) -> - | G15: =IF(OR('Tabel 1 B'!E13<5,'Tabel 2 B'!G15<0.5),"-",IFERROR('Tabel 2 B'!G15/'Tabel 1 B'!E13*100,"-")) -> - | I15: =IF(OR('Tabel 1 B'!G13<5,'Tabel 2 B'!I15<0.5),"-",IFERROR('Tabel 2 B'!I15/'Tabel 1 B'!G13*100,"-")) -> 12.5 | J15: =IF(OR('Tabel 1 B'!G13<5,'Tabel 2 B'!J15<0.5),"-",IFERROR('Tabel 2 B'!J15/'Tabel 1 B'!G13*100,"-")) -> 12.49766107
A16: Øvrige Mag. | C16: =IF(OR('Tabel 1 B'!C14<5, 'Tabel 2 B'!C16<0.5),"-",IFERROR('Tabel 2 B'!C16/'Tabel 1 B'!C14*100,"-")) -> 28.57142857 | D16: =IF(OR('Tabel 1 B'!C14<5,'Tabel 2 B'!D16<0.5),"-",IFERROR('Tabel 2 B'!D16/'Tabel 1 B'!C14*100,"-")) -> 27.24737372 | F16: =IF(OR('Tabel 1 B'!E14<5, 'Tabel 2 B'!F16<0.5),"-",IFERROR('Tabel 2 B'!F16/'Tabel 1 B'!E14*100,"-")) -> 30 | G16: =IF(OR('Tabel 1 B'!E14<5,'Tabel 2 B'!G16<0.5),"-",IFERROR('Tabel 2 B'!G16/'Tabel 1 B'!E14*100,"-")) -> 29.99438658 | I16: =IF(OR('Tabel 1 B'!G14<5,'Tabel 2 B'!I16<0.5),"-",IFERROR('Tabel 2 B'!I16/'Tabel 1 B'!G14*100,"-")) -> 29.41176471 | J16: =IF(OR('Tabel 1 B'!G14<5,'Tabel 2 B'!J16<0.5),"-",IFERROR('Tabel 2 B'!J16/'Tabel 1 B'!G14*100,"-")) -> 28.86326364
A17: Agronom | C17: =IF(OR('Tabel 1 B'!C15<5, 'Tabel 2 B'!C17<0.5),"-",IFERROR('Tabel 2 B'!C17/'Tabel 1 B'!C15*100,"-")) -> - | D17: =IF(OR('Tabel 1 B'!C15<5,'Tabel 2 B'!D17<0.5),"-",IFERROR('Tabel 2 B'!D17/'Tabel 1 B'!C15*100,"-")) -> - | F17: =IF(OR('Tabel 1 B'!E15<5, 'Tabel 2 B'!F17<0.5),"-",IFERROR('Tabel 2 B'!F17/'Tabel 1 B'!E15*100,"-")) -> - | G17: =IF(OR('Tabel 1 B'!E15<5,'Tabel 2 B'!G17<0.5),"-",IFERROR('Tabel 2 B'!G17/'Tabel 1 B'!E15*100,"-")) -> - | I17: =IF(OR('Tabel 1 B'!G15<5,'Tabel 2 B'!I17<0.5),"-",IFERROR('Tabel 2 B'!I17/'Tabel 1 B'!G15*100,"-")) -> - | J17: =IF(OR('Tabel 1 B'!G15<5,'Tabel 2 B'!J17<0.5),"-",IFERROR('Tabel 2 B'!J17/'Tabel 1 B'!G15*100,"-")) -> -
A18: Landsk. Arkt. | C18: =IF(OR('Tabel 1 B'!C16<5, 'Tabel 2 B'!C18<0.5),"-",IFERROR('Tabel 2 B'!C18/'Tabel 1 B'!C16*100,"-")) -> - | D18: =IF(OR('Tabel 1 B'!C16<5,'Tabel 2 B'!D18<0.5),"-",IFERROR('Tabel 2 B'!D18/'Tabel 1 B'!C16*100,"-")) -> - | F18: =IF(OR('Tabel 1 B'!E16<5, 'Tabel 2 B'!F18<0.5),"-",IFERROR('Tabel 2 B'!F18/'Tabel 1 B'!E16*100,"-")) -> - | G18: =IF(OR('Tabel 1 B'!E16<5,'Tabel 2 B'!G18<0.5),"-",IFERROR('Tabel 2 B'!G18/'Tabel 1 B'!E16*100,"-")) -> - | I18: =IF(OR('Tabel 1 B'!G16<5,'Tabel 2 B'!I18<0.5),"-",IFERROR('Tabel 2 B'!I18/'Tabel 1 B'!G16*100,"-")) -> - | J18: =IF(OR('Tabel 1 B'!G16<5,'Tabel 2 B'!J18<0.5),"-",IFERROR('Tabel 2 B'!J18/'Tabel 1 B'!G16*100,"-")) -> -
A19: Hortonom | C19: =IF(OR('Tabel 1 B'!C17<5, 'Tabel 2 B'!C19<0.5),"-",IFERROR('Tabel 2 B'!C19/'Tabel 1 B'!C17*100,"-")) -> - | D19: =IF(OR('Tabel 1 B'!C17<5,'Tabel 2 B'!D19<0.5),"-",IFERROR('Tabel 2 B'!D19/'Tabel 1 B'!C17*100,"-")) -> - | F19: =IF(OR('Tabel 1 B'!E17<5, 'Tabel 2 B'!F19<0.5),"-",IFERROR('Tabel 2 B'!F19/'Tabel 1 B'!E17*100,"-")) -> - | G19: =IF(OR('Tabel 1 B'!E17<5,'Tabel 2 B'!G19<0.5),"-",IFERROR('Tabel 2 B'!G19/'Tabel 1 B'!E17*100,"-")) -> - | I19: =IF(OR('Tabel 1 B'!G17<5,'Tabel 2 B'!I19<0.5),"-",IFERROR('Tabel 2 B'!I19/'Tabel 1 B'!G17*100,"-")) -> - | J19: =IF(OR('Tabel 1 B'!G17<5,'Tabel 2 B'!J19<0.5),"-",IFERROR('Tabel 2 B'!J19/'Tabel 1 B'!G17*100,"-")) -> -
A20: Forstkand. | C20: =IF(OR('Tabel 1 B'!C18<5, 'Tabel 2 B'!C20<0.5),"-",IFERROR('Tabel 2 B'!C20/'Tabel 1 B'!C18*100,"-")) -> - | D20: =IF(OR('Tabel 1 B'!C18<5,'Tabel 2 B'!D20<0.5),"-",IFERROR('Tabel 2 B'!D20/'Tabel 1 B'!C18*100,"-")) -> - | F20: =IF(OR('Tabel 1 B'!E18<5, 'Tabel 2 B'!F20<0.5),"-",IFERROR('Tabel 2 B'!F20/'Tabel 1 B'!E18*100,"-")) -> - | G20: =IF(OR('Tabel 1 B'!E18<5,'Tabel 2 B'!G20<0.5),"-",IFERROR('Tabel 2 B'!G20/'Tabel 1 B'!E18*100,"-")) -> - | I20: =IF(OR('Tabel 1 B'!G18<5,'Tabel 2 B'!I20<0.5),"-",IFERROR('Tabel 2 B'!I20/'Tabel 1 B'!G18*100,"-")) -> - | J20: =IF(OR('Tabel 1 B'!G18<5,'Tabel 2 B'!J20<0.5),"-",IFERROR('Tabel 2 B'!J20/'Tabel 1 B'!G18*100,"-")) -> -
A21: Jordbrugsakad. | C21: =IF(OR('Tabel 1 B'!C19<5, 'Tabel 2 B'!C21<0.5),"-",IFERROR('Tabel 2 B'!C21/'Tabel 1 B'!C19*100,"-")) -> - | D21: =IF(OR('Tabel 1 B'!C19<5,'Tabel 2 B'!D21<0.5),"-",IFERROR('Tabel 2 B'!D21/'Tabel 1 B'!C19*100,"-")) -> - | F21: =IF(OR('Tabel 1 B'!E19<5, 'Tabel 2 B'!F21<0.5),"-",IFERROR('Tabel 2 B'!F21/'Tabel 1 B'!E19*100,"-")) -> - | G21: =IF(OR('Tabel 1 B'!E19<5,'Tabel 2 B'!G21<0.5),"-",IFERROR('Tabel 2 B'!G21/'Tabel 1 B'!E19*100,"-")) -> - | I21: =IF(OR('Tabel 1 B'!G19<5,'Tabel 2 B'!I21<0.5),"-",IFERROR('Tabel 2 B'!I21/'Tabel 1 B'!G19*100,"-")) -> - | J21: =IF(OR('Tabel 1 B'!G19<5,'Tabel 2 B'!J21<0.5),"-",IFERROR('Tabel 2 B'!J21/'Tabel 1 B'!G19*100,"-")) -> -
A22: Mejeriing. | C22: =IF(OR('Tabel 1 B'!C20<5, 'Tabel 2 B'!C22<0.5),"-",IFERROR('Tabel 2 B'!C22/'Tabel 1 B'!C20*100,"-")) -> - | D22: =IF(OR('Tabel 1 B'!C20<5,'Tabel 2 B'!D22<0.5),"-",IFERROR('Tabel 2 B'!D22/'Tabel 1 B'!C20*100,"-")) -> - | F22: =IF(OR('Tabel 1 B'!E20<5, 'Tabel 2 B'!F22<0.5),"-",IFERROR('Tabel 2 B'!F22/'Tabel 1 B'!E20*100,"-")) -> - | G22: =IF(OR('Tabel 1 B'!E20<5,'Tabel 2 B'!G22<0.5),"-",IFERROR('Tabel 2 B'!G22/'Tabel 1 B'!E20*100,"-")) -> - | I22: =IF(OR('Tabel 1 B'!G20<5,'Tabel 2 B'!I22<0.5),"-",IFERROR('Tabel 2 B'!I22/'Tabel 1 B'!G20*100,"-")) -> - | J22: =IF(OR('Tabel 1 B'!G20<5,'Tabel 2 B'!J22<0.5),"-",IFERROR('Tabel 2 B'!J22/'Tabel 1 B'!G20*100,"-")) -> -
A23: Levn.m.kand. | C23: =IF(OR('Tabel 1 B'!C21<5, 'Tabel 2 B'!C23<0.5),"-",IFERROR('Tabel 2 B'!C23/'Tabel 1 B'!C21*100,"-")) -> - | D23: =IF(OR('Tabel 1 B'!C21<5,'Tabel 2 B'!D23<0.5),"-",IFERROR('Tabel 2 B'!D23/'Tabel 1 B'!C21*100,"-")) -> - | F23: =IF(OR('Tabel 1 B'!E21<5, 'Tabel 2 B'!F23<0.5),"-",IFERROR('Tabel 2 B'!F23/'Tabel 1 B'!E21*100,"-")) -> - | G23: =IF(OR('Tabel 1 B'!E21<5,'Tabel 2 B'!G23<0.5),"-",IFERROR('Tabel 2 B'!G23/'Tabel 1 B'!E21*100,"-")) -> - | I23: =IF(OR('Tabel 1 B'!G21<5,'Tabel 2 B'!I23<0.5),"-",IFERROR('Tabel 2 B'!I23/'Tabel 1 B'!G21*100,"-")) -> - | J23: =IF(OR('Tabel 1 B'!G21<5,'Tabel 2 B'!J23<0.5),"-",IFERROR('Tabel 2 B'!J23/'Tabel 1 B'!G21*100,"-")) -> -
A24: Dyrlæge | C24: =IF(OR('Tabel 1 B'!C22<5, 'Tabel 2 B'!C24<0.5),"-",IFERROR('Tabel 2 B'!C24/'Tabel 1 B'!C22*100,"-")) -> - | D24: =IF(OR('Tabel 1 B'!C22<5,'Tabel 2 B'!D24<0.5),"-",IFERROR('Tabel 2 B'!D24/'Tabel 1 B'!C22*100,"-")) -> - | F24: =IF(OR('Tabel 1 B'!E22<5, 'Tabel 2 B'!F24<0.5),"-",IFERROR('Tabel 2 B'!F24/'Tabel 1 B'!E22*100,"-")) -> - | G24: =IF(OR('Tabel 1 B'!E22<5,'Tabel 2 B'!G24<0.5),"-",IFERROR('Tabel 2 B'!G24/'Tabel 1 B'!E22*100,"-")) -> - | I24: =IF(OR('Tabel 1 B'!G22<5,'Tabel 2 B'!I24<0.5),"-",IFERROR('Tabel 2 B'!I24/'Tabel 1 B'!G22*100,"-")) -> 7.142857143 | J24: =IF(OR('Tabel 1 B'!G22<5,'Tabel 2 B'!J24<0.5),"-",IFERROR('Tabel 2 B'!J24/'Tabel 1 B'!G22*100,"-")) -> 3.844748777
A25: Farmaceut | C25: =IF(OR('Tabel 1 B'!C23<5, 'Tabel 2 B'!C25<0.5),"-",IFERROR('Tabel 2 B'!C25/'Tabel 1 B'!C23*100,"-")) -> - | D25: =IF(OR('Tabel 1 B'!C23<5,'Tabel 2 B'!D25<0.5),"-",IFERROR('Tabel 2 B'!D25/'Tabel 1 B'!C23*100,"-")) -> - | F25: =IF(OR('Tabel 1 B'!E23<5, 'Tabel 2 B'!F25<0.5),"-",IFERROR('Tabel 2 B'!F25/'Tabel 1 B'!E23*100,"-")) -> - | G25: =IF(OR('Tabel 1 B'!E23<5,'Tabel 2 B'!G25<0.5),"-",IFERROR('Tabel 2 B'!G25/'Tabel 1 B'!E23*100,"-")) -> - | I25: =IF(OR('Tabel 1 B'!G23<5,'Tabel 2 B'!I25<0.5),"-",IFERROR('Tabel 2 B'!I25/'Tabel 1 B'!G23*100,"-")) -> - | J25: =IF(OR('Tabel 1 B'!G23<5,'Tabel 2 B'!J25<0.5),"-",IFERROR('Tabel 2 B'!J25/'Tabel 1 B'!G23*100,"-")) -> -
A26: Læge | C26: =IF(OR('Tabel 1 B'!C24<5, 'Tabel 2 B'!C26<0.5),"-",IFERROR('Tabel 2 B'!C26/'Tabel 1 B'!C24*100,"-")) -> - | D26: =IF(OR('Tabel 1 B'!C24<5,'Tabel 2 B'!D26<0.5),"-",IFERROR('Tabel 2 B'!D26/'Tabel 1 B'!C24*100,"-")) -> - | F26: =IF(OR('Tabel 1 B'!E24<5, 'Tabel 2 B'!F26<0.5),"-",IFERROR('Tabel 2 B'!F26/'Tabel 1 B'!E24*100,"-")) -> 4.545454545 | G26: =IF(OR('Tabel 1 B'!E24<5,'Tabel 2 B'!G26<0.5),"-",IFERROR('Tabel 2 B'!G26/'Tabel 1 B'!E24*100,"-")) -> - | I26: =IF(OR('Tabel 1 B'!G24<5,'Tabel 2 B'!I26<0.5),"-",IFERROR('Tabel 2 B'!I26/'Tabel 1 B'!G24*100,"-")) -> 3.03030303 | J26: =IF(OR('Tabel 1 B'!G24<5,'Tabel 2 B'!J26<0.5),"-",IFERROR('Tabel 2 B'!J26/'Tabel 1 B'!G24*100,"-")) -> -
A27: Tandlæge | C27: =IF(OR('Tabel 1 B'!C25<5, 'Tabel 2 B'!C27<0.5),"-",IFERROR('Tabel 2 B'!C27/'Tabel 1 B'!C25*100,"-")) -> - | D27: =IF(OR('Tabel 1 B'!C25<5,'Tabel 2 B'!D27<0.5),"-",IFERROR('Tabel 2 B'!D27/'Tabel 1 B'!C25*100,"-")) -> - | F27: =IF(OR('Tabel 1 B'!E25<5, 'Tabel 2 B'!F27<0.5),"-",IFERROR('Tabel 2 B'!F27/'Tabel 1 B'!E25*100,"-")) -> - | G27: =IF(OR('Tabel 1 B'!E25<5,'Tabel 2 B'!G27<0.5),"-",IFERROR('Tabel 2 B'!G27/'Tabel 1 B'!E25*100,"-")) -> - | I27: =IF(OR('Tabel 1 B'!G25<5,'Tabel 2 B'!I27<0.5),"-",IFERROR('Tabel 2 B'!I27/'Tabel 1 B'!G25*100,"-")) -> - | J27: =IF(OR('Tabel 1 B'!G25<5,'Tabel 2 B'!J27<0.5),"-",IFERROR('Tabel 2 B'!J27/'Tabel 1 B'!G25*100,"-")) -> -
A28: Arkitekt | C28: =IF(OR('Tabel 1 B'!C26<5, 'Tabel 2 B'!C28<0.5),"-",IFERROR('Tabel 2 B'!C28/'Tabel 1 B'!C26*100,"-")) -> - | D28: =IF(OR('Tabel 1 B'!C26<5,'Tabel 2 B'!D28<0.5),"-",IFERROR('Tabel 2 B'!D28/'Tabel 1 B'!C26*100,"-")) -> - | F28: =IF(OR('Tabel 1 B'!E26<5, 'Tabel 2 B'!F28<0.5),"-",IFERROR('Tabel 2 B'!F28/'Tabel 1 B'!E26*100,"-")) -> 20 | G28: =IF(OR('Tabel 1 B'!E26<5,'Tabel 2 B'!G28<0.5),"-",IFERROR('Tabel 2 B'!G28/'Tabel 1 B'!E26*100,"-")) -> 19.99625772 | I28: =IF(OR('Tabel 1 B'!G26<5,'Tabel 2 B'!I28<0.5),"-",IFERROR('Tabel 2 B'!I28/'Tabel 1 B'!G26*100,"-")) -> 7.142857143 | J28: =IF(OR('Tabel 1 B'!G26<5,'Tabel 2 B'!J28<0.5),"-",IFERROR('Tabel 2 B'!J28/'Tabel 1 B'!G26*100,"-")) -> 7.141520614
A29: Landinspek. | C29: =IF(OR('Tabel 1 B'!C27<5, 'Tabel 2 B'!C29<0.5),"-",IFERROR('Tabel 2 B'!C29/'Tabel 1 B'!C27*100,"-")) -> - | D29: =IF(OR('Tabel 1 B'!C27<5,'Tabel 2 B'!D29<0.5),"-",IFERROR('Tabel 2 B'!D29/'Tabel 1 B'!C27*100,"-")) -> - | F29: =IF(OR('Tabel 1 B'!E27<5, 'Tabel 2 B'!F29<0.5),"-",IFERROR('Tabel 2 B'!F29/'Tabel 1 B'!E27*100,"-")) -> - | G29: =IF(OR('Tabel 1 B'!E27<5,'Tabel 2 B'!G29<0.5),"-",IFERROR('Tabel 2 B'!G29/'Tabel 1 B'!E27*100,"-")) -> - | I29: =IF(OR('Tabel 1 B'!G27<5,'Tabel 2 B'!I29<0.5),"-",IFERROR('Tabel 2 B'!I29/'Tabel 1 B'!G27*100,"-")) -> - | J29: =IF(OR('Tabel 1 B'!G27<5,'Tabel 2 B'!J29<0.5),"-",IFERROR('Tabel 2 B'!J29/'Tabel 1 B'!G27*100,"-")) -> -
A30: Bibliotekar | C30: =IF(OR('Tabel 1 B'!C28<5, 'Tabel 2 B'!C30<0.5),"-",IFERROR('Tabel 2 B'!C30/'Tabel 1 B'!C28*100,"-")) -> - | D30: =IF(OR('Tabel 1 B'!C28<5,'Tabel 2 B'!D30<0.5),"-",IFERROR('Tabel 2 B'!D30/'Tabel 1 B'!C28*100,"-")) -> - | F30: =IF(OR('Tabel 1 B'!E28<5, 'Tabel 2 B'!F30<0.5),"-",IFERROR('Tabel 2 B'!F30/'Tabel 1 B'!E28*100,"-")) -> 11.11111111 | G30: =IF(OR('Tabel 1 B'!E28<5,'Tabel 2 B'!G30<0.5),"-",IFERROR('Tabel 2 B'!G30/'Tabel 1 B'!E28*100,"-")) -> 11.10903207 | I30: =IF(OR('Tabel 1 B'!G28<5,'Tabel 2 B'!I30<0.5),"-",IFERROR('Tabel 2 B'!I30/'Tabel 1 B'!G28*100,"-")) -> 6.666666667 | J30: =IF(OR('Tabel 1 B'!G28<5,'Tabel 2 B'!J30<0.5),"-",IFERROR('Tabel 2 B'!J30/'Tabel 1 B'!G28*100,"-")) -> 6.665419239
A31: Musikudd. | C31: =IF(OR('Tabel 1 B'!C29<5, 'Tabel 2 B'!C31<0.5),"-",IFERROR('Tabel 2 B'!C31/'Tabel 1 B'!C29*100,"-")) -> - | D31: =IF(OR('Tabel 1 B'!C29<5,'Tabel 2 B'!D31<0.5),"-",IFERROR('Tabel 2 B'!D31/'Tabel 1 B'!C29*100,"-")) -> - | F31: =IF(OR('Tabel 1 B'!E29<5, 'Tabel 2 B'!F31<0.5),"-",IFERROR('Tabel 2 B'!F31/'Tabel 1 B'!E29*100,"-")) -> - | G31: =IF(OR('Tabel 1 B'!E29<5,'Tabel 2 B'!G31<0.5),"-",IFERROR('Tabel 2 B'!G31/'Tabel 1 B'!E29*100,"-")) -> - | I31: =IF(OR('Tabel 1 B'!G29<5,'Tabel 2 B'!I31<0.5),"-",IFERROR('Tabel 2 B'!I31/'Tabel 1 B'!G29*100,"-")) -> - | J31: =IF(OR('Tabel 1 B'!G29<5,'Tabel 2 B'!J31<0.5),"-",IFERROR('Tabel 2 B'!J31/'Tabel 1 B'!G29*100,"-")) -> -
A32: Teolog | C32: =IF(OR('Tabel 1 B'!C30<5, 'Tabel 2 B'!C32<0.5),"-",IFERROR('Tabel 2 B'!C32/'Tabel 1 B'!C30*100,"-")) -> - | D32: =IF(OR('Tabel 1 B'!C30<5,'Tabel 2 B'!D32<0.5),"-",IFERROR('Tabel 2 B'!D32/'Tabel 1 B'!C30*100,"-")) -> - | F32: =IF(OR('Tabel 1 B'!E30<5, 'Tabel 2 B'!F32<0.5),"-",IFERROR('Tabel 2 B'!F32/'Tabel 1 B'!E30*100,"-")) -> - | G32: =IF(OR('Tabel 1 B'!E30<5,'Tabel 2 B'!G32<0.5),"-",IFERROR('Tabel 2 B'!G32/'Tabel 1 B'!E30*100,"-")) -> - | I32: =IF(OR('Tabel 1 B'!G30<5,'Tabel 2 B'!I32<0.5),"-",IFERROR('Tabel 2 B'!I32/'Tabel 1 B'!G30*100,"-")) -> - | J32: =IF(OR('Tabel 1 B'!G30<5,'Tabel 2 B'!J32<0.5),"-",IFERROR('Tabel 2 B'!J32/'Tabel 1 B'!G30*100,"-")) -> -
A33: Psykolog | C33: =IF(OR('Tabel 1 B'!C31<5, 'Tabel 2 B'!C33<0.5),"-",IFERROR('Tabel 2 B'!C33/'Tabel 1 B'!C31*100,"-")) -> - | D33: =IF(OR('Tabel 1 B'!C31<5,'Tabel 2 B'!D33<0.5),"-",IFERROR('Tabel 2 B'!D33/'Tabel 1 B'!C31*100,"-")) -> - | F33: =IF(OR('Tabel 1 B'!E31<5, 'Tabel 2 B'!F33<0.5),"-",IFERROR('Tabel 2 B'!F33/'Tabel 1 B'!E31*100,"-")) -> 8.333333333 | G33: =IF(OR('Tabel 1 B'!E31<5,'Tabel 2 B'!G33<0.5),"-",IFERROR('Tabel 2 B'!G33/'Tabel 1 B'!E31*100,"-")) -> 6.600968835 | I33: =IF(OR('Tabel 1 B'!G31<5,'Tabel 2 B'!I33<0.5),"-",IFERROR('Tabel 2 B'!I33/'Tabel 1 B'!G31*100,"-")) -> 6.666666667 | J33: =IF(OR('Tabel 1 B'!G31<5,'Tabel 2 B'!J33<0.5),"-",IFERROR('Tabel 2 B'!J33/'Tabel 1 B'!G31*100,"-")) -> 5.280775068
A34: Jurist | C34: =IF(OR('Tabel 1 B'!C32<5, 'Tabel 2 B'!C34<0.5),"-",IFERROR('Tabel 2 B'!C34/'Tabel 1 B'!C32*100,"-")) -> - | D34: =IF(OR('Tabel 1 B'!C32<5,'Tabel 2 B'!D34<0.5),"-",IFERROR('Tabel 2 B'!D34/'Tabel 1 B'!C32*100,"-")) -> - | F34: =IF(OR('Tabel 1 B'!E32<5, 'Tabel 2 B'!F34<0.5),"-",IFERROR('Tabel 2 B'!F34/'Tabel 1 B'!E32*100,"-")) -> - | G34: =IF(OR('Tabel 1 B'!E32<5,'Tabel 2 B'!G34<0.5),"-",IFERROR('Tabel 2 B'!G34/'Tabel 1 B'!E32*100,"-")) -> - | I34: =IF(OR('Tabel 1 B'!G32<5,'Tabel 2 B'!I34<0.5),"-",IFERROR('Tabel 2 B'!I34/'Tabel 1 B'!G32*100,"-")) -> - | J34: =IF(OR('Tabel 1 B'!G32<5,'Tabel 2 B'!J34<0.5),"-",IFERROR('Tabel 2 B'!J34/'Tabel 1 B'!G32*100,"-")) -> -
A35: Økonom | C35: =IF(OR('Tabel 1 B'!C33<5, 'Tabel 2 B'!C35<0.5),"-",IFERROR('Tabel 2 B'!C35/'Tabel 1 B'!C33*100,"-")) -> - | D35: =IF(OR('Tabel 1 B'!C33<5,'Tabel 2 B'!D35<0.5),"-",IFERROR('Tabel 2 B'!D35/'Tabel 1 B'!C33*100,"-")) -> - | F35: =IF(OR('Tabel 1 B'!E33<5, 'Tabel 2 B'!F35<0.5),"-",IFERROR('Tabel 2 B'!F35/'Tabel 1 B'!E33*100,"-")) -> - | G35: =IF(OR('Tabel 1 B'!E33<5,'Tabel 2 B'!G35<0.5),"-",IFERROR('Tabel 2 B'!G35/'Tabel 1 B'!E33*100,"-")) -> - | I35: =IF(OR('Tabel 1 B'!G33<5,'Tabel 2 B'!I35<0.5),"-",IFERROR('Tabel 2 B'!I35/'Tabel 1 B'!G33*100,"-")) -> - | J35: =IF(OR('Tabel 1 B'!G33<5,'Tabel 2 B'!J35<0.5),"-",IFERROR('Tabel 2 B'!J35/'Tabel 1 B'!G33*100,"-")) -> -
A36: Samf. Adm. | C36: =IF(OR('Tabel 1 B'!C34<5, 'Tabel 2 B'!C36<0.5),"-",IFERROR('Tabel 2 B'!C36/'Tabel 1 B'!C34*100,"-")) -> 8 | D36: =IF(OR('Tabel 1 B'!C34<5,'Tabel 2 B'!D36<0.5),"-",IFERROR('Tabel 2 B'!D36/'Tabel 1 B'!C34*100,"-")) -> 7.998503087 | F36: =IF(OR('Tabel 1 B'!E34<5, 'Tabel 2 B'!F36<0.5),"-",IFERROR('Tabel 2 B'!F36/'Tabel 1 B'!E34*100,"-")) -> 3.703703704 | G36: =IF(OR('Tabel 1 B'!E34<5,'Tabel 2 B'!G36<0.5),"-",IFERROR('Tabel 2 B'!G36/'Tabel 1 B'!E34*100,"-")) -> 3.703010689 | I36: =IF(OR('Tabel 1 B'!G34<5,'Tabel 2 B'!I36<0.5),"-",IFERROR('Tabel 2 B'!I36/'Tabel 1 B'!G34*100,"-")) -> 5.769230769 | J36: =IF(OR('Tabel 1 B'!G34<5,'Tabel 2 B'!J36<0.5),"-",IFERROR('Tabel 2 B'!J36/'Tabel 1 B'!G34*100,"-")) -> 5.768151265
A37: Cand. Merc. | C37: =IF(OR('Tabel 1 B'!C35<5, 'Tabel 2 B'!C37<0.5),"-",IFERROR('Tabel 2 B'!C37/'Tabel 1 B'!C35*100,"-")) -> 15.38461538 | D37: =IF(OR('Tabel 1 B'!C35<5,'Tabel 2 B'!D37<0.5),"-",IFERROR('Tabel 2 B'!D37/'Tabel 1 B'!C35*100,"-")) -> 15.38173671 | F37: =IF(OR('Tabel 1 B'!E35<5, 'Tabel 2 B'!F37<0.5),"-",IFERROR('Tabel 2 B'!F37/'Tabel 1 B'!E35*100,"-")) -> 6.25 | G37: =IF(OR('Tabel 1 B'!E35<5,'Tabel 2 B'!G37<0.5),"-",IFERROR('Tabel 2 B'!G37/'Tabel 1 B'!E35*100,"-")) -> 3.753976174 | I37: =IF(OR('Tabel 1 B'!G35<5,'Tabel 2 B'!I37<0.5),"-",IFERROR('Tabel 2 B'!I37/'Tabel 1 B'!G35*100,"-")) -> 10.34482759 | J37: =IF(OR('Tabel 1 B'!G35<5,'Tabel 2 B'!J37<0.5),"-",IFERROR('Tabel 2 B'!J37/'Tabel 1 B'!G35*100,"-")) -> 8.966420551
A38: HA | C38: =IF(OR('Tabel 1 B'!C36<5, 'Tabel 2 B'!C38<0.5),"-",IFERROR('Tabel 2 B'!C38/'Tabel 1 B'!C36*100,"-")) -> - | D38: =IF(OR('Tabel 1 B'!C36<5,'Tabel 2 B'!D38<0.5),"-",IFERROR('Tabel 2 B'!D38/'Tabel 1 B'!C36*100,"-")) -> - | F38: =IF(OR('Tabel 1 B'!E36<5, 'Tabel 2 B'!F38<0.5),"-",IFERROR('Tabel 2 B'!F38/'Tabel 1 B'!E36*100,"-")) -> - | G38: =IF(OR('Tabel 1 B'!E36<5,'Tabel 2 B'!G38<0.5),"-",IFERROR('Tabel 2 B'!G38/'Tabel 1 B'!E36*100,"-")) -> - | I38: =IF(OR('Tabel 1 B'!G36<5,'Tabel 2 B'!I38<0.5),"-",IFERROR('Tabel 2 B'!I38/'Tabel 1 B'!G36*100,"-")) -> - | J38: =IF(OR('Tabel 1 B'!G36<5,'Tabel 2 B'!J38<0.5),"-",IFERROR('Tabel 2 B'!J38/'Tabel 1 B'!G36*100,"-")) -> -
A39: HD | C39: =IF(OR('Tabel 1 B'!C37<5, 'Tabel 2 B'!C39<0.5),"-",IFERROR('Tabel 2 B'!C39/'Tabel 1 B'!C37*100,"-")) -> - | D39: =IF(OR('Tabel 1 B'!C37<5,'Tabel 2 B'!D39<0.5),"-",IFERROR('Tabel 2 B'!D39/'Tabel 1 B'!C37*100,"-")) -> - | F39: =IF(OR('Tabel 1 B'!E37<5, 'Tabel 2 B'!F39<0.5),"-",IFERROR('Tabel 2 B'!F39/'Tabel 1 B'!E37*100,"-")) -> - | G39: =IF(OR('Tabel 1 B'!E37<5,'Tabel 2 B'!G39<0.5),"-",IFERROR('Tabel 2 B'!G39/'Tabel 1 B'!E37*100,"-")) -> - | I39: =IF(OR('Tabel 1 B'!G37<5,'Tabel 2 B'!I39<0.5),"-",IFERROR('Tabel 2 B'!I39/'Tabel 1 B'!G37*100,"-")) -> - | J39: =IF(OR('Tabel 1 B'!G37<5,'Tabel 2 B'!J39<0.5),"-",IFERROR('Tabel 2 B'!J39/'Tabel 1 B'!G37*100,"-")) -> -
A40: Komm. og Sprog | C40: =IF(OR('Tabel 1 B'!C38<5, 'Tabel 2 B'!C40<0.5),"-",IFERROR('Tabel 2 B'!C40/'Tabel 1 B'!C38*100,"-")) -> - | D40: =IF(OR('Tabel 1 B'!C38<5,'Tabel 2 B'!D40<0.5),"-",IFERROR('Tabel 2 B'!D40/'Tabel 1 B'!C38*100,"-")) -> - | F40: =IF(OR('Tabel 1 B'!E38<5, 'Tabel 2 B'!F40<0.5),"-",IFERROR('Tabel 2 B'!F40/'Tabel 1 B'!E38*100,"-")) -> 36.36363636 | G40: =IF(OR('Tabel 1 B'!E38<5,'Tabel 2 B'!G40<0.5),"-",IFERROR('Tabel 2 B'!G40/'Tabel 1 B'!E38*100,"-")) -> 36.35683222 | I40: =IF(OR('Tabel 1 B'!G38<5,'Tabel 2 B'!I40<0.5),"-",IFERROR('Tabel 2 B'!I40/'Tabel 1 B'!G38*100,"-")) -> 26.66666667 | J40: =IF(OR('Tabel 1 B'!G38<5,'Tabel 2 B'!J40<0.5),"-",IFERROR('Tabel 2 B'!J40/'Tabel 1 B'!G38*100,"-")) -> 26.66167696
A41: Bygningskonst. | C41: =IF(OR('Tabel 1 B'!C39<5, 'Tabel 2 B'!C41<0.5),"-",IFERROR('Tabel 2 B'!C41/'Tabel 1 B'!C39*100,"-")) -> - | D41: =IF(OR('Tabel 1 B'!C39<5,'Tabel 2 B'!D41<0.5),"-",IFERROR('Tabel 2 B'!D41/'Tabel 1 B'!C39*100,"-")) -> - | F41: =IF(OR('Tabel 1 B'!E39<5, 'Tabel 2 B'!F41<0.5),"-",IFERROR('Tabel 2 B'!F41/'Tabel 1 B'!E39*100,"-")) -> - | G41: =IF(OR('Tabel 1 B'!E39<5,'Tabel 2 B'!G41<0.5),"-",IFERROR('Tabel 2 B'!G41/'Tabel 1 B'!E39*100,"-")) -> - | I41: =IF(OR('Tabel 1 B'!G39<5,'Tabel 2 B'!I41<0.5),"-",IFERROR('Tabel 2 B'!I41/'Tabel 1 B'!G39*100,"-")) -> - | J41: =IF(OR('Tabel 1 B'!G39<5,'Tabel 2 B'!J41<0.5),"-",IFERROR('Tabel 2 B'!J41/'Tabel 1 B'!G39*100,"-")) -> -
A42: Cand. IT. | C42: =IF(OR('Tabel 1 B'!C40<5, 'Tabel 2 B'!C42<0.5),"-",IFERROR('Tabel 2 B'!C42/'Tabel 1 B'!C40*100,"-")) -> - | D42: =IF(OR('Tabel 1 B'!C40<5,'Tabel 2 B'!D42<0.5),"-",IFERROR('Tabel 2 B'!D42/'Tabel 1 B'!C40*100,"-")) -> - | F42: =IF(OR('Tabel 1 B'!E40<5, 'Tabel 2 B'!F42<0.5),"-",IFERROR('Tabel 2 B'!F42/'Tabel 1 B'!E40*100,"-")) -> - | G42: =IF(OR('Tabel 1 B'!E40<5,'Tabel 2 B'!G42<0.5),"-",IFERROR('Tabel 2 B'!G42/'Tabel 1 B'!E40*100,"-")) -> - | I42: =IF(OR('Tabel 1 B'!G40<5,'Tabel 2 B'!I42<0.5),"-",IFERROR('Tabel 2 B'!I42/'Tabel 1 B'!G40*100,"-")) -> - | J42: =IF(OR('Tabel 1 B'!G40<5,'Tabel 2 B'!J42<0.5),"-",IFERROR('Tabel 2 B'!J42/'Tabel 1 B'!G40*100,"-")) -> -
A43: Bac. Samf. | C43: =IF(OR('Tabel 1 B'!C41<5, 'Tabel 2 B'!C43<0.5),"-",IFERROR('Tabel 2 B'!C43/'Tabel 1 B'!C41*100,"-")) -> - | D43: =IF(OR('Tabel 1 B'!C41<5,'Tabel 2 B'!D43<0.5),"-",IFERROR('Tabel 2 B'!D43/'Tabel 1 B'!C41*100,"-")) -> - | F43: =IF(OR('Tabel 1 B'!E41<5, 'Tabel 2 B'!F43<0.5),"-",IFERROR('Tabel 2 B'!F43/'Tabel 1 B'!E41*100,"-")) -> - | G43: =IF(OR('Tabel 1 B'!E41<5,'Tabel 2 B'!G43<0.5),"-",IFERROR('Tabel 2 B'!G43/'Tabel 1 B'!E41*100,"-")) -> - | I43: =IF(OR('Tabel 1 B'!G41<5,'Tabel 2 B'!I43<0.5),"-",IFERROR('Tabel 2 B'!I43/'Tabel 1 B'!G41*100,"-")) -> - | J43: =IF(OR('Tabel 1 B'!G41<5,'Tabel 2 B'!J43<0.5),"-",IFERROR('Tabel 2 B'!J43/'Tabel 1 B'!G41*100,"-")) -> -
A44: Bac. Hum. | C44: =IF(OR('Tabel 1 B'!C42<5, 'Tabel 2 B'!C44<0.5),"-",IFERROR('Tabel 2 B'!C44/'Tabel 1 B'!C42*100,"-")) -> 25 | D44: =IF(OR('Tabel 1 B'!C42<5,'Tabel 2 B'!D44<0.5),"-",IFERROR('Tabel 2 B'!D44/'Tabel 1 B'!C42*100,"-")) -> 24.99532215 | F44: =IF(OR('Tabel 1 B'!E42<5, 'Tabel 2 B'!F44<0.5),"-",IFERROR('Tabel 2 B'!F44/'Tabel 1 B'!E42*100,"-")) -> - | G44: =IF(OR('Tabel 1 B'!E42<5,'Tabel 2 B'!G44<0.5),"-",IFERROR('Tabel 2 B'!G44/'Tabel 1 B'!E42*100,"-")) -> - | I44: =IF(OR('Tabel 1 B'!G42<5,'Tabel 2 B'!I44<0.5),"-",IFERROR('Tabel 2 B'!I44/'Tabel 1 B'!G42*100,"-")) -> 15.38461538 | J44: =IF(OR('Tabel 1 B'!G42<5,'Tabel 2 B'!J44<0.5),"-",IFERROR('Tabel 2 B'!J44/'Tabel 1 B'!G42*100,"-")) -> 15.38173671
A45: Bac. Nat. | C45: =IF(OR('Tabel 1 B'!C43<5, 'Tabel 2 B'!C45<0.5),"-",IFERROR('Tabel 2 B'!C45/'Tabel 1 B'!C43*100,"-")) -> - | D45: =IF(OR('Tabel 1 B'!C43<5,'Tabel 2 B'!D45<0.5),"-",IFERROR('Tabel 2 B'!D45/'Tabel 1 B'!C43*100,"-")) -> - | F45: =IF(OR('Tabel 1 B'!E43<5, 'Tabel 2 B'!F45<0.5),"-",IFERROR('Tabel 2 B'!F45/'Tabel 1 B'!E43*100,"-")) -> 14.28571429 | G45: =IF(OR('Tabel 1 B'!E43<5,'Tabel 2 B'!G45<0.5),"-",IFERROR('Tabel 2 B'!G45/'Tabel 1 B'!E43*100,"-")) -> 14.19393929 | I45: =IF(OR('Tabel 1 B'!G43<5,'Tabel 2 B'!I45<0.5),"-",IFERROR('Tabel 2 B'!I45/'Tabel 1 B'!G43*100,"-")) -> 20 | J45: =IF(OR('Tabel 1 B'!G43<5,'Tabel 2 B'!J45<0.5),"-",IFERROR('Tabel 2 B'!J45/'Tabel 1 B'!G43*100,"-")) -> 19.93388636
A46: Andre | C46: =IF(OR('Tabel 1 B'!C44<5, 'Tabel 2 B'!C46<0.5),"-",IFERROR('Tabel 2 B'!C46/'Tabel 1 B'!C44*100,"-")) -> 7.8125 | D46: =IF(OR('Tabel 1 B'!C44<5,'Tabel 2 B'!D46<0.5),"-",IFERROR('Tabel 2 B'!D46/'Tabel 1 B'!C44*100,"-")) -> 7.440708227 | F46: =IF(OR('Tabel 1 B'!E44<5, 'Tabel 2 B'!F46<0.5),"-",IFERROR('Tabel 2 B'!F46/'Tabel 1 B'!E44*100,"-")) -> 13.95348837 | G46: =IF(OR('Tabel 1 B'!E44<5,'Tabel 2 B'!G46<0.5),"-",IFERROR('Tabel 2 B'!G46/'Tabel 1 B'!E44*100,"-")) -> 12.62077198 | I46: =IF(OR('Tabel 1 B'!G44<5,'Tabel 2 B'!I46<0.5),"-",IFERROR('Tabel 2 B'!I46/'Tabel 1 B'!G44*100,"-")) -> 10.28037383 | J46: =IF(OR('Tabel 1 B'!G44<5,'Tabel 2 B'!J46<0.5),"-",IFERROR('Tabel 2 B'!J46/'Tabel 1 B'!G44*100,"-")) -> 9.522416092
A48: Total | C48: =IF(OR('Tabel 1 B'!C46<5, 'Tabel 2 B'!C48<0.5),"-",IFERROR('Tabel 2 B'!C48/'Tabel 1 B'!C46*100,"-")) -> 8.153477218 | D48: =IF(OR('Tabel 1 B'!C46<5,'Tabel 2 B'!D48<0.5),"-",IFERROR('Tabel 2 B'!D48/'Tabel 1 B'!C46*100,"-")) -> 7.519263701 | F48: =IF(OR('Tabel 1 B'!E46<5, 'Tabel 2 B'!F48<0.5),"-",IFERROR('Tabel 2 B'!F48/'Tabel 1 B'!E46*100,"-")) -> 10.83123426 | G48: =IF(OR('Tabel 1 B'!E46<5,'Tabel 2 B'!G48<0.5),"-",IFERROR('Tabel 2 B'!G48/'Tabel 1 B'!E46*100,"-")) -> 9.293175395 | I48: =IF(OR('Tabel 1 B'!G46<5,'Tabel 2 B'!I48<0.5),"-",IFERROR('Tabel 2 B'!I48/'Tabel 1 B'!G46*100,"-")) -> 9.459459459 | J48: =IF(OR('Tabel 1 B'!G46<5,'Tabel 2 B'!J48<0.5),"-",IFERROR('Tabel 2 B'!J48/'Tabel 1 B'!G46*100,"-")) -> 8.384427021
A50: Ingeniører i alt | C50: =IF(OR('Tabel 1 B'!C48<5, 'Tabel 2 B'!C50<0.5),"-",IFERROR('Tabel 2 B'!C50/'Tabel 1 B'!C48*100,"-")) -> 4.761904762 | D50: =IF(OR('Tabel 1 B'!C48<5,'Tabel 2 B'!D50<0.5),"-",IFERROR('Tabel 2 B'!D50/'Tabel 1 B'!C48*100,"-")) -> 4.4194563 | F50: =IF(OR('Tabel 1 B'!E48<5, 'Tabel 2 B'!F50<0.5),"-",IFERROR('Tabel 2 B'!F50/'Tabel 1 B'!E48*100,"-")) -> 15.38461538 | G50: =IF(OR('Tabel 1 B'!E48<5,'Tabel 2 B'!G50<0.5),"-",IFERROR('Tabel 2 B'!G50/'Tabel 1 B'!E48*100,"-")) -> 15.38173671 | I50: =IF(OR('Tabel 1 B'!G48<5,'Tabel 2 B'!I50<0.5),"-",IFERROR('Tabel 2 B'!I50/'Tabel 1 B'!G48*100,"-")) -> 6.18556701 | J50: =IF(OR('Tabel 1 B'!G48<5,'Tabel 2 B'!J50<0.5),"-",IFERROR('Tabel 2 B'!J50/'Tabel 1 B'!G48*100,"-")) -> 5.888627901
A51: Magistre i alt | C51: =IF(OR('Tabel 1 B'!C49<5, 'Tabel 2 B'!C51<0.5),"-",IFERROR('Tabel 2 B'!C51/'Tabel 1 B'!C49*100,"-")) -> 17.28395062 | D51: =IF(OR('Tabel 1 B'!C49<5,'Tabel 2 B'!D51<0.5),"-",IFERROR('Tabel 2 B'!D51/'Tabel 1 B'!C49*100,"-")) -> 15.75300326 | F51: =IF(OR('Tabel 1 B'!E49<5, 'Tabel 2 B'!F51<0.5),"-",IFERROR('Tabel 2 B'!F51/'Tabel 1 B'!E49*100,"-")) -> 14.72868217 | G51: =IF(OR('Tabel 1 B'!E49<5,'Tabel 2 B'!G51<0.5),"-",IFERROR('Tabel 2 B'!G51/'Tabel 1 B'!E49*100,"-")) -> 12.3480786 | I51: =IF(OR('Tabel 1 B'!G49<5,'Tabel 2 B'!I51<0.5),"-",IFERROR('Tabel 2 B'!I51/'Tabel 1 B'!G49*100,"-")) -> 15.71428571 | J51: =IF(OR('Tabel 1 B'!G49<5,'Tabel 2 B'!J51<0.5),"-",IFERROR('Tabel 2 B'!J51/'Tabel 1 B'!G49*100,"-")) -> 13.66140668
A52: DJØF'ere i alt | C52: =IF(OR('Tabel 1 B'!C50<5, 'Tabel 2 B'!C52<0.5),"-",IFERROR('Tabel 2 B'!C52/'Tabel 1 B'!C50*100,"-")) -> 6.557377049 | D52: =IF(OR('Tabel 1 B'!C50<5,'Tabel 2 B'!D52<0.5),"-",IFERROR('Tabel 2 B'!D52/'Tabel 1 B'!C50*100,"-")) -> 6.556150072 | F52: =IF(OR('Tabel 1 B'!E50<5, 'Tabel 2 B'!F52<0.5),"-",IFERROR('Tabel 2 B'!F52/'Tabel 1 B'!E50*100,"-")) -> 2.739726027 | G52: =IF(OR('Tabel 1 B'!E50<5,'Tabel 2 B'!G52<0.5),"-",IFERROR('Tabel 2 B'!G52/'Tabel 1 B'!E50*100,"-")) -> 2.192395991 | I52: =IF(OR('Tabel 1 B'!G50<5,'Tabel 2 B'!I52<0.5),"-",IFERROR('Tabel 2 B'!I52/'Tabel 1 B'!G50*100,"-")) -> 4.47761194 | J52: =IF(OR('Tabel 1 B'!G50<5,'Tabel 2 B'!J52<0.5),"-",IFERROR('Tabel 2 B'!J52/'Tabel 1 B'!G50*100,"-")) -> 4.178881058
A57: Bornholm
C59: Mænd | F59: Kvinder | I59: I alt
C60: Ledigheds- berørte | D60: Gns. brutto- ledighed | F60: Ledigheds- berørte | G60: Gns. brutto- ledighed | I60: Ledigheds- berørte | J60: Gns. brutto- ledighed
A63: Civ. ing. | C63: =IF(OR('Tabel 1 B'!C61<5, 'Tabel 2 B'!C63<0.5),"-",IFERROR('Tabel 2 B'!C63/'Tabel 1 B'!C61*100,"-")) -> 6.896551724 | D63: =IF(OR('Tabel 1 B'!C61<5,'Tabel 2 B'!D63<0.5),"-",IFERROR('Tabel 2 B'!D63/'Tabel 1 B'!C61*100,"-")) -> 6.895261282 | F63: =IF(OR('Tabel 1 B'!E61<5, 'Tabel 2 B'!F63<0.5),"-",IFERROR('Tabel 2 B'!F63/'Tabel 1 B'!E61*100,"-")) -> 20 | G63: =IF(OR('Tabel 1 B'!E61<5,'Tabel 2 B'!G63<0.5),"-",IFERROR('Tabel 2 B'!G63/'Tabel 1 B'!E61*100,"-")) -> 19.99625772 | I63: =IF(OR('Tabel 1 B'!G61<5,'Tabel 2 B'!I63<0.5),"-",IFERROR('Tabel 2 B'!I63/'Tabel 1 B'!G61*100,"-")) -> 8.823529412 | J63: =IF(OR('Tabel 1 B'!G61<5,'Tabel 2 B'!J63<0.5),"-",IFERROR('Tabel 2 B'!J63/'Tabel 1 B'!G61*100,"-")) -> 8.821878405
A64: Diplom ing. | C64: =IF(OR('Tabel 1 B'!C62<5, 'Tabel 2 B'!C64<0.5),"-",IFERROR('Tabel 2 B'!C64/'Tabel 1 B'!C62*100,"-")) -> 3.636363636 | D64: =IF(OR('Tabel 1 B'!C62<5,'Tabel 2 B'!D64<0.5),"-",IFERROR('Tabel 2 B'!D64/'Tabel 1 B'!C62*100,"-")) -> 3.114031855 | F64: =IF(OR('Tabel 1 B'!E62<5, 'Tabel 2 B'!F64<0.5),"-",IFERROR('Tabel 2 B'!F64/'Tabel 1 B'!E62*100,"-")) -> 12.5 | G64: =IF(OR('Tabel 1 B'!E62<5,'Tabel 2 B'!G64<0.5),"-",IFERROR('Tabel 2 B'!G64/'Tabel 1 B'!E62*100,"-")) -> 12.49766107 | I64: =IF(OR('Tabel 1 B'!G62<5,'Tabel 2 B'!I64<0.5),"-",IFERROR('Tabel 2 B'!I64/'Tabel 1 B'!G62*100,"-")) -> 4.761904762 | J64: =IF(OR('Tabel 1 B'!G62<5,'Tabel 2 B'!J64<0.5),"-",IFERROR('Tabel 2 B'!J64/'Tabel 1 B'!G62*100,"-")) -> 4.305603819
A65: Cand. Scient. Tek. | C65: =IF(OR('Tabel 1 B'!C63<5, 'Tabel 2 B'!C65<0.5),"-",IFERROR('Tabel 2 B'!C65/'Tabel 1 B'!C63*100,"-")) -> 20 | D65: =IF(OR('Tabel 1 B'!C63<5,'Tabel 2 B'!D65<0.5),"-",IFERROR('Tabel 2 B'!D65/'Tabel 1 B'!C63*100,"-")) -> 17.22696938 | F65: =IF(OR('Tabel 1 B'!E63<5, 'Tabel 2 B'!F65<0.5),"-",IFERROR('Tabel 2 B'!F65/'Tabel 1 B'!E63*100,"-")) -> 21.42857143 | G65: =IF(OR('Tabel 1 B'!E63<5,'Tabel 2 B'!G65<0.5),"-",IFERROR('Tabel 2 B'!G65/'Tabel 1 B'!E63*100,"-")) -> 14.67063467 | I65: =IF(OR('Tabel 1 B'!G63<5,'Tabel 2 B'!I65<0.5),"-",IFERROR('Tabel 2 B'!I65/'Tabel 1 B'!G63*100,"-")) -> 20.68965517 | J65: =IF(OR('Tabel 1 B'!G63<5,'Tabel 2 B'!J65<0.5),"-",IFERROR('Tabel 2 B'!J65/'Tabel 1 B'!G63*100,"-")) -> 15.99287676
A66: MA. Hum. | C66: =IF(OR('Tabel 1 B'!C64<5, 'Tabel 2 B'!C66<0.5),"-",IFERROR('Tabel 2 B'!C66/'Tabel 1 B'!C64*100,"-")) -> 17.07317073 | D66: =IF(OR('Tabel 1 B'!C64<5,'Tabel 2 B'!D66<0.5),"-",IFERROR('Tabel 2 B'!D66/'Tabel 1 B'!C64*100,"-")) -> 14.27695622 | F66: =IF(OR('Tabel 1 B'!E64<5, 'Tabel 2 B'!F66<0.5),"-",IFERROR('Tabel 2 B'!F66/'Tabel 1 B'!E64*100,"-")) -> 18.07228916 | G66: =IF(OR('Tabel 1 B'!E64<5,'Tabel 2 B'!G66<0.5),"-",IFERROR('Tabel 2 B'!G66/'Tabel 1 B'!E64*100,"-")) -> 14.37321669 | I66: =IF(OR('Tabel 1 B'!G64<5,'Tabel 2 B'!I66<0.5),"-",IFERROR('Tabel 2 B'!I66/'Tabel 1 B'!G64*100,"-")) -> 17.74193548 | J66: =IF(OR('Tabel 1 B'!G64<5,'Tabel 2 B'!J66<0.5),"-",IFERROR('Tabel 2 B'!J66/'Tabel 1 B'!G64*100,"-")) -> 14.34138863
A67: MA. Nat. | C67: =IF(OR('Tabel 1 B'!C65<5, 'Tabel 2 B'!C67<0.5),"-",IFERROR('Tabel 2 B'!C67/'Tabel 1 B'!C65*100,"-")) -> 12 | D67: =IF(OR('Tabel 1 B'!C65<5,'Tabel 2 B'!D67<0.5),"-",IFERROR('Tabel 2 B'!D67/'Tabel 1 B'!C65*100,"-")) -> 11.99775463 | F67: =IF(OR('Tabel 1 B'!E65<5, 'Tabel 2 B'!F67<0.5),"-",IFERROR('Tabel 2 B'!F67/'Tabel 1 B'!E65*100,"-")) -> - | G67: =IF(OR('Tabel 1 B'!E65<5,'Tabel 2 B'!G67<0.5),"-",IFERROR('Tabel 2 B'!G67/'Tabel 1 B'!E65*100,"-")) -> - | I67: =IF(OR('Tabel 1 B'!G65<5,'Tabel 2 B'!I67<0.5),"-",IFERROR('Tabel 2 B'!I67/'Tabel 1 B'!G65*100,"-")) -> 6.52173913 | J67: =IF(OR('Tabel 1 B'!G65<5,'Tabel 2 B'!J67<0.5),"-",IFERROR('Tabel 2 B'!J67/'Tabel 1 B'!G65*100,"-")) -> 6.520518821
A68: MA. Ph.d. | C68: =IF(OR('Tabel 1 B'!C66<5, 'Tabel 2 B'!C68<0.5),"-",IFERROR('Tabel 2 B'!C68/'Tabel 1 B'!C66*100,"-")) -> - | D68: =IF(OR('Tabel 1 B'!C66<5,'Tabel 2 B'!D68<0.5),"-",IFERROR('Tabel 2 B'!D68/'Tabel 1 B'!C66*100,"-")) -> - | F68: =IF(OR('Tabel 1 B'!E66<5, 'Tabel 2 B'!F68<0.5),"-",IFERROR('Tabel 2 B'!F68/'Tabel 1 B'!E66*100,"-")) -> - | G68: =IF(OR('Tabel 1 B'!E66<5,'Tabel 2 B'!G68<0.5),"-",IFERROR('Tabel 2 B'!G68/'Tabel 1 B'!E66*100,"-")) -> - | I68: =IF(OR('Tabel 1 B'!G66<5,'Tabel 2 B'!I68<0.5),"-",IFERROR('Tabel 2 B'!I68/'Tabel 1 B'!G66*100,"-")) -> 14.28571429 | J68: =IF(OR('Tabel 1 B'!G66<5,'Tabel 2 B'!J68<0.5),"-",IFERROR('Tabel 2 B'!J68/'Tabel 1 B'!G66*100,"-")) -> 14.28304123
A69: MA. Samf. | C69: =IF(OR('Tabel 1 B'!C67<5, 'Tabel 2 B'!C69<0.5),"-",IFERROR('Tabel 2 B'!C69/'Tabel 1 B'!C67*100,"-")) -> - | D69: =IF(OR('Tabel 1 B'!C67<5,'Tabel 2 B'!D69<0.5),"-",IFERROR('Tabel 2 B'!D69/'Tabel 1 B'!C67*100,"-")) -> - | F69: =IF(OR('Tabel 1 B'!E67<5, 'Tabel 2 B'!F69<0.5),"-",IFERROR('Tabel 2 B'!F69/'Tabel 1 B'!E67*100,"-")) -> - | G69: =IF(OR('Tabel 1 B'!E67<5,'Tabel 2 B'!G69<0.5),"-",IFERROR('Tabel 2 B'!G69/'Tabel 1 B'!E67*100,"-")) -> - | I69: =IF(OR('Tabel 1 B'!G67<5,'Tabel 2 B'!I69<0.5),"-",IFERROR('Tabel 2 B'!I69/'Tabel 1 B'!G67*100,"-")) -> 12.5 | J69: =IF(OR('Tabel 1 B'!G67<5,'Tabel 2 B'!J69<0.5),"-",IFERROR('Tabel 2 B'!J69/'Tabel 1 B'!G67*100,"-")) -> 12.49766107
A70: Øvrige Mag. | C70: =IF(OR('Tabel 1 B'!C68<5, 'Tabel 2 B'!C70<0.5),"-",IFERROR('Tabel 2 B'!C70/'Tabel 1 B'!C68*100,"-")) -> 28.57142857 | D70: =IF(OR('Tabel 1 B'!C68<5,'Tabel 2 B'!D70<0.5),"-",IFERROR('Tabel 2 B'!D70/'Tabel 1 B'!C68*100,"-")) -> 27.24737372 | F70: =IF(OR('Tabel 1 B'!E68<5, 'Tabel 2 B'!F70<0.5),"-",IFERROR('Tabel 2 B'!F70/'Tabel 1 B'!E68*100,"-")) -> 30 | G70: =IF(OR('Tabel 1 B'!E68<5,'Tabel 2 B'!G70<0.5),"-",IFERROR('Tabel 2 B'!G70/'Tabel 1 B'!E68*100,"-")) -> 29.99438658 | I70: =IF(OR('Tabel 1 B'!G68<5,'Tabel 2 B'!I70<0.5),"-",IFERROR('Tabel 2 B'!I70/'Tabel 1 B'!G68*100,"-")) -> 29.41176471 | J70: =IF(OR('Tabel 1 B'!G68<5,'Tabel 2 B'!J70<0.5),"-",IFERROR('Tabel 2 B'!J70/'Tabel 1 B'!G68*100,"-")) -> 28.86326364
A71: Agronom | C71: =IF(OR('Tabel 1 B'!C69<5, 'Tabel 2 B'!C71<0.5),"-",IFERROR('Tabel 2 B'!C71/'Tabel 1 B'!C69*100,"-")) -> - | D71: =IF(OR('Tabel 1 B'!C69<5,'Tabel 2 B'!D71<0.5),"-",IFERROR('Tabel 2 B'!D71/'Tabel 1 B'!C69*100,"-")) -> - | F71: =IF(OR('Tabel 1 B'!E69<5, 'Tabel 2 B'!F71<0.5),"-",IFERROR('Tabel 2 B'!F71/'Tabel 1 B'!E69*100,"-")) -> - | G71: =IF(OR('Tabel 1 B'!E69<5,'Tabel 2 B'!G71<0.5),"-",IFERROR('Tabel 2 B'!G71/'Tabel 1 B'!E69*100,"-")) -> - | I71: =IF(OR('Tabel 1 B'!G69<5,'Tabel 2 B'!I71<0.5),"-",IFERROR('Tabel 2 B'!I71/'Tabel 1 B'!G69*100,"-")) -> - | J71: =IF(OR('Tabel 1 B'!G69<5,'Tabel 2 B'!J71<0.5),"-",IFERROR('Tabel 2 B'!J71/'Tabel 1 B'!G69*100,"-")) -> -
A72: Landsk. Arkt. | C72: =IF(OR('Tabel 1 B'!C70<5, 'Tabel 2 B'!C72<0.5),"-",IFERROR('Tabel 2 B'!C72/'Tabel 1 B'!C70*100,"-")) -> - | D72: =IF(OR('Tabel 1 B'!C70<5,'Tabel 2 B'!D72<0.5),"-",IFERROR('Tabel 2 B'!D72/'Tabel 1 B'!C70*100,"-")) -> - | F72: =IF(OR('Tabel 1 B'!E70<5, 'Tabel 2 B'!F72<0.5),"-",IFERROR('Tabel 2 B'!F72/'Tabel 1 B'!E70*100,"-")) -> - | G72: =IF(OR('Tabel 1 B'!E70<5,'Tabel 2 B'!G72<0.5),"-",IFERROR('Tabel 2 B'!G72/'Tabel 1 B'!E70*100,"-")) -> - | I72: =IF(OR('Tabel 1 B'!G70<5,'Tabel 2 B'!I72<0.5),"-",IFERROR('Tabel 2 B'!I72/'Tabel 1 B'!G70*100,"-")) -> - | J72: =IF(OR('Tabel 1 B'!G70<5,'Tabel 2 B'!J72<0.5),"-",IFERROR('Tabel 2 B'!J72/'Tabel 1 B'!G70*100,"-")) -> -
A73: Hortonom | C73: =IF(OR('Tabel 1 B'!C71<5, 'Tabel 2 B'!C73<0.5),"-",IFERROR('Tabel 2 B'!C73/'Tabel 1 B'!C71*100,"-")) -> - | D73: =IF(OR('Tabel 1 B'!C71<5,'Tabel 2 B'!D73<0.5),"-",IFERROR('Tabel 2 B'!D73/'Tabel 1 B'!C71*100,"-")) -> - | F73: =IF(OR('Tabel 1 B'!E71<5, 'Tabel 2 B'!F73<0.5),"-",IFERROR('Tabel 2 B'!F73/'Tabel 1 B'!E71*100,"-")) -> - | G73: =IF(OR('Tabel 1 B'!E71<5,'Tabel 2 B'!G73<0.5),"-",IFERROR('Tabel 2 B'!G73/'Tabel 1 B'!E71*100,"-")) -> - | I73: =IF(OR('Tabel 1 B'!G71<5,'Tabel 2 B'!I73<0.5),"-",IFERROR('Tabel 2 B'!I73/'Tabel 1 B'!G71*100,"-")) -> - | J73: =IF(OR('Tabel 1 B'!G71<5,'Tabel 2 B'!J73<0.5),"-",IFERROR('Tabel 2 B'!J73/'Tabel 1 B'!G71*100,"-")) -> -
A74: Forstkand. | C74: =IF(OR('Tabel 1 B'!C72<5, 'Tabel 2 B'!C74<0.5),"-",IFERROR('Tabel 2 B'!C74/'Tabel 1 B'!C72*100,"-")) -> - | D74: =IF(OR('Tabel 1 B'!C72<5,'Tabel 2 B'!D74<0.5),"-",IFERROR('Tabel 2 B'!D74/'Tabel 1 B'!C72*100,"-")) -> - | F74: =IF(OR('Tabel 1 B'!E72<5, 'Tabel 2 B'!F74<0.5),"-",IFERROR('Tabel 2 B'!F74/'Tabel 1 B'!E72*100,"-")) -> - | G74: =IF(OR('Tabel 1 B'!E72<5,'Tabel 2 B'!G74<0.5),"-",IFERROR('Tabel 2 B'!G74/'Tabel 1 B'!E72*100,"-")) -> - | I74: =IF(OR('Tabel 1 B'!G72<5,'Tabel 2 B'!I74<0.5),"-",IFERROR('Tabel 2 B'!I74/'Tabel 1 B'!G72*100,"-")) -> - | J74: =IF(OR('Tabel 1 B'!G72<5,'Tabel 2 B'!J74<0.5),"-",IFERROR('Tabel 2 B'!J74/'Tabel 1 B'!G72*100,"-")) -> -
A75: Jordbrugsakad. | C75: =IF(OR('Tabel 1 B'!C73<5, 'Tabel 2 B'!C75<0.5),"-",IFERROR('Tabel 2 B'!C75/'Tabel 1 B'!C73*100,"-")) -> - | D75: =IF(OR('Tabel 1 B'!C73<5,'Tabel 2 B'!D75<0.5),"-",IFERROR('Tabel 2 B'!D75/'Tabel 1 B'!C73*100,"-")) -> - | F75: =IF(OR('Tabel 1 B'!E73<5, 'Tabel 2 B'!F75<0.5),"-",IFERROR('Tabel 2 B'!F75/'Tabel 1 B'!E73*100,"-")) -> - | G75: =IF(OR('Tabel 1 B'!E73<5,'Tabel 2 B'!G75<0.5),"-",IFERROR('Tabel 2 B'!G75/'Tabel 1 B'!E73*100,"-")) -> - | I75: =IF(OR('Tabel 1 B'!G73<5,'Tabel 2 B'!I75<0.5),"-",IFERROR('Tabel 2 B'!I75/'Tabel 1 B'!G73*100,"-")) -> - | J75: =IF(OR('Tabel 1 B'!G73<5,'Tabel 2 B'!J75<0.5),"-",IFERROR('Tabel 2 B'!J75/'Tabel 1 B'!G73*100,"-")) -> -
A76: Mejeriing. | C76: =IF(OR('Tabel 1 B'!C74<5, 'Tabel 2 B'!C76<0.5),"-",IFERROR('Tabel 2 B'!C76/'Tabel 1 B'!C74*100,"-")) -> - | D76: =IF(OR('Tabel 1 B'!C74<5,'Tabel 2 B'!D76<0.5),"-",IFERROR('Tabel 2 B'!D76/'Tabel 1 B'!C74*100,"-")) -> - | F76: =IF(OR('Tabel 1 B'!E74<5, 'Tabel 2 B'!F76<0.5),"-",IFERROR('Tabel 2 B'!F76/'Tabel 1 B'!E74*100,"-")) -> - | G76: =IF(OR('Tabel 1 B'!E74<5,'Tabel 2 B'!G76<0.5),"-",IFERROR('Tabel 2 B'!G76/'Tabel 1 B'!E74*100,"-")) -> - | I76: =IF(OR('Tabel 1 B'!G74<5,'Tabel 2 B'!I76<0.5),"-",IFERROR('Tabel 2 B'!I76/'Tabel 1 B'!G74*100,"-")) -> - | J76: =IF(OR('Tabel 1 B'!G74<5,'Tabel 2 B'!J76<0.5),"-",IFERROR('Tabel 2 B'!J76/'Tabel 1 B'!G74*100,"-")) -> -
A77: Levn.m.kand. | C77: =IF(OR('Tabel 1 B'!C75<5, 'Tabel 2 B'!C77<0.5),"-",IFERROR('Tabel 2 B'!C77/'Tabel 1 B'!C75*100,"-")) -> - | D77: =IF(OR('Tabel 1 B'!C75<5,'Tabel 2 B'!D77<0.5),"-",IFERROR('Tabel 2 B'!D77/'Tabel 1 B'!C75*100,"-")) -> - | F77: =IF(OR('Tabel 1 B'!E75<5, 'Tabel 2 B'!F77<0.5),"-",IFERROR('Tabel 2 B'!F77/'Tabel 1 B'!E75*100,"-")) -> - | G77: =IF(OR('Tabel 1 B'!E75<5,'Tabel 2 B'!G77<0.5),"-",IFERROR('Tabel 2 B'!G77/'Tabel 1 B'!E75*100,"-")) -> - | I77: =IF(OR('Tabel 1 B'!G75<5,'Tabel 2 B'!I77<0.5),"-",IFERROR('Tabel 2 B'!I77/'Tabel 1 B'!G75*100,"-")) -> - | J77: =IF(OR('Tabel 1 B'!G75<5,'Tabel 2 B'!J77<0.5),"-",IFERROR('Tabel 2 B'!J77/'Tabel 1 B'!G75*100,"-")) -> -
A78: Dyrlæge | C78: =IF(OR('Tabel 1 B'!C76<5, 'Tabel 2 B'!C78<0.5),"-",IFERROR('Tabel 2 B'!C78/'Tabel 1 B'!C76*100,"-")) -> - | D78: =IF(OR('Tabel 1 B'!C76<5,'Tabel 2 B'!D78<0.5),"-",IFERROR('Tabel 2 B'!D78/'Tabel 1 B'!C76*100,"-")) -> - | F78: =IF(OR('Tabel 1 B'!E76<5, 'Tabel 2 B'!F78<0.5),"-",IFERROR('Tabel 2 B'!F78/'Tabel 1 B'!E76*100,"-")) -> - | G78: =IF(OR('Tabel 1 B'!E76<5,'Tabel 2 B'!G78<0.5),"-",IFERROR('Tabel 2 B'!G78/'Tabel 1 B'!E76*100,"-")) -> - | I78: =IF(OR('Tabel 1 B'!G76<5,'Tabel 2 B'!I78<0.5),"-",IFERROR('Tabel 2 B'!I78/'Tabel 1 B'!G76*100,"-")) -> 7.142857143 | J78: =IF(OR('Tabel 1 B'!G76<5,'Tabel 2 B'!J78<0.5),"-",IFERROR('Tabel 2 B'!J78/'Tabel 1 B'!G76*100,"-")) -> 3.844748777
A79: Farmaceut | C79: =IF(OR('Tabel 1 B'!C77<5, 'Tabel 2 B'!C79<0.5),"-",IFERROR('Tabel 2 B'!C79/'Tabel 1 B'!C77*100,"-")) -> - | D79: =IF(OR('Tabel 1 B'!C77<5,'Tabel 2 B'!D79<0.5),"-",IFERROR('Tabel 2 B'!D79/'Tabel 1 B'!C77*100,"-")) -> - | F79: =IF(OR('Tabel 1 B'!E77<5, 'Tabel 2 B'!F79<0.5),"-",IFERROR('Tabel 2 B'!F79/'Tabel 1 B'!E77*100,"-")) -> - | G79: =IF(OR('Tabel 1 B'!E77<5,'Tabel 2 B'!G79<0.5),"-",IFERROR('Tabel 2 B'!G79/'Tabel 1 B'!E77*100,"-")) -> - | I79: =IF(OR('Tabel 1 B'!G77<5,'Tabel 2 B'!I79<0.5),"-",IFERROR('Tabel 2 B'!I79/'Tabel 1 B'!G77*100,"-")) -> - | J79: =IF(OR('Tabel 1 B'!G77<5,'Tabel 2 B'!J79<0.5),"-",IFERROR('Tabel 2 B'!J79/'Tabel 1 B'!G77*100,"-")) -> -
A80: Læge | C80: =IF(OR('Tabel 1 B'!C78<5, 'Tabel 2 B'!C80<0.5),"-",IFERROR('Tabel 2 B'!C80/'Tabel 1 B'!C78*100,"-")) -> - | D80: =IF(OR('Tabel 1 B'!C78<5,'Tabel 2 B'!D80<0.5),"-",IFERROR('Tabel 2 B'!D80/'Tabel 1 B'!C78*100,"-")) -> - | F80: =IF(OR('Tabel 1 B'!E78<5, 'Tabel 2 B'!F80<0.5),"-",IFERROR('Tabel 2 B'!F80/'Tabel 1 B'!E78*100,"-")) -> 4.545454545 | G80: =IF(OR('Tabel 1 B'!E78<5,'Tabel 2 B'!G80<0.5),"-",IFERROR('Tabel 2 B'!G80/'Tabel 1 B'!E78*100,"-")) -> - | I80: =IF(OR('Tabel 1 B'!G78<5,'Tabel 2 B'!I80<0.5),"-",IFERROR('Tabel 2 B'!I80/'Tabel 1 B'!G78*100,"-")) -> 3.125 | J80: =IF(OR('Tabel 1 B'!G78<5,'Tabel 2 B'!J80<0.5),"-",IFERROR('Tabel 2 B'!J80/'Tabel 1 B'!G78*100,"-")) -> -
A81: Tandlæge | C81: =IF(OR('Tabel 1 B'!C79<5, 'Tabel 2 B'!C81<0.5),"-",IFERROR('Tabel 2 B'!C81/'Tabel 1 B'!C79*100,"-")) -> - | D81: =IF(OR('Tabel 1 B'!C79<5,'Tabel 2 B'!D81<0.5),"-",IFERROR('Tabel 2 B'!D81/'Tabel 1 B'!C79*100,"-")) -> - | F81: =IF(OR('Tabel 1 B'!E79<5, 'Tabel 2 B'!F81<0.5),"-",IFERROR('Tabel 2 B'!F81/'Tabel 1 B'!E79*100,"-")) -> - | G81: =IF(OR('Tabel 1 B'!E79<5,'Tabel 2 B'!G81<0.5),"-",IFERROR('Tabel 2 B'!G81/'Tabel 1 B'!E79*100,"-")) -> - | I81: =IF(OR('Tabel 1 B'!G79<5,'Tabel 2 B'!I81<0.5),"-",IFERROR('Tabel 2 B'!I81/'Tabel 1 B'!G79*100,"-")) -> - | J81: =IF(OR('Tabel 1 B'!G79<5,'Tabel 2 B'!J81<0.5),"-",IFERROR('Tabel 2 B'!J81/'Tabel 1 B'!G79*100,"-")) -> -
A82: Arkitekt | C82: =IF(OR('Tabel 1 B'!C80<5, 'Tabel 2 B'!C82<0.5),"-",IFERROR('Tabel 2 B'!C82/'Tabel 1 B'!C80*100,"-")) -> - | D82: =IF(OR('Tabel 1 B'!C80<5,'Tabel 2 B'!D82<0.5),"-",IFERROR('Tabel 2 B'!D82/'Tabel 1 B'!C80*100,"-")) -> - | F82: =IF(OR('Tabel 1 B'!E80<5, 'Tabel 2 B'!F82<0.5),"-",IFERROR('Tabel 2 B'!F82/'Tabel 1 B'!E80*100,"-")) -> 20 | G82: =IF(OR('Tabel 1 B'!E80<5,'Tabel 2 B'!G82<0.5),"-",IFERROR('Tabel 2 B'!G82/'Tabel 1 B'!E80*100,"-")) -> 19.99625772 | I82: =IF(OR('Tabel 1 B'!G80<5,'Tabel 2 B'!I82<0.5),"-",IFERROR('Tabel 2 B'!I82/'Tabel 1 B'!G80*100,"-")) -> 7.142857143 | J82: =IF(OR('Tabel 1 B'!G80<5,'Tabel 2 B'!J82<0.5),"-",IFERROR('Tabel 2 B'!J82/'Tabel 1 B'!G80*100,"-")) -> 7.141520614
A83: Landinspek. | C83: =IF(OR('Tabel 1 B'!C81<5, 'Tabel 2 B'!C83<0.5),"-",IFERROR('Tabel 2 B'!C83/'Tabel 1 B'!C81*100,"-")) -> - | D83: =IF(OR('Tabel 1 B'!C81<5,'Tabel 2 B'!D83<0.5),"-",IFERROR('Tabel 2 B'!D83/'Tabel 1 B'!C81*100,"-")) -> - | F83: =IF(OR('Tabel 1 B'!E81<5, 'Tabel 2 B'!F83<0.5),"-",IFERROR('Tabel 2 B'!F83/'Tabel 1 B'!E81*100,"-")) -> - | G83: =IF(OR('Tabel 1 B'!E81<5,'Tabel 2 B'!G83<0.5),"-",IFERROR('Tabel 2 B'!G83/'Tabel 1 B'!E81*100,"-")) -> - | I83: =IF(OR('Tabel 1 B'!G81<5,'Tabel 2 B'!I83<0.5),"-",IFERROR('Tabel 2 B'!I83/'Tabel 1 B'!G81*100,"-")) -> - | J83: =IF(OR('Tabel 1 B'!G81<5,'Tabel 2 B'!J83<0.5),"-",IFERROR('Tabel 2 B'!J83/'Tabel 1 B'!G81*100,"-")) -> -
A84: Bibliotekar | C84: =IF(OR('Tabel 1 B'!C82<5, 'Tabel 2 B'!C84<0.5),"-",IFERROR('Tabel 2 B'!C84/'Tabel 1 B'!C82*100,"-")) -> - | D84: =IF(OR('Tabel 1 B'!C82<5,'Tabel 2 B'!D84<0.5),"-",IFERROR('Tabel 2 B'!D84/'Tabel 1 B'!C82*100,"-")) -> - | F84: =IF(OR('Tabel 1 B'!E82<5, 'Tabel 2 B'!F84<0.5),"-",IFERROR('Tabel 2 B'!F84/'Tabel 1 B'!E82*100,"-")) -> 11.11111111 | G84: =IF(OR('Tabel 1 B'!E82<5,'Tabel 2 B'!G84<0.5),"-",IFERROR('Tabel 2 B'!G84/'Tabel 1 B'!E82*100,"-")) -> 11.10903207 | I84: =IF(OR('Tabel 1 B'!G82<5,'Tabel 2 B'!I84<0.5),"-",IFERROR('Tabel 2 B'!I84/'Tabel 1 B'!G82*100,"-")) -> 6.666666667 | J84: =IF(OR('Tabel 1 B'!G82<5,'Tabel 2 B'!J84<0.5),"-",IFERROR('Tabel 2 B'!J84/'Tabel 1 B'!G82*100,"-")) -> 6.665419239
A85: Musikudd. | C85: =IF(OR('Tabel 1 B'!C83<5, 'Tabel 2 B'!C85<0.5),"-",IFERROR('Tabel 2 B'!C85/'Tabel 1 B'!C83*100,"-")) -> - | D85: =IF(OR('Tabel 1 B'!C83<5,'Tabel 2 B'!D85<0.5),"-",IFERROR('Tabel 2 B'!D85/'Tabel 1 B'!C83*100,"-")) -> - | F85: =IF(OR('Tabel 1 B'!E83<5, 'Tabel 2 B'!F85<0.5),"-",IFERROR('Tabel 2 B'!F85/'Tabel 1 B'!E83*100,"-")) -> - | G85: =IF(OR('Tabel 1 B'!E83<5,'Tabel 2 B'!G85<0.5),"-",IFERROR('Tabel 2 B'!G85/'Tabel 1 B'!E83*100,"-")) -> - | I85: =IF(OR('Tabel 1 B'!G83<5,'Tabel 2 B'!I85<0.5),"-",IFERROR('Tabel 2 B'!I85/'Tabel 1 B'!G83*100,"-")) -> - | J85: =IF(OR('Tabel 1 B'!G83<5,'Tabel 2 B'!J85<0.5),"-",IFERROR('Tabel 2 B'!J85/'Tabel 1 B'!G83*100,"-")) -> -
A86: Teolog | C86: =IF(OR('Tabel 1 B'!C84<5, 'Tabel 2 B'!C86<0.5),"-",IFERROR('Tabel 2 B'!C86/'Tabel 1 B'!C84*100,"-")) -> - | D86: =IF(OR('Tabel 1 B'!C84<5,'Tabel 2 B'!D86<0.5),"-",IFERROR('Tabel 2 B'!D86/'Tabel 1 B'!C84*100,"-")) -> - | F86: =IF(OR('Tabel 1 B'!E84<5, 'Tabel 2 B'!F86<0.5),"-",IFERROR('Tabel 2 B'!F86/'Tabel 1 B'!E84*100,"-")) -> - | G86: =IF(OR('Tabel 1 B'!E84<5,'Tabel 2 B'!G86<0.5),"-",IFERROR('Tabel 2 B'!G86/'Tabel 1 B'!E84*100,"-")) -> - | I86: =IF(OR('Tabel 1 B'!G84<5,'Tabel 2 B'!I86<0.5),"-",IFERROR('Tabel 2 B'!I86/'Tabel 1 B'!G84*100,"-")) -> - | J86: =IF(OR('Tabel 1 B'!G84<5,'Tabel 2 B'!J86<0.5),"-",IFERROR('Tabel 2 B'!J86/'Tabel 1 B'!G84*100,"-")) -> -
A87: Psykolog | C87: =IF(OR('Tabel 1 B'!C85<5, 'Tabel 2 B'!C87<0.5),"-",IFERROR('Tabel 2 B'!C87/'Tabel 1 B'!C85*100,"-")) -> - | D87: =IF(OR('Tabel 1 B'!C85<5,'Tabel 2 B'!D87<0.5),"-",IFERROR('Tabel 2 B'!D87/'Tabel 1 B'!C85*100,"-")) -> - | F87: =IF(OR('Tabel 1 B'!E85<5, 'Tabel 2 B'!F87<0.5),"-",IFERROR('Tabel 2 B'!F87/'Tabel 1 B'!E85*100,"-")) -> 8.333333333 | G87: =IF(OR('Tabel 1 B'!E85<5,'Tabel 2 B'!G87<0.5),"-",IFERROR('Tabel 2 B'!G87/'Tabel 1 B'!E85*100,"-")) -> 6.600968835 | I87: =IF(OR('Tabel 1 B'!G85<5,'Tabel 2 B'!I87<0.5),"-",IFERROR('Tabel 2 B'!I87/'Tabel 1 B'!G85*100,"-")) -> 6.666666667 | J87: =IF(OR('Tabel 1 B'!G85<5,'Tabel 2 B'!J87<0.5),"-",IFERROR('Tabel 2 B'!J87/'Tabel 1 B'!G85*100,"-")) -> 5.280775068
A88: Jurist | C88: =IF(OR('Tabel 1 B'!C86<5, 'Tabel 2 B'!C88<0.5),"-",IFERROR('Tabel 2 B'!C88/'Tabel 1 B'!C86*100,"-")) -> - | D88: =IF(OR('Tabel 1 B'!C86<5,'Tabel 2 B'!D88<0.5),"-",IFERROR('Tabel 2 B'!D88/'Tabel 1 B'!C86*100,"-")) -> - | F88: =IF(OR('Tabel 1 B'!E86<5, 'Tabel 2 B'!F88<0.5),"-",IFERROR('Tabel 2 B'!F88/'Tabel 1 B'!E86*100,"-")) -> - | G88: =IF(OR('Tabel 1 B'!E86<5,'Tabel 2 B'!G88<0.5),"-",IFERROR('Tabel 2 B'!G88/'Tabel 1 B'!E86*100,"-")) -> - | I88: =IF(OR('Tabel 1 B'!G86<5,'Tabel 2 B'!I88<0.5),"-",IFERROR('Tabel 2 B'!I88/'Tabel 1 B'!G86*100,"-")) -> - | J88: =IF(OR('Tabel 1 B'!G86<5,'Tabel 2 B'!J88<0.5),"-",IFERROR('Tabel 2 B'!J88/'Tabel 1 B'!G86*100,"-")) -> -
A89: Økonom | C89: =IF(OR('Tabel 1 B'!C87<5, 'Tabel 2 B'!C89<0.5),"-",IFERROR('Tabel 2 B'!C89/'Tabel 1 B'!C87*100,"-")) -> - | D89: =IF(OR('Tabel 1 B'!C87<5,'Tabel 2 B'!D89<0.5),"-",IFERROR('Tabel 2 B'!D89/'Tabel 1 B'!C87*100,"-")) -> - | F89: =IF(OR('Tabel 1 B'!E87<5, 'Tabel 2 B'!F89<0.5),"-",IFERROR('Tabel 2 B'!F89/'Tabel 1 B'!E87*100,"-")) -> - | G89: =IF(OR('Tabel 1 B'!E87<5,'Tabel 2 B'!G89<0.5),"-",IFERROR('Tabel 2 B'!G89/'Tabel 1 B'!E87*100,"-")) -> - | I89: =IF(OR('Tabel 1 B'!G87<5,'Tabel 2 B'!I89<0.5),"-",IFERROR('Tabel 2 B'!I89/'Tabel 1 B'!G87*100,"-")) -> - | J89: =IF(OR('Tabel 1 B'!G87<5,'Tabel 2 B'!J89<0.5),"-",IFERROR('Tabel 2 B'!J89/'Tabel 1 B'!G87*100,"-")) -> -
A90: Samf. Adm. | C90: =IF(OR('Tabel 1 B'!C88<5, 'Tabel 2 B'!C90<0.5),"-",IFERROR('Tabel 2 B'!C90/'Tabel 1 B'!C88*100,"-")) -> 8 | D90: =IF(OR('Tabel 1 B'!C88<5,'Tabel 2 B'!D90<0.5),"-",IFERROR('Tabel 2 B'!D90/'Tabel 1 B'!C88*100,"-")) -> 7.998503087 | F90: =IF(OR('Tabel 1 B'!E88<5, 'Tabel 2 B'!F90<0.5),"-",IFERROR('Tabel 2 B'!F90/'Tabel 1 B'!E88*100,"-")) -> 3.703703704 | G90: =IF(OR('Tabel 1 B'!E88<5,'Tabel 2 B'!G90<0.5),"-",IFERROR('Tabel 2 B'!G90/'Tabel 1 B'!E88*100,"-")) -> 3.703010689 | I90: =IF(OR('Tabel 1 B'!G88<5,'Tabel 2 B'!I90<0.5),"-",IFERROR('Tabel 2 B'!I90/'Tabel 1 B'!G88*100,"-")) -> 5.769230769 | J90: =IF(OR('Tabel 1 B'!G88<5,'Tabel 2 B'!J90<0.5),"-",IFERROR('Tabel 2 B'!J90/'Tabel 1 B'!G88*100,"-")) -> 5.768151265
A91: Cand. Merc. | C91: =IF(OR('Tabel 1 B'!C89<5, 'Tabel 2 B'!C91<0.5),"-",IFERROR('Tabel 2 B'!C91/'Tabel 1 B'!C89*100,"-")) -> 15.38461538 | D91: =IF(OR('Tabel 1 B'!C89<5,'Tabel 2 B'!D91<0.5),"-",IFERROR('Tabel 2 B'!D91/'Tabel 1 B'!C89*100,"-")) -> 15.38173671 | F91: =IF(OR('Tabel 1 B'!E89<5, 'Tabel 2 B'!F91<0.5),"-",IFERROR('Tabel 2 B'!F91/'Tabel 1 B'!E89*100,"-")) -> 6.25 | G91: =IF(OR('Tabel 1 B'!E89<5,'Tabel 2 B'!G91<0.5),"-",IFERROR('Tabel 2 B'!G91/'Tabel 1 B'!E89*100,"-")) -> 3.753976174 | I91: =IF(OR('Tabel 1 B'!G89<5,'Tabel 2 B'!I91<0.5),"-",IFERROR('Tabel 2 B'!I91/'Tabel 1 B'!G89*100,"-")) -> 10.34482759 | J91: =IF(OR('Tabel 1 B'!G89<5,'Tabel 2 B'!J91<0.5),"-",IFERROR('Tabel 2 B'!J91/'Tabel 1 B'!G89*100,"-")) -> 8.966420551
A92: HA | C92: =IF(OR('Tabel 1 B'!C90<5, 'Tabel 2 B'!C92<0.5),"-",IFERROR('Tabel 2 B'!C92/'Tabel 1 B'!C90*100,"-")) -> - | D92: =IF(OR('Tabel 1 B'!C90<5,'Tabel 2 B'!D92<0.5),"-",IFERROR('Tabel 2 B'!D92/'Tabel 1 B'!C90*100,"-")) -> - | F92: =IF(OR('Tabel 1 B'!E90<5, 'Tabel 2 B'!F92<0.5),"-",IFERROR('Tabel 2 B'!F92/'Tabel 1 B'!E90*100,"-")) -> - | G92: =IF(OR('Tabel 1 B'!E90<5,'Tabel 2 B'!G92<0.5),"-",IFERROR('Tabel 2 B'!G92/'Tabel 1 B'!E90*100,"-")) -> - | I92: =IF(OR('Tabel 1 B'!G90<5,'Tabel 2 B'!I92<0.5),"-",IFERROR('Tabel 2 B'!I92/'Tabel 1 B'!G90*100,"-")) -> - | J92: =IF(OR('Tabel 1 B'!G90<5,'Tabel 2 B'!J92<0.5),"-",IFERROR('Tabel 2 B'!J92/'Tabel 1 B'!G90*100,"-")) -> -
A93: HD | C93: =IF(OR('Tabel 1 B'!C91<5, 'Tabel 2 B'!C93<0.5),"-",IFERROR('Tabel 2 B'!C93/'Tabel 1 B'!C91*100,"-")) -> - | D93: =IF(OR('Tabel 1 B'!C91<5,'Tabel 2 B'!D93<0.5),"-",IFERROR('Tabel 2 B'!D93/'Tabel 1 B'!C91*100,"-")) -> - | F93: =IF(OR('Tabel 1 B'!E91<5, 'Tabel 2 B'!F93<0.5),"-",IFERROR('Tabel 2 B'!F93/'Tabel 1 B'!E91*100,"-")) -> - | G93: =IF(OR('Tabel 1 B'!E91<5,'Tabel 2 B'!G93<0.5),"-",IFERROR('Tabel 2 B'!G93/'Tabel 1 B'!E91*100,"-")) -> - | I93: =IF(OR('Tabel 1 B'!G91<5,'Tabel 2 B'!I93<0.5),"-",IFERROR('Tabel 2 B'!I93/'Tabel 1 B'!G91*100,"-")) -> - | J93: =IF(OR('Tabel 1 B'!G91<5,'Tabel 2 B'!J93<0.5),"-",IFERROR('Tabel 2 B'!J93/'Tabel 1 B'!G91*100,"-")) -> -
A94: Komm. og Sprog | C94: =IF(OR('Tabel 1 B'!C92<5, 'Tabel 2 B'!C94<0.5),"-",IFERROR('Tabel 2 B'!C94/'Tabel 1 B'!C92*100,"-")) -> - | D94: =IF(OR('Tabel 1 B'!C92<5,'Tabel 2 B'!D94<0.5),"-",IFERROR('Tabel 2 B'!D94/'Tabel 1 B'!C92*100,"-")) -> - | F94: =IF(OR('Tabel 1 B'!E92<5, 'Tabel 2 B'!F94<0.5),"-",IFERROR('Tabel 2 B'!F94/'Tabel 1 B'!E92*100,"-")) -> 36.36363636 | G94: =IF(OR('Tabel 1 B'!E92<5,'Tabel 2 B'!G94<0.5),"-",IFERROR('Tabel 2 B'!G94/'Tabel 1 B'!E92*100,"-")) -> 36.35683222 | I94: =IF(OR('Tabel 1 B'!G92<5,'Tabel 2 B'!I94<0.5),"-",IFERROR('Tabel 2 B'!I94/'Tabel 1 B'!G92*100,"-")) -> 26.66666667 | J94: =IF(OR('Tabel 1 B'!G92<5,'Tabel 2 B'!J94<0.5),"-",IFERROR('Tabel 2 B'!J94/'Tabel 1 B'!G92*100,"-")) -> 26.66167696
A95: Bygningskonst. | C95: =IF(OR('Tabel 1 B'!C93<5, 'Tabel 2 B'!C95<0.5),"-",IFERROR('Tabel 2 B'!C95/'Tabel 1 B'!C93*100,"-")) -> - | D95: =IF(OR('Tabel 1 B'!C93<5,'Tabel 2 B'!D95<0.5),"-",IFERROR('Tabel 2 B'!D95/'Tabel 1 B'!C93*100,"-")) -> - | F95: =IF(OR('Tabel 1 B'!E93<5, 'Tabel 2 B'!F95<0.5),"-",IFERROR('Tabel 2 B'!F95/'Tabel 1 B'!E93*100,"-")) -> - | G95: =IF(OR('Tabel 1 B'!E93<5,'Tabel 2 B'!G95<0.5),"-",IFERROR('Tabel 2 B'!G95/'Tabel 1 B'!E93*100,"-")) -> - | I95: =IF(OR('Tabel 1 B'!G93<5,'Tabel 2 B'!I95<0.5),"-",IFERROR('Tabel 2 B'!I95/'Tabel 1 B'!G93*100,"-")) -> - | J95: =IF(OR('Tabel 1 B'!G93<5,'Tabel 2 B'!J95<0.5),"-",IFERROR('Tabel 2 B'!J95/'Tabel 1 B'!G93*100,"-")) -> -
A96: Cand. IT. | C96: =IF(OR('Tabel 1 B'!C94<5, 'Tabel 2 B'!C96<0.5),"-",IFERROR('Tabel 2 B'!C96/'Tabel 1 B'!C94*100,"-")) -> - | D96: =IF(OR('Tabel 1 B'!C94<5,'Tabel 2 B'!D96<0.5),"-",IFERROR('Tabel 2 B'!D96/'Tabel 1 B'!C94*100,"-")) -> - | F96: =IF(OR('Tabel 1 B'!E94<5, 'Tabel 2 B'!F96<0.5),"-",IFERROR('Tabel 2 B'!F96/'Tabel 1 B'!E94*100,"-")) -> - | G96: =IF(OR('Tabel 1 B'!E94<5,'Tabel 2 B'!G96<0.5),"-",IFERROR('Tabel 2 B'!G96/'Tabel 1 B'!E94*100,"-")) -> - | I96: =IF(OR('Tabel 1 B'!G94<5,'Tabel 2 B'!I96<0.5),"-",IFERROR('Tabel 2 B'!I96/'Tabel 1 B'!G94*100,"-")) -> - | J96: =IF(OR('Tabel 1 B'!G94<5,'Tabel 2 B'!J96<0.5),"-",IFERROR('Tabel 2 B'!J96/'Tabel 1 B'!G94*100,"-")) -> -
A97: Bac. Samf. | C97: =IF(OR('Tabel 1 B'!C95<5, 'Tabel 2 B'!C97<0.5),"-",IFERROR('Tabel 2 B'!C97/'Tabel 1 B'!C95*100,"-")) -> - | D97: =IF(OR('Tabel 1 B'!C95<5,'Tabel 2 B'!D97<0.5),"-",IFERROR('Tabel 2 B'!D97/'Tabel 1 B'!C95*100,"-")) -> - | F97: =IF(OR('Tabel 1 B'!E95<5, 'Tabel 2 B'!F97<0.5),"-",IFERROR('Tabel 2 B'!F97/'Tabel 1 B'!E95*100,"-")) -> - | G97: =IF(OR('Tabel 1 B'!E95<5,'Tabel 2 B'!G97<0.5),"-",IFERROR('Tabel 2 B'!G97/'Tabel 1 B'!E95*100,"-")) -> - | I97: =IF(OR('Tabel 1 B'!G95<5,'Tabel 2 B'!I97<0.5),"-",IFERROR('Tabel 2 B'!I97/'Tabel 1 B'!G95*100,"-")) -> - | J97: =IF(OR('Tabel 1 B'!G95<5,'Tabel 2 B'!J97<0.5),"-",IFERROR('Tabel 2 B'!J97/'Tabel 1 B'!G95*100,"-")) -> -
A98: Bac. Hum. | C98: =IF(OR('Tabel 1 B'!C96<5, 'Tabel 2 B'!C98<0.5),"-",IFERROR('Tabel 2 B'!C98/'Tabel 1 B'!C96*100,"-")) -> 25 | D98: =IF(OR('Tabel 1 B'!C96<5,'Tabel 2 B'!D98<0.5),"-",IFERROR('Tabel 2 B'!D98/'Tabel 1 B'!C96*100,"-")) -> 24.99532215 | F98: =IF(OR('Tabel 1 B'!E96<5, 'Tabel 2 B'!F98<0.5),"-",IFERROR('Tabel 2 B'!F98/'Tabel 1 B'!E96*100,"-")) -> - | G98: =IF(OR('Tabel 1 B'!E96<5,'Tabel 2 B'!G98<0.5),"-",IFERROR('Tabel 2 B'!G98/'Tabel 1 B'!E96*100,"-")) -> - | I98: =IF(OR('Tabel 1 B'!G96<5,'Tabel 2 B'!I98<0.5),"-",IFERROR('Tabel 2 B'!I98/'Tabel 1 B'!G96*100,"-")) -> 15.38461538 | J98: =IF(OR('Tabel 1 B'!G96<5,'Tabel 2 B'!J98<0.5),"-",IFERROR('Tabel 2 B'!J98/'Tabel 1 B'!G96*100,"-")) -> 15.38173671
A99: Bac. Nat. | C99: =IF(OR('Tabel 1 B'!C97<5, 'Tabel 2 B'!C99<0.5),"-",IFERROR('Tabel 2 B'!C99/'Tabel 1 B'!C97*100,"-")) -> - | D99: =IF(OR('Tabel 1 B'!C97<5,'Tabel 2 B'!D99<0.5),"-",IFERROR('Tabel 2 B'!D99/'Tabel 1 B'!C97*100,"-")) -> - | F99: =IF(OR('Tabel 1 B'!E97<5, 'Tabel 2 B'!F99<0.5),"-",IFERROR('Tabel 2 B'!F99/'Tabel 1 B'!E97*100,"-")) -> 14.28571429 | G99: =IF(OR('Tabel 1 B'!E97<5,'Tabel 2 B'!G99<0.5),"-",IFERROR('Tabel 2 B'!G99/'Tabel 1 B'!E97*100,"-")) -> 14.19393929 | I99: =IF(OR('Tabel 1 B'!G97<5,'Tabel 2 B'!I99<0.5),"-",IFERROR('Tabel 2 B'!I99/'Tabel 1 B'!G97*100,"-")) -> 20 | J99: =IF(OR('Tabel 1 B'!G97<5,'Tabel 2 B'!J99<0.5),"-",IFERROR('Tabel 2 B'!J99/'Tabel 1 B'!G97*100,"-")) -> 19.93388636
A100: Andre | C100: =IF(OR('Tabel 1 B'!C98<5, 'Tabel 2 B'!C100<0.5),"-",IFERROR('Tabel 2 B'!C100/'Tabel 1 B'!C98*100,"-")) -> 7.8125 | D100: =IF(OR('Tabel 1 B'!C98<5,'Tabel 2 B'!D100<0.5),"-",IFERROR('Tabel 2 B'!D100/'Tabel 1 B'!C98*100,"-")) -> 7.440708227 | F100: =IF(OR('Tabel 1 B'!E98<5, 'Tabel 2 B'!F100<0.5),"-",IFERROR('Tabel 2 B'!F100/'Tabel 1 B'!E98*100,"-")) -> 13.95348837 | G100: =IF(OR('Tabel 1 B'!E98<5,'Tabel 2 B'!G100<0.5),"-",IFERROR('Tabel 2 B'!G100/'Tabel 1 B'!E98*100,"-")) -> 12.62077198 | I100: =IF(OR('Tabel 1 B'!G98<5,'Tabel 2 B'!I100<0.5),"-",IFERROR('Tabel 2 B'!I100/'Tabel 1 B'!G98*100,"-")) -> 10.28037383 | J100: =IF(OR('Tabel 1 B'!G98<5,'Tabel 2 B'!J100<0.5),"-",IFERROR('Tabel 2 B'!J100/'Tabel 1 B'!G98*100,"-")) -> 9.522416092
A102: Total | C102: =IF(OR('Tabel 1 B'!C100<5, 'Tabel 2 B'!C102<0.5),"-",IFERROR('Tabel 2 B'!C102/'Tabel 1 B'!C100*100,"-")) -> 8.173076923 | D102: =IF(OR('Tabel 1 B'!C100<5,'Tabel 2 B'!D102<0.5),"-",IFERROR('Tabel 2 B'!D102/'Tabel 1 B'!C100*100,"-")) -> 7.537338854 | F102: =IF(OR('Tabel 1 B'!E100<5, 'Tabel 2 B'!F102<0.5),"-",IFERROR('Tabel 2 B'!F102/'Tabel 1 B'!E100*100,"-")) -> 10.83123426 | G102: =IF(OR('Tabel 1 B'!E100<5,'Tabel 2 B'!G102<0.5),"-",IFERROR('Tabel 2 B'!G102/'Tabel 1 B'!E100*100,"-")) -> 9.293175395 | I102: =IF(OR('Tabel 1 B'!G100<5,'Tabel 2 B'!I102<0.5),"-",IFERROR('Tabel 2 B'!I102/'Tabel 1 B'!G100*100,"-")) -> 9.471094711 | J102: =IF(OR('Tabel 1 B'!G100<5,'Tabel 2 B'!J102<0.5),"-",IFERROR('Tabel 2 B'!J102/'Tabel 1 B'!G100*100,"-")) -> 8.394739969
A104: Ingeniører i alt | C104: =IF(OR('Tabel 1 B'!C102<5, 'Tabel 2 B'!C104<0.5),"-",IFERROR('Tabel 2 B'!C104/'Tabel 1 B'!C102*100,"-")) -> 4.761904762 | D104: =IF(OR('Tabel 1 B'!C102<5,'Tabel 2 B'!D104<0.5),"-",IFERROR('Tabel 2 B'!D104/'Tabel 1 B'!C102*100,"-")) -> 4.4194563 | F104: =IF(OR('Tabel 1 B'!E102<5, 'Tabel 2 B'!F104<0.5),"-",IFERROR('Tabel 2 B'!F104/'Tabel 1 B'!E102*100,"-")) -> 15.38461538 | G104: =IF(OR('Tabel 1 B'!E102<5,'Tabel 2 B'!G104<0.5),"-",IFERROR('Tabel 2 B'!G104/'Tabel 1 B'!E102*100,"-")) -> 15.38173671 | I104: =IF(OR('Tabel 1 B'!G102<5,'Tabel 2 B'!I104<0.5),"-",IFERROR('Tabel 2 B'!I104/'Tabel 1 B'!G102*100,"-")) -> 6.18556701 | J104: =IF(OR('Tabel 1 B'!G102<5,'Tabel 2 B'!J104<0.5),"-",IFERROR('Tabel 2 B'!J104/'Tabel 1 B'!G102*100,"-")) -> 5.888627901
A105: Magistre i alt | C105: =IF(OR('Tabel 1 B'!C103<5, 'Tabel 2 B'!C105<0.5),"-",IFERROR('Tabel 2 B'!C105/'Tabel 1 B'!C103*100,"-")) -> 17.28395062 | D105: =IF(OR('Tabel 1 B'!C103<5,'Tabel 2 B'!D105<0.5),"-",IFERROR('Tabel 2 B'!D105/'Tabel 1 B'!C103*100,"-")) -> 15.75300326 | F105: =IF(OR('Tabel 1 B'!E103<5, 'Tabel 2 B'!F105<0.5),"-",IFERROR('Tabel 2 B'!F105/'Tabel 1 B'!E103*100,"-")) -> 14.72868217 | G105: =IF(OR('Tabel 1 B'!E103<5,'Tabel 2 B'!G105<0.5),"-",IFERROR('Tabel 2 B'!G105/'Tabel 1 B'!E103*100,"-")) -> 12.3480786 | I105: =IF(OR('Tabel 1 B'!G103<5,'Tabel 2 B'!I105<0.5),"-",IFERROR('Tabel 2 B'!I105/'Tabel 1 B'!G103*100,"-")) -> 15.71428571 | J105: =IF(OR('Tabel 1 B'!G103<5,'Tabel 2 B'!J105<0.5),"-",IFERROR('Tabel 2 B'!J105/'Tabel 1 B'!G103*100,"-")) -> 13.66140668
A106: DJØF'ere i alt | C106: =IF(OR('Tabel 1 B'!C104<5, 'Tabel 2 B'!C106<0.5),"-",IFERROR('Tabel 2 B'!C106/'Tabel 1 B'!C104*100,"-")) -> 6.557377049 | D106: =IF(OR('Tabel 1 B'!C104<5,'Tabel 2 B'!D106<0.5),"-",IFERROR('Tabel 2 B'!D106/'Tabel 1 B'!C104*100,"-")) -> 6.556150072 | F106: =IF(OR('Tabel 1 B'!E104<5, 'Tabel 2 B'!F106<0.5),"-",IFERROR('Tabel 2 B'!F106/'Tabel 1 B'!E104*100,"-")) -> 2.739726027 | G106: =IF(OR('Tabel 1 B'!E104<5,'Tabel 2 B'!G106<0.5),"-",IFERROR('Tabel 2 B'!G106/'Tabel 1 B'!E104*100,"-")) -> 2.192395991 | I106: =IF(OR('Tabel 1 B'!G104<5,'Tabel 2 B'!I106<0.5),"-",IFERROR('Tabel 2 B'!I106/'Tabel 1 B'!G104*100,"-")) -> 4.47761194 | J106: =IF(OR('Tabel 1 B'!G104<5,'Tabel 2 B'!J106<0.5),"-",IFERROR('Tabel 2 B'!J106/'Tabel 1 B'!G104*100,"-")) -> 4.178881058
A111: Christiansø
C113: Mænd | F113: Kvinder | I113: I alt
C114: Ledigheds- berørte | D114: Gns. brutto- ledighed | F114: Ledigheds- berørte | G114: Gns. brutto- ledighed | I114: Ledigheds- berørte | J114: Gns. brutto- ledighed
A117: Civ. ing. | C117: =IF(OR('Tabel 1 B'!C115<5, 'Tabel 2 B'!C117<0.5),"-",IFERROR('Tabel 2 B'!C117/'Tabel 1 B'!C115*100,"-")) -> - | D117: =IF(OR('Tabel 1 B'!C115<5,'Tabel 2 B'!D117<0.5),"-",IFERROR('Tabel 2 B'!D117/'Tabel 1 B'!C115*100,"-")) -> - | F117: =IF(OR('Tabel 1 B'!E115<5, 'Tabel 2 B'!F117<0.5),"-",IFERROR('Tabel 2 B'!F117/'Tabel 1 B'!E115*100,"-")) -> - | G117: =IF(OR('Tabel 1 B'!E115<5,'Tabel 2 B'!G117<0.5),"-",IFERROR('Tabel 2 B'!G117/'Tabel 1 B'!E115*100,"-")) -> - | I117: =IF(OR('Tabel 1 B'!G115<5,'Tabel 2 B'!I117<0.5),"-",IFERROR('Tabel 2 B'!I117/'Tabel 1 B'!G115*100,"-")) -> - | J117: =IF(OR('Tabel 1 B'!G115<5,'Tabel 2 B'!J117<0.5),"-",IFERROR('Tabel 2 B'!J117/'Tabel 1 B'!G115*100,"-")) -> -
A118: Diplom ing. | C118: =IF(OR('Tabel 1 B'!C116<5, 'Tabel 2 B'!C118<0.5),"-",IFERROR('Tabel 2 B'!C118/'Tabel 1 B'!C116*100,"-")) -> - | D118: =IF(OR('Tabel 1 B'!C116<5,'Tabel 2 B'!D118<0.5),"-",IFERROR('Tabel 2 B'!D118/'Tabel 1 B'!C116*100,"-")) -> - | F118: =IF(OR('Tabel 1 B'!E116<5, 'Tabel 2 B'!F118<0.5),"-",IFERROR('Tabel 2 B'!F118/'Tabel 1 B'!E116*100,"-")) -> - | G118: =IF(OR('Tabel 1 B'!E116<5,'Tabel 2 B'!G118<0.5),"-",IFERROR('Tabel 2 B'!G118/'Tabel 1 B'!E116*100,"-")) -> - | I118: =IF(OR('Tabel 1 B'!G116<5,'Tabel 2 B'!I118<0.5),"-",IFERROR('Tabel 2 B'!I118/'Tabel 1 B'!G116*100,"-")) -> - | J118: =IF(OR('Tabel 1 B'!G116<5,'Tabel 2 B'!J118<0.5),"-",IFERROR('Tabel 2 B'!J118/'Tabel 1 B'!G116*100,"-")) -> -
A119: Cand. Scient. Tek. | C119: =IF(OR('Tabel 1 B'!C117<5, 'Tabel 2 B'!C119<0.5),"-",IFERROR('Tabel 2 B'!C119/'Tabel 1 B'!C117*100,"-")) -> - | D119: =IF(OR('Tabel 1 B'!C117<5,'Tabel 2 B'!D119<0.5),"-",IFERROR('Tabel 2 B'!D119/'Tabel 1 B'!C117*100,"-")) -> - | F119: =IF(OR('Tabel 1 B'!E117<5, 'Tabel 2 B'!F119<0.5),"-",IFERROR('Tabel 2 B'!F119/'Tabel 1 B'!E117*100,"-")) -> - | G119: =IF(OR('Tabel 1 B'!E117<5,'Tabel 2 B'!G119<0.5),"-",IFERROR('Tabel 2 B'!G119/'Tabel 1 B'!E117*100,"-")) -> - | I119: =IF(OR('Tabel 1 B'!G117<5,'Tabel 2 B'!I119<0.5),"-",IFERROR('Tabel 2 B'!I119/'Tabel 1 B'!G117*100,"-")) -> - | J119: =IF(OR('Tabel 1 B'!G117<5,'Tabel 2 B'!J119<0.5),"-",IFERROR('Tabel 2 B'!J119/'Tabel 1 B'!G117*100,"-")) -> -
A120: MA. Hum. | C120: =IF(OR('Tabel 1 B'!C118<5, 'Tabel 2 B'!C120<0.5),"-",IFERROR('Tabel 2 B'!C120/'Tabel 1 B'!C118*100,"-")) -> - | D120: =IF(OR('Tabel 1 B'!C118<5,'Tabel 2 B'!D120<0.5),"-",IFERROR('Tabel 2 B'!D120/'Tabel 1 B'!C118*100,"-")) -> - | F120: =IF(OR('Tabel 1 B'!E118<5, 'Tabel 2 B'!F120<0.5),"-",IFERROR('Tabel 2 B'!F120/'Tabel 1 B'!E118*100,"-")) -> - | G120: =IF(OR('Tabel 1 B'!E118<5,'Tabel 2 B'!G120<0.5),"-",IFERROR('Tabel 2 B'!G120/'Tabel 1 B'!E118*100,"-")) -> - | I120: =IF(OR('Tabel 1 B'!G118<5,'Tabel 2 B'!I120<0.5),"-",IFERROR('Tabel 2 B'!I120/'Tabel 1 B'!G118*100,"-")) -> - | J120: =IF(OR('Tabel 1 B'!G118<5,'Tabel 2 B'!J120<0.5),"-",IFERROR('Tabel 2 B'!J120/'Tabel 1 B'!G118*100,"-")) -> -
A121: MA. Nat. | C121: =IF(OR('Tabel 1 B'!C119<5, 'Tabel 2 B'!C121<0.5),"-",IFERROR('Tabel 2 B'!C121/'Tabel 1 B'!C119*100,"-")) -> - | D121: =IF(OR('Tabel 1 B'!C119<5,'Tabel 2 B'!D121<0.5),"-",IFERROR('Tabel 2 B'!D121/'Tabel 1 B'!C119*100,"-")) -> - | F121: =IF(OR('Tabel 1 B'!E119<5, 'Tabel 2 B'!F121<0.5),"-",IFERROR('Tabel 2 B'!F121/'Tabel 1 B'!E119*100,"-")) -> - | G121: =IF(OR('Tabel 1 B'!E119<5,'Tabel 2 B'!G121<0.5),"-",IFERROR('Tabel 2 B'!G121/'Tabel 1 B'!E119*100,"-")) -> - | I121: =IF(OR('Tabel 1 B'!G119<5,'Tabel 2 B'!I121<0.5),"-",IFERROR('Tabel 2 B'!I121/'Tabel 1 B'!G119*100,"-")) -> - | J121: =IF(OR('Tabel 1 B'!G119<5,'Tabel 2 B'!J121<0.5),"-",IFERROR('Tabel 2 B'!J121/'Tabel 1 B'!G119*100,"-")) -> -
A122: MA. Ph.d. | C122: =IF(OR('Tabel 1 B'!C120<5, 'Tabel 2 B'!C122<0.5),"-",IFERROR('Tabel 2 B'!C122/'Tabel 1 B'!C120*100,"-")) -> - | D122: =IF(OR('Tabel 1 B'!C120<5,'Tabel 2 B'!D122<0.5),"-",IFERROR('Tabel 2 B'!D122/'Tabel 1 B'!C120*100,"-")) -> - | F122: =IF(OR('Tabel 1 B'!E120<5, 'Tabel 2 B'!F122<0.5),"-",IFERROR('Tabel 2 B'!F122/'Tabel 1 B'!E120*100,"-")) -> - | G122: =IF(OR('Tabel 1 B'!E120<5,'Tabel 2 B'!G122<0.5),"-",IFERROR('Tabel 2 B'!G122/'Tabel 1 B'!E120*100,"-")) -> - | I122: =IF(OR('Tabel 1 B'!G120<5,'Tabel 2 B'!I122<0.5),"-",IFERROR('Tabel 2 B'!I122/'Tabel 1 B'!G120*100,"-")) -> - | J122: =IF(OR('Tabel 1 B'!G120<5,'Tabel 2 B'!J122<0.5),"-",IFERROR('Tabel 2 B'!J122/'Tabel 1 B'!G120*100,"-")) -> -
A123: MA. Samf. | C123: =IF(OR('Tabel 1 B'!C121<5, 'Tabel 2 B'!C123<0.5),"-",IFERROR('Tabel 2 B'!C123/'Tabel 1 B'!C121*100,"-")) -> - | D123: =IF(OR('Tabel 1 B'!C121<5,'Tabel 2 B'!D123<0.5),"-",IFERROR('Tabel 2 B'!D123/'Tabel 1 B'!C121*100,"-")) -> - | F123: =IF(OR('Tabel 1 B'!E121<5, 'Tabel 2 B'!F123<0.5),"-",IFERROR('Tabel 2 B'!F123/'Tabel 1 B'!E121*100,"-")) -> - | G123: =IF(OR('Tabel 1 B'!E121<5,'Tabel 2 B'!G123<0.5),"-",IFERROR('Tabel 2 B'!G123/'Tabel 1 B'!E121*100,"-")) -> - | I123: =IF(OR('Tabel 1 B'!G121<5,'Tabel 2 B'!I123<0.5),"-",IFERROR('Tabel 2 B'!I123/'Tabel 1 B'!G121*100,"-")) -> - | J123: =IF(OR('Tabel 1 B'!G121<5,'Tabel 2 B'!J123<0.5),"-",IFERROR('Tabel 2 B'!J123/'Tabel 1 B'!G121*100,"-")) -> -
A124: Øvrige Mag. | C124: =IF(OR('Tabel 1 B'!C122<5, 'Tabel 2 B'!C124<0.5),"-",IFERROR('Tabel 2 B'!C124/'Tabel 1 B'!C122*100,"-")) -> - | D124: =IF(OR('Tabel 1 B'!C122<5,'Tabel 2 B'!D124<0.5),"-",IFERROR('Tabel 2 B'!D124/'Tabel 1 B'!C122*100,"-")) -> - | F124: =IF(OR('Tabel 1 B'!E122<5, 'Tabel 2 B'!F124<0.5),"-",IFERROR('Tabel 2 B'!F124/'Tabel 1 B'!E122*100,"-")) -> - | G124: =IF(OR('Tabel 1 B'!E122<5,'Tabel 2 B'!G124<0.5),"-",IFERROR('Tabel 2 B'!G124/'Tabel 1 B'!E122*100,"-")) -> - | I124: =IF(OR('Tabel 1 B'!G122<5,'Tabel 2 B'!I124<0.5),"-",IFERROR('Tabel 2 B'!I124/'Tabel 1 B'!G122*100,"-")) -> - | J124: =IF(OR('Tabel 1 B'!G122<5,'Tabel 2 B'!J124<0.5),"-",IFERROR('Tabel 2 B'!J124/'Tabel 1 B'!G122*100,"-")) -> -
A125: Agronom | C125: =IF(OR('Tabel 1 B'!C123<5, 'Tabel 2 B'!C125<0.5),"-",IFERROR('Tabel 2 B'!C125/'Tabel 1 B'!C123*100,"-")) -> - | D125: =IF(OR('Tabel 1 B'!C123<5,'Tabel 2 B'!D125<0.5),"-",IFERROR('Tabel 2 B'!D125/'Tabel 1 B'!C123*100,"-")) -> - | F125: =IF(OR('Tabel 1 B'!E123<5, 'Tabel 2 B'!F125<0.5),"-",IFERROR('Tabel 2 B'!F125/'Tabel 1 B'!E123*100,"-")) -> - | G125: =IF(OR('Tabel 1 B'!E123<5,'Tabel 2 B'!G125<0.5),"-",IFERROR('Tabel 2 B'!G125/'Tabel 1 B'!E123*100,"-")) -> - | I125: =IF(OR('Tabel 1 B'!G123<5,'Tabel 2 B'!I125<0.5),"-",IFERROR('Tabel 2 B'!I125/'Tabel 1 B'!G123*100,"-")) -> - | J125: =IF(OR('Tabel 1 B'!G123<5,'Tabel 2 B'!J125<0.5),"-",IFERROR('Tabel 2 B'!J125/'Tabel 1 B'!G123*100,"-")) -> -
A126: Landsk. Arkt. | C126: =IF(OR('Tabel 1 B'!C124<5, 'Tabel 2 B'!C126<0.5),"-",IFERROR('Tabel 2 B'!C126/'Tabel 1 B'!C124*100,"-")) -> - | D126: =IF(OR('Tabel 1 B'!C124<5,'Tabel 2 B'!D126<0.5),"-",IFERROR('Tabel 2 B'!D126/'Tabel 1 B'!C124*100,"-")) -> - | F126: =IF(OR('Tabel 1 B'!E124<5, 'Tabel 2 B'!F126<0.5),"-",IFERROR('Tabel 2 B'!F126/'Tabel 1 B'!E124*100,"-")) -> - | G126: =IF(OR('Tabel 1 B'!E124<5,'Tabel 2 B'!G126<0.5),"-",IFERROR('Tabel 2 B'!G126/'Tabel 1 B'!E124*100,"-")) -> - | I126: =IF(OR('Tabel 1 B'!G124<5,'Tabel 2 B'!I126<0.5),"-",IFERROR('Tabel 2 B'!I126/'Tabel 1 B'!G124*100,"-")) -> - | J126: =IF(OR('Tabel 1 B'!G124<5,'Tabel 2 B'!J126<0.5),"-",IFERROR('Tabel 2 B'!J126/'Tabel 1 B'!G124*100,"-")) -> -
A127: Hortonom | C127: =IF(OR('Tabel 1 B'!C125<5, 'Tabel 2 B'!C127<0.5),"-",IFERROR('Tabel 2 B'!C127/'Tabel 1 B'!C125*100,"-")) -> - | D127: =IF(OR('Tabel 1 B'!C125<5,'Tabel 2 B'!D127<0.5),"-",IFERROR('Tabel 2 B'!D127/'Tabel 1 B'!C125*100,"-")) -> - | F127: =IF(OR('Tabel 1 B'!E125<5, 'Tabel 2 B'!F127<0.5),"-",IFERROR('Tabel 2 B'!F127/'Tabel 1 B'!E125*100,"-")) -> - | G127: =IF(OR('Tabel 1 B'!E125<5,'Tabel 2 B'!G127<0.5),"-",IFERROR('Tabel 2 B'!G127/'Tabel 1 B'!E125*100,"-")) -> - | I127: =IF(OR('Tabel 1 B'!G125<5,'Tabel 2 B'!I127<0.5),"-",IFERROR('Tabel 2 B'!I127/'Tabel 1 B'!G125*100,"-")) -> - | J127: =IF(OR('Tabel 1 B'!G125<5,'Tabel 2 B'!J127<0.5),"-",IFERROR('Tabel 2 B'!J127/'Tabel 1 B'!G125*100,"-")) -> -
A128: Forstkand. | C128: =IF(OR('Tabel 1 B'!C126<5, 'Tabel 2 B'!C128<0.5),"-",IFERROR('Tabel 2 B'!C128/'Tabel 1 B'!C126*100,"-")) -> - | D128: =IF(OR('Tabel 1 B'!C126<5,'Tabel 2 B'!D128<0.5),"-",IFERROR('Tabel 2 B'!D128/'Tabel 1 B'!C126*100,"-")) -> - | F128: =IF(OR('Tabel 1 B'!E126<5, 'Tabel 2 B'!F128<0.5),"-",IFERROR('Tabel 2 B'!F128/'Tabel 1 B'!E126*100,"-")) -> - | G128: =IF(OR('Tabel 1 B'!E126<5,'Tabel 2 B'!G128<0.5),"-",IFERROR('Tabel 2 B'!G128/'Tabel 1 B'!E126*100,"-")) -> - | I128: =IF(OR('Tabel 1 B'!G126<5,'Tabel 2 B'!I128<0.5),"-",IFERROR('Tabel 2 B'!I128/'Tabel 1 B'!G126*100,"-")) -> - | J128: =IF(OR('Tabel 1 B'!G126<5,'Tabel 2 B'!J128<0.5),"-",IFERROR('Tabel 2 B'!J128/'Tabel 1 B'!G126*100,"-")) -> -
A129: Jordbrugsakad. | C129: =IF(OR('Tabel 1 B'!C127<5, 'Tabel 2 B'!C129<0.5),"-",IFERROR('Tabel 2 B'!C129/'Tabel 1 B'!C127*100,"-")) -> - | D129: =IF(OR('Tabel 1 B'!C127<5,'Tabel 2 B'!D129<0.5),"-",IFERROR('Tabel 2 B'!D129/'Tabel 1 B'!C127*100,"-")) -> - | F129: =IF(OR('Tabel 1 B'!E127<5, 'Tabel 2 B'!F129<0.5),"-",IFERROR('Tabel 2 B'!F129/'Tabel 1 B'!E127*100,"-")) -> - | G129: =IF(OR('Tabel 1 B'!E127<5,'Tabel 2 B'!G129<0.5),"-",IFERROR('Tabel 2 B'!G129/'Tabel 1 B'!E127*100,"-")) -> - | I129: =IF(OR('Tabel 1 B'!G127<5,'Tabel 2 B'!I129<0.5),"-",IFERROR('Tabel 2 B'!I129/'Tabel 1 B'!G127*100,"-")) -> - | J129: =IF(OR('Tabel 1 B'!G127<5,'Tabel 2 B'!J129<0.5),"-",IFERROR('Tabel 2 B'!J129/'Tabel 1 B'!G127*100,"-")) -> -
A130: Mejeriing. | C130: =IF(OR('Tabel 1 B'!C128<5, 'Tabel 2 B'!C130<0.5),"-",IFERROR('Tabel 2 B'!C130/'Tabel 1 B'!C128*100,"-")) -> - | D130: =IF(OR('Tabel 1 B'!C128<5,'Tabel 2 B'!D130<0.5),"-",IFERROR('Tabel 2 B'!D130/'Tabel 1 B'!C128*100,"-")) -> - | F130: =IF(OR('Tabel 1 B'!E128<5, 'Tabel 2 B'!F130<0.5),"-",IFERROR('Tabel 2 B'!F130/'Tabel 1 B'!E128*100,"-")) -> - | G130: =IF(OR('Tabel 1 B'!E128<5,'Tabel 2 B'!G130<0.5),"-",IFERROR('Tabel 2 B'!G130/'Tabel 1 B'!E128*100,"-")) -> - | I130: =IF(OR('Tabel 1 B'!G128<5,'Tabel 2 B'!I130<0.5),"-",IFERROR('Tabel 2 B'!I130/'Tabel 1 B'!G128*100,"-")) -> - | J130: =IF(OR('Tabel 1 B'!G128<5,'Tabel 2 B'!J130<0.5),"-",IFERROR('Tabel 2 B'!J130/'Tabel 1 B'!G128*100,"-")) -> -
A131: Levn.m.kand. | C131: =IF(OR('Tabel 1 B'!C129<5, 'Tabel 2 B'!C131<0.5),"-",IFERROR('Tabel 2 B'!C131/'Tabel 1 B'!C129*100,"-")) -> - | D131: =IF(OR('Tabel 1 B'!C129<5,'Tabel 2 B'!D131<0.5),"-",IFERROR('Tabel 2 B'!D131/'Tabel 1 B'!C129*100,"-")) -> - | F131: =IF(OR('Tabel 1 B'!E129<5, 'Tabel 2 B'!F131<0.5),"-",IFERROR('Tabel 2 B'!F131/'Tabel 1 B'!E129*100,"-")) -> - | G131: =IF(OR('Tabel 1 B'!E129<5,'Tabel 2 B'!G131<0.5),"-",IFERROR('Tabel 2 B'!G131/'Tabel 1 B'!E129*100,"-")) -> - | I131: =IF(OR('Tabel 1 B'!G129<5,'Tabel 2 B'!I131<0.5),"-",IFERROR('Tabel 2 B'!I131/'Tabel 1 B'!G129*100,"-")) -> - | J131: =IF(OR('Tabel 1 B'!G129<5,'Tabel 2 B'!J131<0.5),"-",IFERROR('Tabel 2 B'!J131/'Tabel 1 B'!G129*100,"-")) -> -
A132: Dyrlæge | C132: =IF(OR('Tabel 1 B'!C130<5, 'Tabel 2 B'!C132<0.5),"-",IFERROR('Tabel 2 B'!C132/'Tabel 1 B'!C130*100,"-")) -> - | D132: =IF(OR('Tabel 1 B'!C130<5,'Tabel 2 B'!D132<0.5),"-",IFERROR('Tabel 2 B'!D132/'Tabel 1 B'!C130*100,"-")) -> - | F132: =IF(OR('Tabel 1 B'!E130<5, 'Tabel 2 B'!F132<0.5),"-",IFERROR('Tabel 2 B'!F132/'Tabel 1 B'!E130*100,"-")) -> - | G132: =IF(OR('Tabel 1 B'!E130<5,'Tabel 2 B'!G132<0.5),"-",IFERROR('Tabel 2 B'!G132/'Tabel 1 B'!E130*100,"-")) -> - | I132: =IF(OR('Tabel 1 B'!G130<5,'Tabel 2 B'!I132<0.5),"-",IFERROR('Tabel 2 B'!I132/'Tabel 1 B'!G130*100,"-")) -> - | J132: =IF(OR('Tabel 1 B'!G130<5,'Tabel 2 B'!J132<0.5),"-",IFERROR('Tabel 2 B'!J132/'Tabel 1 B'!G130*100,"-")) -> -
A133: Farmaceut | C133: =IF(OR('Tabel 1 B'!C131<5, 'Tabel 2 B'!C133<0.5),"-",IFERROR('Tabel 2 B'!C133/'Tabel 1 B'!C131*100,"-")) -> - | D133: =IF(OR('Tabel 1 B'!C131<5,'Tabel 2 B'!D133<0.5),"-",IFERROR('Tabel 2 B'!D133/'Tabel 1 B'!C131*100,"-")) -> - | F133: =IF(OR('Tabel 1 B'!E131<5, 'Tabel 2 B'!F133<0.5),"-",IFERROR('Tabel 2 B'!F133/'Tabel 1 B'!E131*100,"-")) -> - | G133: =IF(OR('Tabel 1 B'!E131<5,'Tabel 2 B'!G133<0.5),"-",IFERROR('Tabel 2 B'!G133/'Tabel 1 B'!E131*100,"-")) -> - | I133: =IF(OR('Tabel 1 B'!G131<5,'Tabel 2 B'!I133<0.5),"-",IFERROR('Tabel 2 B'!I133/'Tabel 1 B'!G131*100,"-")) -> - | J133: =IF(OR('Tabel 1 B'!G131<5,'Tabel 2 B'!J133<0.5),"-",IFERROR('Tabel 2 B'!J133/'Tabel 1 B'!G131*100,"-")) -> -
A134: Læge | C134: =IF(OR('Tabel 1 B'!C132<5, 'Tabel 2 B'!C134<0.5),"-",IFERROR('Tabel 2 B'!C134/'Tabel 1 B'!C132*100,"-")) -> - | D134: =IF(OR('Tabel 1 B'!C132<5,'Tabel 2 B'!D134<0.5),"-",IFERROR('Tabel 2 B'!D134/'Tabel 1 B'!C132*100,"-")) -> - | F134: =IF(OR('Tabel 1 B'!E132<5, 'Tabel 2 B'!F134<0.5),"-",IFERROR('Tabel 2 B'!F134/'Tabel 1 B'!E132*100,"-")) -> - | G134: =IF(OR('Tabel 1 B'!E132<5,'Tabel 2 B'!G134<0.5),"-",IFERROR('Tabel 2 B'!G134/'Tabel 1 B'!E132*100,"-")) -> - | I134: =IF(OR('Tabel 1 B'!G132<5,'Tabel 2 B'!I134<0.5),"-",IFERROR('Tabel 2 B'!I134/'Tabel 1 B'!G132*100,"-")) -> - | J134: =IF(OR('Tabel 1 B'!G132<5,'Tabel 2 B'!J134<0.5),"-",IFERROR('Tabel 2 B'!J134/'Tabel 1 B'!G132*100,"-")) -> -
A135: Tandlæge | C135: =IF(OR('Tabel 1 B'!C133<5, 'Tabel 2 B'!C135<0.5),"-",IFERROR('Tabel 2 B'!C135/'Tabel 1 B'!C133*100,"-")) -> - | D135: =IF(OR('Tabel 1 B'!C133<5,'Tabel 2 B'!D135<0.5),"-",IFERROR('Tabel 2 B'!D135/'Tabel 1 B'!C133*100,"-")) -> - | F135: =IF(OR('Tabel 1 B'!E133<5, 'Tabel 2 B'!F135<0.5),"-",IFERROR('Tabel 2 B'!F135/'Tabel 1 B'!E133*100,"-")) -> - | G135: =IF(OR('Tabel 1 B'!E133<5,'Tabel 2 B'!G135<0.5),"-",IFERROR('Tabel 2 B'!G135/'Tabel 1 B'!E133*100,"-")) -> - | I135: =IF(OR('Tabel 1 B'!G133<5,'Tabel 2 B'!I135<0.5),"-",IFERROR('Tabel 2 B'!I135/'Tabel 1 B'!G133*100,"-")) -> - | J135: =IF(OR('Tabel 1 B'!G133<5,'Tabel 2 B'!J135<0.5),"-",IFERROR('Tabel 2 B'!J135/'Tabel 1 B'!G133*100,"-")) -> -
A136: Arkitekt | C136: =IF(OR('Tabel 1 B'!C134<5, 'Tabel 2 B'!C136<0.5),"-",IFERROR('Tabel 2 B'!C136/'Tabel 1 B'!C134*100,"-")) -> - | D136: =IF(OR('Tabel 1 B'!C134<5,'Tabel 2 B'!D136<0.5),"-",IFERROR('Tabel 2 B'!D136/'Tabel 1 B'!C134*100,"-")) -> - | F136: =IF(OR('Tabel 1 B'!E134<5, 'Tabel 2 B'!F136<0.5),"-",IFERROR('Tabel 2 B'!F136/'Tabel 1 B'!E134*100,"-")) -> - | G136: =IF(OR('Tabel 1 B'!E134<5,'Tabel 2 B'!G136<0.5),"-",IFERROR('Tabel 2 B'!G136/'Tabel 1 B'!E134*100,"-")) -> - | I136: =IF(OR('Tabel 1 B'!G134<5,'Tabel 2 B'!I136<0.5),"-",IFERROR('Tabel 2 B'!I136/'Tabel 1 B'!G134*100,"-")) -> - | J136: =IF(OR('Tabel 1 B'!G134<5,'Tabel 2 B'!J136<0.5),"-",IFERROR('Tabel 2 B'!J136/'Tabel 1 B'!G134*100,"-")) -> -
A137: Landinspek. | C137: =IF(OR('Tabel 1 B'!C135<5, 'Tabel 2 B'!C137<0.5),"-",IFERROR('Tabel 2 B'!C137/'Tabel 1 B'!C135*100,"-")) -> - | D137: =IF(OR('Tabel 1 B'!C135<5,'Tabel 2 B'!D137<0.5),"-",IFERROR('Tabel 2 B'!D137/'Tabel 1 B'!C135*100,"-")) -> - | F137: =IF(OR('Tabel 1 B'!E135<5, 'Tabel 2 B'!F137<0.5),"-",IFERROR('Tabel 2 B'!F137/'Tabel 1 B'!E135*100,"-")) -> - | G137: =IF(OR('Tabel 1 B'!E135<5,'Tabel 2 B'!G137<0.5),"-",IFERROR('Tabel 2 B'!G137/'Tabel 1 B'!E135*100,"-")) -> - | I137: =IF(OR('Tabel 1 B'!G135<5,'Tabel 2 B'!I137<0.5),"-",IFERROR('Tabel 2 B'!I137/'Tabel 1 B'!G135*100,"-")) -> - | J137: =IF(OR('Tabel 1 B'!G135<5,'Tabel 2 B'!J137<0.5),"-",IFERROR('Tabel 2 B'!J137/'Tabel 1 B'!G135*100,"-")) -> -
A138: Bibliotekar | C138: =IF(OR('Tabel 1 B'!C136<5, 'Tabel 2 B'!C138<0.5),"-",IFERROR('Tabel 2 B'!C138/'Tabel 1 B'!C136*100,"-")) -> - | D138: =IF(OR('Tabel 1 B'!C136<5,'Tabel 2 B'!D138<0.5),"-",IFERROR('Tabel 2 B'!D138/'Tabel 1 B'!C136*100,"-")) -> - | F138: =IF(OR('Tabel 1 B'!E136<5, 'Tabel 2 B'!F138<0.5),"-",IFERROR('Tabel 2 B'!F138/'Tabel 1 B'!E136*100,"-")) -> - | G138: =IF(OR('Tabel 1 B'!E136<5,'Tabel 2 B'!G138<0.5),"-",IFERROR('Tabel 2 B'!G138/'Tabel 1 B'!E136*100,"-")) -> - | I138: =IF(OR('Tabel 1 B'!G136<5,'Tabel 2 B'!I138<0.5),"-",IFERROR('Tabel 2 B'!I138/'Tabel 1 B'!G136*100,"-")) -> - | J138: =IF(OR('Tabel 1 B'!G136<5,'Tabel 2 B'!J138<0.5),"-",IFERROR('Tabel 2 B'!J138/'Tabel 1 B'!G136*100,"-")) -> -
A139: Musikudd. | C139: =IF(OR('Tabel 1 B'!C137<5, 'Tabel 2 B'!C139<0.5),"-",IFERROR('Tabel 2 B'!C139/'Tabel 1 B'!C137*100,"-")) -> - | D139: =IF(OR('Tabel 1 B'!C137<5,'Tabel 2 B'!D139<0.5),"-",IFERROR('Tabel 2 B'!D139/'Tabel 1 B'!C137*100,"-")) -> - | F139: =IF(OR('Tabel 1 B'!E137<5, 'Tabel 2 B'!F139<0.5),"-",IFERROR('Tabel 2 B'!F139/'Tabel 1 B'!E137*100,"-")) -> - | G139: =IF(OR('Tabel 1 B'!E137<5,'Tabel 2 B'!G139<0.5),"-",IFERROR('Tabel 2 B'!G139/'Tabel 1 B'!E137*100,"-")) -> - | I139: =IF(OR('Tabel 1 B'!G137<5,'Tabel 2 B'!I139<0.5),"-",IFERROR('Tabel 2 B'!I139/'Tabel 1 B'!G137*100,"-")) -> - | J139: =IF(OR('Tabel 1 B'!G137<5,'Tabel 2 B'!J139<0.5),"-",IFERROR('Tabel 2 B'!J139/'Tabel 1 B'!G137*100,"-")) -> -
A140: Teolog | C140: =IF(OR('Tabel 1 B'!C138<5, 'Tabel 2 B'!C140<0.5),"-",IFERROR('Tabel 2 B'!C140/'Tabel 1 B'!C138*100,"-")) -> - | D140: =IF(OR('Tabel 1 B'!C138<5,'Tabel 2 B'!D140<0.5),"-",IFERROR('Tabel 2 B'!D140/'Tabel 1 B'!C138*100,"-")) -> - | F140: =IF(OR('Tabel 1 B'!E138<5, 'Tabel 2 B'!F140<0.5),"-",IFERROR('Tabel 2 B'!F140/'Tabel 1 B'!E138*100,"-")) -> - | G140: =IF(OR('Tabel 1 B'!E138<5,'Tabel 2 B'!G140<0.5),"-",IFERROR('Tabel 2 B'!G140/'Tabel 1 B'!E138*100,"-")) -> - | I140: =IF(OR('Tabel 1 B'!G138<5,'Tabel 2 B'!I140<0.5),"-",IFERROR('Tabel 2 B'!I140/'Tabel 1 B'!G138*100,"-")) -> - | J140: =IF(OR('Tabel 1 B'!G138<5,'Tabel 2 B'!J140<0.5),"-",IFERROR('Tabel 2 B'!J140/'Tabel 1 B'!G138*100,"-")) -> -
A141: Psykolog | C141: =IF(OR('Tabel 1 B'!C139<5, 'Tabel 2 B'!C141<0.5),"-",IFERROR('Tabel 2 B'!C141/'Tabel 1 B'!C139*100,"-")) -> - | D141: =IF(OR('Tabel 1 B'!C139<5,'Tabel 2 B'!D141<0.5),"-",IFERROR('Tabel 2 B'!D141/'Tabel 1 B'!C139*100,"-")) -> - | F141: =IF(OR('Tabel 1 B'!E139<5, 'Tabel 2 B'!F141<0.5),"-",IFERROR('Tabel 2 B'!F141/'Tabel 1 B'!E139*100,"-")) -> - | G141: =IF(OR('Tabel 1 B'!E139<5,'Tabel 2 B'!G141<0.5),"-",IFERROR('Tabel 2 B'!G141/'Tabel 1 B'!E139*100,"-")) -> - | I141: =IF(OR('Tabel 1 B'!G139<5,'Tabel 2 B'!I141<0.5),"-",IFERROR('Tabel 2 B'!I141/'Tabel 1 B'!G139*100,"-")) -> - | J141: =IF(OR('Tabel 1 B'!G139<5,'Tabel 2 B'!J141<0.5),"-",IFERROR('Tabel 2 B'!J141/'Tabel 1 B'!G139*100,"-")) -> -
A142: Jurist | C142: =IF(OR('Tabel 1 B'!C140<5, 'Tabel 2 B'!C142<0.5),"-",IFERROR('Tabel 2 B'!C142/'Tabel 1 B'!C140*100,"-")) -> - | D142: =IF(OR('Tabel 1 B'!C140<5,'Tabel 2 B'!D142<0.5),"-",IFERROR('Tabel 2 B'!D142/'Tabel 1 B'!C140*100,"-")) -> - | F142: =IF(OR('Tabel 1 B'!E140<5, 'Tabel 2 B'!F142<0.5),"-",IFERROR('Tabel 2 B'!F142/'Tabel 1 B'!E140*100,"-")) -> - | G142: =IF(OR('Tabel 1 B'!E140<5,'Tabel 2 B'!G142<0.5),"-",IFERROR('Tabel 2 B'!G142/'Tabel 1 B'!E140*100,"-")) -> - | I142: =IF(OR('Tabel 1 B'!G140<5,'Tabel 2 B'!I142<0.5),"-",IFERROR('Tabel 2 B'!I142/'Tabel 1 B'!G140*100,"-")) -> - | J142: =IF(OR('Tabel 1 B'!G140<5,'Tabel 2 B'!J142<0.5),"-",IFERROR('Tabel 2 B'!J142/'Tabel 1 B'!G140*100,"-")) -> -
A143: Økonom | C143: =IF(OR('Tabel 1 B'!C141<5, 'Tabel 2 B'!C143<0.5),"-",IFERROR('Tabel 2 B'!C143/'Tabel 1 B'!C141*100,"-")) -> - | D143: =IF(OR('Tabel 1 B'!C141<5,'Tabel 2 B'!D143<0.5),"-",IFERROR('Tabel 2 B'!D143/'Tabel 1 B'!C141*100,"-")) -> - | F143: =IF(OR('Tabel 1 B'!E141<5, 'Tabel 2 B'!F143<0.5),"-",IFERROR('Tabel 2 B'!F143/'Tabel 1 B'!E141*100,"-")) -> - | G143: =IF(OR('Tabel 1 B'!E141<5,'Tabel 2 B'!G143<0.5),"-",IFERROR('Tabel 2 B'!G143/'Tabel 1 B'!E141*100,"-")) -> - | I143: =IF(OR('Tabel 1 B'!G141<5,'Tabel 2 B'!I143<0.5),"-",IFERROR('Tabel 2 B'!I143/'Tabel 1 B'!G141*100,"-")) -> - | J143: =IF(OR('Tabel 1 B'!G141<5,'Tabel 2 B'!J143<0.5),"-",IFERROR('Tabel 2 B'!J143/'Tabel 1 B'!G141*100,"-")) -> -
A144: Samf. Adm. | C144: =IF(OR('Tabel 1 B'!C142<5, 'Tabel 2 B'!C144<0.5),"-",IFERROR('Tabel 2 B'!C144/'Tabel 1 B'!C142*100,"-")) -> - | D144: =IF(OR('Tabel 1 B'!C142<5,'Tabel 2 B'!D144<0.5),"-",IFERROR('Tabel 2 B'!D144/'Tabel 1 B'!C142*100,"-")) -> - | F144: =IF(OR('Tabel 1 B'!E142<5, 'Tabel 2 B'!F144<0.5),"-",IFERROR('Tabel 2 B'!F144/'Tabel 1 B'!E142*100,"-")) -> - | G144: =IF(OR('Tabel 1 B'!E142<5,'Tabel 2 B'!G144<0.5),"-",IFERROR('Tabel 2 B'!G144/'Tabel 1 B'!E142*100,"-")) -> - | I144: =IF(OR('Tabel 1 B'!G142<5,'Tabel 2 B'!I144<0.5),"-",IFERROR('Tabel 2 B'!I144/'Tabel 1 B'!G142*100,"-")) -> - | J144: =IF(OR('Tabel 1 B'!G142<5,'Tabel 2 B'!J144<0.5),"-",IFERROR('Tabel 2 B'!J144/'Tabel 1 B'!G142*100,"-")) -> -
A145: Cand. Merc. | C145: =IF(OR('Tabel 1 B'!C143<5, 'Tabel 2 B'!C145<0.5),"-",IFERROR('Tabel 2 B'!C145/'Tabel 1 B'!C143*100,"-")) -> - | D145: =IF(OR('Tabel 1 B'!C143<5,'Tabel 2 B'!D145<0.5),"-",IFERROR('Tabel 2 B'!D145/'Tabel 1 B'!C143*100,"-")) -> - | F145: =IF(OR('Tabel 1 B'!E143<5, 'Tabel 2 B'!F145<0.5),"-",IFERROR('Tabel 2 B'!F145/'Tabel 1 B'!E143*100,"-")) -> - | G145: =IF(OR('Tabel 1 B'!E143<5,'Tabel 2 B'!G145<0.5),"-",IFERROR('Tabel 2 B'!G145/'Tabel 1 B'!E143*100,"-")) -> - | I145: =IF(OR('Tabel 1 B'!G143<5,'Tabel 2 B'!I145<0.5),"-",IFERROR('Tabel 2 B'!I145/'Tabel 1 B'!G143*100,"-")) -> - | J145: =IF(OR('Tabel 1 B'!G143<5,'Tabel 2 B'!J145<0.5),"-",IFERROR('Tabel 2 B'!J145/'Tabel 1 B'!G143*100,"-")) -> -
A146: HA | C146: =IF(OR('Tabel 1 B'!C144<5, 'Tabel 2 B'!C146<0.5),"-",IFERROR('Tabel 2 B'!C146/'Tabel 1 B'!C144*100,"-")) -> - | D146: =IF(OR('Tabel 1 B'!C144<5,'Tabel 2 B'!D146<0.5),"-",IFERROR('Tabel 2 B'!D146/'Tabel 1 B'!C144*100,"-")) -> - | F146: =IF(OR('Tabel 1 B'!E144<5, 'Tabel 2 B'!F146<0.5),"-",IFERROR('Tabel 2 B'!F146/'Tabel 1 B'!E144*100,"-")) -> - | G146: =IF(OR('Tabel 1 B'!E144<5,'Tabel 2 B'!G146<0.5),"-",IFERROR('Tabel 2 B'!G146/'Tabel 1 B'!E144*100,"-")) -> - | I146: =IF(OR('Tabel 1 B'!G144<5,'Tabel 2 B'!I146<0.5),"-",IFERROR('Tabel 2 B'!I146/'Tabel 1 B'!G144*100,"-")) -> - | J146: =IF(OR('Tabel 1 B'!G144<5,'Tabel 2 B'!J146<0.5),"-",IFERROR('Tabel 2 B'!J146/'Tabel 1 B'!G144*100,"-")) -> -
A147: HD | C147: =IF(OR('Tabel 1 B'!C145<5, 'Tabel 2 B'!C147<0.5),"-",IFERROR('Tabel 2 B'!C147/'Tabel 1 B'!C145*100,"-")) -> - | D147: =IF(OR('Tabel 1 B'!C145<5,'Tabel 2 B'!D147<0.5),"-",IFERROR('Tabel 2 B'!D147/'Tabel 1 B'!C145*100,"-")) -> - | F147: =IF(OR('Tabel 1 B'!E145<5, 'Tabel 2 B'!F147<0.5),"-",IFERROR('Tabel 2 B'!F147/'Tabel 1 B'!E145*100,"-")) -> - | G147: =IF(OR('Tabel 1 B'!E145<5,'Tabel 2 B'!G147<0.5),"-",IFERROR('Tabel 2 B'!G147/'Tabel 1 B'!E145*100,"-")) -> - | I147: =IF(OR('Tabel 1 B'!G145<5,'Tabel 2 B'!I147<0.5),"-",IFERROR('Tabel 2 B'!I147/'Tabel 1 B'!G145*100,"-")) -> - | J147: =IF(OR('Tabel 1 B'!G145<5,'Tabel 2 B'!J147<0.5),"-",IFERROR('Tabel 2 B'!J147/'Tabel 1 B'!G145*100,"-")) -> -
A148: Komm. og Sprog | C148: =IF(OR('Tabel 1 B'!C146<5, 'Tabel 2 B'!C148<0.5),"-",IFERROR('Tabel 2 B'!C148/'Tabel 1 B'!C146*100,"-")) -> - | D148: =IF(OR('Tabel 1 B'!C146<5,'Tabel 2 B'!D148<0.5),"-",IFERROR('Tabel 2 B'!D148/'Tabel 1 B'!C146*100,"-")) -> - | F148: =IF(OR('Tabel 1 B'!E146<5, 'Tabel 2 B'!F148<0.5),"-",IFERROR('Tabel 2 B'!F148/'Tabel 1 B'!E146*100,"-")) -> - | G148: =IF(OR('Tabel 1 B'!E146<5,'Tabel 2 B'!G148<0.5),"-",IFERROR('Tabel 2 B'!G148/'Tabel 1 B'!E146*100,"-")) -> - | I148: =IF(OR('Tabel 1 B'!G146<5,'Tabel 2 B'!I148<0.5),"-",IFERROR('Tabel 2 B'!I148/'Tabel 1 B'!G146*100,"-")) -> - | J148: =IF(OR('Tabel 1 B'!G146<5,'Tabel 2 B'!J148<0.5),"-",IFERROR('Tabel 2 B'!J148/'Tabel 1 B'!G146*100,"-")) -> -
A149: Bygningskonst. | C149: =IF(OR('Tabel 1 B'!C147<5, 'Tabel 2 B'!C149<0.5),"-",IFERROR('Tabel 2 B'!C149/'Tabel 1 B'!C147*100,"-")) -> - | D149: =IF(OR('Tabel 1 B'!C147<5,'Tabel 2 B'!D149<0.5),"-",IFERROR('Tabel 2 B'!D149/'Tabel 1 B'!C147*100,"-")) -> - | F149: =IF(OR('Tabel 1 B'!E147<5, 'Tabel 2 B'!F149<0.5),"-",IFERROR('Tabel 2 B'!F149/'Tabel 1 B'!E147*100,"-")) -> - | G149: =IF(OR('Tabel 1 B'!E147<5,'Tabel 2 B'!G149<0.5),"-",IFERROR('Tabel 2 B'!G149/'Tabel 1 B'!E147*100,"-")) -> - | I149: =IF(OR('Tabel 1 B'!G147<5,'Tabel 2 B'!I149<0.5),"-",IFERROR('Tabel 2 B'!I149/'Tabel 1 B'!G147*100,"-")) -> - | J149: =IF(OR('Tabel 1 B'!G147<5,'Tabel 2 B'!J149<0.5),"-",IFERROR('Tabel 2 B'!J149/'Tabel 1 B'!G147*100,"-")) -> -
A150: Cand. IT. | C150: =IF(OR('Tabel 1 B'!C148<5, 'Tabel 2 B'!C150<0.5),"-",IFERROR('Tabel 2 B'!C150/'Tabel 1 B'!C148*100,"-")) -> - | D150: =IF(OR('Tabel 1 B'!C148<5,'Tabel 2 B'!D150<0.5),"-",IFERROR('Tabel 2 B'!D150/'Tabel 1 B'!C148*100,"-")) -> - | F150: =IF(OR('Tabel 1 B'!E148<5, 'Tabel 2 B'!F150<0.5),"-",IFERROR('Tabel 2 B'!F150/'Tabel 1 B'!E148*100,"-")) -> - | G150: =IF(OR('Tabel 1 B'!E148<5,'Tabel 2 B'!G150<0.5),"-",IFERROR('Tabel 2 B'!G150/'Tabel 1 B'!E148*100,"-")) -> - | I150: =IF(OR('Tabel 1 B'!G148<5,'Tabel 2 B'!I150<0.5),"-",IFERROR('Tabel 2 B'!I150/'Tabel 1 B'!G148*100,"-")) -> - | J150: =IF(OR('Tabel 1 B'!G148<5,'Tabel 2 B'!J150<0.5),"-",IFERROR('Tabel 2 B'!J150/'Tabel 1 B'!G148*100,"-")) -> -
A151: Bac. Samf. | C151: =IF(OR('Tabel 1 B'!C149<5, 'Tabel 2 B'!C151<0.5),"-",IFERROR('Tabel 2 B'!C151/'Tabel 1 B'!C149*100,"-")) -> - | D151: =IF(OR('Tabel 1 B'!C149<5,'Tabel 2 B'!D151<0.5),"-",IFERROR('Tabel 2 B'!D151/'Tabel 1 B'!C149*100,"-")) -> - | F151: =IF(OR('Tabel 1 B'!E149<5, 'Tabel 2 B'!F151<0.5),"-",IFERROR('Tabel 2 B'!F151/'Tabel 1 B'!E149*100,"-")) -> - | G151: =IF(OR('Tabel 1 B'!E149<5,'Tabel 2 B'!G151<0.5),"-",IFERROR('Tabel 2 B'!G151/'Tabel 1 B'!E149*100,"-")) -> - | I151: =IF(OR('Tabel 1 B'!G149<5,'Tabel 2 B'!I151<0.5),"-",IFERROR('Tabel 2 B'!I151/'Tabel 1 B'!G149*100,"-")) -> - | J151: =IF(OR('Tabel 1 B'!G149<5,'Tabel 2 B'!J151<0.5),"-",IFERROR('Tabel 2 B'!J151/'Tabel 1 B'!G149*100,"-")) -> -
A152: Bac. Hum. | C152: =IF(OR('Tabel 1 B'!C150<5, 'Tabel 2 B'!C152<0.5),"-",IFERROR('Tabel 2 B'!C152/'Tabel 1 B'!C150*100,"-")) -> - | D152: =IF(OR('Tabel 1 B'!C150<5,'Tabel 2 B'!D152<0.5),"-",IFERROR('Tabel 2 B'!D152/'Tabel 1 B'!C150*100,"-")) -> - | F152: =IF(OR('Tabel 1 B'!E150<5, 'Tabel 2 B'!F152<0.5),"-",IFERROR('Tabel 2 B'!F152/'Tabel 1 B'!E150*100,"-")) -> - | G152: =IF(OR('Tabel 1 B'!E150<5,'Tabel 2 B'!G152<0.5),"-",IFERROR('Tabel 2 B'!G152/'Tabel 1 B'!E150*100,"-")) -> - | I152: =IF(OR('Tabel 1 B'!G150<5,'Tabel 2 B'!I152<0.5),"-",IFERROR('Tabel 2 B'!I152/'Tabel 1 B'!G150*100,"-")) -> - | J152: =IF(OR('Tabel 1 B'!G150<5,'Tabel 2 B'!J152<0.5),"-",IFERROR('Tabel 2 B'!J152/'Tabel 1 B'!G150*100,"-")) -> -
A153: Bac. Nat. | C153: =IF(OR('Tabel 1 B'!C151<5, 'Tabel 2 B'!C153<0.5),"-",IFERROR('Tabel 2 B'!C153/'Tabel 1 B'!C151*100,"-")) -> - | D153: =IF(OR('Tabel 1 B'!C151<5,'Tabel 2 B'!D153<0.5),"-",IFERROR('Tabel 2 B'!D153/'Tabel 1 B'!C151*100,"-")) -> - | F153: =IF(OR('Tabel 1 B'!E151<5, 'Tabel 2 B'!F153<0.5),"-",IFERROR('Tabel 2 B'!F153/'Tabel 1 B'!E151*100,"-")) -> - | G153: =IF(OR('Tabel 1 B'!E151<5,'Tabel 2 B'!G153<0.5),"-",IFERROR('Tabel 2 B'!G153/'Tabel 1 B'!E151*100,"-")) -> - | I153: =IF(OR('Tabel 1 B'!G151<5,'Tabel 2 B'!I153<0.5),"-",IFERROR('Tabel 2 B'!I153/'Tabel 1 B'!G151*100,"-")) -> - | J153: =IF(OR('Tabel 1 B'!G151<5,'Tabel 2 B'!J153<0.5),"-",IFERROR('Tabel 2 B'!J153/'Tabel 1 B'!G151*100,"-")) -> -
A154: Andre | C154: =IF(OR('Tabel 1 B'!C152<5, 'Tabel 2 B'!C154<0.5),"-",IFERROR('Tabel 2 B'!C154/'Tabel 1 B'!C152*100,"-")) -> - | D154: =IF(OR('Tabel 1 B'!C152<5,'Tabel 2 B'!D154<0.5),"-",IFERROR('Tabel 2 B'!D154/'Tabel 1 B'!C152*100,"-")) -> - | F154: =IF(OR('Tabel 1 B'!E152<5, 'Tabel 2 B'!F154<0.5),"-",IFERROR('Tabel 2 B'!F154/'Tabel 1 B'!E152*100,"-")) -> - | G154: =IF(OR('Tabel 1 B'!E152<5,'Tabel 2 B'!G154<0.5),"-",IFERROR('Tabel 2 B'!G154/'Tabel 1 B'!E152*100,"-")) -> - | I154: =IF(OR('Tabel 1 B'!G152<5,'Tabel 2 B'!I154<0.5),"-",IFERROR('Tabel 2 B'!I154/'Tabel 1 B'!G152*100,"-")) -> - | J154: =IF(OR('Tabel 1 B'!G152<5,'Tabel 2 B'!J154<0.5),"-",IFERROR('Tabel 2 B'!J154/'Tabel 1 B'!G152*100,"-")) -> -
A156: Total | C156: =IF(OR('Tabel 1 B'!C154<5, 'Tabel 2 B'!C156<0.5),"-",IFERROR('Tabel 2 B'!C156/'Tabel 1 B'!C154*100,"-")) -> - | D156: =IF(OR('Tabel 1 B'!C154<5,'Tabel 2 B'!D156<0.5),"-",IFERROR('Tabel 2 B'!D156/'Tabel 1 B'!C154*100,"-")) -> - | F156: =IF(OR('Tabel 1 B'!E154<5, 'Tabel 2 B'!F156<0.5),"-",IFERROR('Tabel 2 B'!F156/'Tabel 1 B'!E154*100,"-")) -> - | G156: =IF(OR('Tabel 1 B'!E154<5,'Tabel 2 B'!G156<0.5),"-",IFERROR('Tabel 2 B'!G156/'Tabel 1 B'!E154*100,"-")) -> - | I156: =IF(OR('Tabel 1 B'!G154<5,'Tabel 2 B'!I156<0.5),"-",IFERROR('Tabel 2 B'!I156/'Tabel 1 B'!G154*100,"-")) -> - | J156: =IF(OR('Tabel 1 B'!G154<5,'Tabel 2 B'!J156<0.5),"-",IFERROR('Tabel 2 B'!J156/'Tabel 1 B'!G154*100,"-")) -> -
A158: Ingeniører i alt | C158: =IF(OR('Tabel 1 B'!C156<5, 'Tabel 2 B'!C158<0.5),"-",IFERROR('Tabel 2 B'!C158/'Tabel 1 B'!C156*100,"-")) -> - | D158: =IF(OR('Tabel 1 B'!C156<5,'Tabel 2 B'!D158<0.5),"-",IFERROR('Tabel 2 B'!D158/'Tabel 1 B'!C156*100,"-")) -> - | F158: =IF(OR('Tabel 1 B'!E156<5, 'Tabel 2 B'!F158<0.5),"-",IFERROR('Tabel 2 B'!F158/'Tabel 1 B'!E156*100,"-")) -> - | G158: =IF(OR('Tabel 1 B'!E156<5,'Tabel 2 B'!G158<0.5),"-",IFERROR('Tabel 2 B'!G158/'Tabel 1 B'!E156*100,"-")) -> - | I158: =IF(OR('Tabel 1 B'!G156<5,'Tabel 2 B'!I158<0.5),"-",IFERROR('Tabel 2 B'!I158/'Tabel 1 B'!G156*100,"-")) -> - | J158: =IF(OR('Tabel 1 B'!G156<5,'Tabel 2 B'!J158<0.5),"-",IFERROR('Tabel 2 B'!J158/'Tabel 1 B'!G156*100,"-")) -> -
A159: Magistre i alt | C159: =IF(OR('Tabel 1 B'!C157<5, 'Tabel 2 B'!C159<0.5),"-",IFERROR('Tabel 2 B'!C159/'Tabel 1 B'!C157*100,"-")) -> - | D159: =IF(OR('Tabel 1 B'!C157<5,'Tabel 2 B'!D159<0.5),"-",IFERROR('Tabel 2 B'!D159/'Tabel 1 B'!C157*100,"-")) -> - | F159: =IF(OR('Tabel 1 B'!E157<5, 'Tabel 2 B'!F159<0.5),"-",IFERROR('Tabel 2 B'!F159/'Tabel 1 B'!E157*100,"-")) -> - | G159: =IF(OR('Tabel 1 B'!E157<5,'Tabel 2 B'!G159<0.5),"-",IFERROR('Tabel 2 B'!G159/'Tabel 1 B'!E157*100,"-")) -> - | I159: =IF(OR('Tabel 1 B'!G157<5,'Tabel 2 B'!I159<0.5),"-",IFERROR('Tabel 2 B'!I159/'Tabel 1 B'!G157*100,"-")) -> - | J159: =IF(OR('Tabel 1 B'!G157<5,'Tabel 2 B'!J159<0.5),"-",IFERROR('Tabel 2 B'!J159/'Tabel 1 B'!G157*100,"-")) -> -
A160: DJØF'ere i alt | C160: =IF(OR('Tabel 1 B'!C158<5, 'Tabel 2 B'!C160<0.5),"-",IFERROR('Tabel 2 B'!C160/'Tabel 1 B'!C158*100,"-")) -> - | D160: =IF(OR('Tabel 1 B'!C158<5,'Tabel 2 B'!D160<0.5),"-",IFERROR('Tabel 2 B'!D160/'Tabel 1 B'!C158*100,"-")) -> - | F160: =IF(OR('Tabel 1 B'!E158<5, 'Tabel 2 B'!F160<0.5),"-",IFERROR('Tabel 2 B'!F160/'Tabel 1 B'!E158*100,"-")) -> - | G160: =IF(OR('Tabel 1 B'!E158<5,'Tabel 2 B'!G160<0.5),"-",IFERROR('Tabel 2 B'!G160/'Tabel 1 B'!E158*100,"-")) -> - | I160: =IF(OR('Tabel 1 B'!G158<5,'Tabel 2 B'!I160<0.5),"-",IFERROR('Tabel 2 B'!I160/'Tabel 1 B'!G158*100,"-")) -> - | J160: =IF(OR('Tabel 1 B'!G158<5,'Tabel 2 B'!J160<0.5),"-",IFERROR('Tabel 2 B'!J160/'Tabel 1 B'!G158*100,"-")) -> -

Sheet Tabel 4F B
A1: Tabel 4. Antal forsikrede - aldersfordelt
A3: Bornholm
C5: Under 30 år | D5: 30 - 39 år | E5: 40 - 49 år | F5: 50 - 59 år | G5: Over 60 år | I5: I alt
A7: Civ. ing. | C7: 2 | D7: 13 | E7: 9 | F7: 8 | G7: 2 | I7: 34
A8: Diplom ing. | C8: 3 | D8: 13 | E8: 18 | F8: 22 | G8: 7 | I8: 63
A9: Cand. Scient. Tek. | C9: 3 | D9: 17 | E9: 6 | F9: 2 | G9: 1 | I9: 29
A10: MA. Hum. | C10: 6 | D10: 54 | E10: 27 | F10: 20 | G10: 17 | I10: 124
A11: MA. Nat. | C11: 0 | D11: 4 | E11: 17 | F11: 19 | G11: 6 | I11: 46
A12: MA. Ph.d. | C12: 0 | D12: 1 | E12: 3 | F12: 2 | G12: 1 | I12: 7
A13: MA. Samf. | C13: 2 | D13: 7 | E13: 1 | F13: 4 | G13: 2 | I13: 16
A14: Øvrige Mag. | C14: 3 | D14: 6 | E14: 5 | F14: 1 | G14: 2 | I14: 17
A15: Agronom | C15: 1 | D15: 0 | E15: 2 | F15: 6 | G15: 1 | I15: 10
A16: Landsk. Arkt. | C16: 0 | D16: 0 | E16: 1 | F16: 1 | G16: 1 | I16: 3
A17: Hortonom | C17: 0 | D17: 0 | E17: 1 | F17: 0 | G17: 1 | I17: 2
A18: Forstkand. | C18: 0 | D18: 0 | E18: 0 | F18: 1 | G18: 0 | I18: 1
A19: Jordbrugsakad. | C19: 1 | D19: 0 | E19: 4 | F19: 8 | G19: 3 | I19: 16
A20: Mejeriing. | C20: 0 | D20: 0 | E20: 0 | F20: 0 | G20: 0 | I20: 0
A21: Levn.m.kand. | C21: 0 | D21: 1 | E21: 0 | F21: 0 | G21: 0 | I21: 1
A22: Dyrlæge | C22: 1 | D22: 5 | E22: 3 | F22: 3 | G22: 2 | I22: 14
A23: Farmaceut | C23: 0 | D23: 1 | E23: 2 | F23: 1 | G23: 2 | I23: 6
A24: Læge | C24: 8 | D24: 12 | E24: 3 | F24: 5 | G24: 5 | I24: 33
A25: Tandlæge | C25: 1 | D25: 2 | E25: 6 | F25: 1 | G25: 0 | I25: 10
A26: Arkitekt | C26: 0 | D26: 2 | E26: 5 | F26: 2 | G26: 5 | I26: 14
A27: Landinspek. | C27: 0 | D27: 0 | E27: 1 | F27: 0 | G27: 0 | I27: 1
A28: Bibliotekar | C28: 1 | D28: 4 | E28: 4 | F28: 4 | G28: 2 | I28: 15
A29: Musikudd. | C29: 0 | D29: 0 | E29: 0 | F29: 2 | G29: 0 | I29: 2
A30: Teolog | C30: 0 | D30: 1 | E30: 3 | F30: 4 | G30: 5 | I30: 13
A31: Psykolog | C31: 5 | D31: 7 | E31: 14 | F31: 3 | G31: 1 | I31: 30
A32: Jurist | C32: 2 | D32: 9 | E32: 8 | F32: 10 | G32: 3 | I32: 32
A33: Økonom | C33: 0 | D33: 3 | E33: 2 | F33: 4 | G33: 0 | I33: 9
A34: Samf. Adm. | C34: 1 | D34: 16 | E34: 21 | F34: 10 | G34: 4 | I34: 52
A35: Cand. Merc. | C35: 1 | D35: 6 | E35: 10 | F35: 10 | G35: 2 | I35: 29
A36: HA | C36: 0 | D36: 2 | E36: 3 | F36: 6 | G36: 1 | I36: 12
A37: HD | C37: 0 | D37: 3 | E37: 1 | F37: 2 | G37: 3 | I37: 9
A38: Komm. og Sprog | C38: 1 | D38: 7 | E38: 3 | F38: 3 | G38: 1 | I38: 15
A39: Bygningskonst. | C39: 4 | D39: 9 | E39: 7 | F39: 6 | G39: 2 | I39: 28
A40: Cand. IT. | C40: 0 | D40: 1 | E40: 1 | F40: 0 | G40: 0 | I40: 2
A41: Bac. Samf. | C41: 0 | D41: 3 | E41: 1 | F41: 0 | G41: 1 | I41: 5
A42: Bac. Hum. | C42: 3 | D42: 3 | E42: 4 | F42: 2 | G42: 1 | I42: 13
A43: Bac. Nat. | C43: 3 | D43: 3 | E43: 2 | F43: 1 | G43: 1 | I43: 10
A44: Andre | C44: 4 | D44: 19 | E44: 26 | F44: 35 | G44: 23 | I44: 107
A46: Total | C46: 55 | D46: 234 | E46: 220 | F46: 200 | G46: 105 | I46: 814
A48: Ingeniører i alt | C48: 5 | D48: 26 | E48: 27 | F48: 30 | G48: 9 | I48: 97
A49: Magistre i alt | C49: 11 | D49: 72 | E49: 53 | F49: 46 | G49: 28 | I49: 210
A50: DJØF'ere i alt | C50: 4 | D50: 36 | E50: 44 | F50: 40 | G50: 10 | I50: 134
A57: Bornholm
C59: Under 30 år | D59: 30 - 39 år | E59: 40 - 49 år | F59: 50 - 59 år | G59: Over 60 år | I59: I alt
A61: Civ. ing. | C61: 2 | D61: 13 | E61: 9 | F61: 8 | G61: 2 | I61: 34
A62: Diplom ing. | C62: 3 | D62: 13 | E62: 18 | F62: 22 | G62: 7 | I62: 63
A63: Cand. Scient. Tek. | C63: 3 | D63: 17 | E63: 6 | F63: 2 | G63: 1 | I63: 29
A64: MA. Hum. | C64: 6 | D64: 54 | E64: 27 | F64: 20 | G64: 17 | I64: 124
A65: MA. Nat. | C65: 0 | D65: 4 | E65: 17 | F65: 19 | G65: 6 | I65: 46
A66: MA. Ph.d. | C66: 0 | D66: 1 | E66: 3 | F66: 2 | G66: 1 | I66: 7
A67: MA. Samf. | C67: 2 | D67: 7 | E67: 1 | F67: 4 | G67: 2 | I67: 16
A68: Øvrige Mag. | C68: 3 | D68: 6 | E68: 5 | F68: 1 | G68: 2 | I68: 17
A69: Agronom | C69: 1 | D69: 0 | E69: 2 | F69: 6 | G69: 1 | I69: 10
A70: Landsk. Arkt. | C70: 0 | D70: 0 | E70: 1 | F70: 1 | G70: 1 | I70: 3
A71: Hortonom | C71: 0 | D71: 0 | E71: 1 | F71: 0 | G71: 1 | I71: 2
A72: Forstkand. | C72: 0 | D72: 0 | E72: 0 | F72: 1 | G72: 0 | I72: 1
A73: Jordbrugsakad. | C73: 1 | D73: 0 | E73: 4 | F73: 8 | G73: 3 | I73: 16
A74: Mejeriing. | C74: 0 | D74: 0 | E74: 0 | F74: 0 | G74: 0 | I74: 0
A75: Levn.m.kand. | C75: 0 | D75: 1 | E75: 0 | F75: 0 | G75: 0 | I75: 1
A76: Dyrlæge | C76: 1 | D76: 5 | E76: 3 | F76: 3 | G76: 2 | I76: 14
A77: Farmaceut | C77: 0 | D77: 1 | E77: 2 | F77: 1 | G77: 2 | I77: 6
A78: Læge | C78: 8 | D78: 12 | E78: 3 | F78: 5 | G78: 4 | I78: 32
A79: Tandlæge | C79: 1 | D79: 2 | E79: 6 | F79: 1 | G79: 0 | I79: 10
A80: Arkitekt | C80: 0 | D80: 2 | E80: 5 | F80: 2 | G80: 5 | I80: 14
A81: Landinspek. | C81: 0 | D81: 0 | E81: 1 | F81: 0 | G81: 0 | I81: 1
A82: Bibliotekar | C82: 1 | D82: 4 | E82: 4 | F82: 4 | G82: 2 | I82: 15
A83: Musikudd. | C83: 0 | D83: 0 | E83: 0 | F83: 2 | G83: 0 | I83: 2
A84: Teolog | C84: 0 | D84: 1 | E84: 3 | F84: 4 | G84: 5 | I84: 13
A85: Psykolog | C85: 5 | D85: 7 | E85: 14 | F85: 3 | G85: 1 | I85: 30
A86: Jurist | C86: 2 | D86: 9 | E86: 8 | F86: 10 | G86: 3 | I86: 32
A87: Økonom | C87: 0 | D87: 3 | E87: 2 | F87: 4 | G87: 0 | I87: 9
A88: Samf. Adm. | C88: 1 | D88: 16 | E88: 21 | F88: 10 | G88: 4 | I88: 52
A89: Cand. Merc. | C89: 1 | D89: 6 | E89: 10 | F89: 10 | G89: 2 | I89: 29
A90: HA | C90: 0 | D90: 2 | E90: 3 | F90: 6 | G90: 1 | I90: 12
A91: HD | C91: 0 | D91: 3 | E91: 1 | F91: 2 | G91: 3 | I91: 9
A92: Komm. og Sprog | C92: 1 | D92: 7 | E92: 3 | F92: 3 | G92: 1 | I92: 15
A93: Bygningskonst. | C93: 4 | D93: 9 | E93: 7 | F93: 6 | G93: 2 | I93: 28
A94: Cand. IT. | C94: 0 | D94: 1 | E94: 1 | F94: 0 | G94: 0 | I94: 2
A95: Bac. Samf. | C95: 0 | D95: 3 | E95: 1 | F95: 0 | G95: 1 | I95: 5
A96: Bac. Hum. | C96: 3 | D96: 3 | E96: 4 | F96: 2 | G96: 1 | I96: 13
A97: Bac. Nat. | C97: 3 | D97: 3 | E97: 2 | F97: 1 | G97: 1 | I97: 10
A98: Andre | C98: 4 | D98: 19 | E98: 26 | F98: 35 | G98: 23 | I98: 107
A100: Total | C100: 55 | D100: 234 | E100: 220 | F100: 200 | G100: 104 | I100: 813
A102: Ingeniører i alt | C102: 5 | D102: 26 | E102: 27 | F102: 30 | G102: 9 | I102: 97
A103: Magistre i alt | C103: 11 | D103: 72 | E103: 53 | F103: 46 | G103: 28 | I103: 210
A104: DJØF'ere i alt | C104: 4 | D104: 36 | E104: 44 | F104: 40 | G104: 10 | I104: 134
A111: Christiansø
C113: Under 30 år | D113: 30 - 39 år | E113: 40 - 49 år | F113: 50 - 59 år | G113: Over 60 år | I113: I alt
A115: Civ. ing. | C115: 0 | D115: 0 | E115: 0 | F115: 0 | G115: 0 | I115: 0
A116: Diplom ing. | C116: 0 | D116: 0 | E116: 0 | F116: 0 | G116: 0 | I116: 0
A117: Cand. Scient. Tek. | C117: 0 | D117: 0 | E117: 0 | F117: 0 | G117: 0 | I117: 0
A118: MA. Hum. | C118: 0 | D118: 0 | E118: 0 | F118: 0 | G118: 0 | I118: 0
A119: MA. Nat. | C119: 0 | D119: 0 | E119: 0 | F119: 0 | G119: 0 | I119: 0
A120: MA. Ph.d. | C120: 0 | D120: 0 | E120: 0 | F120: 0 | G120: 0 | I120: 0
A121: MA. Samf. | C121: 0 | D121: 0 | E121: 0 | F121: 0 | G121: 0 | I121: 0
A122: Øvrige Mag. | C122: 0 | D122: 0 | E122: 0 | F122: 0 | G122: 0 | I122: 0
A123: Agronom | C123: 0 | D123: 0 | E123: 0 | F123: 0 | G123: 0 | I123: 0
A124: Landsk. Arkt. | C124: 0 | D124: 0 | E124: 0 | F124: 0 | G124: 0 | I124: 0
A125: Hortonom | C125: 0 | D125: 0 | E125: 0 | F125: 0 | G125: 0 | I125: 0
A126: Forstkand. | C126: 0 | D126: 0 | E126: 0 | F126: 0 | G126: 0 | I126: 0
A127: Jordbrugsakad. | C127: 0 | D127: 0 | E127: 0 | F127: 0 | G127: 0 | I127: 0
A128: Mejeriing. | C128: 0 | D128: 0 | E128: 0 | F128: 0 | G128: 0 | I128: 0
A129: Levn.m.kand. | C129: 0 | D129: 0 | E129: 0 | F129: 0 | G129: 0 | I129: 0
A130: Dyrlæge | C130: 0 | D130: 0 | E130: 0 | F130: 0 | G130: 0 | I130: 0
A131: Farmaceut | C131: 0 | D131: 0 | E131: 0 | F131: 0 | G131: 0 | I131: 0
A132: Læge | C132: 0 | D132: 0 | E132: 0 | F132: 0 | G132: 1 | I132: 1
A133: Tandlæge | C133: 0 | D133: 0 | E133: 0 | F133: 0 | G133: 0 | I133: 0
A134: Arkitekt | C134: 0 | D134: 0 | E134: 0 | F134: 0 | G134: 0 | I134: 0
A135: Landinspek. | C135: 0 | D135: 0 | E135: 0 | F135: 0 | G135: 0 | I135: 0
A136: Bibliotekar | C136: 0 | D136: 0 | E136: 0 | F136: 0 | G136: 0 | I136: 0
A137: Musikudd. | C137: 0 | D137: 0 | E137: 0 | F137: 0 | G137: 0 | I137: 0
A138: Teolog | C138: 0 | D138: 0 | E138: 0 | F138: 0 | G138: 0 | I138: 0
A139: Psykolog | C139: 0 | D139: 0 | E139: 0 | F139: 0 | G139: 0 | I139: 0
A140: Jurist | C140: 0 | D140: 0 | E140: 0 | F140: 0 | G140: 0 | I140: 0
A141: Økonom | C141: 0 | D141: 0 | E141: 0 | F141: 0 | G141: 0 | I141: 0
A142: Samf. Adm. | C142: 0 | D142: 0 | E142: 0 | F142: 0 | G142: 0 | I142: 0
A143: Cand. Merc. | C143: 0 | D143: 0 | E143: 0 | F143: 0 | G143: 0 | I143: 0
A144: HA | C144: 0 | D144: 0 | E144: 0 | F144: 0 | G144: 0 | I144: 0
A145: HD | C145: 0 | D145: 0 | E145: 0 | F145: 0 | G145: 0 | I145: 0
A146: Komm. og Sprog | C146: 0 | D146: 0 | E146: 0 | F146: 0 | G146: 0 | I146: 0
A147: Bygningskonst. | C147: 0 | D147: 0 | E147: 0 | F147: 0 | G147: 0 | I147: 0
A148: Cand. IT. | C148: 0 | D148: 0 | E148: 0 | F148: 0 | G148: 0 | I148: 0
A149: Bac. Samf. | C149: 0 | D149: 0 | E149: 0 | F149: 0 | G149: 0 | I149: 0
A150: Bac. Hum. | C150: 0 | D150: 0 | E150: 0 | F150: 0 | G150: 0 | I150: 0
A151: Bac. Nat. | C151: 0 | D151: 0 | E151: 0 | F151: 0 | G151: 0 | I151: 0
A152: Andre | C152: 0 | D152: 0 | E152: 0 | F152: 0 | G152: 0 | I152: 0
A154: Total | C154: 0 | D154: 0 | E154: 0 | F154: 0 | G154: 1 | I154: 1
A156: Ingeniører i alt | C156: 0 | D156: 0 | E156: 0 | F156: 0 | G156: 0 | I156: 0
A157: Magistre i alt | C157: 0 | D157: 0 | E157: 0 | F157: 0 | G157: 0 | I157: 0
A158: DJØF'ere i alt | C158: 0 | D158: 0 | E158: 0 | F158: 0 | G158: 0 | I158: 0

Sheet Tabel 4 B
A1: Tabel 4. Ledighedsberørte - aldersfordelt
A3: Bornholm
C5: Under 30 år | D5: 30 - 39 år | E5: 40 - 49 år | F5: 50 - 59 år | G5: Over 60 år | I5: I alt
A7: Civ. ing. | C7: 0 | D7: 2 | E7: 1 | F7: 0 | G7: 0 | I7: 3
A8: Diplom ing. | C8: 0 | D8: 1 | E8: 0 | F8: 2 | G8: 0 | I8: 3
A9: Cand. Scient. Tek | C9: 1 | D9: 4 | E9: 1 | F9: 0 | G9: 0 | I9: 6
A10: MA. Hum. | C10: 2 | D10: 8 | E10: 7 | F10: 1 | G10: 4 | I10: 22
A11: MA. Nat. | C11: 0 | D11: 0 | E11: 2 | F11: 0 | G11: 1 | I11: 3
A12: MA. Ph.d. | C12: 0 | D12: 0 | E12: 1 | F12: 0 | G12: 0 | I12: 1
A13: MA. Samf. | C13: 0 | D13: 0 | E13: 0 | F13: 2 | G13: 0 | I13: 2
A14: Øvrige Mag. | C14: 0 | D14: 3 | E14: 2 | F14: 0 | G14: 0 | I14: 5
A15: Agronom | C15: 0 | D15: 0 | E15: 0 | F15: 0 | G15: 0 | I15: 0
A16: Landsk. Arkt. | C16: 0 | D16: 0 | E16: 0 | F16: 0 | G16: 0 | I16: 0
A17: Hortonom | C17: 0 | D17: 0 | E17: 0 | F17: 0 | G17: 0 | I17: 0
A18: Forstkand. | C18: 0 | D18: 0 | E18: 0 | F18: 0 | G18: 0 | I18: 0
A19: Jordbrugsakad. | C19: 0 | D19: 0 | E19: 0 | F19: 0 | G19: 0 | I19: 0
A20: Mejeriing. | C20: 0 | D20: 0 | E20: 0 | F20: 0 | G20: 0 | I20: 0
A21: Levn.m.kand. | C21: 0 | D21: 0 | E21: 0 | F21: 0 | G21: 0 | I21: 0
A22: Dyrlæge | C22: 0 | D22: 0 | E22: 0 | F22: 1 | G22: 0 | I22: 1
A23: Farmaceut | C23: 0 | D23: 0 | E23: 0 | F23: 0 | G23: 0 | I23: 0
A24: Læge | C24: 1 | D24: 0 | E24: 0 | F24: 0 | G24: 0 | I24: 1
A25: Tandlæge | C25: 0 | D25: 0 | E25: 0 | F25: 0 | G25: 0 | I25: 0
A26: Arkitekt | C26: 0 | D26: 0 | E26: 0 | F26: 1 | G26: 0 | I26: 1
A27: Landinspek. | C27: 0 | D27: 0 | E27: 0 | F27: 0 | G27: 0 | I27: 0
A28: Bibliotekar | C28: 0 | D28: 0 | E28: 0 | F28: 0 | G28: 1 | I28: 1
A29: Musikudd. | C29: 0 | D29: 0 | E29: 0 | F29: 1 | G29: 0 | I29: 1
A30: Teolog | C30: 0 | D30: 0 | E30: 0 | F30: 0 | G30: 0 | I30: 0
A31: Psykolog | C31: 0 | D31: 1 | E31: 1 | F31: 0 | G31: 0 | I31: 2
A32: Jurist | C32: 0 | D32: 0 | E32: 0 | F32: 0 | G32: 0 | I32: 0
A33: Økonom | C33: 0 | D33: 0 | E33: 0 | F33: 0 | G33: 0 | I33: 0
A34: Samf. Adm. | C34: 0 | D34: 0 | E34: 1 | F34: 2 | G34: 0 | I34: 3
A35: Cand. Merc. | C35: 0 | D35: 0 | E35: 3 | F35: 0 | G35: 0 | I35: 3
A36: HA | C36: 0 | D36: 0 | E36: 0 | F36: 0 | G36: 0 | I36: 0
A37: HD | C37: 0 | D37: 0 | E37: 0 | F37: 0 | G37: 0 | I37: 0
A38: Komm. og Sprog | C38: 0 | D38: 2 | E38: 0 | F38: 2 | G38: 0 | I38: 4
A39: Bygningskonst | C39: 0 | D39: 0 | E39: 0 | F39: 0 | G39: 0 | I39: 0
A40: Cand. IT. | C40: 0 | D40: 0 | E40: 0 | F40: 0 | G40: 0 | I40: 0
A41: Bac. Samf. | C41: 0 | D41: 0 | E41: 0 | F41: 0 | G41: 0 | I41: 0
A42: Bac. Hum. | C42: 0 | D42: 1 | E42: 1 | F42: 0 | G42: 0 | I42: 2
A43: Bac. Nat. | C43: 0 | D43: 1 | E43: 0 | F43: 1 | G43: 0 | I43: 2
A44: Andre | C44: 0 | D44: 2 | E44: 5 | F44: 2 | G44: 2 | I44: 11
A46: Total | C46: 4 | D46: 25 | E46: 25 | F46: 15 | G46: 8 | I46: 77
A48: Ingeniører i alt | C48: 0 | D48: 3 | E48: 1 | F48: 2 | G48: 0 | I48: 6
A49: Magistre i alt | C49: 2 | D49: 11 | E49: 12 | F49: 3 | G49: 5 | I49: 33
A50: DJØF'ere i alt | C50: 0 | D50: 0 | E50: 4 | F50: 2 | G50: 0 | I50: 6
A57: Bornholm
C59: Under 30 år | D59: 30 - 39 år | E59: 40 - 49 år | F59: 50 - 59 år | G59: Over 60 år | I59: I alt
A61: Civ. ing. | C61: 0 | D61: 2 | E61: 1 | F61: 0 | G61: 0 | I61: 3
A62: Diplom ing. | C62: 0 | D62: 1 | E62: 0 | F62: 2 | G62: 0 | I62: 3
A63: Cand. Scient. Tek | C63: 1 | D63: 4 | E63: 1 | F63: 0 | G63: 0 | I63: 6
A64: MA. Hum. | C64: 2 | D64: 8 | E64: 7 | F64: 1 | G64: 4 | I64: 22
A65: MA. Nat. | C65: 0 | D65: 0 | E65: 2 | F65: 0 | G65: 1 | I65: 3
A66: MA. Ph.d. | C66: 0 | D66: 0 | E66: 1 | F66: 0 | G66: 0 | I66: 1
A67: MA. Samf. | C67: 0 | D67: 0 | E67: 0 | F67: 2 | G67: 0 | I67: 2
A68: Øvrige Mag. | C68: 0 | D68: 3 | E68: 2 | F68: 0 | G68: 0 | I68: 5
A69: Agronom | C69: 0 | D69: 0 | E69: 0 | F69: 0 | G69: 0 | I69: 0
A70: Landsk. Arkt. | C70: 0 | D70: 0 | E70: 0 | F70: 0 | G70: 0 | I70: 0
A71: Hortonom | C71: 0 | D71: 0 | E71: 0 | F71: 0 | G71: 0 | I71: 0
A72: Forstkand. | C72: 0 | D72: 0 | E72: 0 | F72: 0 | G72: 0 | I72: 0
A73: Jordbrugsakad. | C73: 0 | D73: 0 | E73: 0 | F73: 0 | G73: 0 | I73: 0
A74: Mejeriing. | C74: 0 | D74: 0 | E74: 0 | F74: 0 | G74: 0 | I74: 0
A75: Levn.m.kand. | C75: 0 | D75: 0 | E75: 0 | F75: 0 | G75: 0 | I75: 0
A76: Dyrlæge | C76: 0 | D76: 0 | E76: 0 | F76: 1 | G76: 0 | I76: 1
A77: Farmaceut | C77: 0 | D77: 0 | E77: 0 | F77: 0 | G77: 0 | I77: 0
A78: Læge | C78: 1 | D78: 0 | E78: 0 | F78: 0 | G78: 0 | I78: 1
A79: Tandlæge | C79: 0 | D79: 0 | E79: 0 | F79: 0 | G79: 0 | I79: 0
A80: Arkitekt | C80: 0 | D80: 0 | E80: 0 | F80: 1 | G80: 0 | I80: 1
A81: Landinspek. | C81: 0 | D81: 0 | E81: 0 | F81: 0 | G81: 0 | I81: 0
A82: Bibliotekar | C82: 0 | D82: 0 | E82: 0 | F82: 0 | G82: 1 | I82: 1
A83: Musikudd. | C83: 0 | D83: 0 | E83: 0 | F83: 1 | G83: 0 | I83: 1
A84: Teolog | C84: 0 | D84: 0 | E84: 0 | F84: 0 | G84: 0 | I84: 0
A85: Psykolog | C85: 0 | D85: 1 | E85: 1 | F85: 0 | G85: 0 | I85: 2
A86: Jurist | C86: 0 | D86: 0 | E86: 0 | F86: 0 | G86: 0 | I86: 0
A87: Økonom | C87: 0 | D87: 0 | E87: 0 | F87: 0 | G87: 0 | I87: 0
A88: Samf. Adm. | C88: 0 | D88: 0 | E88: 1 | F88: 2 | G88: 0 | I88: 3
A89: Cand. Merc. | C89: 0 | D89: 0 | E89: 3 | F89: 0 | G89: 0 | I89: 3
A90: HA | C90: 0 | D90: 0 | E90: 0 | F90: 0 | G90: 0 | I90: 0
A91: HD | C91: 0 | D91: 0 | E91: 0 | F91: 0 | G91: 0 | I91: 0
A92: Komm. og Sprog | C92: 0 | D92: 2 | E92: 0 | F92: 2 | G92: 0 | I92: 4
A93: Bygningskonst. | C93: 0 | D93: 0 | E93: 0 | F93: 0 | G93: 0 | I93: 0
A94: Cand. IT. | C94: 0 | D94: 0 | E94: 0 | F94: 0 | G94: 0 | I94: 0
A95: Bac. Samf. | C95: 0 | D95: 0 | E95: 0 | F95: 0 | G95: 0 | I95: 0
A96: Bac. Hum. | C96: 0 | D96: 1 | E96: 1 | F96: 0 | G96: 0 | I96: 2
A97: Bac. Nat. | C97: 0 | D97: 1 | E97: 0 | F97: 1 | G97: 0 | I97: 2
A98: Andre | C98: 0 | D98: 2 | E98: 5 | F98: 2 | G98: 2 | I98: 11
A100: Total | C100: 4 | D100: 25 | E100: 25 | F100: 15 | G100: 8 | I100: 77
A102: Ingeniører i alt | C102: 0 | D102: 3 | E102: 1 | F102: 2 | G102: 0 | I102: 6
A103: Magistre i alt | C103: 2 | D103: 11 | E103: 12 | F103: 3 | G103: 5 | I103: 33
A104: DJØF'ere i alt | C104: 0 | D104: 0 | E104: 4 | F104: 2 | G104: 0 | I104: 6
A111: Christiansø
C113: Under 30 år | D113: 30 - 39 år | E113: 40 - 49 år | F113: 50 - 59 år | G113: Over 60 år | I113: I alt
A115: Civ. ing. | C115: 0 | D115: 0 | E115: 0 | F115: 0 | G115: 0 | I115: 0
A116: Diplom ing. | C116: 0 | D116: 0 | E116: 0 | F116: 0 | G116: 0 | I116: 0
A117: Cand. Scient. Tek | C117: 0 | D117: 0 | E117: 0 | F117: 0 | G117: 0 | I117: 0
A118: MA. Hum. | C118: 0 | D118: 0 | E118: 0 | F118: 0 | G118: 0 | I118: 0
A119: MA. Nat. | C119: 0 | D119: 0 | E119: 0 | F119: 0 | G119: 0 | I119: 0
A120: MA. Ph.d. | C120: 0 | D120: 0 | E120: 0 | F120: 0 | G120: 0 | I120: 0
A121: MA. Samf. | C121: 0 | D121: 0 | E121: 0 | F121: 0 | G121: 0 | I121: 0
A122: Øvrige Mag. | C122: 0 | D122: 0 | E122: 0 | F122: 0 | G122: 0 | I122: 0
A123: Agronom | C123: 0 | D123: 0 | E123: 0 | F123: 0 | G123: 0 | I123: 0
A124: Landsk. Arkt. | C124: 0 | D124: 0 | E124: 0 | F124: 0 | G124: 0 | I124: 0
A125: Hortonom | C125: 0 | D125: 0 | E125: 0 | F125: 0 | G125: 0 | I125: 0
A126: Forstkand. | C126: 0 | D126: 0 | E126: 0 | F126: 0 | G126: 0 | I126: 0
A127: Jordbrugsakad. | C127: 0 | D127: 0 | E127: 0 | F127: 0 | G127: 0 | I127: 0
A128: Mejeriing. | C128: 0 | D128: 0 | E128: 0 | F128: 0 | G128: 0 | I128: 0
A129: Levn.m.kand. | C129: 0 | D129: 0 | E129: 0 | F129: 0 | G129: 0 | I129: 0
A130: Dyrlæge | C130: 0 | D130: 0 | E130: 0 | F130: 0 | G130: 0 | I130: 0
A131: Farmaceut | C131: 0 | D131: 0 | E131: 0 | F131: 0 | G131: 0 | I131: 0
A132: Læge | C132: 0 | D132: 0 | E132: 0 | F132: 0 | G132: 0 | I132: 0
A133: Tandlæge | C133: 0 | D133: 0 | E133: 0 | F133: 0 | G133: 0 | I133: 0
A134: Arkitekt | C134: 0 | D134: 0 | E134: 0 | F134: 0 | G134: 0 | I134: 0
A135: Landinspek. | C135: 0 | D135: 0 | E135: 0 | F135: 0 | G135: 0 | I135: 0
A136: Bibliotekar | C136: 0 | D136: 0 | E136: 0 | F136: 0 | G136: 0 | I136: 0
A137: Musikudd. | C137: 0 | D137: 0 | E137: 0 | F137: 0 | G137: 0 | I137: 0
A138: Teolog | C138: 0 | D138: 0 | E138: 0 | F138: 0 | G138: 0 | I138: 0
A139: Psykolog | C139: 0 | D139: 0 | E139: 0 | F139: 0 | G139: 0 | I139: 0
A140: Jurist | C140: 0 | D140: 0 | E140: 0 | F140: 0 | G140: 0 | I140: 0
A141: Økonom | C141: 0 | D141: 0 | E141: 0 | F141: 0 | G141: 0 | I141: 0
A142: Samf. Adm. | C142: 0 | D142: 0 | E142: 0 | F142: 0 | G142: 0 | I142: 0
A143: Cand. Merc. | C143: 0 | D143: 0 | E143: 0 | F143: 0 | G143: 0 | I143: 0
A144: HA | C144: 0 | D144: 0 | E144: 0 | F144: 0 | G144: 0 | I144: 0
A145: HD | C145: 0 | D145: 0 | E145: 0 | F145: 0 | G145: 0 | I145: 0
A146: Komm. og Sprog | C146: 0 | D146: 0 | E146: 0 | F146: 0 | G146: 0 | I146: 0
A147: Bygningskonst. | C147: 0 | D147: 0 | E147: 0 | F147: 0 | G147: 0 | I147: 0
A148: Cand. IT. | C148: 0 | D148: 0 | E148: 0 | F148: 0 | G148: 0 | I148: 0
A149: Bac. Samf. | C149: 0 | D149: 0 | E149: 0 | F149: 0 | G149: 0 | I149: 0
A150: Bac. Hum. | C150: 0 | D150: 0 | E150: 0 | F150: 0 | G150: 0 | I150: 0
A151: Bac. Nat. | C151: 0 | D151: 0 | E151: 0 | F151: 0 | G151: 0 | I151: 0
A152: Andre | C152: 0 | D152: 0 | E152: 0 | F152: 0 | G152: 0 | I152: 0
A154: Total | C154: 0 | D154: 0 | E154: 0 | F154: 0 | G154: 0 | I154: 0
A156: Ingeniører i alt | C156: 0 | D156: 0 | E156: 0 | F156: 0 | G156: 0 | I156: 0
A157: Magistre i alt | C157: 0 | D157: 0 | E157: 0 | F157: 0 | G157: 0 | I157: 0
A158: DJØF'ere i alt | C158: 0 | D158: 0 | E158: 0 | F158: 0 | G158: 0 | I158: 0

Sheet Tabel 4(Br) B
A1: Tabel 4. Ledighedsberørte - aldersfordelt
A3: Bornholm
C5: Under 30 år | D5: 30 - 39 år | E5: 40 - 49 år | F5: 50 - 59 år | G5: Over 60 år | I5: I alt
A7: Civ. ing. | C7: 0 | D7: 1.999625772 | E7: 0.9998128859 | F7: 0 | G7: 0 | I7: 2.999438658
A8: Diplom ing. | C8: 0 | D8: 0.7129046342 | E8: 0 | F8: 1.999625772 | G8: 0 | I8: 2.712530406
A9: Cand. Scient. Tek | C9: 0.5844196345 | D9: 3.656209069 | E9: 0.3973055573 | F9: 0 | G9: 0 | I9: 4.637934261
A10: MA. Hum. | C10: 1.999625772 | D10: 5.400735982 | E10: 5.882866588 | F10: 0.9998128859 | G10: 3.500280671 | I10: 17.7833219
A11: MA. Nat. | C11: 0 | D11: 0 | E11: 1.999625772 | F11: 0 | G11: 0.9998128859 | I11: 2.999438658
A12: MA. Ph.d. | C12: 0 | D12: 0 | E12: 0.9998128859 | F12: 0 | G12: 0 | I12: 0.9998128859
A13: MA. Samf. | C13: 0 | D13: 0 | E13: 0 | F13: 1.999625772 | G13: 0 | I13: 1.999625772
A14: Øvrige Mag. | C14: 0 | D14: 2.907129046 | E14: 1.999625772 | F14: 0 | G14: 0 | I14: 4.906754818
A15: Agronom | C15: 0 | D15: 0 | E15: 0 | F15: 0 | G15: 0 | I15: 0
A16: Landsk. Arkt. | C16: 0 | D16: 0 | E16: 0 | F16: 0 | G16: 0 | I16: 0
A17: Hortonom | C17: 0 | D17: 0 | E17: 0 | F17: 0 | G17: 0 | I17: 0
A18: Forstkand. | C18: 0 | D18: 0 | E18: 0 | F18: 0 | G18: 0 | I18: 0
A19: Jordbrugsakad. | C19: 0 | D19: 0 | E19: 0 | F19: 0 | G19: 0 | I19: 0
A20: Mejeriing. | C20: 0 | D20: 0 | E20: 0 | F20: 0 | G20: 0 | I20: 0
A21: Levn.m.kand. | C21: 0 | D21: 0 | E21: 0 | F21: 0 | G21: 0 | I21: 0
A22: Dyrlæge | C22: 0 | D22: 0 | E22: 0 | F22: 0.5382648288 | G22: 0 | I22: 0.5382648288
A23: Farmaceut | C23: 0 | D23: 0 | E23: 0 | F23: 0 | G23: 0 | I23: 0
A24: Læge | C24: 0.3074908002 | D24: 0 | E24: 0 | F24: 0 | G24: 0 | I24: 0.3074908002
A25: Tandlæge | C25: 0 | D25: 0 | E25: 0 | F25: 0 | G25: 0 | I25: 0
A26: Arkitekt | C26: 0 | D26: 0 | E26: 0 | F26: 0.9998128859 | G26: 0 | I26: 0.9998128859
A27: Landinspek. | C27: 0 | D27: 0 | E27: 0 | F27: 0 | G27: 0 | I27: 0
A28: Bibliotekar | C28: 0 | D28: 0 | E28: 0 | F28: 0 | G28: 0.9998128859 | I28: 0.9998128859
A29: Musikudd. | C29: 0 | D29: 0 | E29: 0 | F29: 0.9998128859 | G29: 0 | I29: 0.9998128859
A30: Teolog | C30: 0 | D30: 0 | E30: 0 | F30: 0 | G30: 0 | I30: 0
A31: Psykolog | C31: 0 | D31: 0.9998128859 | E31: 0.5844196345 | F31: 0 | G31: 0 | I31: 1.58423252
A32: Jurist | C32: 0 | D32: 0 | E32: 0 | F32: 0 | G32: 0 | I32: 0
A33: Økonom | C33: 0 | D33: 0 | E33: 0 | F33: 0 | G33: 0 | I33: 0
A34: Samf. Adm. | C34: 0 | D34: 0 | E34: 0.9998128859 | F34: 1.999625772 | G34: 0 | I34: 2.999438658
A35: Cand. Merc. | C35: 0 | D35: 0 | E35: 2.60026196 | F35: 0 | G35: 0 | I35: 2.60026196
A36: HA | C36: 0 | D36: 0 | E36: 0 | F36: 0 | G36: 0 | I36: 0
A37: HD | C37: 0 | D37: 0 | E37: 0 | F37: 0 | G37: 0 | I37: 0
A38: Komm. og Sprog | C38: 0 | D38: 1.999625772 | E38: 0 | F38: 1.999625772 | G38: 0 | I38: 3.999251544
A39: Bygningskonst. | C39: 0 | D39: 0 | E39: 0 | F39: 0 | G39: 0 | I39: 0
A40: Cand. IT. | C40: 0 | D40: 0 | E40: 0 | F40: 0 | G40: 0 | I40: 0
A41: Bac. Samf. | C41: 0 | D41: 0 | E41: 0 | F41: 0 | G41: 0 | I41: 0
A42: Bac. Hum. | C42: 0 | D42: 0.9998128859 | E42: 0.9998128859 | F42: 0 | G42: 0 | I42: 1.999625772
A43: Bac. Nat. | C43: 0 | D43: 0.99357575 | E43: 0 | F43: 0.9998128859 | G43: 0 | I43: 1.993388636
A44: Andre | C44: 0 | D44: 1.768851743 | E44: 4.609867149 | F44: 1.999625772 | G44: 1.810640554 | I44: 10.18898522
A46: Total | C46: 2.891536207 | D46: 21.43828354 | E46: 22.07322398 | F46: 14.53564523 | G46: 7.310546997 | I46: 68.24923595
A48: Ingeniører i alt | C48: 0 | D48: 2.712530406 | E48: 0.9998128859 | F48: 1.999625772 | G48: 0 | I48: 5.711969064
A49: Magistre i alt | C49: 1.999625772 | D49: 8.307865028 | E49: 10.88193102 | F49: 2.999438658 | G49: 4.500093557 | I49: 28.68895403
A50: DJØF'ere i alt | C50: 0 | D50: 0 | E50: 3.600074846 | F50: 1.999625772 | G50: 0 | I50: 5.599700617
A57: Bornholm
C59: Under 30 år | D59: 30 - 39 år | E59: 40 - 49 år | F59: 50 - 59 år | G59: Over 60 år | I59: I alt
A61: Civ. ing. | C61: 0 | D61: 1.999625772 | E61: 0.9998128859 | F61: 0 | G61: 0 | I61: 2.999438658
A62: Diplom ing. | C62: 0 | D62: 0.7129046342 | E62: 0 | F62: 1.999625772 | G62: 0 | I62: 2.712530406
A63: Cand. Scient. Tek | C63: 0.5844196345 | D63: 3.656209069 | E63: 0.3973055573 | F63: 0 | G63: 0 | I63: 4.637934261
A64: MA. Hum. | C64: 1.999625772 | D64: 5.400735982 | E64: 5.882866588 | F64: 0.9998128859 | G64: 3.500280671 | I64: 17.7833219
A65: MA. Nat. | C65: 0 | D65: 0 | E65: 1.999625772 | F65: 0 | G65: 0.9998128859 | I65: 2.999438658
A66: MA. Ph.d. | C66: 0 | D66: 0 | E66: 0.9998128859 | F66: 0 | G66: 0 | I66: 0.9998128859
A67: MA. Samf. | C67: 0 | D67: 0 | E67: 0 | F67: 1.999625772 | G67: 0 | I67: 1.999625772
A68: Øvrige Mag. | C68: 0 | D68: 2.907129046 | E68: 1.999625772 | F68: 0 | G68: 0 | I68: 4.906754818
A69: Agronom | C69: 0 | D69: 0 | E69: 0 | F69: 0 | G69: 0 | I69: 0
A70: Landsk. Arkt. | C70: 0 | D70: 0 | E70: 0 | F70: 0 | G70: 0 | I70: 0
A71: Hortonom | C71: 0 | D71: 0 | E71: 0 | F71: 0 | G71: 0 | I71: 0
A72: Forstkand. | C72: 0 | D72: 0 | E72: 0 | F72: 0 | G72: 0 | I72: 0
A73: Jordbrugsakad. | C73: 0 | D73: 0 | E73: 0 | F73: 0 | G73: 0 | I73: 0
A74: Mejeriing. | C74: 0 | D74: 0 | E74: 0 | F74: 0 | G74: 0 | I74: 0
A75: Levn.m.kand. | C75: 0 | D75: 0 | E75: 0 | F75: 0 | G75: 0 | I75: 0
A76: Dyrlæge | C76: 0 | D76: 0 | E76: 0 | F76: 0.5382648288 | G76: 0 | I76: 0.5382648288
A77: Farmaceut | C77: 0 | D77: 0 | E77: 0 | F77: 0 | G77: 0 | I77: 0
A78: Læge | C78: 0.3074908002 | D78: 0 | E78: 0 | F78: 0 | G78: 0 | I78: 0.3074908002
A79: Tandlæge | C79: 0 | D79: 0 | E79: 0 | F79: 0 | G79: 0 | I79: 0
A80: Arkitekt | C80: 0 | D80: 0 | E80: 0 | F80: 0.9998128859 | G80: 0 | I80: 0.9998128859
A81: Landinspek. | C81: 0 | D81: 0 | E81: 0 | F81: 0 | G81: 0 | I81: 0
A82: Bibliotekar | C82: 0 | D82: 0 | E82: 0 | F82: 0 | G82: 0.9998128859 | I82: 0.9998128859
A83: Musikudd. | C83: 0 | D83: 0 | E83: 0 | F83: 0.9998128859 | G83: 0 | I83: 0.9998128859
A84: Teolog | C84: 0 | D84: 0 | E84: 0 | F84: 0 | G84: 0 | I84: 0
A85: Psykolog | C85: 0 | D85: 0.9998128859 | E85: 0.5844196345 | F85: 0 | G85: 0 | I85: 1.58423252
A86: Jurist | C86: 0 | D86: 0 | E86: 0 | F86: 0 | G86: 0 | I86: 0
A87: Økonom | C87: 0 | D87: 0 | E87: 0 | F87: 0 | G87: 0 | I87: 0
A88: Samf. Adm. | C88: 0 | D88: 0 | E88: 0.9998128859 | F88: 1.999625772 | G88: 0 | I88: 2.999438658
A89: Cand. Merc. | C89: 0 | D89: 0 | E89: 2.60026196 | F89: 0 | G89: 0 | I89: 2.60026196
A90: HA | C90: 0 | D90: 0 | E90: 0 | F90: 0 | G90: 0 | I90: 0
A91: HD | C91: 0 | D91: 0 | E91: 0 | F91: 0 | G91: 0 | I91: 0
A92: Komm. og Sprog | C92: 0 | D92: 1.999625772 | E92: 0 | F92: 1.999625772 | G92: 0 | I92: 3.999251544
A93: Bygningskonst. | C93: 0 | D93: 0 | E93: 0 | F93: 0 | G93: 0 | I93: 0
A94: Cand. IT. | C94: 0 | D94: 0 | E94: 0 | F94: 0 | G94: 0 | I94: 0
A95: Bac. Samf. | C95: 0 | D95: 0 | E95: 0 | F95: 0 | G95: 0 | I95: 0
A96: Bac. Hum. | C96: 0 | D96: 0.9998128859 | E96: 0.9998128859 | F96: 0 | G96: 0 | I96: 1.999625772
A97: Bac. Nat. | C97: 0 | D97: 0.99357575 | E97: 0 | F97: 0.9998128859 | G97: 0 | I97: 1.993388636
A98: Andre | C98: 0 | D98: 1.768851743 | E98: 4.609867149 | F98: 1.999625772 | G98: 1.810640554 | I98: 10.18898522
A100: Total | C100: 2.891536207 | D100: 21.43828354 | E100: 22.07322398 | F100: 14.53564523 | G100: 7.310546997 | I100: 68.24923595
A102: Ingeniører i alt | C102: 0 | D102: 2.712530406 | E102: 0.9998128859 | F102: 1.999625772 | G102: 0 | I102: 5.711969064
A103: Magistre i alt | C103: 1.999625772 | D103: 8.307865028 | E103: 10.88193102 | F103: 2.999438658 | G103: 4.500093557 | I103: 28.68895403
A104: DJØF'ere i alt | C104: 0 | D104: 0 | E104: 3.600074846 | F104: 1.999625772 | G104: 0 | I104: 5.599700617
A111: Christiansø
C113: Under 30 år | D113: 30 - 39 år | E113: 40 - 49 år | F113: 50 - 59 år | G113: Over 60 år | I113: I alt
A115: Civ. ing. | C115: 0 | D115: 0 | E115: 0 | F115: 0 | G115: 0 | I115: 0
A116: Diplom ing. | C116: 0 | D116: 0 | E116: 0 | F116: 0 | G116: 0 | I116: 0
A117: Cand. Scient. Tek | C117: 0 | D117: 0 | E117: 0 | F117: 0 | G117: 0 | I117: 0
A118: MA. Hum. | C118: 0 | D118: 0 | E118: 0 | F118: 0 | G118: 0 | I118: 0
A119: MA. Nat. | C119: 0 | D119: 0 | E119: 0 | F119: 0 | G119: 0 | I119: 0
A120: MA. Ph.d. | C120: 0 | D120: 0 | E120: 0 | F120: 0 | G120: 0 | I120: 0
A121: MA. Samf. | C121: 0 | D121: 0 | E121: 0 | F121: 0 | G121: 0 | I121: 0
A122: Øvrige Mag. | C122: 0 | D122: 0 | E122: 0 | F122: 0 | G122: 0 | I122: 0
A123: Agronom | C123: 0 | D123: 0 | E123: 0 | F123: 0 | G123: 0 | I123: 0
A124: Landsk. Arkt. | C124: 0 | D124: 0 | E124: 0 | F124: 0 | G124: 0 | I124: 0
A125: Hortonom | C125: 0 | D125: 0 | E125: 0 | F125: 0 | G125: 0 | I125: 0
A126: Forstkand. | C126: 0 | D126: 0 | E126: 0 | F126: 0 | G126: 0 | I126: 0
A127: Jordbrugsakad. | C127: 0 | D127: 0 | E127: 0 | F127: 0 | G127: 0 | I127: 0
A128: Mejeriing. | C128: 0 | D128: 0 | E128: 0 | F128: 0 | G128: 0 | I128: 0
A129: Levn.m.kand. | C129: 0 | D129: 0 | E129: 0 | F129: 0 | G129: 0 | I129: 0
A130: Dyrlæge | C130: 0 | D130: 0 | E130: 0 | F130: 0 | G130: 0 | I130: 0
A131: Farmaceut | C131: 0 | D131: 0 | E131: 0 | F131: 0 | G131: 0 | I131: 0
A132: Læge | C132: 0 | D132: 0 | E132: 0 | F132: 0 | G132: 0 | I132: 0
A133: Tandlæge | C133: 0 | D133: 0 | E133: 0 | F133: 0 | G133: 0 | I133: 0
A134: Arkitekt | C134: 0 | D134: 0 | E134: 0 | F134: 0 | G134: 0 | I134: 0
A135: Landinspek. | C135: 0 | D135: 0 | E135: 0 | F135: 0 | G135: 0 | I135: 0
A136: Bibliotekar | C136: 0 | D136: 0 | E136: 0 | F136: 0 | G136: 0 | I136: 0
A137: Musikudd. | C137: 0 | D137: 0 | E137: 0 | F137: 0 | G137: 0 | I137: 0
A138: Teolog | C138: 0 | D138: 0 | E138: 0 | F138: 0 | G138: 0 | I138: 0
A139: Psykolog | C139: 0 | D139: 0 | E139: 0 | F139: 0 | G139: 0 | I139: 0
A140: Jurist | C140: 0 | D140: 0 | E140: 0 | F140: 0 | G140: 0 | I140: 0
A141: Økonom | C141: 0 | D141: 0 | E141: 0 | F141: 0 | G141: 0 | I141: 0
A142: Samf. Adm. | C142: 0 | D142: 0 | E142: 0 | F142: 0 | G142: 0 | I142: 0
A143: Cand. Merc. | C143: 0 | D143: 0 | E143: 0 | F143: 0 | G143: 0 | I143: 0
A144: HA | C144: 0 | D144: 0 | E144: 0 | F144: 0 | G144: 0 | I144: 0
A145: HD | C145: 0 | D145: 0 | E145: 0 | F145: 0 | G145: 0 | I145: 0
A146: Komm. og Sprog | C146: 0 | D146: 0 | E146: 0 | F146: 0 | G146: 0 | I146: 0
A147: Bygningskonst. | C147: 0 | D147: 0 | E147: 0 | F147: 0 | G147: 0 | I147: 0
A148: Cand. IT. | C148: 0 | D148: 0 | E148: 0 | F148: 0 | G148: 0 | I148: 0
A149: Bac. Samf. | C149: 0 | D149: 0 | E149: 0 | F149: 0 | G149: 0 | I149: 0
A150: Bac. Hum. | C150: 0 | D150: 0 | E150: 0 | F150: 0 | G150: 0 | I150: 0
A151: Bac. Nat. | C151: 0 | D151: 0 | E151: 0 | F151: 0 | G151: 0 | I151: 0
A152: Andre | C152: 0 | D152: 0 | E152: 0 | F152: 0 | G152: 0 | I152: 0
A154: Total | C154: 0 | D154: 0 | E154: 0 | F154: 0 | G154: 0 | I154: 0
A156: Ingeniører i alt | C156: 0 | D156: 0 | E156: 0 | F156: 0 | G156: 0 | I156: 0
A157: Magistre i alt | C157: 0 | D157: 0 | E157: 0 | F157: 0 | G157: 0 | I157: 0
A158: DJØF'ere i alt | C158: 0 | D158: 0 | E158: 0 | F158: 0 | G158: 0 | I158: 0

Sheet Tabel 4P B
A1: Tabel 4. Ledighedsberørte - aldersfordelt
A3: Bornholm
C5: Under 30 år | D5: 30 - 39 år | E5: 40 - 49 år | F5: 50 - 59 år | G5: Over 60 år | I5: I alt
A7: Civ. ing. | C7: =IF(OR('Tabel 4F B'!C7<5, 'Tabel 4 B'!C7<0.5),"-",IFERROR('Tabel 4 B'!C7/'Tabel 4F B'!C7*100,"-")) -> - | D7: =IF(OR('Tabel 4F B'!D7<5, 'Tabel 4 B'!D7<0.5),"-",IFERROR('Tabel 4 B'!D7/'Tabel 4F B'!D7*100,"-")) -> 15.38461538 | E7: =IF(OR('Tabel 4F B'!E7<5, 'Tabel 4 B'!E7<0.5),"-",IFERROR('Tabel 4 B'!E7/'Tabel 4F B'!E7*100,"-")) -> 11.11111111 | F7: =IF(OR('Tabel 4F B'!F7<5, 'Tabel 4 B'!F7<0.5),"-",IFERROR('Tabel 4 B'!F7/'Tabel 4F B'!F7*100,"-")) -> - | G7: =IF(OR('Tabel 4F B'!G7<5, 'Tabel 4 B'!G7<0.5),"-",IFERROR('Tabel 4 B'!G7/'Tabel 4F B'!G7*100,"-")) -> - | I7: =IF(OR('Tabel 4F B'!I7<5, 'Tabel 4 B'!I7<0.5),"-",IFERROR('Tabel 4 B'!I7/'Tabel 4F B'!I7*100,"-")) -> 8.823529412
A8: Diplom ing. | C8: =IF(OR('Tabel 4F B'!C8<5, 'Tabel 4 B'!C8<0.5),"-",IFERROR('Tabel 4 B'!C8/'Tabel 4F B'!C8*100,"-")) -> - | D8: =IF(OR('Tabel 4F B'!D8<5, 'Tabel 4 B'!D8<0.5),"-",IFERROR('Tabel 4 B'!D8/'Tabel 4F B'!D8*100,"-")) -> 7.692307692 | E8: =IF(OR('Tabel 4F B'!E8<5, 'Tabel 4 B'!E8<0.5),"-",IFERROR('Tabel 4 B'!E8/'Tabel 4F B'!E8*100,"-")) -> - | F8: =IF(OR('Tabel 4F B'!F8<5, 'Tabel 4 B'!F8<0.5),"-",IFERROR('Tabel 4 B'!F8/'Tabel 4F B'!F8*100,"-")) -> 9.090909091 | G8: =IF(OR('Tabel 4F B'!G8<5, 'Tabel 4 B'!G8<0.5),"-",IFERROR('Tabel 4 B'!G8/'Tabel 4F B'!G8*100,"-")) -> - | I8: =IF(OR('Tabel 4F B'!I8<5, 'Tabel 4 B'!I8<0.5),"-",IFERROR('Tabel 4 B'!I8/'Tabel 4F B'!I8*100,"-")) -> 4.761904762
A9: Cand. Scient. Tek | C9: =IF(OR('Tabel 4F B'!C9<5, 'Tabel 4 B'!C9<0.5),"-",IFERROR('Tabel 4 B'!C9/'Tabel 4F B'!C9*100,"-")) -> - | D9: =IF(OR('Tabel 4F B'!D9<5, 'Tabel 4 B'!D9<0.5),"-",IFERROR('Tabel 4 B'!D9/'Tabel 4F B'!D9*100,"-")) -> 23.52941176 | E9: =IF(OR('Tabel 4F B'!E9<5, 'Tabel 4 B'!E9<0.5),"-",IFERROR('Tabel 4 B'!E9/'Tabel 4F B'!E9*100,"-")) -> 16.66666667 | F9: =IF(OR('Tabel 4F B'!F9<5, 'Tabel 4 B'!F9<0.5),"-",IFERROR('Tabel 4 B'!F9/'Tabel 4F B'!F9*100,"-")) -> - | G9: =IF(OR('Tabel 4F B'!G9<5, 'Tabel 4 B'!G9<0.5),"-",IFERROR('Tabel 4 B'!G9/'Tabel 4F B'!G9*100,"-")) -> - | I9: =IF(OR('Tabel 4F B'!I9<5, 'Tabel 4 B'!I9<0.5),"-",IFERROR('Tabel 4 B'!I9/'Tabel 4F B'!I9*100,"-")) -> 20.68965517
A10: MA. Hum. | C10: =IF(OR('Tabel 4F B'!C10<5, 'Tabel 4 B'!C10<0.5),"-",IFERROR('Tabel 4 B'!C10/'Tabel 4F B'!C10*100,"-")) -> 33.33333333 | D10: =IF(OR('Tabel 4F B'!D10<5, 'Tabel 4 B'!D10<0.5),"-",IFERROR('Tabel 4 B'!D10/'Tabel 4F B'!D10*100,"-")) -> 14.81481481 | E10: =IF(OR('Tabel 4F B'!E10<5, 'Tabel 4 B'!E10<0.5),"-",IFERROR('Tabel 4 B'!E10/'Tabel 4F B'!E10*100,"-")) -> 25.92592593 | F10: =IF(OR('Tabel 4F B'!F10<5, 'Tabel 4 B'!F10<0.5),"-",IFERROR('Tabel 4 B'!F10/'Tabel 4F B'!F10*100,"-")) -> 5 | G10: =IF(OR('Tabel 4F B'!G10<5, 'Tabel 4 B'!G10<0.5),"-",IFERROR('Tabel 4 B'!G10/'Tabel 4F B'!G10*100,"-")) -> 23.52941176 | I10: =IF(OR('Tabel 4F B'!I10<5, 'Tabel 4 B'!I10<0.5),"-",IFERROR('Tabel 4 B'!I10/'Tabel 4F B'!I10*100,"-")) -> 17.74193548
A11: MA. Nat. | C11: =IF(OR('Tabel 4F B'!C11<5, 'Tabel 4 B'!C11<0.5),"-",IFERROR('Tabel 4 B'!C11/'Tabel 4F B'!C11*100,"-")) -> - | D11: =IF(OR('Tabel 4F B'!D11<5, 'Tabel 4 B'!D11<0.5),"-",IFERROR('Tabel 4 B'!D11/'Tabel 4F B'!D11*100,"-")) -> - | E11: =IF(OR('Tabel 4F B'!E11<5, 'Tabel 4 B'!E11<0.5),"-",IFERROR('Tabel 4 B'!E11/'Tabel 4F B'!E11*100,"-")) -> 11.76470588 | F11: =IF(OR('Tabel 4F B'!F11<5, 'Tabel 4 B'!F11<0.5),"-",IFERROR('Tabel 4 B'!F11/'Tabel 4F B'!F11*100,"-")) -> - | G11: =IF(OR('Tabel 4F B'!G11<5, 'Tabel 4 B'!G11<0.5),"-",IFERROR('Tabel 4 B'!G11/'Tabel 4F B'!G11*100,"-")) -> 16.66666667 | I11: =IF(OR('Tabel 4F B'!I11<5, 'Tabel 4 B'!I11<0.5),"-",IFERROR('Tabel 4 B'!I11/'Tabel 4F B'!I11*100,"-")) -> 6.52173913
A12: MA. Ph.d. | C12: =IF(OR('Tabel 4F B'!C12<5, 'Tabel 4 B'!C12<0.5),"-",IFERROR('Tabel 4 B'!C12/'Tabel 4F B'!C12*100,"-")) -> - | D12: =IF(OR('Tabel 4F B'!D12<5, 'Tabel 4 B'!D12<0.5),"-",IFERROR('Tabel 4 B'!D12/'Tabel 4F B'!D12*100,"-")) -> - | E12: =IF(OR('Tabel 4F B'!E12<5, 'Tabel 4 B'!E12<0.5),"-",IFERROR('Tabel 4 B'!E12/'Tabel 4F B'!E12*100,"-")) -> - | F12: =IF(OR('Tabel 4F B'!F12<5, 'Tabel 4 B'!F12<0.5),"-",IFERROR('Tabel 4 B'!F12/'Tabel 4F B'!F12*100,"-")) -> - | G12: =IF(OR('Tabel 4F B'!G12<5, 'Tabel 4 B'!G12<0.5),"-",IFERROR('Tabel 4 B'!G12/'Tabel 4F B'!G12*100,"-")) -> - | I12: =IF(OR('Tabel 4F B'!I12<5, 'Tabel 4 B'!I12<0.5),"-",IFERROR('Tabel 4 B'!I12/'Tabel 4F B'!I12*100,"-")) -> 14.28571429
A13: MA. Samf. | C13: =IF(OR('Tabel 4F B'!C13<5, 'Tabel 4 B'!C13<0.5),"-",IFERROR('Tabel 4 B'!C13/'Tabel 4F B'!C13*100,"-")) -> - | D13: =IF(OR('Tabel 4F B'!D13<5, 'Tabel 4 B'!D13<0.5),"-",IFERROR('Tabel 4 B'!D13/'Tabel 4F B'!D13*100,"-")) -> - | E13: =IF(OR('Tabel 4F B'!E13<5, 'Tabel 4 B'!E13<0.5),"-",IFERROR('Tabel 4 B'!E13/'Tabel 4F B'!E13*100,"-")) -> - | F13: =IF(OR('Tabel 4F B'!F13<5, 'Tabel 4 B'!F13<0.5),"-",IFERROR('Tabel 4 B'!F13/'Tabel 4F B'!F13*100,"-")) -> - | G13: =IF(OR('Tabel 4F B'!G13<5, 'Tabel 4 B'!G13<0.5),"-",IFERROR('Tabel 4 B'!G13/'Tabel 4F B'!G13*100,"-")) -> - | I13: =IF(OR('Tabel 4F B'!I13<5, 'Tabel 4 B'!I13<0.5),"-",IFERROR('Tabel 4 B'!I13/'Tabel 4F B'!I13*100,"-")) -> 12.5
A14: Øvrige Mag. | C14: =IF(OR('Tabel 4F B'!C14<5, 'Tabel 4 B'!C14<0.5),"-",IFERROR('Tabel 4 B'!C14/'Tabel 4F B'!C14*100,"-")) -> - | D14: =IF(OR('Tabel 4F B'!D14<5, 'Tabel 4 B'!D14<0.5),"-",IFERROR('Tabel 4 B'!D14/'Tabel 4F B'!D14*100,"-")) -> 50 | E14: =IF(OR('Tabel 4F B'!E14<5, 'Tabel 4 B'!E14<0.5),"-",IFERROR('Tabel 4 B'!E14/'Tabel 4F B'!E14*100,"-")) -> 40 | F14: =IF(OR('Tabel 4F B'!F14<5, 'Tabel 4 B'!F14<0.5),"-",IFERROR('Tabel 4 B'!F14/'Tabel 4F B'!F14*100,"-")) -> - | G14: =IF(OR('Tabel 4F B'!G14<5, 'Tabel 4 B'!G14<0.5),"-",IFERROR('Tabel 4 B'!G14/'Tabel 4F B'!G14*100,"-")) -> - | I14: =IF(OR('Tabel 4F B'!I14<5, 'Tabel 4 B'!I14<0.5),"-",IFERROR('Tabel 4 B'!I14/'Tabel 4F B'!I14*100,"-")) -> 29.41176471
A15: Agronom | C15: =IF(OR('Tabel 4F B'!C15<5, 'Tabel 4 B'!C15<0.5),"-",IFERROR('Tabel 4 B'!C15/'Tabel 4F B'!C15*100,"-")) -> - | D15: =IF(OR('Tabel 4F B'!D15<5, 'Tabel 4 B'!D15<0.5),"-",IFERROR('Tabel 4 B'!D15/'Tabel 4F B'!D15*100,"-")) -> - | E15: =IF(OR('Tabel 4F B'!E15<5, 'Tabel 4 B'!E15<0.5),"-",IFERROR('Tabel 4 B'!E15/'Tabel 4F B'!E15*100,"-")) -> - | F15: =IF(OR('Tabel 4F B'!F15<5, 'Tabel 4 B'!F15<0.5),"-",IFERROR('Tabel 4 B'!F15/'Tabel 4F B'!F15*100,"-")) -> - | G15: =IF(OR('Tabel 4F B'!G15<5, 'Tabel 4 B'!G15<0.5),"-",IFERROR('Tabel 4 B'!G15/'Tabel 4F B'!G15*100,"-")) -> - | I15: =IF(OR('Tabel 4F B'!I15<5, 'Tabel 4 B'!I15<0.5),"-",IFERROR('Tabel 4 B'!I15/'Tabel 4F B'!I15*100,"-")) -> -
A16: Landsk. Arkt. | C16: =IF(OR('Tabel 4F B'!C16<5, 'Tabel 4 B'!C16<0.5),"-",IFERROR('Tabel 4 B'!C16/'Tabel 4F B'!C16*100,"-")) -> - | D16: =IF(OR('Tabel 4F B'!D16<5, 'Tabel 4 B'!D16<0.5),"-",IFERROR('Tabel 4 B'!D16/'Tabel 4F B'!D16*100,"-")) -> - | E16: =IF(OR('Tabel 4F B'!E16<5, 'Tabel 4 B'!E16<0.5),"-",IFERROR('Tabel 4 B'!E16/'Tabel 4F B'!E16*100,"-")) -> - | F16: =IF(OR('Tabel 4F B'!F16<5, 'Tabel 4 B'!F16<0.5),"-",IFERROR('Tabel 4 B'!F16/'Tabel 4F B'!F16*100,"-")) -> - | G16: =IF(OR('Tabel 4F B'!G16<5, 'Tabel 4 B'!G16<0.5),"-",IFERROR('Tabel 4 B'!G16/'Tabel 4F B'!G16*100,"-")) -> - | I16: =IF(OR('Tabel 4F B'!I16<5, 'Tabel 4 B'!I16<0.5),"-",IFERROR('Tabel 4 B'!I16/'Tabel 4F B'!I16*100,"-")) -> -
A17: Hortonom | C17: =IF(OR('Tabel 4F B'!C17<5, 'Tabel 4 B'!C17<0.5),"-",IFERROR('Tabel 4 B'!C17/'Tabel 4F B'!C17*100,"-")) -> - | D17: =IF(OR('Tabel 4F B'!D17<5, 'Tabel 4 B'!D17<0.5),"-",IFERROR('Tabel 4 B'!D17/'Tabel 4F B'!D17*100,"-")) -> - | E17: =IF(OR('Tabel 4F B'!E17<5, 'Tabel 4 B'!E17<0.5),"-",IFERROR('Tabel 4 B'!E17/'Tabel 4F B'!E17*100,"-")) -> - | F17: =IF(OR('Tabel 4F B'!F17<5, 'Tabel 4 B'!F17<0.5),"-",IFERROR('Tabel 4 B'!F17/'Tabel 4F B'!F17*100,"-")) -> - | G17: =IF(OR('Tabel 4F B'!G17<5, 'Tabel 4 B'!G17<0.5),"-",IFERROR('Tabel 4 B'!G17/'Tabel 4F B'!G17*100,"-")) -> - | I17: =IF(OR('Tabel 4F B'!I17<5, 'Tabel 4 B'!I17<0.5),"-",IFERROR('Tabel 4 B'!I17/'Tabel 4F B'!I17*100,"-")) -> -
A18: Forstkand. | C18: =IF(OR('Tabel 4F B'!C18<5, 'Tabel 4 B'!C18<0.5),"-",IFERROR('Tabel 4 B'!C18/'Tabel 4F B'!C18*100,"-")) -> - | D18: =IF(OR('Tabel 4F B'!D18<5, 'Tabel 4 B'!D18<0.5),"-",IFERROR('Tabel 4 B'!D18/'Tabel 4F B'!D18*100,"-")) -> - | E18: =IF(OR('Tabel 4F B'!E18<5, 'Tabel 4 B'!E18<0.5),"-",IFERROR('Tabel 4 B'!E18/'Tabel 4F B'!E18*100,"-")) -> - | F18: =IF(OR('Tabel 4F B'!F18<5, 'Tabel 4 B'!F18<0.5),"-",IFERROR('Tabel 4 B'!F18/'Tabel 4F B'!F18*100,"-")) -> - | G18: =IF(OR('Tabel 4F B'!G18<5, 'Tabel 4 B'!G18<0.5),"-",IFERROR('Tabel 4 B'!G18/'Tabel 4F B'!G18*100,"-")) -> - | I18: =IF(OR('Tabel 4F B'!I18<5, 'Tabel 4 B'!I18<0.5),"-",IFERROR('Tabel 4 B'!I18/'Tabel 4F B'!I18*100,"-")) -> -
A19: Jordbrugsakad. | C19: =IF(OR('Tabel 4F B'!C19<5, 'Tabel 4 B'!C19<0.5),"-",IFERROR('Tabel 4 B'!C19/'Tabel 4F B'!C19*100,"-")) -> - | D19: =IF(OR('Tabel 4F B'!D19<5, 'Tabel 4 B'!D19<0.5),"-",IFERROR('Tabel 4 B'!D19/'Tabel 4F B'!D19*100,"-")) -> - | E19: =IF(OR('Tabel 4F B'!E19<5, 'Tabel 4 B'!E19<0.5),"-",IFERROR('Tabel 4 B'!E19/'Tabel 4F B'!E19*100,"-")) -> - | F19: =IF(OR('Tabel 4F B'!F19<5, 'Tabel 4 B'!F19<0.5),"-",IFERROR('Tabel 4 B'!F19/'Tabel 4F B'!F19*100,"-")) -> - | G19: =IF(OR('Tabel 4F B'!G19<5, 'Tabel 4 B'!G19<0.5),"-",IFERROR('Tabel 4 B'!G19/'Tabel 4F B'!G19*100,"-")) -> - | I19: =IF(OR('Tabel 4F B'!I19<5, 'Tabel 4 B'!I19<0.5),"-",IFERROR('Tabel 4 B'!I19/'Tabel 4F B'!I19*100,"-")) -> -
A20: Mejeriing. | C20: =IF(OR('Tabel 4F B'!C20<5, 'Tabel 4 B'!C20<0.5),"-",IFERROR('Tabel 4 B'!C20/'Tabel 4F B'!C20*100,"-")) -> - | D20: =IF(OR('Tabel 4F B'!D20<5, 'Tabel 4 B'!D20<0.5),"-",IFERROR('Tabel 4 B'!D20/'Tabel 4F B'!D20*100,"-")) -> - | E20: =IF(OR('Tabel 4F B'!E20<5, 'Tabel 4 B'!E20<0.5),"-",IFERROR('Tabel 4 B'!E20/'Tabel 4F B'!E20*100,"-")) -> - | F20: =IF(OR('Tabel 4F B'!F20<5, 'Tabel 4 B'!F20<0.5),"-",IFERROR('Tabel 4 B'!F20/'Tabel 4F B'!F20*100,"-")) -> - | G20: =IF(OR('Tabel 4F B'!G20<5, 'Tabel 4 B'!G20<0.5),"-",IFERROR('Tabel 4 B'!G20/'Tabel 4F B'!G20*100,"-")) -> - | I20: =IF(OR('Tabel 4F B'!I20<5, 'Tabel 4 B'!I20<0.5),"-",IFERROR('Tabel 4 B'!I20/'Tabel 4F B'!I20*100,"-")) -> -
A21: Levn.m.kand. | C21: =IF(OR('Tabel 4F B'!C21<5, 'Tabel 4 B'!C21<0.5),"-",IFERROR('Tabel 4 B'!C21/'Tabel 4F B'!C21*100,"-")) -> - | D21: =IF(OR('Tabel 4F B'!D21<5, 'Tabel 4 B'!D21<0.5),"-",IFERROR('Tabel 4 B'!D21/'Tabel 4F B'!D21*100,"-")) -> - | E21: =IF(OR('Tabel 4F B'!E21<5, 'Tabel 4 B'!E21<0.5),"-",IFERROR('Tabel 4 B'!E21/'Tabel 4F B'!E21*100,"-")) -> - | F21: =IF(OR('Tabel 4F B'!F21<5, 'Tabel 4 B'!F21<0.5),"-",IFERROR('Tabel 4 B'!F21/'Tabel 4F B'!F21*100,"-")) -> - | G21: =IF(OR('Tabel 4F B'!G21<5, 'Tabel 4 B'!G21<0.5),"-",IFERROR('Tabel 4 B'!G21/'Tabel 4F B'!G21*100,"-")) -> - | I21: =IF(OR('Tabel 4F B'!I21<5, 'Tabel 4 B'!I21<0.5),"-",IFERROR('Tabel 4 B'!I21/'Tabel 4F B'!I21*100,"-")) -> -
A22: Dyrlæge | C22: =IF(OR('Tabel 4F B'!C22<5, 'Tabel 4 B'!C22<0.5),"-",IFERROR('Tabel 4 B'!C22/'Tabel 4F B'!C22*100,"-")) -> - | D22: =IF(OR('Tabel 4F B'!D22<5, 'Tabel 4 B'!D22<0.5),"-",IFERROR('Tabel 4 B'!D22/'Tabel 4F B'!D22*100,"-")) -> - | E22: =IF(OR('Tabel 4F B'!E22<5, 'Tabel 4 B'!E22<0.5),"-",IFERROR('Tabel 4 B'!E22/'Tabel 4F B'!E22*100,"-")) -> - | F22: =IF(OR('Tabel 4F B'!F22<5, 'Tabel 4 B'!F22<0.5),"-",IFERROR('Tabel 4 B'!F22/'Tabel 4F B'!F22*100,"-")) -> - | G22: =IF(OR('Tabel 4F B'!G22<5, 'Tabel 4 B'!G22<0.5),"-",IFERROR('Tabel 4 B'!G22/'Tabel 4F B'!G22*100,"-")) -> - | I22: =IF(OR('Tabel 4F B'!I22<5, 'Tabel 4 B'!I22<0.5),"-",IFERROR('Tabel 4 B'!I22/'Tabel 4F B'!I22*100,"-")) -> 7.142857143
A23: Farmaceut | C23: =IF(OR('Tabel 4F B'!C23<5, 'Tabel 4 B'!C23<0.5),"-",IFERROR('Tabel 4 B'!C23/'Tabel 4F B'!C23*100,"-")) -> - | D23: =IF(OR('Tabel 4F B'!D23<5, 'Tabel 4 B'!D23<0.5),"-",IFERROR('Tabel 4 B'!D23/'Tabel 4F B'!D23*100,"-")) -> - | E23: =IF(OR('Tabel 4F B'!E23<5, 'Tabel 4 B'!E23<0.5),"-",IFERROR('Tabel 4 B'!E23/'Tabel 4F B'!E23*100,"-")) -> - | F23: =IF(OR('Tabel 4F B'!F23<5, 'Tabel 4 B'!F23<0.5),"-",IFERROR('Tabel 4 B'!F23/'Tabel 4F B'!F23*100,"-")) -> - | G23: =IF(OR('Tabel 4F B'!G23<5, 'Tabel 4 B'!G23<0.5),"-",IFERROR('Tabel 4 B'!G23/'Tabel 4F B'!G23*100,"-")) -> - | I23: =IF(OR('Tabel 4F B'!I23<5, 'Tabel 4 B'!I23<0.5),"-",IFERROR('Tabel 4 B'!I23/'Tabel 4F B'!I23*100,"-")) -> -
A24: Læge | C24: =IF(OR('Tabel 4F B'!C24<5, 'Tabel 4 B'!C24<0.5),"-",IFERROR('Tabel 4 B'!C24/'Tabel 4F B'!C24*100,"-")) -> 12.5 | D24: =IF(OR('Tabel 4F B'!D24<5, 'Tabel 4 B'!D24<0.5),"-",IFERROR('Tabel 4 B'!D24/'Tabel 4F B'!D24*100,"-")) -> - | E24: =IF(OR('Tabel 4F B'!E24<5, 'Tabel 4 B'!E24<0.5),"-",IFERROR('Tabel 4 B'!E24/'Tabel 4F B'!E24*100,"-")) -> - | F24: =IF(OR('Tabel 4F B'!F24<5, 'Tabel 4 B'!F24<0.5),"-",IFERROR('Tabel 4 B'!F24/'Tabel 4F B'!F24*100,"-")) -> - | G24: =IF(OR('Tabel 4F B'!G24<5, 'Tabel 4 B'!G24<0.5),"-",IFERROR('Tabel 4 B'!G24/'Tabel 4F B'!G24*100,"-")) -> - | I24: =IF(OR('Tabel 4F B'!I24<5, 'Tabel 4 B'!I24<0.5),"-",IFERROR('Tabel 4 B'!I24/'Tabel 4F B'!I24*100,"-")) -> 3.03030303
A25: Tandlæge | C25: =IF(OR('Tabel 4F B'!C25<5, 'Tabel 4 B'!C25<0.5),"-",IFERROR('Tabel 4 B'!C25/'Tabel 4F B'!C25*100,"-")) -> - | D25: =IF(OR('Tabel 4F B'!D25<5, 'Tabel 4 B'!D25<0.5),"-",IFERROR('Tabel 4 B'!D25/'Tabel 4F B'!D25*100,"-")) -> - | E25: =IF(OR('Tabel 4F B'!E25<5, 'Tabel 4 B'!E25<0.5),"-",IFERROR('Tabel 4 B'!E25/'Tabel 4F B'!E25*100,"-")) -> - | F25: =IF(OR('Tabel 4F B'!F25<5, 'Tabel 4 B'!F25<0.5),"-",IFERROR('Tabel 4 B'!F25/'Tabel 4F B'!F25*100,"-")) -> - | G25: =IF(OR('Tabel 4F B'!G25<5, 'Tabel 4 B'!G25<0.5),"-",IFERROR('Tabel 4 B'!G25/'Tabel 4F B'!G25*100,"-")) -> - | I25: =IF(OR('Tabel 4F B'!I25<5, 'Tabel 4 B'!I25<0.5),"-",IFERROR('Tabel 4 B'!I25/'Tabel 4F B'!I25*100,"-")) -> -
A26: Arkitekt | C26: =IF(OR('Tabel 4F B'!C26<5, 'Tabel 4 B'!C26<0.5),"-",IFERROR('Tabel 4 B'!C26/'Tabel 4F B'!C26*100,"-")) -> - | D26: =IF(OR('Tabel 4F B'!D26<5, 'Tabel 4 B'!D26<0.5),"-",IFERROR('Tabel 4 B'!D26/'Tabel 4F B'!D26*100,"-")) -> - | E26: =IF(OR('Tabel 4F B'!E26<5, 'Tabel 4 B'!E26<0.5),"-",IFERROR('Tabel 4 B'!E26/'Tabel 4F B'!E26*100,"-")) -> - | F26: =IF(OR('Tabel 4F B'!F26<5, 'Tabel 4 B'!F26<0.5),"-",IFERROR('Tabel 4 B'!F26/'Tabel 4F B'!F26*100,"-")) -> - | G26: =IF(OR('Tabel 4F B'!G26<5, 'Tabel 4 B'!G26<0.5),"-",IFERROR('Tabel 4 B'!G26/'Tabel 4F B'!G26*100,"-")) -> - | I26: =IF(OR('Tabel 4F B'!I26<5, 'Tabel 4 B'!I26<0.5),"-",IFERROR('Tabel 4 B'!I26/'Tabel 4F B'!I26*100,"-")) -> 7.142857143
A27: Landinspek. | C27: =IF(OR('Tabel 4F B'!C27<5, 'Tabel 4 B'!C27<0.5),"-",IFERROR('Tabel 4 B'!C27/'Tabel 4F B'!C27*100,"-")) -> - | D27: =IF(OR('Tabel 4F B'!D27<5, 'Tabel 4 B'!D27<0.5),"-",IFERROR('Tabel 4 B'!D27/'Tabel 4F B'!D27*100,"-")) -> - | E27: =IF(OR('Tabel 4F B'!E27<5, 'Tabel 4 B'!E27<0.5),"-",IFERROR('Tabel 4 B'!E27/'Tabel 4F B'!E27*100,"-")) -> - | F27: =IF(OR('Tabel 4F B'!F27<5, 'Tabel 4 B'!F27<0.5),"-",IFERROR('Tabel 4 B'!F27/'Tabel 4F B'!F27*100,"-")) -> - | G27: =IF(OR('Tabel 4F B'!G27<5, 'Tabel 4 B'!G27<0.5),"-",IFERROR('Tabel 4 B'!G27/'Tabel 4F B'!G27*100,"-")) -> - | I27: =IF(OR('Tabel 4F B'!I27<5, 'Tabel 4 B'!I27<0.5),"-",IFERROR('Tabel 4 B'!I27/'Tabel 4F B'!I27*100,"-")) -> -
A28: Bibliotekar | C28: =IF(OR('Tabel 4F B'!C28<5, 'Tabel 4 B'!C28<0.5),"-",IFERROR('Tabel 4 B'!C28/'Tabel 4F B'!C28*100,"-")) -> - | D28: =IF(OR('Tabel 4F B'!D28<5, 'Tabel 4 B'!D28<0.5),"-",IFERROR('Tabel 4 B'!D28/'Tabel 4F B'!D28*100,"-")) -> - | E28: =IF(OR('Tabel 4F B'!E28<5, 'Tabel 4 B'!E28<0.5),"-",IFERROR('Tabel 4 B'!E28/'Tabel 4F B'!E28*100,"-")) -> - | F28: =IF(OR('Tabel 4F B'!F28<5, 'Tabel 4 B'!F28<0.5),"-",IFERROR('Tabel 4 B'!F28/'Tabel 4F B'!F28*100,"-")) -> - | G28: =IF(OR('Tabel 4F B'!G28<5, 'Tabel 4 B'!G28<0.5),"-",IFERROR('Tabel 4 B'!G28/'Tabel 4F B'!G28*100,"-")) -> - | I28: =IF(OR('Tabel 4F B'!I28<5, 'Tabel 4 B'!I28<0.5),"-",IFERROR('Tabel 4 B'!I28/'Tabel 4F B'!I28*100,"-")) -> 6.666666667
A29: Musikudd. | C29: =IF(OR('Tabel 4F B'!C29<5, 'Tabel 4 B'!C29<0.5),"-",IFERROR('Tabel 4 B'!C29/'Tabel 4F B'!C29*100,"-")) -> - | D29: =IF(OR('Tabel 4F B'!D29<5, 'Tabel 4 B'!D29<0.5),"-",IFERROR('Tabel 4 B'!D29/'Tabel 4F B'!D29*100,"-")) -> - | E29: =IF(OR('Tabel 4F B'!E29<5, 'Tabel 4 B'!E29<0.5),"-",IFERROR('Tabel 4 B'!E29/'Tabel 4F B'!E29*100,"-")) -> - | F29: =IF(OR('Tabel 4F B'!F29<5, 'Tabel 4 B'!F29<0.5),"-",IFERROR('Tabel 4 B'!F29/'Tabel 4F B'!F29*100,"-")) -> - | G29: =IF(OR('Tabel 4F B'!G29<5, 'Tabel 4 B'!G29<0.5),"-",IFERROR('Tabel 4 B'!G29/'Tabel 4F B'!G29*100,"-")) -> - | I29: =IF(OR('Tabel 4F B'!I29<5, 'Tabel 4 B'!I29<0.5),"-",IFERROR('Tabel 4 B'!I29/'Tabel 4F B'!I29*100,"-")) -> -
A30: Teolog | C30: =IF(OR('Tabel 4F B'!C30<5, 'Tabel 4 B'!C30<0.5),"-",IFERROR('Tabel 4 B'!C30/'Tabel 4F B'!C30*100,"-")) -> - | D30: =IF(OR('Tabel 4F B'!D30<5, 'Tabel 4 B'!D30<0.5),"-",IFERROR('Tabel 4 B'!D30/'Tabel 4F B'!D30*100,"-")) -> - | E30: =IF(OR('Tabel 4F B'!E30<5, 'Tabel 4 B'!E30<0.5),"-",IFERROR('Tabel 4 B'!E30/'Tabel 4F B'!E30*100,"-")) -> - | F30: =IF(OR('Tabel 4F B'!F30<5, 'Tabel 4 B'!F30<0.5),"-",IFERROR('Tabel 4 B'!F30/'Tabel 4F B'!F30*100,"-")) -> - | G30: =IF(OR('Tabel 4F B'!G30<5, 'Tabel 4 B'!G30<0.5),"-",IFERROR('Tabel 4 B'!G30/'Tabel 4F B'!G30*100,"-")) -> - | I30: =IF(OR('Tabel 4F B'!I30<5, 'Tabel 4 B'!I30<0.5),"-",IFERROR('Tabel 4 B'!I30/'Tabel 4F B'!I30*100,"-")) -> -
A31: Psykolog | C31: =IF(OR('Tabel 4F B'!C31<5, 'Tabel 4 B'!C31<0.5),"-",IFERROR('Tabel 4 B'!C31/'Tabel 4F B'!C31*100,"-")) -> - | D31: =IF(OR('Tabel 4F B'!D31<5, 'Tabel 4 B'!D31<0.5),"-",IFERROR('Tabel 4 B'!D31/'Tabel 4F B'!D31*100,"-")) -> 14.28571429 | E31: =IF(OR('Tabel 4F B'!E31<5, 'Tabel 4 B'!E31<0.5),"-",IFERROR('Tabel 4 B'!E31/'Tabel 4F B'!E31*100,"-")) -> 7.142857143 | F31: =IF(OR('Tabel 4F B'!F31<5, 'Tabel 4 B'!F31<0.5),"-",IFERROR('Tabel 4 B'!F31/'Tabel 4F B'!F31*100,"-")) -> - | G31: =IF(OR('Tabel 4F B'!G31<5, 'Tabel 4 B'!G31<0.5),"-",IFERROR('Tabel 4 B'!G31/'Tabel 4F B'!G31*100,"-")) -> - | I31: =IF(OR('Tabel 4F B'!I31<5, 'Tabel 4 B'!I31<0.5),"-",IFERROR('Tabel 4 B'!I31/'Tabel 4F B'!I31*100,"-")) -> 6.666666667
A32: Jurist | C32: =IF(OR('Tabel 4F B'!C32<5, 'Tabel 4 B'!C32<0.5),"-",IFERROR('Tabel 4 B'!C32/'Tabel 4F B'!C32*100,"-")) -> - | D32: =IF(OR('Tabel 4F B'!D32<5, 'Tabel 4 B'!D32<0.5),"-",IFERROR('Tabel 4 B'!D32/'Tabel 4F B'!D32*100,"-")) -> - | E32: =IF(OR('Tabel 4F B'!E32<5, 'Tabel 4 B'!E32<0.5),"-",IFERROR('Tabel 4 B'!E32/'Tabel 4F B'!E32*100,"-")) -> - | F32: =IF(OR('Tabel 4F B'!F32<5, 'Tabel 4 B'!F32<0.5),"-",IFERROR('Tabel 4 B'!F32/'Tabel 4F B'!F32*100,"-")) -> - | G32: =IF(OR('Tabel 4F B'!G32<5, 'Tabel 4 B'!G32<0.5),"-",IFERROR('Tabel 4 B'!G32/'Tabel 4F B'!G32*100,"-")) -> - | I32: =IF(OR('Tabel 4F B'!I32<5, 'Tabel 4 B'!I32<0.5),"-",IFERROR('Tabel 4 B'!I32/'Tabel 4F B'!I32*100,"-")) -> -
A33: Økonom | C33: =IF(OR('Tabel 4F B'!C33<5, 'Tabel 4 B'!C33<0.5),"-",IFERROR('Tabel 4 B'!C33/'Tabel 4F B'!C33*100,"-")) -> - | D33: =IF(OR('Tabel 4F B'!D33<5, 'Tabel 4 B'!D33<0.5),"-",IFERROR('Tabel 4 B'!D33/'Tabel 4F B'!D33*100,"-")) -> - | E33: =IF(OR('Tabel 4F B'!E33<5, 'Tabel 4 B'!E33<0.5),"-",IFERROR('Tabel 4 B'!E33/'Tabel 4F B'!E33*100,"-")) -> - | F33: =IF(OR('Tabel 4F B'!F33<5, 'Tabel 4 B'!F33<0.5),"-",IFERROR('Tabel 4 B'!F33/'Tabel 4F B'!F33*100,"-")) -> - | G33: =IF(OR('Tabel 4F B'!G33<5, 'Tabel 4 B'!G33<0.5),"-",IFERROR('Tabel 4 B'!G33/'Tabel 4F B'!G33*100,"-")) -> - | I33: =IF(OR('Tabel 4F B'!I33<5, 'Tabel 4 B'!I33<0.5),"-",IFERROR('Tabel 4 B'!I33/'Tabel 4F B'!I33*100,"-")) -> -
A34: Samf. Adm. | C34: =IF(OR('Tabel 4F B'!C34<5, 'Tabel 4 B'!C34<0.5),"-",IFERROR('Tabel 4 B'!C34/'Tabel 4F B'!C34*100,"-")) -> - | D34: =IF(OR('Tabel 4F B'!D34<5, 'Tabel 4 B'!D34<0.5),"-",IFERROR('Tabel 4 B'!D34/'Tabel 4F B'!D34*100,"-")) -> - | E34: =IF(OR('Tabel 4F B'!E34<5, 'Tabel 4 B'!E34<0.5),"-",IFERROR('Tabel 4 B'!E34/'Tabel 4F B'!E34*100,"-")) -> 4.761904762 | F34: =IF(OR('Tabel 4F B'!F34<5, 'Tabel 4 B'!F34<0.5),"-",IFERROR('Tabel 4 B'!F34/'Tabel 4F B'!F34*100,"-")) -> 20 | G34: =IF(OR('Tabel 4F B'!G34<5, 'Tabel 4 B'!G34<0.5),"-",IFERROR('Tabel 4 B'!G34/'Tabel 4F B'!G34*100,"-")) -> - | I34: =IF(OR('Tabel 4F B'!I34<5, 'Tabel 4 B'!I34<0.5),"-",IFERROR('Tabel 4 B'!I34/'Tabel 4F B'!I34*100,"-")) -> 5.769230769
A35: Cand. Merc. | C35: =IF(OR('Tabel 4F B'!C35<5, 'Tabel 4 B'!C35<0.5),"-",IFERROR('Tabel 4 B'!C35/'Tabel 4F B'!C35*100,"-")) -> - | D35: =IF(OR('Tabel 4F B'!D35<5, 'Tabel 4 B'!D35<0.5),"-",IFERROR('Tabel 4 B'!D35/'Tabel 4F B'!D35*100,"-")) -> - | E35: =IF(OR('Tabel 4F B'!E35<5, 'Tabel 4 B'!E35<0.5),"-",IFERROR('Tabel 4 B'!E35/'Tabel 4F B'!E35*100,"-")) -> 30 | F35: =IF(OR('Tabel 4F B'!F35<5, 'Tabel 4 B'!F35<0.5),"-",IFERROR('Tabel 4 B'!F35/'Tabel 4F B'!F35*100,"-")) -> - | G35: =IF(OR('Tabel 4F B'!G35<5, 'Tabel 4 B'!G35<0.5),"-",IFERROR('Tabel 4 B'!G35/'Tabel 4F B'!G35*100,"-")) -> - | I35: =IF(OR('Tabel 4F B'!I35<5, 'Tabel 4 B'!I35<0.5),"-",IFERROR('Tabel 4 B'!I35/'Tabel 4F B'!I35*100,"-")) -> 10.34482759
A36: HA | C36: =IF(OR('Tabel 4F B'!C36<5, 'Tabel 4 B'!C36<0.5),"-",IFERROR('Tabel 4 B'!C36/'Tabel 4F B'!C36*100,"-")) -> - | D36: =IF(OR('Tabel 4F B'!D36<5, 'Tabel 4 B'!D36<0.5),"-",IFERROR('Tabel 4 B'!D36/'Tabel 4F B'!D36*100,"-")) -> - | E36: =IF(OR('Tabel 4F B'!E36<5, 'Tabel 4 B'!E36<0.5),"-",IFERROR('Tabel 4 B'!E36/'Tabel 4F B'!E36*100,"-")) -> - | F36: =IF(OR('Tabel 4F B'!F36<5, 'Tabel 4 B'!F36<0.5),"-",IFERROR('Tabel 4 B'!F36/'Tabel 4F B'!F36*100,"-")) -> - | G36: =IF(OR('Tabel 4F B'!G36<5, 'Tabel 4 B'!G36<0.5),"-",IFERROR('Tabel 4 B'!G36/'Tabel 4F B'!G36*100,"-")) -> - | I36: =IF(OR('Tabel 4F B'!I36<5, 'Tabel 4 B'!I36<0.5),"-",IFERROR('Tabel 4 B'!I36/'Tabel 4F B'!I36*100,"-")) -> -
A37: HD | C37: =IF(OR('Tabel 4F B'!C37<5, 'Tabel 4 B'!C37<0.5),"-",IFERROR('Tabel 4 B'!C37/'Tabel 4F B'!C37*100,"-")) -> - | D37: =IF(OR('Tabel 4F B'!D37<5, 'Tabel 4 B'!D37<0.5),"-",IFERROR('Tabel 4 B'!D37/'Tabel 4F B'!D37*100,"-")) -> - | E37: =IF(OR('Tabel 4F B'!E37<5, 'Tabel 4 B'!E37<0.5),"-",IFERROR('Tabel 4 B'!E37/'Tabel 4F B'!E37*100,"-")) -> - | F37: =IF(OR('Tabel 4F B'!F37<5, 'Tabel 4 B'!F37<0.5),"-",IFERROR('Tabel 4 B'!F37/'Tabel 4F B'!F37*100,"-")) -> - | G37: =IF(OR('Tabel 4F B'!G37<5, 'Tabel 4 B'!G37<0.5),"-",IFERROR('Tabel 4 B'!G37/'Tabel 4F B'!G37*100,"-")) -> - | I37: =IF(OR('Tabel 4F B'!I37<5, 'Tabel 4 B'!I37<0.5),"-",IFERROR('Tabel 4 B'!I37/'Tabel 4F B'!I37*100,"-")) -> -
A38: Komm. og Sprog | C38: =IF(OR('Tabel 4F B'!C38<5, 'Tabel 4 B'!C38<0.5),"-",IFERROR('Tabel 4 B'!C38/'Tabel 4F B'!C38*100,"-")) -> - | D38: =IF(OR('Tabel 4F B'!D38<5, 'Tabel 4 B'!D38<0.5),"-",IFERROR('Tabel 4 B'!D38/'Tabel 4F B'!D38*100,"-")) -> 28.57142857 | E38: =IF(OR('Tabel 4F B'!E38<5, 'Tabel 4 B'!E38<0.5),"-",IFERROR('Tabel 4 B'!E38/'Tabel 4F B'!E38*100,"-")) -> - | F38: =IF(OR('Tabel 4F B'!F38<5, 'Tabel 4 B'!F38<0.5),"-",IFERROR('Tabel 4 B'!F38/'Tabel 4F B'!F38*100,"-")) -> - | G38: =IF(OR('Tabel 4F B'!G38<5, 'Tabel 4 B'!G38<0.5),"-",IFERROR('Tabel 4 B'!G38/'Tabel 4F B'!G38*100,"-")) -> - | I38: =IF(OR('Tabel 4F B'!I38<5, 'Tabel 4 B'!I38<0.5),"-",IFERROR('Tabel 4 B'!I38/'Tabel 4F B'!I38*100,"-")) -> 26.66666667
A39: Bygningskonst. | C39: =IF(OR('Tabel 4F B'!C39<5, 'Tabel 4 B'!C39<0.5),"-",IFERROR('Tabel 4 B'!C39/'Tabel 4F B'!C39*100,"-")) -> - | D39: =IF(OR('Tabel 4F B'!D39<5, 'Tabel 4 B'!D39<0.5),"-",IFERROR('Tabel 4 B'!D39/'Tabel 4F B'!D39*100,"-")) -> - | E39: =IF(OR('Tabel 4F B'!E39<5, 'Tabel 4 B'!E39<0.5),"-",IFERROR('Tabel 4 B'!E39/'Tabel 4F B'!E39*100,"-")) -> - | F39: =IF(OR('Tabel 4F B'!F39<5, 'Tabel 4 B'!F39<0.5),"-",IFERROR('Tabel 4 B'!F39/'Tabel 4F B'!F39*100,"-")) -> - | G39: =IF(OR('Tabel 4F B'!G39<5, 'Tabel 4 B'!G39<0.5),"-",IFERROR('Tabel 4 B'!G39/'Tabel 4F B'!G39*100,"-")) -> - | I39: =IF(OR('Tabel 4F B'!I39<5, 'Tabel 4 B'!I39<0.5),"-",IFERROR('Tabel 4 B'!I39/'Tabel 4F B'!I39*100,"-")) -> -
A40: Cand. IT. | C40: =IF(OR('Tabel 4F B'!C40<5, 'Tabel 4 B'!C40<0.5),"-",IFERROR('Tabel 4 B'!C40/'Tabel 4F B'!C40*100,"-")) -> - | D40: =IF(OR('Tabel 4F B'!D40<5, 'Tabel 4 B'!D40<0.5),"-",IFERROR('Tabel 4 B'!D40/'Tabel 4F B'!D40*100,"-")) -> - | E40: =IF(OR('Tabel 4F B'!E40<5, 'Tabel 4 B'!E40<0.5),"-",IFERROR('Tabel 4 B'!E40/'Tabel 4F B'!E40*100,"-")) -> - | F40: =IF(OR('Tabel 4F B'!F40<5, 'Tabel 4 B'!F40<0.5),"-",IFERROR('Tabel 4 B'!F40/'Tabel 4F B'!F40*100,"-")) -> - | G40: =IF(OR('Tabel 4F B'!G40<5, 'Tabel 4 B'!G40<0.5),"-",IFERROR('Tabel 4 B'!G40/'Tabel 4F B'!G40*100,"-")) -> - | I40: =IF(OR('Tabel 4F B'!I40<5, 'Tabel 4 B'!I40<0.5),"-",IFERROR('Tabel 4 B'!I40/'Tabel 4F B'!I40*100,"-")) -> -
A41: Bac. Samf. | C41: =IF(OR('Tabel 4F B'!C41<5, 'Tabel 4 B'!C41<0.5),"-",IFERROR('Tabel 4 B'!C41/'Tabel 4F B'!C41*100,"-")) -> - | D41: =IF(OR('Tabel 4F B'!D41<5, 'Tabel 4 B'!D41<0.5),"-",IFERROR('Tabel 4 B'!D41/'Tabel 4F B'!D41*100,"-")) -> - | E41: =IF(OR('Tabel 4F B'!E41<5, 'Tabel 4 B'!E41<0.5),"-",IFERROR('Tabel 4 B'!E41/'Tabel 4F B'!E41*100,"-")) -> - | F41: =IF(OR('Tabel 4F B'!F41<5, 'Tabel 4 B'!F41<0.5),"-",IFERROR('Tabel 4 B'!F41/'Tabel 4F B'!F41*100,"-")) -> - | G41: =IF(OR('Tabel 4F B'!G41<5, 'Tabel 4 B'!G41<0.5),"-",IFERROR('Tabel 4 B'!G41/'Tabel 4F B'!G41*100,"-")) -> - | I41: =IF(OR('Tabel 4F B'!I41<5, 'Tabel 4 B'!I41<0.5),"-",IFERROR('Tabel 4 B'!I41/'Tabel 4F B'!I41*100,"-")) -> -
A42: Bac. Hum. | C42: =IF(OR('Tabel 4F B'!C42<5, 'Tabel 4 B'!C42<0.5),"-",IFERROR('Tabel 4 B'!C42/'Tabel 4F B'!C42*100,"-")) -> - | D42: =IF(OR('Tabel 4F B'!D42<5, 'Tabel 4 B'!D42<0.5),"-",IFERROR('Tabel 4 B'!D42/'Tabel 4F B'!D42*100,"-")) -> - | E42: =IF(OR('Tabel 4F B'!E42<5, 'Tabel 4 B'!E42<0.5),"-",IFERROR('Tabel 4 B'!E42/'Tabel 4F B'!E42*100,"-")) -> - | F42: =IF(OR('Tabel 4F B'!F42<5, 'Tabel 4 B'!F42<0.5),"-",IFERROR('Tabel 4 B'!F42/'Tabel 4F B'!F42*100,"-")) -> - | G42: =IF(OR('Tabel 4F B'!G42<5, 'Tabel 4 B'!G42<0.5),"-",IFERROR('Tabel 4 B'!G42/'Tabel 4F B'!G42*100,"-")) -> - | I42: =IF(OR('Tabel 4F B'!I42<5, 'Tabel 4 B'!I42<0.5),"-",IFERROR('Tabel 4 B'!I42/'Tabel 4F B'!I42*100,"-")) -> 15.38461538
A43: Bac. Nat. | C43: =IF(OR('Tabel 4F B'!C43<5, 'Tabel 4 B'!C43<0.5),"-",IFERROR('Tabel 4 B'!C43/'Tabel 4F B'!C43*100,"-")) -> - | D43: =IF(OR('Tabel 4F B'!D43<5, 'Tabel 4 B'!D43<0.5),"-",IFERROR('Tabel 4 B'!D43/'Tabel 4F B'!D43*100,"-")) -> - | E43: =IF(OR('Tabel 4F B'!E43<5, 'Tabel 4 B'!E43<0.5),"-",IFERROR('Tabel 4 B'!E43/'Tabel 4F B'!E43*100,"-")) -> - | F43: =IF(OR('Tabel 4F B'!F43<5, 'Tabel 4 B'!F43<0.5),"-",IFERROR('Tabel 4 B'!F43/'Tabel 4F B'!F43*100,"-")) -> - | G43: =IF(OR('Tabel 4F B'!G43<5, 'Tabel 4 B'!G43<0.5),"-",IFERROR('Tabel 4 B'!G43/'Tabel 4F B'!G43*100,"-")) -> - | I43: =IF(OR('Tabel 4F B'!I43<5, 'Tabel 4 B'!I43<0.5),"-",IFERROR('Tabel 4 B'!I43/'Tabel 4F B'!I43*100,"-")) -> 20
A44: Andre | C44: =IF(OR('Tabel 4F B'!C44<5, 'Tabel 4 B'!C44<0.5),"-",IFERROR('Tabel 4 B'!C44/'Tabel 4F B'!C44*100,"-")) -> - | D44: =IF(OR('Tabel 4F B'!D44<5, 'Tabel 4 B'!D44<0.5),"-",IFERROR('Tabel 4 B'!D44/'Tabel 4F B'!D44*100,"-")) -> 10.52631579 | E44: =IF(OR('Tabel 4F B'!E44<5, 'Tabel 4 B'!E44<0.5),"-",IFERROR('Tabel 4 B'!E44/'Tabel 4F B'!E44*100,"-")) -> 19.23076923 | F44: =IF(OR('Tabel 4F B'!F44<5, 'Tabel 4 B'!F44<0.5),"-",IFERROR('Tabel 4 B'!F44/'Tabel 4F B'!F44*100,"-")) -> 5.714285714 | G44: =IF(OR('Tabel 4F B'!G44<5, 'Tabel 4 B'!G44<0.5),"-",IFERROR('Tabel 4 B'!G44/'Tabel 4F B'!G44*100,"-")) -> 8.695652174 | I44: =IF(OR('Tabel 4F B'!I44<5, 'Tabel 4 B'!I44<0.5),"-",IFERROR('Tabel 4 B'!I44/'Tabel 4F B'!I44*100,"-")) -> 10.28037383
A46: Total | C46: =IF(OR('Tabel 4F B'!C46<5, 'Tabel 4 B'!C46<0.5),"-",IFERROR('Tabel 4 B'!C46/'Tabel 4F B'!C46*100,"-")) -> 7.272727273 | D46: =IF(OR('Tabel 4F B'!D46<5, 'Tabel 4 B'!D46<0.5),"-",IFERROR('Tabel 4 B'!D46/'Tabel 4F B'!D46*100,"-")) -> 10.68376068 | E46: =IF(OR('Tabel 4F B'!E46<5, 'Tabel 4 B'!E46<0.5),"-",IFERROR('Tabel 4 B'!E46/'Tabel 4F B'!E46*100,"-")) -> 11.36363636 | F46: =IF(OR('Tabel 4F B'!F46<5, 'Tabel 4 B'!F46<0.5),"-",IFERROR('Tabel 4 B'!F46/'Tabel 4F B'!F46*100,"-")) -> 7.5 | G46: =IF(OR('Tabel 4F B'!G46<5, 'Tabel 4 B'!G46<0.5),"-",IFERROR('Tabel 4 B'!G46/'Tabel 4F B'!G46*100,"-")) -> 7.619047619 | I46: =IF(OR('Tabel 4F B'!I46<5, 'Tabel 4 B'!I46<0.5),"-",IFERROR('Tabel 4 B'!I46/'Tabel 4F B'!I46*100,"-")) -> 9.459459459
A48: Ingeniører i alt | C48: =IF(OR('Tabel 4F B'!C48<5, 'Tabel 4 B'!C48<0.5),"-",IFERROR('Tabel 4 B'!C48/'Tabel 4F B'!C48*100,"-")) -> - | D48: =IF(OR('Tabel 4F B'!D48<5, 'Tabel 4 B'!D48<0.5),"-",IFERROR('Tabel 4 B'!D48/'Tabel 4F B'!D48*100,"-")) -> 11.53846154 | E48: =IF(OR('Tabel 4F B'!E48<5, 'Tabel 4 B'!E48<0.5),"-",IFERROR('Tabel 4 B'!E48/'Tabel 4F B'!E48*100,"-")) -> 3.703703704 | F48: =IF(OR('Tabel 4F B'!F48<5, 'Tabel 4 B'!F48<0.5),"-",IFERROR('Tabel 4 B'!F48/'Tabel 4F B'!F48*100,"-")) -> 6.666666667 | G48: =IF(OR('Tabel 4F B'!G48<5, 'Tabel 4 B'!G48<0.5),"-",IFERROR('Tabel 4 B'!G48/'Tabel 4F B'!G48*100,"-")) -> - | I48: =IF(OR('Tabel 4F B'!I48<5, 'Tabel 4 B'!I48<0.5),"-",IFERROR('Tabel 4 B'!I48/'Tabel 4F B'!I48*100,"-")) -> 6.18556701
A49: Magistre i alt | C49: =IF(OR('Tabel 4F B'!C49<5, 'Tabel 4 B'!C49<0.5),"-",IFERROR('Tabel 4 B'!C49/'Tabel 4F B'!C49*100,"-")) -> 18.18181818 | D49: =IF(OR('Tabel 4F B'!D49<5, 'Tabel 4 B'!D49<0.5),"-",IFERROR('Tabel 4 B'!D49/'Tabel 4F B'!D49*100,"-")) -> 15.27777778 | E49: =IF(OR('Tabel 4F B'!E49<5, 'Tabel 4 B'!E49<0.5),"-",IFERROR('Tabel 4 B'!E49/'Tabel 4F B'!E49*100,"-")) -> 22.64150943 | F49: =IF(OR('Tabel 4F B'!F49<5, 'Tabel 4 B'!F49<0.5),"-",IFERROR('Tabel 4 B'!F49/'Tabel 4F B'!F49*100,"-")) -> 6.52173913 | G49: =IF(OR('Tabel 4F B'!G49<5, 'Tabel 4 B'!G49<0.5),"-",IFERROR('Tabel 4 B'!G49/'Tabel 4F B'!G49*100,"-")) -> 17.85714286 | I49: =IF(OR('Tabel 4F B'!I49<5, 'Tabel 4 B'!I49<0.5),"-",IFERROR('Tabel 4 B'!I49/'Tabel 4F B'!I49*100,"-")) -> 15.71428571
A50: DJØF'ere i alt | C50: =IF(OR('Tabel 4F B'!C50<5, 'Tabel 4 B'!C50<0.5),"-",IFERROR('Tabel 4 B'!C50/'Tabel 4F B'!C50*100,"-")) -> - | D50: =IF(OR('Tabel 4F B'!D50<5, 'Tabel 4 B'!D50<0.5),"-",IFERROR('Tabel 4 B'!D50/'Tabel 4F B'!D50*100,"-")) -> - | E50: =IF(OR('Tabel 4F B'!E50<5, 'Tabel 4 B'!E50<0.5),"-",IFERROR('Tabel 4 B'!E50/'Tabel 4F B'!E50*100,"-")) -> 9.090909091 | F50: =IF(OR('Tabel 4F B'!F50<5, 'Tabel 4 B'!F50<0.5),"-",IFERROR('Tabel 4 B'!F50/'Tabel 4F B'!F50*100,"-")) -> 5 | G50: =IF(OR('Tabel 4F B'!G50<5, 'Tabel 4 B'!G50<0.5),"-",IFERROR('Tabel 4 B'!G50/'Tabel 4F B'!G50*100,"-")) -> - | I50: =IF(OR('Tabel 4F B'!I50<5, 'Tabel 4 B'!I50<0.5),"-",IFERROR('Tabel 4 B'!I50/'Tabel 4F B'!I50*100,"-")) -> 4.47761194
A57: Bornholm
C59: Under 30 år | D59: 30 - 39 år | E59: 40 - 49 år | F59: 50 - 59 år | G59: Over 60 år | I59: I alt
A61: Civ. ing. | C61: =IF(OR('Tabel 4F B'!C61<5, 'Tabel 4 B'!C61<0.5),"-",IFERROR('Tabel 4 B'!C61/'Tabel 4F B'!C61*100,"-")) -> - | D61: =IF(OR('Tabel 4F B'!D61<5, 'Tabel 4 B'!D61<0.5),"-",IFERROR('Tabel 4 B'!D61/'Tabel 4F B'!D61*100,"-")) -> 15.38461538 | E61: =IF(OR('Tabel 4F B'!E61<5, 'Tabel 4 B'!E61<0.5),"-",IFERROR('Tabel 4 B'!E61/'Tabel 4F B'!E61*100,"-")) -> 11.11111111 | F61: =IF(OR('Tabel 4F B'!F61<5, 'Tabel 4 B'!F61<0.5),"-",IFERROR('Tabel 4 B'!F61/'Tabel 4F B'!F61*100,"-")) -> - | G61: =IF(OR('Tabel 4F B'!G61<5, 'Tabel 4 B'!G61<0.5),"-",IFERROR('Tabel 4 B'!G61/'Tabel 4F B'!G61*100,"-")) -> - | I61: =IF(OR('Tabel 4F B'!I61<5, 'Tabel 4 B'!I61<0.5),"-",IFERROR('Tabel 4 B'!I61/'Tabel 4F B'!I61*100,"-")) -> 8.823529412
A62: Diplom ing. | C62: =IF(OR('Tabel 4F B'!C62<5, 'Tabel 4 B'!C62<0.5),"-",IFERROR('Tabel 4 B'!C62/'Tabel 4F B'!C62*100,"-")) -> - | D62: =IF(OR('Tabel 4F B'!D62<5, 'Tabel 4 B'!D62<0.5),"-",IFERROR('Tabel 4 B'!D62/'Tabel 4F B'!D62*100,"-")) -> 7.692307692 | E62: =IF(OR('Tabel 4F B'!E62<5, 'Tabel 4 B'!E62<0.5),"-",IFERROR('Tabel 4 B'!E62/'Tabel 4F B'!E62*100,"-")) -> - | F62: =IF(OR('Tabel 4F B'!F62<5, 'Tabel 4 B'!F62<0.5),"-",IFERROR('Tabel 4 B'!F62/'Tabel 4F B'!F62*100,"-")) -> 9.090909091 | G62: =IF(OR('Tabel 4F B'!G62<5, 'Tabel 4 B'!G62<0.5),"-",IFERROR('Tabel 4 B'!G62/'Tabel 4F B'!G62*100,"-")) -> - | I62: =IF(OR('Tabel 4F B'!I62<5, 'Tabel 4 B'!I62<0.5),"-",IFERROR('Tabel 4 B'!I62/'Tabel 4F B'!I62*100,"-")) -> 4.761904762
A63: Cand. Scient. Tek | C63: =IF(OR('Tabel 4F B'!C63<5, 'Tabel 4 B'!C63<0.5),"-",IFERROR('Tabel 4 B'!C63/'Tabel 4F B'!C63*100,"-")) -> - | D63: =IF(OR('Tabel 4F B'!D63<5, 'Tabel 4 B'!D63<0.5),"-",IFERROR('Tabel 4 B'!D63/'Tabel 4F B'!D63*100,"-")) -> 23.52941176 | E63: =IF(OR('Tabel 4F B'!E63<5, 'Tabel 4 B'!E63<0.5),"-",IFERROR('Tabel 4 B'!E63/'Tabel 4F B'!E63*100,"-")) -> 16.66666667 | F63: =IF(OR('Tabel 4F B'!F63<5, 'Tabel 4 B'!F63<0.5),"-",IFERROR('Tabel 4 B'!F63/'Tabel 4F B'!F63*100,"-")) -> - | G63: =IF(OR('Tabel 4F B'!G63<5, 'Tabel 4 B'!G63<0.5),"-",IFERROR('Tabel 4 B'!G63/'Tabel 4F B'!G63*100,"-")) -> - | I63: =IF(OR('Tabel 4F B'!I63<5, 'Tabel 4 B'!I63<0.5),"-",IFERROR('Tabel 4 B'!I63/'Tabel 4F B'!I63*100,"-")) -> 20.68965517
A64: MA. Hum. | C64: =IF(OR('Tabel 4F B'!C64<5, 'Tabel 4 B'!C64<0.5),"-",IFERROR('Tabel 4 B'!C64/'Tabel 4F B'!C64*100,"-")) -> 33.33333333 | D64: =IF(OR('Tabel 4F B'!D64<5, 'Tabel 4 B'!D64<0.5),"-",IFERROR('Tabel 4 B'!D64/'Tabel 4F B'!D64*100,"-")) -> 14.81481481 | E64: =IF(OR('Tabel 4F B'!E64<5, 'Tabel 4 B'!E64<0.5),"-",IFERROR('Tabel 4 B'!E64/'Tabel 4F B'!E64*100,"-")) -> 25.92592593 | F64: =IF(OR('Tabel 4F B'!F64<5, 'Tabel 4 B'!F64<0.5),"-",IFERROR('Tabel 4 B'!F64/'Tabel 4F B'!F64*100,"-")) -> 5 | G64: =IF(OR('Tabel 4F B'!G64<5, 'Tabel 4 B'!G64<0.5),"-",IFERROR('Tabel 4 B'!G64/'Tabel 4F B'!G64*100,"-")) -> 23.52941176 | I64: =IF(OR('Tabel 4F B'!I64<5, 'Tabel 4 B'!I64<0.5),"-",IFERROR('Tabel 4 B'!I64/'Tabel 4F B'!I64*100,"-")) -> 17.74193548
A65: MA. Nat. | C65: =IF(OR('Tabel 4F B'!C65<5, 'Tabel 4 B'!C65<0.5),"-",IFERROR('Tabel 4 B'!C65/'Tabel 4F B'!C65*100,"-")) -> - | D65: =IF(OR('Tabel 4F B'!D65<5, 'Tabel 4 B'!D65<0.5),"-",IFERROR('Tabel 4 B'!D65/'Tabel 4F B'!D65*100,"-")) -> - | E65: =IF(OR('Tabel 4F B'!E65<5, 'Tabel 4 B'!E65<0.5),"-",IFERROR('Tabel 4 B'!E65/'Tabel 4F B'!E65*100,"-")) -> 11.76470588 | F65: =IF(OR('Tabel 4F B'!F65<5, 'Tabel 4 B'!F65<0.5),"-",IFERROR('Tabel 4 B'!F65/'Tabel 4F B'!F65*100,"-")) -> - | G65: =IF(OR('Tabel 4F B'!G65<5, 'Tabel 4 B'!G65<0.5),"-",IFERROR('Tabel 4 B'!G65/'Tabel 4F B'!G65*100,"-")) -> 16.66666667 | I65: =IF(OR('Tabel 4F B'!I65<5, 'Tabel 4 B'!I65<0.5),"-",IFERROR('Tabel 4 B'!I65/'Tabel 4F B'!I65*100,"-")) -> 6.52173913
A66: MA. Ph.d. | C66: =IF(OR('Tabel 4F B'!C66<5, 'Tabel 4 B'!C66<0.5),"-",IFERROR('Tabel 4 B'!C66/'Tabel 4F B'!C66*100,"-")) -> - | D66: =IF(OR('Tabel 4F B'!D66<5, 'Tabel 4 B'!D66<0.5),"-",IFERROR('Tabel 4 B'!D66/'Tabel 4F B'!D66*100,"-")) -> - | E66: =IF(OR('Tabel 4F B'!E66<5, 'Tabel 4 B'!E66<0.5),"-",IFERROR('Tabel 4 B'!E66/'Tabel 4F B'!E66*100,"-")) -> - | F66: =IF(OR('Tabel 4F B'!F66<5, 'Tabel 4 B'!F66<0.5),"-",IFERROR('Tabel 4 B'!F66/'Tabel 4F B'!F66*100,"-")) -> - | G66: =IF(OR('Tabel 4F B'!G66<5, 'Tabel 4 B'!G66<0.5),"-",IFERROR('Tabel 4 B'!G66/'Tabel 4F B'!G66*100,"-")) -> - | I66: =IF(OR('Tabel 4F B'!I66<5, 'Tabel 4 B'!I66<0.5),"-",IFERROR('Tabel 4 B'!I66/'Tabel 4F B'!I66*100,"-")) -> 14.28571429
A67: MA. Samf. | C67: =IF(OR('Tabel 4F B'!C67<5, 'Tabel 4 B'!C67<0.5),"-",IFERROR('Tabel 4 B'!C67/'Tabel 4F B'!C67*100,"-")) -> - | D67: =IF(OR('Tabel 4F B'!D67<5, 'Tabel 4 B'!D67<0.5),"-",IFERROR('Tabel 4 B'!D67/'Tabel 4F B'!D67*100,"-")) -> - | E67: =IF(OR('Tabel 4F B'!E67<5, 'Tabel 4 B'!E67<0.5),"-",IFERROR('Tabel 4 B'!E67/'Tabel 4F B'!E67*100,"-")) -> - | F67: =IF(OR('Tabel 4F B'!F67<5, 'Tabel 4 B'!F67<0.5),"-",IFERROR('Tabel 4 B'!F67/'Tabel 4F B'!F67*100,"-")) -> - | G67: =IF(OR('Tabel 4F B'!G67<5, 'Tabel 4 B'!G67<0.5),"-",IFERROR('Tabel 4 B'!G67/'Tabel 4F B'!G67*100,"-")) -> - | I67: =IF(OR('Tabel 4F B'!I67<5, 'Tabel 4 B'!I67<0.5),"-",IFERROR('Tabel 4 B'!I67/'Tabel 4F B'!I67*100,"-")) -> 12.5
A68: Øvrige Mag. | C68: =IF(OR('Tabel 4F B'!C68<5, 'Tabel 4 B'!C68<0.5),"-",IFERROR('Tabel 4 B'!C68/'Tabel 4F B'!C68*100,"-")) -> - | D68: =IF(OR('Tabel 4F B'!D68<5, 'Tabel 4 B'!D68<0.5),"-",IFERROR('Tabel 4 B'!D68/'Tabel 4F B'!D68*100,"-")) -> 50 | E68: =IF(OR('Tabel 4F B'!E68<5, 'Tabel 4 B'!E68<0.5),"-",IFERROR('Tabel 4 B'!E68/'Tabel 4F B'!E68*100,"-")) -> 40 | F68: =IF(OR('Tabel 4F B'!F68<5, 'Tabel 4 B'!F68<0.5),"-",IFERROR('Tabel 4 B'!F68/'Tabel 4F B'!F68*100,"-")) -> - | G68: =IF(OR('Tabel 4F B'!G68<5, 'Tabel 4 B'!G68<0.5),"-",IFERROR('Tabel 4 B'!G68/'Tabel 4F B'!G68*100,"-")) -> - | I68: =IF(OR('Tabel 4F B'!I68<5, 'Tabel 4 B'!I68<0.5),"-",IFERROR('Tabel 4 B'!I68/'Tabel 4F B'!I68*100,"-")) -> 29.41176471
A69: Agronom | C69: =IF(OR('Tabel 4F B'!C69<5, 'Tabel 4 B'!C69<0.5),"-",IFERROR('Tabel 4 B'!C69/'Tabel 4F B'!C69*100,"-")) -> - | D69: =IF(OR('Tabel 4F B'!D69<5, 'Tabel 4 B'!D69<0.5),"-",IFERROR('Tabel 4 B'!D69/'Tabel 4F B'!D69*100,"-")) -> - | E69: =IF(OR('Tabel 4F B'!E69<5, 'Tabel 4 B'!E69<0.5),"-",IFERROR('Tabel 4 B'!E69/'Tabel 4F B'!E69*100,"-")) -> - | F69: =IF(OR('Tabel 4F B'!F69<5, 'Tabel 4 B'!F69<0.5),"-",IFERROR('Tabel 4 B'!F69/'Tabel 4F B'!F69*100,"-")) -> - | G69: =IF(OR('Tabel 4F B'!G69<5, 'Tabel 4 B'!G69<0.5),"-",IFERROR('Tabel 4 B'!G69/'Tabel 4F B'!G69*100,"-")) -> - | I69: =IF(OR('Tabel 4F B'!I69<5, 'Tabel 4 B'!I69<0.5),"-",IFERROR('Tabel 4 B'!I69/'Tabel 4F B'!I69*100,"-")) -> -
A70: Landsk. Arkt. | C70: =IF(OR('Tabel 4F B'!C70<5, 'Tabel 4 B'!C70<0.5),"-",IFERROR('Tabel 4 B'!C70/'Tabel 4F B'!C70*100,"-")) -> - | D70: =IF(OR('Tabel 4F B'!D70<5, 'Tabel 4 B'!D70<0.5),"-",IFERROR('Tabel 4 B'!D70/'Tabel 4F B'!D70*100,"-")) -> - | E70: =IF(OR('Tabel 4F B'!E70<5, 'Tabel 4 B'!E70<0.5),"-",IFERROR('Tabel 4 B'!E70/'Tabel 4F B'!E70*100,"-")) -> - | F70: =IF(OR('Tabel 4F B'!F70<5, 'Tabel 4 B'!F70<0.5),"-",IFERROR('Tabel 4 B'!F70/'Tabel 4F B'!F70*100,"-")) -> - | G70: =IF(OR('Tabel 4F B'!G70<5, 'Tabel 4 B'!G70<0.5),"-",IFERROR('Tabel 4 B'!G70/'Tabel 4F B'!G70*100,"-")) -> - | I70: =IF(OR('Tabel 4F B'!I70<5, 'Tabel 4 B'!I70<0.5),"-",IFERROR('Tabel 4 B'!I70/'Tabel 4F B'!I70*100,"-")) -> -
A71: Hortonom | C71: =IF(OR('Tabel 4F B'!C71<5, 'Tabel 4 B'!C71<0.5),"-",IFERROR('Tabel 4 B'!C71/'Tabel 4F B'!C71*100,"-")) -> - | D71: =IF(OR('Tabel 4F B'!D71<5, 'Tabel 4 B'!D71<0.5),"-",IFERROR('Tabel 4 B'!D71/'Tabel 4F B'!D71*100,"-")) -> - | E71: =IF(OR('Tabel 4F B'!E71<5, 'Tabel 4 B'!E71<0.5),"-",IFERROR('Tabel 4 B'!E71/'Tabel 4F B'!E71*100,"-")) -> - | F71: =IF(OR('Tabel 4F B'!F71<5, 'Tabel 4 B'!F71<0.5),"-",IFERROR('Tabel 4 B'!F71/'Tabel 4F B'!F71*100,"-")) -> - | G71: =IF(OR('Tabel 4F B'!G71<5, 'Tabel 4 B'!G71<0.5),"-",IFERROR('Tabel 4 B'!G71/'Tabel 4F B'!G71*100,"-")) -> - | I71: =IF(OR('Tabel 4F B'!I71<5, 'Tabel 4 B'!I71<0.5),"-",IFERROR('Tabel 4 B'!I71/'Tabel 4F B'!I71*100,"-")) -> -
A72: Forstkand. | C72: =IF(OR('Tabel 4F B'!C72<5, 'Tabel 4 B'!C72<0.5),"-",IFERROR('Tabel 4 B'!C72/'Tabel 4F B'!C72*100,"-")) -> - | D72: =IF(OR('Tabel 4F B'!D72<5, 'Tabel 4 B'!D72<0.5),"-",IFERROR('Tabel 4 B'!D72/'Tabel 4F B'!D72*100,"-")) -> - | E72: =IF(OR('Tabel 4F B'!E72<5, 'Tabel 4 B'!E72<0.5),"-",IFERROR('Tabel 4 B'!E72/'Tabel 4F B'!E72*100,"-")) -> - | F72: =IF(OR('Tabel 4F B'!F72<5, 'Tabel 4 B'!F72<0.5),"-",IFERROR('Tabel 4 B'!F72/'Tabel 4F B'!F72*100,"-")) -> - | G72: =IF(OR('Tabel 4F B'!G72<5, 'Tabel 4 B'!G72<0.5),"-",IFERROR('Tabel 4 B'!G72/'Tabel 4F B'!G72*100,"-")) -> - | I72: =IF(OR('Tabel 4F B'!I72<5, 'Tabel 4 B'!I72<0.5),"-",IFERROR('Tabel 4 B'!I72/'Tabel 4F B'!I72*100,"-")) -> -
A73: Jordbrugsakad. | C73: =IF(OR('Tabel 4F B'!C73<5, 'Tabel 4 B'!C73<0.5),"-",IFERROR('Tabel 4 B'!C73/'Tabel 4F B'!C73*100,"-")) -> - | D73: =IF(OR('Tabel 4F B'!D73<5, 'Tabel 4 B'!D73<0.5),"-",IFERROR('Tabel 4 B'!D73/'Tabel 4F B'!D73*100,"-")) -> - | E73: =IF(OR('Tabel 4F B'!E73<5, 'Tabel 4 B'!E73<0.5),"-",IFERROR('Tabel 4 B'!E73/'Tabel 4F B'!E73*100,"-")) -> - | F73: =IF(OR('Tabel 4F B'!F73<5, 'Tabel 4 B'!F73<0.5),"-",IFERROR('Tabel 4 B'!F73/'Tabel 4F B'!F73*100,"-")) -> - | G73: =IF(OR('Tabel 4F B'!G73<5, 'Tabel 4 B'!G73<0.5),"-",IFERROR('Tabel 4 B'!G73/'Tabel 4F B'!G73*100,"-")) -> - | I73: =IF(OR('Tabel 4F B'!I73<5, 'Tabel 4 B'!I73<0.5),"-",IFERROR('Tabel 4 B'!I73/'Tabel 4F B'!I73*100,"-")) -> -
A74: Mejeriing. | C74: =IF(OR('Tabel 4F B'!C74<5, 'Tabel 4 B'!C74<0.5),"-",IFERROR('Tabel 4 B'!C74/'Tabel 4F B'!C74*100,"-")) -> - | D74: =IF(OR('Tabel 4F B'!D74<5, 'Tabel 4 B'!D74<0.5),"-",IFERROR('Tabel 4 B'!D74/'Tabel 4F B'!D74*100,"-")) -> - | E74: =IF(OR('Tabel 4F B'!E74<5, 'Tabel 4 B'!E74<0.5),"-",IFERROR('Tabel 4 B'!E74/'Tabel 4F B'!E74*100,"-")) -> - | F74: =IF(OR('Tabel 4F B'!F74<5, 'Tabel 4 B'!F74<0.5),"-",IFERROR('Tabel 4 B'!F74/'Tabel 4F B'!F74*100,"-")) -> - | G74: =IF(OR('Tabel 4F B'!G74<5, 'Tabel 4 B'!G74<0.5),"-",IFERROR('Tabel 4 B'!G74/'Tabel 4F B'!G74*100,"-")) -> - | I74: =IF(OR('Tabel 4F B'!I74<5, 'Tabel 4 B'!I74<0.5),"-",IFERROR('Tabel 4 B'!I74/'Tabel 4F B'!I74*100,"-")) -> -
A75: Levn.m.kand. | C75: =IF(OR('Tabel 4F B'!C75<5, 'Tabel 4 B'!C75<0.5),"-",IFERROR('Tabel 4 B'!C75/'Tabel 4F B'!C75*100,"-")) -> - | D75: =IF(OR('Tabel 4F B'!D75<5, 'Tabel 4 B'!D75<0.5),"-",IFERROR('Tabel 4 B'!D75/'Tabel 4F B'!D75*100,"-")) -> - | E75: =IF(OR('Tabel 4F B'!E75<5, 'Tabel 4 B'!E75<0.5),"-",IFERROR('Tabel 4 B'!E75/'Tabel 4F B'!E75*100,"-")) -> - | F75: =IF(OR('Tabel 4F B'!F75<5, 'Tabel 4 B'!F75<0.5),"-",IFERROR('Tabel 4 B'!F75/'Tabel 4F B'!F75*100,"-")) -> - | G75: =IF(OR('Tabel 4F B'!G75<5, 'Tabel 4 B'!G75<0.5),"-",IFERROR('Tabel 4 B'!G75/'Tabel 4F B'!G75*100,"-")) -> - | I75: =IF(OR('Tabel 4F B'!I75<5, 'Tabel 4 B'!I75<0.5),"-",IFERROR('Tabel 4 B'!I75/'Tabel 4F B'!I75*100,"-")) -> -
A76: Dyrlæge | C76: =IF(OR('Tabel 4F B'!C76<5, 'Tabel 4 B'!C76<0.5),"-",IFERROR('Tabel 4 B'!C76/'Tabel 4F B'!C76*100,"-")) -> - | D76: =IF(OR('Tabel 4F B'!D76<5, 'Tabel 4 B'!D76<0.5),"-",IFERROR('Tabel 4 B'!D76/'Tabel 4F B'!D76*100,"-")) -> - | E76: =IF(OR('Tabel 4F B'!E76<5, 'Tabel 4 B'!E76<0.5),"-",IFERROR('Tabel 4 B'!E76/'Tabel 4F B'!E76*100,"-")) -> - | F76: =IF(OR('Tabel 4F B'!F76<5, 'Tabel 4 B'!F76<0.5),"-",IFERROR('Tabel 4 B'!F76/'Tabel 4F B'!F76*100,"-")) -> - | G76: =IF(OR('Tabel 4F B'!G76<5, 'Tabel 4 B'!G76<0.5),"-",IFERROR('Tabel 4 B'!G76/'Tabel 4F B'!G76*100,"-")) -> - | I76: =IF(OR('Tabel 4F B'!I76<5, 'Tabel 4 B'!I76<0.5),"-",IFERROR('Tabel 4 B'!I76/'Tabel 4F B'!I76*100,"-")) -> 7.142857143
A77: Farmaceut | C77: =IF(OR('Tabel 4F B'!C77<5, 'Tabel 4 B'!C77<0.5),"-",IFERROR('Tabel 4 B'!C77/'Tabel 4F B'!C77*100,"-")) -> - | D77: =IF(OR('Tabel 4F B'!D77<5, 'Tabel 4 B'!D77<0.5),"-",IFERROR('Tabel 4 B'!D77/'Tabel 4F B'!D77*100,"-")) -> - | E77: =IF(OR('Tabel 4F B'!E77<5, 'Tabel 4 B'!E77<0.5),"-",IFERROR('Tabel 4 B'!E77/'Tabel 4F B'!E77*100,"-")) -> - | F77: =IF(OR('Tabel 4F B'!F77<5, 'Tabel 4 B'!F77<0.5),"-",IFERROR('Tabel 4 B'!F77/'Tabel 4F B'!F77*100,"-")) -> - | G77: =IF(OR('Tabel 4F B'!G77<5, 'Tabel 4 B'!G77<0.5),"-",IFERROR('Tabel 4 B'!G77/'Tabel 4F B'!G77*100,"-")) -> - | I77: =IF(OR('Tabel 4F B'!I77<5, 'Tabel 4 B'!I77<0.5),"-",IFERROR('Tabel 4 B'!I77/'Tabel 4F B'!I77*100,"-")) -> -
A78: Læge | C78: =IF(OR('Tabel 4F B'!C78<5, 'Tabel 4 B'!C78<0.5),"-",IFERROR('Tabel 4 B'!C78/'Tabel 4F B'!C78*100,"-")) -> 12.5 | D78: =IF(OR('Tabel 4F B'!D78<5, 'Tabel 4 B'!D78<0.5),"-",IFERROR('Tabel 4 B'!D78/'Tabel 4F B'!D78*100,"-")) -> - | E78: =IF(OR('Tabel 4F B'!E78<5, 'Tabel 4 B'!E78<0.5),"-",IFERROR('Tabel 4 B'!E78/'Tabel 4F B'!E78*100,"-")) -> - | F78: =IF(OR('Tabel 4F B'!F78<5, 'Tabel 4 B'!F78<0.5),"-",IFERROR('Tabel 4 B'!F78/'Tabel 4F B'!F78*100,"-")) -> - | G78: =IF(OR('Tabel 4F B'!G78<5, 'Tabel 4 B'!G78<0.5),"-",IFERROR('Tabel 4 B'!G78/'Tabel 4F B'!G78*100,"-")) -> - | I78: =IF(OR('Tabel 4F B'!I78<5, 'Tabel 4 B'!I78<0.5),"-",IFERROR('Tabel 4 B'!I78/'Tabel 4F B'!I78*100,"-")) -> 3.125
A79: Tandlæge | C79: =IF(OR('Tabel 4F B'!C79<5, 'Tabel 4 B'!C79<0.5),"-",IFERROR('Tabel 4 B'!C79/'Tabel 4F B'!C79*100,"-")) -> - | D79: =IF(OR('Tabel 4F B'!D79<5, 'Tabel 4 B'!D79<0.5),"-",IFERROR('Tabel 4 B'!D79/'Tabel 4F B'!D79*100,"-")) -> - | E79: =IF(OR('Tabel 4F B'!E79<5, 'Tabel 4 B'!E79<0.5),"-",IFERROR('Tabel 4 B'!E79/'Tabel 4F B'!E79*100,"-")) -> - | F79: =IF(OR('Tabel 4F B'!F79<5, 'Tabel 4 B'!F79<0.5),"-",IFERROR('Tabel 4 B'!F79/'Tabel 4F B'!F79*100,"-")) -> - | G79: =IF(OR('Tabel 4F B'!G79<5, 'Tabel 4 B'!G79<0.5),"-",IFERROR('Tabel 4 B'!G79/'Tabel 4F B'!G79*100,"-")) -> - | I79: =IF(OR('Tabel 4F B'!I79<5, 'Tabel 4 B'!I79<0.5),"-",IFERROR('Tabel 4 B'!I79/'Tabel 4F B'!I79*100,"-")) -> -
A80: Arkitekt | C80: =IF(OR('Tabel 4F B'!C80<5, 'Tabel 4 B'!C80<0.5),"-",IFERROR('Tabel 4 B'!C80/'Tabel 4F B'!C80*100,"-")) -> - | D80: =IF(OR('Tabel 4F B'!D80<5, 'Tabel 4 B'!D80<0.5),"-",IFERROR('Tabel 4 B'!D80/'Tabel 4F B'!D80*100,"-")) -> - | E80: =IF(OR('Tabel 4F B'!E80<5, 'Tabel 4 B'!E80<0.5),"-",IFERROR('Tabel 4 B'!E80/'Tabel 4F B'!E80*100,"-")) -> - | F80: =IF(OR('Tabel 4F B'!F80<5, 'Tabel 4 B'!F80<0.5),"-",IFERROR('Tabel 4 B'!F80/'Tabel 4F B'!F80*100,"-")) -> - | G80: =IF(OR('Tabel 4F B'!G80<5, 'Tabel 4 B'!G80<0.5),"-",IFERROR('Tabel 4 B'!G80/'Tabel 4F B'!G80*100,"-")) -> - | I80: =IF(OR('Tabel 4F B'!I80<5, 'Tabel 4 B'!I80<0.5),"-",IFERROR('Tabel 4 B'!I80/'Tabel 4F B'!I80*100,"-")) -> 7.142857143
A81: Landinspek. | C81: =IF(OR('Tabel 4F B'!C81<5, 'Tabel 4 B'!C81<0.5),"-",IFERROR('Tabel 4 B'!C81/'Tabel 4F B'!C81*100,"-")) -> - | D81: =IF(OR('Tabel 4F B'!D81<5, 'Tabel 4 B'!D81<0.5),"-",IFERROR('Tabel 4 B'!D81/'Tabel 4F B'!D81*100,"-")) -> - | E81: =IF(OR('Tabel 4F B'!E81<5, 'Tabel 4 B'!E81<0.5),"-",IFERROR('Tabel 4 B'!E81/'Tabel 4F B'!E81*100,"-")) -> - | F81: =IF(OR('Tabel 4F B'!F81<5, 'Tabel 4 B'!F81<0.5),"-",IFERROR('Tabel 4 B'!F81/'Tabel 4F B'!F81*100,"-")) -> - | G81: =IF(OR('Tabel 4F B'!G81<5, 'Tabel 4 B'!G81<0.5),"-",IFERROR('Tabel 4 B'!G81/'Tabel 4F B'!G81*100,"-")) -> - | I81: =IF(OR('Tabel 4F B'!I81<5, 'Tabel 4 B'!I81<0.5),"-",IFERROR('Tabel 4 B'!I81/'Tabel 4F B'!I81*100,"-")) -> -
A82: Bibliotekar | C82: =IF(OR('Tabel 4F B'!C82<5, 'Tabel 4 B'!C82<0.5),"-",IFERROR('Tabel 4 B'!C82/'Tabel 4F B'!C82*100,"-")) -> - | D82: =IF(OR('Tabel 4F B'!D82<5, 'Tabel 4 B'!D82<0.5),"-",IFERROR('Tabel 4 B'!D82/'Tabel 4F B'!D82*100,"-")) -> - | E82: =IF(OR('Tabel 4F B'!E82<5, 'Tabel 4 B'!E82<0.5),"-",IFERROR('Tabel 4 B'!E82/'Tabel 4F B'!E82*100,"-")) -> - | F82: =IF(OR('Tabel 4F B'!F82<5, 'Tabel 4 B'!F82<0.5),"-",IFERROR('Tabel 4 B'!F82/'Tabel 4F B'!F82*100,"-")) -> - | G82: =IF(OR('Tabel 4F B'!G82<5, 'Tabel 4 B'!G82<0.5),"-",IFERROR('Tabel 4 B'!G82/'Tabel 4F B'!G82*100,"-")) -> - | I82: =IF(OR('Tabel 4F B'!I82<5, 'Tabel 4 B'!I82<0.5),"-",IFERROR('Tabel 4 B'!I82/'Tabel 4F B'!I82*100,"-")) -> 6.666666667
A83: Musikudd. | C83: =IF(OR('Tabel 4F B'!C83<5, 'Tabel 4 B'!C83<0.5),"-",IFERROR('Tabel 4 B'!C83/'Tabel 4F B'!C83*100,"-")) -> - | D83: =IF(OR('Tabel 4F B'!D83<5, 'Tabel 4 B'!D83<0.5),"-",IFERROR('Tabel 4 B'!D83/'Tabel 4F B'!D83*100,"-")) -> - | E83: =IF(OR('Tabel 4F B'!E83<5, 'Tabel 4 B'!E83<0.5),"-",IFERROR('Tabel 4 B'!E83/'Tabel 4F B'!E83*100,"-")) -> - | F83: =IF(OR('Tabel 4F B'!F83<5, 'Tabel 4 B'!F83<0.5),"-",IFERROR('Tabel 4 B'!F83/'Tabel 4F B'!F83*100,"-")) -> - | G83: =IF(OR('Tabel 4F B'!G83<5, 'Tabel 4 B'!G83<0.5),"-",IFERROR('Tabel 4 B'!G83/'Tabel 4F B'!G83*100,"-")) -> - | I83: =IF(OR('Tabel 4F B'!I83<5, 'Tabel 4 B'!I83<0.5),"-",IFERROR('Tabel 4 B'!I83/'Tabel 4F B'!I83*100,"-")) -> -
A84: Teolog | C84: =IF(OR('Tabel 4F B'!C84<5, 'Tabel 4 B'!C84<0.5),"-",IFERROR('Tabel 4 B'!C84/'Tabel 4F B'!C84*100,"-")) -> - | D84: =IF(OR('Tabel 4F B'!D84<5, 'Tabel 4 B'!D84<0.5),"-",IFERROR('Tabel 4 B'!D84/'Tabel 4F B'!D84*100,"-")) -> - | E84: =IF(OR('Tabel 4F B'!E84<5, 'Tabel 4 B'!E84<0.5),"-",IFERROR('Tabel 4 B'!E84/'Tabel 4F B'!E84*100,"-")) -> - | F84: =IF(OR('Tabel 4F B'!F84<5, 'Tabel 4 B'!F84<0.5),"-",IFERROR('Tabel 4 B'!F84/'Tabel 4F B'!F84*100,"-")) -> - | G84: =IF(OR('Tabel 4F B'!G84<5, 'Tabel 4 B'!G84<0.5),"-",IFERROR('Tabel 4 B'!G84/'Tabel 4F B'!G84*100,"-")) -> - | I84: =IF(OR('Tabel 4F B'!I84<5, 'Tabel 4 B'!I84<0.5),"-",IFERROR('Tabel 4 B'!I84/'Tabel 4F B'!I84*100,"-")) -> -
A85: Psykolog | C85: =IF(OR('Tabel 4F B'!C85<5, 'Tabel 4 B'!C85<0.5),"-",IFERROR('Tabel 4 B'!C85/'Tabel 4F B'!C85*100,"-")) -> - | D85: =IF(OR('Tabel 4F B'!D85<5, 'Tabel 4 B'!D85<0.5),"-",IFERROR('Tabel 4 B'!D85/'Tabel 4F B'!D85*100,"-")) -> 14.28571429 | E85: =IF(OR('Tabel 4F B'!E85<5, 'Tabel 4 B'!E85<0.5),"-",IFERROR('Tabel 4 B'!E85/'Tabel 4F B'!E85*100,"-")) -> 7.142857143 | F85: =IF(OR('Tabel 4F B'!F85<5, 'Tabel 4 B'!F85<0.5),"-",IFERROR('Tabel 4 B'!F85/'Tabel 4F B'!F85*100,"-")) -> - | G85: =IF(OR('Tabel 4F B'!G85<5, 'Tabel 4 B'!G85<0.5),"-",IFERROR('Tabel 4 B'!G85/'Tabel 4F B'!G85*100,"-")) -> - | I85: =IF(OR('Tabel 4F B'!I85<5, 'Tabel 4 B'!I85<0.5),"-",IFERROR('Tabel 4 B'!I85/'Tabel 4F B'!I85*100,"-")) -> 6.666666667
A86: Jurist | C86: =IF(OR('Tabel 4F B'!C86<5, 'Tabel 4 B'!C86<0.5),"-",IFERROR('Tabel 4 B'!C86/'Tabel 4F B'!C86*100,"-")) -> - | D86: =IF(OR('Tabel 4F B'!D86<5, 'Tabel 4 B'!D86<0.5),"-",IFERROR('Tabel 4 B'!D86/'Tabel 4F B'!D86*100,"-")) -> - | E86: =IF(OR('Tabel 4F B'!E86<5, 'Tabel 4 B'!E86<0.5),"-",IFERROR('Tabel 4 B'!E86/'Tabel 4F B'!E86*100,"-")) -> - | F86: =IF(OR('Tabel 4F B'!F86<5, 'Tabel 4 B'!F86<0.5),"-",IFERROR('Tabel 4 B'!F86/'Tabel 4F B'!F86*100,"-")) -> - | G86: =IF(OR('Tabel 4F B'!G86<5, 'Tabel 4 B'!G86<0.5),"-",IFERROR('Tabel 4 B'!G86/'Tabel 4F B'!G86*100,"-")) -> - | I86: =IF(OR('Tabel 4F B'!I86<5, 'Tabel 4 B'!I86<0.5),"-",IFERROR('Tabel 4 B'!I86/'Tabel 4F B'!I86*100,"-")) -> -
A87: Økonom | C87: =IF(OR('Tabel 4F B'!C87<5, 'Tabel 4 B'!C87<0.5),"-",IFERROR('Tabel 4 B'!C87/'Tabel 4F B'!C87*100,"-")) -> - | D87: =IF(OR('Tabel 4F B'!D87<5, 'Tabel 4 B'!D87<0.5),"-",IFERROR('Tabel 4 B'!D87/'Tabel 4F B'!D87*100,"-")) -> - | E87: =IF(OR('Tabel 4F B'!E87<5, 'Tabel 4 B'!E87<0.5),"-",IFERROR('Tabel 4 B'!E87/'Tabel 4F B'!E87*100,"-")) -> - | F87: =IF(OR('Tabel 4F B'!F87<5, 'Tabel 4 B'!F87<0.5),"-",IFERROR('Tabel 4 B'!F87/'Tabel 4F B'!F87*100,"-")) -> - | G87: =IF(OR('Tabel 4F B'!G87<5, 'Tabel 4 B'!G87<0.5),"-",IFERROR('Tabel 4 B'!G87/'Tabel 4F B'!G87*100,"-")) -> - | I87: =IF(OR('Tabel 4F B'!I87<5, 'Tabel 4 B'!I87<0.5),"-",IFERROR('Tabel 4 B'!I87/'Tabel 4F B'!I87*100,"-")) -> -
A88: Samf. Adm. | C88: =IF(OR('Tabel 4F B'!C88<5, 'Tabel 4 B'!C88<0.5),"-",IFERROR('Tabel 4 B'!C88/'Tabel 4F B'!C88*100,"-")) -> - | D88: =IF(OR('Tabel 4F B'!D88<5, 'Tabel 4 B'!D88<0.5),"-",IFERROR('Tabel 4 B'!D88/'Tabel 4F B'!D88*100,"-")) -> - | E88: =IF(OR('Tabel 4F B'!E88<5, 'Tabel 4 B'!E88<0.5),"-",IFERROR('Tabel 4 B'!E88/'Tabel 4F B'!E88*100,"-")) -> 4.761904762 | F88: =IF(OR('Tabel 4F B'!F88<5, 'Tabel 4 B'!F88<0.5),"-",IFERROR('Tabel 4 B'!F88/'Tabel 4F B'!F88*100,"-")) -> 20 | G88: =IF(OR('Tabel 4F B'!G88<5, 'Tabel 4 B'!G88<0.5),"-",IFERROR('Tabel 4 B'!G88/'Tabel 4F B'!G88*100,"-")) -> - | I88: =IF(OR('Tabel 4F B'!I88<5, 'Tabel 4 B'!I88<0.5),"-",IFERROR('Tabel 4 B'!I88/'Tabel 4F B'!I88*100,"-")) -> 5.769230769
A89: Cand. Merc. | C89: =IF(OR('Tabel 4F B'!C89<5, 'Tabel 4 B'!C89<0.5),"-",IFERROR('Tabel 4 B'!C89/'Tabel 4F B'!C89*100,"-")) -> - | D89: =IF(OR('Tabel 4F B'!D89<5, 'Tabel 4 B'!D89<0.5),"-",IFERROR('Tabel 4 B'!D89/'Tabel 4F B'!D89*100,"-")) -> - | E89: =IF(OR('Tabel 4F B'!E89<5, 'Tabel 4 B'!E89<0.5),"-",IFERROR('Tabel 4 B'!E89/'Tabel 4F B'!E89*100,"-")) -> 30 | F89: =IF(OR('Tabel 4F B'!F89<5, 'Tabel 4 B'!F89<0.5),"-",IFERROR('Tabel 4 B'!F89/'Tabel 4F B'!F89*100,"-")) -> - | G89: =IF(OR('Tabel 4F B'!G89<5, 'Tabel 4 B'!G89<0.5),"-",IFERROR('Tabel 4 B'!G89/'Tabel 4F B'!G89*100,"-")) -> - | I89: =IF(OR('Tabel 4F B'!I89<5, 'Tabel 4 B'!I89<0.5),"-",IFERROR('Tabel 4 B'!I89/'Tabel 4F B'!I89*100,"-")) -> 10.34482759
A90: HA | C90: =IF(OR('Tabel 4F B'!C90<5, 'Tabel 4 B'!C90<0.5),"-",IFERROR('Tabel 4 B'!C90/'Tabel 4F B'!C90*100,"-")) -> - | D90: =IF(OR('Tabel 4F B'!D90<5, 'Tabel 4 B'!D90<0.5),"-",IFERROR('Tabel 4 B'!D90/'Tabel 4F B'!D90*100,"-")) -> - | E90: =IF(OR('Tabel 4F B'!E90<5, 'Tabel 4 B'!E90<0.5),"-",IFERROR('Tabel 4 B'!E90/'Tabel 4F B'!E90*100,"-")) -> - | F90: =IF(OR('Tabel 4F B'!F90<5, 'Tabel 4 B'!F90<0.5),"-",IFERROR('Tabel 4 B'!F90/'Tabel 4F B'!F90*100,"-")) -> - | G90: =IF(OR('Tabel 4F B'!G90<5, 'Tabel 4 B'!G90<0.5),"-",IFERROR('Tabel 4 B'!G90/'Tabel 4F B'!G90*100,"-")) -> - | I90: =IF(OR('Tabel 4F B'!I90<5, 'Tabel 4 B'!I90<0.5),"-",IFERROR('Tabel 4 B'!I90/'Tabel 4F B'!I90*100,"-")) -> -
A91: HD | C91: =IF(OR('Tabel 4F B'!C91<5, 'Tabel 4 B'!C91<0.5),"-",IFERROR('Tabel 4 B'!C91/'Tabel 4F B'!C91*100,"-")) -> - | D91: =IF(OR('Tabel 4F B'!D91<5, 'Tabel 4 B'!D91<0.5),"-",IFERROR('Tabel 4 B'!D91/'Tabel 4F B'!D91*100,"-")) -> - | E91: =IF(OR('Tabel 4F B'!E91<5, 'Tabel 4 B'!E91<0.5),"-",IFERROR('Tabel 4 B'!E91/'Tabel 4F B'!E91*100,"-")) -> - | F91: =IF(OR('Tabel 4F B'!F91<5, 'Tabel 4 B'!F91<0.5),"-",IFERROR('Tabel 4 B'!F91/'Tabel 4F B'!F91*100,"-")) -> - | G91: =IF(OR('Tabel 4F B'!G91<5, 'Tabel 4 B'!G91<0.5),"-",IFERROR('Tabel 4 B'!G91/'Tabel 4F B'!G91*100,"-")) -> - | I91: =IF(OR('Tabel 4F B'!I91<5, 'Tabel 4 B'!I91<0.5),"-",IFERROR('Tabel 4 B'!I91/'Tabel 4F B'!I91*100,"-")) -> -
A92: Komm. og Sprog | C92: =IF(OR('Tabel 4F B'!C92<5, 'Tabel 4 B'!C92<0.5),"-",IFERROR('Tabel 4 B'!C92/'Tabel 4F B'!C92*100,"-")) -> - | D92: =IF(OR('Tabel 4F B'!D92<5, 'Tabel 4 B'!D92<0.5),"-",IFERROR('Tabel 4 B'!D92/'Tabel 4F B'!D92*100,"-")) -> 28.57142857 | E92: =IF(OR('Tabel 4F B'!E92<5, 'Tabel 4 B'!E92<0.5),"-",IFERROR('Tabel 4 B'!E92/'Tabel 4F B'!E92*100,"-")) -> - | F92: =IF(OR('Tabel 4F B'!F92<5, 'Tabel 4 B'!F92<0.5),"-",IFERROR('Tabel 4 B'!F92/'Tabel 4F B'!F92*100,"-")) -> - | G92: =IF(OR('Tabel 4F B'!G92<5, 'Tabel 4 B'!G92<0.5),"-",IFERROR('Tabel 4 B'!G92/'Tabel 4F B'!G92*100,"-")) -> - | I92: =IF(OR('Tabel 4F B'!I92<5, 'Tabel 4 B'!I92<0.5),"-",IFERROR('Tabel 4 B'!I92/'Tabel 4F B'!I92*100,"-")) -> 26.66666667
A93: Bygningskonst. | C93: =IF(OR('Tabel 4F B'!C93<5, 'Tabel 4 B'!C93<0.5),"-",IFERROR('Tabel 4 B'!C93/'Tabel 4F B'!C93*100,"-")) -> - | D93: =IF(OR('Tabel 4F B'!D93<5, 'Tabel 4 B'!D93<0.5),"-",IFERROR('Tabel 4 B'!D93/'Tabel 4F B'!D93*100,"-")) -> - | E93: =IF(OR('Tabel 4F B'!E93<5, 'Tabel 4 B'!E93<0.5),"-",IFERROR('Tabel 4 B'!E93/'Tabel 4F B'!E93*100,"-")) -> - | F93: =IF(OR('Tabel 4F B'!F93<5, 'Tabel 4 B'!F93<0.5),"-",IFERROR('Tabel 4 B'!F93/'Tabel 4F B'!F93*100,"-")) -> - | G93: =IF(OR('Tabel 4F B'!G93<5, 'Tabel 4 B'!G93<0.5),"-",IFERROR('Tabel 4 B'!G93/'Tabel 4F B'!G93*100,"-")) -> - | I93: =IF(OR('Tabel 4F B'!I93<5, 'Tabel 4 B'!I93<0.5),"-",IFERROR('Tabel 4 B'!I93/'Tabel 4F B'!I93*100,"-")) -> -
A94: Cand. IT. | C94: =IF(OR('Tabel 4F B'!C94<5, 'Tabel 4 B'!C94<0.5),"-",IFERROR('Tabel 4 B'!C94/'Tabel 4F B'!C94*100,"-")) -> - | D94: =IF(OR('Tabel 4F B'!D94<5, 'Tabel 4 B'!D94<0.5),"-",IFERROR('Tabel 4 B'!D94/'Tabel 4F B'!D94*100,"-")) -> - | E94: =IF(OR('Tabel 4F B'!E94<5, 'Tabel 4 B'!E94<0.5),"-",IFERROR('Tabel 4 B'!E94/'Tabel 4F B'!E94*100,"-")) -> - | F94: =IF(OR('Tabel 4F B'!F94<5, 'Tabel 4 B'!F94<0.5),"-",IFERROR('Tabel 4 B'!F94/'Tabel 4F B'!F94*100,"-")) -> - | G94: =IF(OR('Tabel 4F B'!G94<5, 'Tabel 4 B'!G94<0.5),"-",IFERROR('Tabel 4 B'!G94/'Tabel 4F B'!G94*100,"-")) -> - | I94: =IF(OR('Tabel 4F B'!I94<5, 'Tabel 4 B'!I94<0.5),"-",IFERROR('Tabel 4 B'!I94/'Tabel 4F B'!I94*100,"-")) -> -
A95: Bac. Samf. | C95: =IF(OR('Tabel 4F B'!C95<5, 'Tabel 4 B'!C95<0.5),"-",IFERROR('Tabel 4 B'!C95/'Tabel 4F B'!C95*100,"-")) -> - | D95: =IF(OR('Tabel 4F B'!D95<5, 'Tabel 4 B'!D95<0.5),"-",IFERROR('Tabel 4 B'!D95/'Tabel 4F B'!D95*100,"-")) -> - | E95: =IF(OR('Tabel 4F B'!E95<5, 'Tabel 4 B'!E95<0.5),"-",IFERROR('Tabel 4 B'!E95/'Tabel 4F B'!E95*100,"-")) -> - | F95: =IF(OR('Tabel 4F B'!F95<5, 'Tabel 4 B'!F95<0.5),"-",IFERROR('Tabel 4 B'!F95/'Tabel 4F B'!F95*100,"-")) -> - | G95: =IF(OR('Tabel 4F B'!G95<5, 'Tabel 4 B'!G95<0.5),"-",IFERROR('Tabel 4 B'!G95/'Tabel 4F B'!G95*100,"-")) -> - | I95: =IF(OR('Tabel 4F B'!I95<5, 'Tabel 4 B'!I95<0.5),"-",IFERROR('Tabel 4 B'!I95/'Tabel 4F B'!I95*100,"-")) -> -
A96: Bac. Hum. | C96: =IF(OR('Tabel 4F B'!C96<5, 'Tabel 4 B'!C96<0.5),"-",IFERROR('Tabel 4 B'!C96/'Tabel 4F B'!C96*100,"-")) -> - | D96: =IF(OR('Tabel 4F B'!D96<5, 'Tabel 4 B'!D96<0.5),"-",IFERROR('Tabel 4 B'!D96/'Tabel 4F B'!D96*100,"-")) -> - | E96: =IF(OR('Tabel 4F B'!E96<5, 'Tabel 4 B'!E96<0.5),"-",IFERROR('Tabel 4 B'!E96/'Tabel 4F B'!E96*100,"-")) -> - | F96: =IF(OR('Tabel 4F B'!F96<5, 'Tabel 4 B'!F96<0.5),"-",IFERROR('Tabel 4 B'!F96/'Tabel 4F B'!F96*100,"-")) -> - | G96: =IF(OR('Tabel 4F B'!G96<5, 'Tabel 4 B'!G96<0.5),"-",IFERROR('Tabel 4 B'!G96/'Tabel 4F B'!G96*100,"-")) -> - | I96: =IF(OR('Tabel 4F B'!I96<5, 'Tabel 4 B'!I96<0.5),"-",IFERROR('Tabel 4 B'!I96/'Tabel 4F B'!I96*100,"-")) -> 15.38461538
A97: Bac. Nat. | C97: =IF(OR('Tabel 4F B'!C97<5, 'Tabel 4 B'!C97<0.5),"-",IFERROR('Tabel 4 B'!C97/'Tabel 4F B'!C97*100,"-")) -> - | D97: =IF(OR('Tabel 4F B'!D97<5, 'Tabel 4 B'!D97<0.5),"-",IFERROR('Tabel 4 B'!D97/'Tabel 4F B'!D97*100,"-")) -> - | E97: =IF(OR('Tabel 4F B'!E97<5, 'Tabel 4 B'!E97<0.5),"-",IFERROR('Tabel 4 B'!E97/'Tabel 4F B'!E97*100,"-")) -> - | F97: =IF(OR('Tabel 4F B'!F97<5, 'Tabel 4 B'!F97<0.5),"-",IFERROR('Tabel 4 B'!F97/'Tabel 4F B'!F97*100,"-")) -> - | G97: =IF(OR('Tabel 4F B'!G97<5, 'Tabel 4 B'!G97<0.5),"-",IFERROR('Tabel 4 B'!G97/'Tabel 4F B'!G97*100,"-")) -> - | I97: =IF(OR('Tabel 4F B'!I97<5, 'Tabel 4 B'!I97<0.5),"-",IFERROR('Tabel 4 B'!I97/'Tabel 4F B'!I97*100,"-")) -> 20
A98: Andre | C98: =IF(OR('Tabel 4F B'!C98<5, 'Tabel 4 B'!C98<0.5),"-",IFERROR('Tabel 4 B'!C98/'Tabel 4F B'!C98*100,"-")) -> - | D98: =IF(OR('Tabel 4F B'!D98<5, 'Tabel 4 B'!D98<0.5),"-",IFERROR('Tabel 4 B'!D98/'Tabel 4F B'!D98*100,"-")) -> 10.52631579 | E98: =IF(OR('Tabel 4F B'!E98<5, 'Tabel 4 B'!E98<0.5),"-",IFERROR('Tabel 4 B'!E98/'Tabel 4F B'!E98*100,"-")) -> 19.23076923 | F98: =IF(OR('Tabel 4F B'!F98<5, 'Tabel 4 B'!F98<0.5),"-",IFERROR('Tabel 4 B'!F98/'Tabel 4F B'!F98*100,"-")) -> 5.714285714 | G98: =IF(OR('Tabel 4F B'!G98<5, 'Tabel 4 B'!G98<0.5),"-",IFERROR('Tabel 4 B'!G98/'Tabel 4F B'!G98*100,"-")) -> 8.695652174 | I98: =IF(OR('Tabel 4F B'!I98<5, 'Tabel 4 B'!I98<0.5),"-",IFERROR('Tabel 4 B'!I98/'Tabel 4F B'!I98*100,"-")) -> 10.28037383
A100: Total | C100: =IF(OR('Tabel 4F B'!C100<5, 'Tabel 4 B'!C100<0.5),"-",IFERROR('Tabel 4 B'!C100/'Tabel 4F B'!C100*100,"-")) -> 7.272727273 | D100: =IF(OR('Tabel 4F B'!D100<5, 'Tabel 4 B'!D100<0.5),"-",IFERROR('Tabel 4 B'!D100/'Tabel 4F B'!D100*100,"-")) -> 10.68376068 | E100: =IF(OR('Tabel 4F B'!E100<5, 'Tabel 4 B'!E100<0.5),"-",IFERROR('Tabel 4 B'!E100/'Tabel 4F B'!E100*100,"-")) -> 11.36363636 | F100: =IF(OR('Tabel 4F B'!F100<5, 'Tabel 4 B'!F100<0.5),"-",IFERROR('Tabel 4 B'!F100/'Tabel 4F B'!F100*100,"-")) -> 7.5 | G100: =IF(OR('Tabel 4F B'!G100<5, 'Tabel 4 B'!G100<0.5),"-",IFERROR('Tabel 4 B'!G100/'Tabel 4F B'!G100*100,"-")) -> 7.692307692 | I100: =IF(OR('Tabel 4F B'!I100<5, 'Tabel 4 B'!I100<0.5),"-",IFERROR('Tabel 4 B'!I100/'Tabel 4F B'!I100*100,"-")) -> 9.471094711
A102: Ingeniører i alt | C102: =IF(OR('Tabel 4F B'!C102<5, 'Tabel 4 B'!C102<0.5),"-",IFERROR('Tabel 4 B'!C102/'Tabel 4F B'!C102*100,"-")) -> - | D102: =IF(OR('Tabel 4F B'!D102<5, 'Tabel 4 B'!D102<0.5),"-",IFERROR('Tabel 4 B'!D102/'Tabel 4F B'!D102*100,"-")) -> 11.53846154 | E102: =IF(OR('Tabel 4F B'!E102<5, 'Tabel 4 B'!E102<0.5),"-",IFERROR('Tabel 4 B'!E102/'Tabel 4F B'!E102*100,"-")) -> 3.703703704 | F102: =IF(OR('Tabel 4F B'!F102<5, 'Tabel 4 B'!F102<0.5),"-",IFERROR('Tabel 4 B'!F102/'Tabel 4F B'!F102*100,"-")) -> 6.666666667 | G102: =IF(OR('Tabel 4F B'!G102<5, 'Tabel 4 B'!G102<0.5),"-",IFERROR('Tabel 4 B'!G102/'Tabel 4F B'!G102*100,"-")) -> - | I102: =IF(OR('Tabel 4F B'!I102<5, 'Tabel 4 B'!I102<0.5),"-",IFERROR('Tabel 4 B'!I102/'Tabel 4F B'!I102*100,"-")) -> 6.18556701
A103: Magistre i alt | C103: =IF(OR('Tabel 4F B'!C103<5, 'Tabel 4 B'!C103<0.5),"-",IFERROR('Tabel 4 B'!C103/'Tabel 4F B'!C103*100,"-")) -> 18.18181818 | D103: =IF(OR('Tabel 4F B'!D103<5, 'Tabel 4 B'!D103<0.5),"-",IFERROR('Tabel 4 B'!D103/'Tabel 4F B'!D103*100,"-")) -> 15.27777778 | E103: =IF(OR('Tabel 4F B'!E103<5, 'Tabel 4 B'!E103<0.5),"-",IFERROR('Tabel 4 B'!E103/'Tabel 4F B'!E103*100,"-")) -> 22.64150943 | F103: =IF(OR('Tabel 4F B'!F103<5, 'Tabel 4 B'!F103<0.5),"-",IFERROR('Tabel 4 B'!F103/'Tabel 4F B'!F103*100,"-")) -> 6.52173913 | G103: =IF(OR('Tabel 4F B'!G103<5, 'Tabel 4 B'!G103<0.5),"-",IFERROR('Tabel 4 B'!G103/'Tabel 4F B'!G103*100,"-")) -> 17.85714286 | I103: =IF(OR('Tabel 4F B'!I103<5, 'Tabel 4 B'!I103<0.5),"-",IFERROR('Tabel 4 B'!I103/'Tabel 4F B'!I103*100,"-")) -> 15.71428571
A104: DJØF'ere i alt | C104: =IF(OR('Tabel 4F B'!C104<5, 'Tabel 4 B'!C104<0.5),"-",IFERROR('Tabel 4 B'!C104/'Tabel 4F B'!C104*100,"-")) -> - | D104: =IF(OR('Tabel 4F B'!D104<5, 'Tabel 4 B'!D104<0.5),"-",IFERROR('Tabel 4 B'!D104/'Tabel 4F B'!D104*100,"-")) -> - | E104: =IF(OR('Tabel 4F B'!E104<5, 'Tabel 4 B'!E104<0.5),"-",IFERROR('Tabel 4 B'!E104/'Tabel 4F B'!E104*100,"-")) -> 9.090909091 | F104: =IF(OR('Tabel 4F B'!F104<5, 'Tabel 4 B'!F104<0.5),"-",IFERROR('Tabel 4 B'!F104/'Tabel 4F B'!F104*100,"-")) -> 5 | G104: =IF(OR('Tabel 4F B'!G104<5, 'Tabel 4 B'!G104<0.5),"-",IFERROR('Tabel 4 B'!G104/'Tabel 4F B'!G104*100,"-")) -> - | I104: =IF(OR('Tabel 4F B'!I104<5, 'Tabel 4 B'!I104<0.5),"-",IFERROR('Tabel 4 B'!I104/'Tabel 4F B'!I104*100,"-")) -> 4.47761194
A111: Christiansø
C113: Under 30 år | D113: 30 - 39 år | E113: 40 - 49 år | F113: 50 - 59 år | G113: Over 60 år | I113: I alt
A115: Civ. ing. | C115: =IF(OR('Tabel 4F B'!C115<5, 'Tabel 4 B'!C115<0.5),"-",IFERROR('Tabel 4 B'!C115/'Tabel 4F B'!C115*100,"-")) -> - | D115: =IF(OR('Tabel 4F B'!D115<5, 'Tabel 4 B'!D115<0.5),"-",IFERROR('Tabel 4 B'!D115/'Tabel 4F B'!D115*100,"-")) -> - | E115: =IF(OR('Tabel 4F B'!E115<5, 'Tabel 4 B'!E115<0.5),"-",IFERROR('Tabel 4 B'!E115/'Tabel 4F B'!E115*100,"-")) -> - | F115: =IF(OR('Tabel 4F B'!F115<5, 'Tabel 4 B'!F115<0.5),"-",IFERROR('Tabel 4 B'!F115/'Tabel 4F B'!F115*100,"-")) -> - | G115: =IF(OR('Tabel 4F B'!G115<5, 'Tabel 4 B'!G115<0.5),"-",IFERROR('Tabel 4 B'!G115/'Tabel 4F B'!G115*100,"-")) -> - | I115: =IF(OR('Tabel 4F B'!I115<5, 'Tabel 4 B'!I115<0.5),"-",IFERROR('Tabel 4 B'!I115/'Tabel 4F B'!I115*100,"-")) -> -
A116: Diplom ing. | C116: =IF(OR('Tabel 4F B'!C116<5, 'Tabel 4 B'!C116<0.5),"-",IFERROR('Tabel 4 B'!C116/'Tabel 4F B'!C116*100,"-")) -> - | D116: =IF(OR('Tabel 4F B'!D116<5, 'Tabel 4 B'!D116<0.5),"-",IFERROR('Tabel 4 B'!D116/'Tabel 4F B'!D116*100,"-")) -> - | E116: =IF(OR('Tabel 4F B'!E116<5, 'Tabel 4 B'!E116<0.5),"-",IFERROR('Tabel 4 B'!E116/'Tabel 4F B'!E116*100,"-")) -> - | F116: =IF(OR('Tabel 4F B'!F116<5, 'Tabel 4 B'!F116<0.5),"-",IFERROR('Tabel 4 B'!F116/'Tabel 4F B'!F116*100,"-")) -> - | G116: =IF(OR('Tabel 4F B'!G116<5, 'Tabel 4 B'!G116<0.5),"-",IFERROR('Tabel 4 B'!G116/'Tabel 4F B'!G116*100,"-")) -> - | I116: =IF(OR('Tabel 4F B'!I116<5, 'Tabel 4 B'!I116<0.5),"-",IFERROR('Tabel 4 B'!I116/'Tabel 4F B'!I116*100,"-")) -> -
A117: Cand. Scient. Tek | C117: =IF(OR('Tabel 4F B'!C117<5, 'Tabel 4 B'!C117<0.5),"-",IFERROR('Tabel 4 B'!C117/'Tabel 4F B'!C117*100,"-")) -> - | D117: =IF(OR('Tabel 4F B'!D117<5, 'Tabel 4 B'!D117<0.5),"-",IFERROR('Tabel 4 B'!D117/'Tabel 4F B'!D117*100,"-")) -> - | E117: =IF(OR('Tabel 4F B'!E117<5, 'Tabel 4 B'!E117<0.5),"-",IFERROR('Tabel 4 B'!E117/'Tabel 4F B'!E117*100,"-")) -> - | F117: =IF(OR('Tabel 4F B'!F117<5, 'Tabel 4 B'!F117<0.5),"-",IFERROR('Tabel 4 B'!F117/'Tabel 4F B'!F117*100,"-")) -> - | G117: =IF(OR('Tabel 4F B'!G117<5, 'Tabel 4 B'!G117<0.5),"-",IFERROR('Tabel 4 B'!G117/'Tabel 4F B'!G117*100,"-")) -> - | I117: =IF(OR('Tabel 4F B'!I117<5, 'Tabel 4 B'!I117<0.5),"-",IFERROR('Tabel 4 B'!I117/'Tabel 4F B'!I117*100,"-")) -> -
A118: MA. Hum. | C118: =IF(OR('Tabel 4F B'!C118<5, 'Tabel 4 B'!C118<0.5),"-",IFERROR('Tabel 4 B'!C118/'Tabel 4F B'!C118*100,"-")) -> - | D118: =IF(OR('Tabel 4F B'!D118<5, 'Tabel 4 B'!D118<0.5),"-",IFERROR('Tabel 4 B'!D118/'Tabel 4F B'!D118*100,"-")) -> - | E118: =IF(OR('Tabel 4F B'!E118<5, 'Tabel 4 B'!E118<0.5),"-",IFERROR('Tabel 4 B'!E118/'Tabel 4F B'!E118*100,"-")) -> - | F118: =IF(OR('Tabel 4F B'!F118<5, 'Tabel 4 B'!F118<0.5),"-",IFERROR('Tabel 4 B'!F118/'Tabel 4F B'!F118*100,"-")) -> - | G118: =IF(OR('Tabel 4F B'!G118<5, 'Tabel 4 B'!G118<0.5),"-",IFERROR('Tabel 4 B'!G118/'Tabel 4F B'!G118*100,"-")) -> - | I118: =IF(OR('Tabel 4F B'!I118<5, 'Tabel 4 B'!I118<0.5),"-",IFERROR('Tabel 4 B'!I118/'Tabel 4F B'!I118*100,"-")) -> -
A119: MA. Nat. | C119: =IF(OR('Tabel 4F B'!C119<5, 'Tabel 4 B'!C119<0.5),"-",IFERROR('Tabel 4 B'!C119/'Tabel 4F B'!C119*100,"-")) -> - | D119: =IF(OR('Tabel 4F B'!D119<5, 'Tabel 4 B'!D119<0.5),"-",IFERROR('Tabel 4 B'!D119/'Tabel 4F B'!D119*100,"-")) -> - | E119: =IF(OR('Tabel 4F B'!E119<5, 'Tabel 4 B'!E119<0.5),"-",IFERROR('Tabel 4 B'!E119/'Tabel 4F B'!E119*100,"-")) -> - | F119: =IF(OR('Tabel 4F B'!F119<5, 'Tabel 4 B'!F119<0.5),"-",IFERROR('Tabel 4 B'!F119/'Tabel 4F B'!F119*100,"-")) -> - | G119: =IF(OR('Tabel 4F B'!G119<5, 'Tabel 4 B'!G119<0.5),"-",IFERROR('Tabel 4 B'!G119/'Tabel 4F B'!G119*100,"-")) -> - | I119: =IF(OR('Tabel 4F B'!I119<5, 'Tabel 4 B'!I119<0.5),"-",IFERROR('Tabel 4 B'!I119/'Tabel 4F B'!I119*100,"-")) -> -
A120: MA. Ph.d. | C120: =IF(OR('Tabel 4F B'!C120<5, 'Tabel 4 B'!C120<0.5),"-",IFERROR('Tabel 4 B'!C120/'Tabel 4F B'!C120*100,"-")) -> - | D120: =IF(OR('Tabel 4F B'!D120<5, 'Tabel 4 B'!D120<0.5),"-",IFERROR('Tabel 4 B'!D120/'Tabel 4F B'!D120*100,"-")) -> - | E120: =IF(OR('Tabel 4F B'!E120<5, 'Tabel 4 B'!E120<0.5),"-",IFERROR('Tabel 4 B'!E120/'Tabel 4F B'!E120*100,"-")) -> - | F120: =IF(OR('Tabel 4F B'!F120<5, 'Tabel 4 B'!F120<0.5),"-",IFERROR('Tabel 4 B'!F120/'Tabel 4F B'!F120*100,"-")) -> - | G120: =IF(OR('Tabel 4F B'!G120<5, 'Tabel 4 B'!G120<0.5),"-",IFERROR('Tabel 4 B'!G120/'Tabel 4F B'!G120*100,"-")) -> - | I120: =IF(OR('Tabel 4F B'!I120<5, 'Tabel 4 B'!I120<0.5),"-",IFERROR('Tabel 4 B'!I120/'Tabel 4F B'!I120*100,"-")) -> -
A121: MA. Samf. | C121: =IF(OR('Tabel 4F B'!C121<5, 'Tabel 4 B'!C121<0.5),"-",IFERROR('Tabel 4 B'!C121/'Tabel 4F B'!C121*100,"-")) -> - | D121: =IF(OR('Tabel 4F B'!D121<5, 'Tabel 4 B'!D121<0.5),"-",IFERROR('Tabel 4 B'!D121/'Tabel 4F B'!D121*100,"-")) -> - | E121: =IF(OR('Tabel 4F B'!E121<5, 'Tabel 4 B'!E121<0.5),"-",IFERROR('Tabel 4 B'!E121/'Tabel 4F B'!E121*100,"-")) -> - | F121: =IF(OR('Tabel 4F B'!F121<5, 'Tabel 4 B'!F121<0.5),"-",IFERROR('Tabel 4 B'!F121/'Tabel 4F B'!F121*100,"-")) -> - | G121: =IF(OR('Tabel 4F B'!G121<5, 'Tabel 4 B'!G121<0.5),"-",IFERROR('Tabel 4 B'!G121/'Tabel 4F B'!G121*100,"-")) -> - | I121: =IF(OR('Tabel 4F B'!I121<5, 'Tabel 4 B'!I121<0.5),"-",IFERROR('Tabel 4 B'!I121/'Tabel 4F B'!I121*100,"-")) -> -
A122: Øvrige Mag. | C122: =IF(OR('Tabel 4F B'!C122<5, 'Tabel 4 B'!C122<0.5),"-",IFERROR('Tabel 4 B'!C122/'Tabel 4F B'!C122*100,"-")) -> - | D122: =IF(OR('Tabel 4F B'!D122<5, 'Tabel 4 B'!D122<0.5),"-",IFERROR('Tabel 4 B'!D122/'Tabel 4F B'!D122*100,"-")) -> - | E122: =IF(OR('Tabel 4F B'!E122<5, 'Tabel 4 B'!E122<0.5),"-",IFERROR('Tabel 4 B'!E122/'Tabel 4F B'!E122*100,"-")) -> - | F122: =IF(OR('Tabel 4F B'!F122<5, 'Tabel 4 B'!F122<0.5),"-",IFERROR('Tabel 4 B'!F122/'Tabel 4F B'!F122*100,"-")) -> - | G122: =IF(OR('Tabel 4F B'!G122<5, 'Tabel 4 B'!G122<0.5),"-",IFERROR('Tabel 4 B'!G122/'Tabel 4F B'!G122*100,"-")) -> - | I122: =IF(OR('Tabel 4F B'!I122<5, 'Tabel 4 B'!I122<0.5),"-",IFERROR('Tabel 4 B'!I122/'Tabel 4F B'!I122*100,"-")) -> -
A123: Agronom | C123: =IF(OR('Tabel 4F B'!C123<5, 'Tabel 4 B'!C123<0.5),"-",IFERROR('Tabel 4 B'!C123/'Tabel 4F B'!C123*100,"-")) -> - | D123: =IF(OR('Tabel 4F B'!D123<5, 'Tabel 4 B'!D123<0.5),"-",IFERROR('Tabel 4 B'!D123/'Tabel 4F B'!D123*100,"-")) -> - | E123: =IF(OR('Tabel 4F B'!E123<5, 'Tabel 4 B'!E123<0.5),"-",IFERROR('Tabel 4 B'!E123/'Tabel 4F B'!E123*100,"-")) -> - | F123: =IF(OR('Tabel 4F B'!F123<5, 'Tabel 4 B'!F123<0.5),"-",IFERROR('Tabel 4 B'!F123/'Tabel 4F B'!F123*100,"-")) -> - | G123: =IF(OR('Tabel 4F B'!G123<5, 'Tabel 4 B'!G123<0.5),"-",IFERROR('Tabel 4 B'!G123/'Tabel 4F B'!G123*100,"-")) -> - | I123: =IF(OR('Tabel 4F B'!I123<5, 'Tabel 4 B'!I123<0.5),"-",IFERROR('Tabel 4 B'!I123/'Tabel 4F B'!I123*100,"-")) -> -
A124: Landsk. Arkt. | C124: =IF(OR('Tabel 4F B'!C124<5, 'Tabel 4 B'!C124<0.5),"-",IFERROR('Tabel 4 B'!C124/'Tabel 4F B'!C124*100,"-")) -> - | D124: =IF(OR('Tabel 4F B'!D124<5, 'Tabel 4 B'!D124<0.5),"-",IFERROR('Tabel 4 B'!D124/'Tabel 4F B'!D124*100,"-")) -> - | E124: =IF(OR('Tabel 4F B'!E124<5, 'Tabel 4 B'!E124<0.5),"-",IFERROR('Tabel 4 B'!E124/'Tabel 4F B'!E124*100,"-")) -> - | F124: =IF(OR('Tabel 4F B'!F124<5, 'Tabel 4 B'!F124<0.5),"-",IFERROR('Tabel 4 B'!F124/'Tabel 4F B'!F124*100,"-")) -> - | G124: =IF(OR('Tabel 4F B'!G124<5, 'Tabel 4 B'!G124<0.5),"-",IFERROR('Tabel 4 B'!G124/'Tabel 4F B'!G124*100,"-")) -> - | I124: =IF(OR('Tabel 4F B'!I124<5, 'Tabel 4 B'!I124<0.5),"-",IFERROR('Tabel 4 B'!I124/'Tabel 4F B'!I124*100,"-")) -> -
A125: Hortonom | C125: =IF(OR('Tabel 4F B'!C125<5, 'Tabel 4 B'!C125<0.5),"-",IFERROR('Tabel 4 B'!C125/'Tabel 4F B'!C125*100,"-")) -> - | D125: =IF(OR('Tabel 4F B'!D125<5, 'Tabel 4 B'!D125<0.5),"-",IFERROR('Tabel 4 B'!D125/'Tabel 4F B'!D125*100,"-")) -> - | E125: =IF(OR('Tabel 4F B'!E125<5, 'Tabel 4 B'!E125<0.5),"-",IFERROR('Tabel 4 B'!E125/'Tabel 4F B'!E125*100,"-")) -> - | F125: =IF(OR('Tabel 4F B'!F125<5, 'Tabel 4 B'!F125<0.5),"-",IFERROR('Tabel 4 B'!F125/'Tabel 4F B'!F125*100,"-")) -> - | G125: =IF(OR('Tabel 4F B'!G125<5, 'Tabel 4 B'!G125<0.5),"-",IFERROR('Tabel 4 B'!G125/'Tabel 4F B'!G125*100,"-")) -> - | I125: =IF(OR('Tabel 4F B'!I125<5, 'Tabel 4 B'!I125<0.5),"-",IFERROR('Tabel 4 B'!I125/'Tabel 4F B'!I125*100,"-")) -> -
A126: Forstkand. | C126: =IF(OR('Tabel 4F B'!C126<5, 'Tabel 4 B'!C126<0.5),"-",IFERROR('Tabel 4 B'!C126/'Tabel 4F B'!C126*100,"-")) -> - | D126: =IF(OR('Tabel 4F B'!D126<5, 'Tabel 4 B'!D126<0.5),"-",IFERROR('Tabel 4 B'!D126/'Tabel 4F B'!D126*100,"-")) -> - | E126: =IF(OR('Tabel 4F B'!E126<5, 'Tabel 4 B'!E126<0.5),"-",IFERROR('Tabel 4 B'!E126/'Tabel 4F B'!E126*100,"-")) -> - | F126: =IF(OR('Tabel 4F B'!F126<5, 'Tabel 4 B'!F126<0.5),"-",IFERROR('Tabel 4 B'!F126/'Tabel 4F B'!F126*100,"-")) -> - | G126: =IF(OR('Tabel 4F B'!G126<5, 'Tabel 4 B'!G126<0.5),"-",IFERROR('Tabel 4 B'!G126/'Tabel 4F B'!G126*100,"-")) -> - | I126: =IF(OR('Tabel 4F B'!I126<5, 'Tabel 4 B'!I126<0.5),"-",IFERROR('Tabel 4 B'!I126/'Tabel 4F B'!I126*100,"-")) -> -
A127: Jordbrugsakad. | C127: =IF(OR('Tabel 4F B'!C127<5, 'Tabel 4 B'!C127<0.5),"-",IFERROR('Tabel 4 B'!C127/'Tabel 4F B'!C127*100,"-")) -> - | D127: =IF(OR('Tabel 4F B'!D127<5, 'Tabel 4 B'!D127<0.5),"-",IFERROR('Tabel 4 B'!D127/'Tabel 4F B'!D127*100,"-")) -> - | E127: =IF(OR('Tabel 4F B'!E127<5, 'Tabel 4 B'!E127<0.5),"-",IFERROR('Tabel 4 B'!E127/'Tabel 4F B'!E127*100,"-")) -> - | F127: =IF(OR('Tabel 4F B'!F127<5, 'Tabel 4 B'!F127<0.5),"-",IFERROR('Tabel 4 B'!F127/'Tabel 4F B'!F127*100,"-")) -> - | G127: =IF(OR('Tabel 4F B'!G127<5, 'Tabel 4 B'!G127<0.5),"-",IFERROR('Tabel 4 B'!G127/'Tabel 4F B'!G127*100,"-")) -> - | I127: =IF(OR('Tabel 4F B'!I127<5, 'Tabel 4 B'!I127<0.5),"-",IFERROR('Tabel 4 B'!I127/'Tabel 4F B'!I127*100,"-")) -> -
A128: Mejeriing. | C128: =IF(OR('Tabel 4F B'!C128<5, 'Tabel 4 B'!C128<0.5),"-",IFERROR('Tabel 4 B'!C128/'Tabel 4F B'!C128*100,"-")) -> - | D128: =IF(OR('Tabel 4F B'!D128<5, 'Tabel 4 B'!D128<0.5),"-",IFERROR('Tabel 4 B'!D128/'Tabel 4F B'!D128*100,"-")) -> - | E128: =IF(OR('Tabel 4F B'!E128<5, 'Tabel 4 B'!E128<0.5),"-",IFERROR('Tabel 4 B'!E128/'Tabel 4F B'!E128*100,"-")) -> - | F128: =IF(OR('Tabel 4F B'!F128<5, 'Tabel 4 B'!F128<0.5),"-",IFERROR('Tabel 4 B'!F128/'Tabel 4F B'!F128*100,"-")) -> - | G128: =IF(OR('Tabel 4F B'!G128<5, 'Tabel 4 B'!G128<0.5),"-",IFERROR('Tabel 4 B'!G128/'Tabel 4F B'!G128*100,"-")) -> - | I128: =IF(OR('Tabel 4F B'!I128<5, 'Tabel 4 B'!I128<0.5),"-",IFERROR('Tabel 4 B'!I128/'Tabel 4F B'!I128*100,"-")) -> -
A129: Levn.m.kand. | C129: =IF(OR('Tabel 4F B'!C129<5, 'Tabel 4 B'!C129<0.5),"-",IFERROR('Tabel 4 B'!C129/'Tabel 4F B'!C129*100,"-")) -> - | D129: =IF(OR('Tabel 4F B'!D129<5, 'Tabel 4 B'!D129<0.5),"-",IFERROR('Tabel 4 B'!D129/'Tabel 4F B'!D129*100,"-")) -> - | E129: =IF(OR('Tabel 4F B'!E129<5, 'Tabel 4 B'!E129<0.5),"-",IFERROR('Tabel 4 B'!E129/'Tabel 4F B'!E129*100,"-")) -> - | F129: =IF(OR('Tabel 4F B'!F129<5, 'Tabel 4 B'!F129<0.5),"-",IFERROR('Tabel 4 B'!F129/'Tabel 4F B'!F129*100,"-")) -> - | G129: =IF(OR('Tabel 4F B'!G129<5, 'Tabel 4 B'!G129<0.5),"-",IFERROR('Tabel 4 B'!G129/'Tabel 4F B'!G129*100,"-")) -> - | I129: =IF(OR('Tabel 4F B'!I129<5, 'Tabel 4 B'!I129<0.5),"-",IFERROR('Tabel 4 B'!I129/'Tabel 4F B'!I129*100,"-")) -> -
A130: Dyrlæge | C130: =IF(OR('Tabel 4F B'!C130<5, 'Tabel 4 B'!C130<0.5),"-",IFERROR('Tabel 4 B'!C130/'Tabel 4F B'!C130*100,"-")) -> - | D130: =IF(OR('Tabel 4F B'!D130<5, 'Tabel 4 B'!D130<0.5),"-",IFERROR('Tabel 4 B'!D130/'Tabel 4F B'!D130*100,"-")) -> - | E130: =IF(OR('Tabel 4F B'!E130<5, 'Tabel 4 B'!E130<0.5),"-",IFERROR('Tabel 4 B'!E130/'Tabel 4F B'!E130*100,"-")) -> - | F130: =IF(OR('Tabel 4F B'!F130<5, 'Tabel 4 B'!F130<0.5),"-",IFERROR('Tabel 4 B'!F130/'Tabel 4F B'!F130*100,"-")) -> - | G130: =IF(OR('Tabel 4F B'!G130<5, 'Tabel 4 B'!G130<0.5),"-",IFERROR('Tabel 4 B'!G130/'Tabel 4F B'!G130*100,"-")) -> - | I130: =IF(OR('Tabel 4F B'!I130<5, 'Tabel 4 B'!I130<0.5),"-",IFERROR('Tabel 4 B'!I130/'Tabel 4F B'!I130*100,"-")) -> -
A131: Farmaceut | C131: =IF(OR('Tabel 4F B'!C131<5, 'Tabel 4 B'!C131<0.5),"-",IFERROR('Tabel 4 B'!C131/'Tabel 4F B'!C131*100,"-")) -> - | D131: =IF(OR('Tabel 4F B'!D131<5, 'Tabel 4 B'!D131<0.5),"-",IFERROR('Tabel 4 B'!D131/'Tabel 4F B'!D131*100,"-")) -> - | E131: =IF(OR('Tabel 4F B'!E131<5, 'Tabel 4 B'!E131<0.5),"-",IFERROR('Tabel 4 B'!E131/'Tabel 4F B'!E131*100,"-")) -> - | F131: =IF(OR('Tabel 4F B'!F131<5, 'Tabel 4 B'!F131<0.5),"-",IFERROR('Tabel 4 B'!F131/'Tabel 4F B'!F131*100,"-")) -> - | G131: =IF(OR('Tabel 4F B'!G131<5, 'Tabel 4 B'!G131<0.5),"-",IFERROR('Tabel 4 B'!G131/'Tabel 4F B'!G131*100,"-")) -> - | I131: =IF(OR('Tabel 4F B'!I131<5, 'Tabel 4 B'!I131<0.5),"-",IFERROR('Tabel 4 B'!I131/'Tabel 4F B'!I131*100,"-")) -> -
A132: Læge | C132: =IF(OR('Tabel 4F B'!C132<5, 'Tabel 4 B'!C132<0.5),"-",IFERROR('Tabel 4 B'!C132/'Tabel 4F B'!C132*100,"-")) -> - | D132: =IF(OR('Tabel 4F B'!D132<5, 'Tabel 4 B'!D132<0.5),"-",IFERROR('Tabel 4 B'!D132/'Tabel 4F B'!D132*100,"-")) -> - | E132: =IF(OR('Tabel 4F B'!E132<5, 'Tabel 4 B'!E132<0.5),"-",IFERROR('Tabel 4 B'!E132/'Tabel 4F B'!E132*100,"-")) -> - | F132: =IF(OR('Tabel 4F B'!F132<5, 'Tabel 4 B'!F132<0.5),"-",IFERROR('Tabel 4 B'!F132/'Tabel 4F B'!F132*100,"-")) -> - | G132: =IF(OR('Tabel 4F B'!G132<5, 'Tabel 4 B'!G132<0.5),"-",IFERROR('Tabel 4 B'!G132/'Tabel 4F B'!G132*100,"-")) -> - | I132: =IF(OR('Tabel 4F B'!I132<5, 'Tabel 4 B'!I132<0.5),"-",IFERROR('Tabel 4 B'!I132/'Tabel 4F B'!I132*100,"-")) -> -
A133: Tandlæge | C133: =IF(OR('Tabel 4F B'!C133<5, 'Tabel 4 B'!C133<0.5),"-",IFERROR('Tabel 4 B'!C133/'Tabel 4F B'!C133*100,"-")) -> - | D133: =IF(OR('Tabel 4F B'!D133<5, 'Tabel 4 B'!D133<0.5),"-",IFERROR('Tabel 4 B'!D133/'Tabel 4F B'!D133*100,"-")) -> - | E133: =IF(OR('Tabel 4F B'!E133<5, 'Tabel 4 B'!E133<0.5),"-",IFERROR('Tabel 4 B'!E133/'Tabel 4F B'!E133*100,"-")) -> - | F133: =IF(OR('Tabel 4F B'!F133<5, 'Tabel 4 B'!F133<0.5),"-",IFERROR('Tabel 4 B'!F133/'Tabel 4F B'!F133*100,"-")) -> - | G133: =IF(OR('Tabel 4F B'!G133<5, 'Tabel 4 B'!G133<0.5),"-",IFERROR('Tabel 4 B'!G133/'Tabel 4F B'!G133*100,"-")) -> - | I133: =IF(OR('Tabel 4F B'!I133<5, 'Tabel 4 B'!I133<0.5),"-",IFERROR('Tabel 4 B'!I133/'Tabel 4F B'!I133*100,"-")) -> -
A134: Arkitekt | C134: =IF(OR('Tabel 4F B'!C134<5, 'Tabel 4 B'!C134<0.5),"-",IFERROR('Tabel 4 B'!C134/'Tabel 4F B'!C134*100,"-")) -> - | D134: =IF(OR('Tabel 4F B'!D134<5, 'Tabel 4 B'!D134<0.5),"-",IFERROR('Tabel 4 B'!D134/'Tabel 4F B'!D134*100,"-")) -> - | E134: =IF(OR('Tabel 4F B'!E134<5, 'Tabel 4 B'!E134<0.5),"-",IFERROR('Tabel 4 B'!E134/'Tabel 4F B'!E134*100,"-")) -> - | F134: =IF(OR('Tabel 4F B'!F134<5, 'Tabel 4 B'!F134<0.5),"-",IFERROR('Tabel 4 B'!F134/'Tabel 4F B'!F134*100,"-")) -> - | G134: =IF(OR('Tabel 4F B'!G134<5, 'Tabel 4 B'!G134<0.5),"-",IFERROR('Tabel 4 B'!G134/'Tabel 4F B'!G134*100,"-")) -> - | I134: =IF(OR('Tabel 4F B'!I134<5, 'Tabel 4 B'!I134<0.5),"-",IFERROR('Tabel 4 B'!I134/'Tabel 4F B'!I134*100,"-")) -> -
A135: Landinspek. | C135: =IF(OR('Tabel 4F B'!C135<5, 'Tabel 4 B'!C135<0.5),"-",IFERROR('Tabel 4 B'!C135/'Tabel 4F B'!C135*100,"-")) -> - | D135: =IF(OR('Tabel 4F B'!D135<5, 'Tabel 4 B'!D135<0.5),"-",IFERROR('Tabel 4 B'!D135/'Tabel 4F B'!D135*100,"-")) -> - | E135: =IF(OR('Tabel 4F B'!E135<5, 'Tabel 4 B'!E135<0.5),"-",IFERROR('Tabel 4 B'!E135/'Tabel 4F B'!E135*100,"-")) -> - | F135: =IF(OR('Tabel 4F B'!F135<5, 'Tabel 4 B'!F135<0.5),"-",IFERROR('Tabel 4 B'!F135/'Tabel 4F B'!F135*100,"-")) -> - | G135: =IF(OR('Tabel 4F B'!G135<5, 'Tabel 4 B'!G135<0.5),"-",IFERROR('Tabel 4 B'!G135/'Tabel 4F B'!G135*100,"-")) -> - | I135: =IF(OR('Tabel 4F B'!I135<5, 'Tabel 4 B'!I135<0.5),"-",IFERROR('Tabel 4 B'!I135/'Tabel 4F B'!I135*100,"-")) -> -
A136: Bibliotekar | C136: =IF(OR('Tabel 4F B'!C136<5, 'Tabel 4 B'!C136<0.5),"-",IFERROR('Tabel 4 B'!C136/'Tabel 4F B'!C136*100,"-")) -> - | D136: =IF(OR('Tabel 4F B'!D136<5, 'Tabel 4 B'!D136<0.5),"-",IFERROR('Tabel 4 B'!D136/'Tabel 4F B'!D136*100,"-")) -> - | E136: =IF(OR('Tabel 4F B'!E136<5, 'Tabel 4 B'!E136<0.5),"-",IFERROR('Tabel 4 B'!E136/'Tabel 4F B'!E136*100,"-")) -> - | F136: =IF(OR('Tabel 4F B'!F136<5, 'Tabel 4 B'!F136<0.5),"-",IFERROR('Tabel 4 B'!F136/'Tabel 4F B'!F136*100,"-")) -> - | G136: =IF(OR('Tabel 4F B'!G136<5, 'Tabel 4 B'!G136<0.5),"-",IFERROR('Tabel 4 B'!G136/'Tabel 4F B'!G136*100,"-")) -> - | I136: =IF(OR('Tabel 4F B'!I136<5, 'Tabel 4 B'!I136<0.5),"-",IFERROR('Tabel 4 B'!I136/'Tabel 4F B'!I136*100,"-")) -> -
A137: Musikudd. | C137: =IF(OR('Tabel 4F B'!C137<5, 'Tabel 4 B'!C137<0.5),"-",IFERROR('Tabel 4 B'!C137/'Tabel 4F B'!C137*100,"-")) -> - | D137: =IF(OR('Tabel 4F B'!D137<5, 'Tabel 4 B'!D137<0.5),"-",IFERROR('Tabel 4 B'!D137/'Tabel 4F B'!D137*100,"-")) -> - | E137: =IF(OR('Tabel 4F B'!E137<5, 'Tabel 4 B'!E137<0.5),"-",IFERROR('Tabel 4 B'!E137/'Tabel 4F B'!E137*100,"-")) -> - | F137: =IF(OR('Tabel 4F B'!F137<5, 'Tabel 4 B'!F137<0.5),"-",IFERROR('Tabel 4 B'!F137/'Tabel 4F B'!F137*100,"-")) -> - | G137: =IF(OR('Tabel 4F B'!G137<5, 'Tabel 4 B'!G137<0.5),"-",IFERROR('Tabel 4 B'!G137/'Tabel 4F B'!G137*100,"-")) -> - | I137: =IF(OR('Tabel 4F B'!I137<5, 'Tabel 4 B'!I137<0.5),"-",IFERROR('Tabel 4 B'!I137/'Tabel 4F B'!I137*100,"-")) -> -
A138: Teolog | C138: =IF(OR('Tabel 4F B'!C138<5, 'Tabel 4 B'!C138<0.5),"-",IFERROR('Tabel 4 B'!C138/'Tabel 4F B'!C138*100,"-")) -> - | D138: =IF(OR('Tabel 4F B'!D138<5, 'Tabel 4 B'!D138<0.5),"-",IFERROR('Tabel 4 B'!D138/'Tabel 4F B'!D138*100,"-")) -> - | E138: =IF(OR('Tabel 4F B'!E138<5, 'Tabel 4 B'!E138<0.5),"-",IFERROR('Tabel 4 B'!E138/'Tabel 4F B'!E138*100,"-")) -> - | F138: =IF(OR('Tabel 4F B'!F138<5, 'Tabel 4 B'!F138<0.5),"-",IFERROR('Tabel 4 B'!F138/'Tabel 4F B'!F138*100,"-")) -> - | G138: =IF(OR('Tabel 4F B'!G138<5, 'Tabel 4 B'!G138<0.5),"-",IFERROR('Tabel 4 B'!G138/'Tabel 4F B'!G138*100,"-")) -> - | I138: =IF(OR('Tabel 4F B'!I138<5, 'Tabel 4 B'!I138<0.5),"-",IFERROR('Tabel 4 B'!I138/'Tabel 4F B'!I138*100,"-")) -> -
A139: Psykolog | C139: =IF(OR('Tabel 4F B'!C139<5, 'Tabel 4 B'!C139<0.5),"-",IFERROR('Tabel 4 B'!C139/'Tabel 4F B'!C139*100,"-")) -> - | D139: =IF(OR('Tabel 4F B'!D139<5, 'Tabel 4 B'!D139<0.5),"-",IFERROR('Tabel 4 B'!D139/'Tabel 4F B'!D139*100,"-")) -> - | E139: =IF(OR('Tabel 4F B'!E139<5, 'Tabel 4 B'!E139<0.5),"-",IFERROR('Tabel 4 B'!E139/'Tabel 4F B'!E139*100,"-")) -> - | F139: =IF(OR('Tabel 4F B'!F139<5, 'Tabel 4 B'!F139<0.5),"-",IFERROR('Tabel 4 B'!F139/'Tabel 4F B'!F139*100,"-")) -> - | G139: =IF(OR('Tabel 4F B'!G139<5, 'Tabel 4 B'!G139<0.5),"-",IFERROR('Tabel 4 B'!G139/'Tabel 4F B'!G139*100,"-")) -> - | I139: =IF(OR('Tabel 4F B'!I139<5, 'Tabel 4 B'!I139<0.5),"-",IFERROR('Tabel 4 B'!I139/'Tabel 4F B'!I139*100,"-")) -> -
A140: Jurist | C140: =IF(OR('Tabel 4F B'!C140<5, 'Tabel 4 B'!C140<0.5),"-",IFERROR('Tabel 4 B'!C140/'Tabel 4F B'!C140*100,"-")) -> - | D140: =IF(OR('Tabel 4F B'!D140<5, 'Tabel 4 B'!D140<0.5),"-",IFERROR('Tabel 4 B'!D140/'Tabel 4F B'!D140*100,"-")) -> - | E140: =IF(OR('Tabel 4F B'!E140<5, 'Tabel 4 B'!E140<0.5),"-",IFERROR('Tabel 4 B'!E140/'Tabel 4F B'!E140*100,"-")) -> - | F140: =IF(OR('Tabel 4F B'!F140<5, 'Tabel 4 B'!F140<0.5),"-",IFERROR('Tabel 4 B'!F140/'Tabel 4F B'!F140*100,"-")) -> - | G140: =IF(OR('Tabel 4F B'!G140<5, 'Tabel 4 B'!G140<0.5),"-",IFERROR('Tabel 4 B'!G140/'Tabel 4F B'!G140*100,"-")) -> - | I140: =IF(OR('Tabel 4F B'!I140<5, 'Tabel 4 B'!I140<0.5),"-",IFERROR('Tabel 4 B'!I140/'Tabel 4F B'!I140*100,"-")) -> -
A141: Økonom | C141: =IF(OR('Tabel 4F B'!C141<5, 'Tabel 4 B'!C141<0.5),"-",IFERROR('Tabel 4 B'!C141/'Tabel 4F B'!C141*100,"-")) -> - | D141: =IF(OR('Tabel 4F B'!D141<5, 'Tabel 4 B'!D141<0.5),"-",IFERROR('Tabel 4 B'!D141/'Tabel 4F B'!D141*100,"-")) -> - | E141: =IF(OR('Tabel 4F B'!E141<5, 'Tabel 4 B'!E141<0.5),"-",IFERROR('Tabel 4 B'!E141/'Tabel 4F B'!E141*100,"-")) -> - | F141: =IF(OR('Tabel 4F B'!F141<5, 'Tabel 4 B'!F141<0.5),"-",IFERROR('Tabel 4 B'!F141/'Tabel 4F B'!F141*100,"-")) -> - | G141: =IF(OR('Tabel 4F B'!G141<5, 'Tabel 4 B'!G141<0.5),"-",IFERROR('Tabel 4 B'!G141/'Tabel 4F B'!G141*100,"-")) -> - | I141: =IF(OR('Tabel 4F B'!I141<5, 'Tabel 4 B'!I141<0.5),"-",IFERROR('Tabel 4 B'!I141/'Tabel 4F B'!I141*100,"-")) -> -
A142: Samf. Adm. | C142: =IF(OR('Tabel 4F B'!C142<5, 'Tabel 4 B'!C142<0.5),"-",IFERROR('Tabel 4 B'!C142/'Tabel 4F B'!C142*100,"-")) -> - | D142: =IF(OR('Tabel 4F B'!D142<5, 'Tabel 4 B'!D142<0.5),"-",IFERROR('Tabel 4 B'!D142/'Tabel 4F B'!D142*100,"-")) -> - | E142: =IF(OR('Tabel 4F B'!E142<5, 'Tabel 4 B'!E142<0.5),"-",IFERROR('Tabel 4 B'!E142/'Tabel 4F B'!E142*100,"-")) -> - | F142: =IF(OR('Tabel 4F B'!F142<5, 'Tabel 4 B'!F142<0.5),"-",IFERROR('Tabel 4 B'!F142/'Tabel 4F B'!F142*100,"-")) -> - | G142: =IF(OR('Tabel 4F B'!G142<5, 'Tabel 4 B'!G142<0.5),"-",IFERROR('Tabel 4 B'!G142/'Tabel 4F B'!G142*100,"-")) -> - | I142: =IF(OR('Tabel 4F B'!I142<5, 'Tabel 4 B'!I142<0.5),"-",IFERROR('Tabel 4 B'!I142/'Tabel 4F B'!I142*100,"-")) -> -
A143: Cand. Merc. | C143: =IF(OR('Tabel 4F B'!C143<5, 'Tabel 4 B'!C143<0.5),"-",IFERROR('Tabel 4 B'!C143/'Tabel 4F B'!C143*100,"-")) -> - | D143: =IF(OR('Tabel 4F B'!D143<5, 'Tabel 4 B'!D143<0.5),"-",IFERROR('Tabel 4 B'!D143/'Tabel 4F B'!D143*100,"-")) -> - | E143: =IF(OR('Tabel 4F B'!E143<5, 'Tabel 4 B'!E143<0.5),"-",IFERROR('Tabel 4 B'!E143/'Tabel 4F B'!E143*100,"-")) -> - | F143: =IF(OR('Tabel 4F B'!F143<5, 'Tabel 4 B'!F143<0.5),"-",IFERROR('Tabel 4 B'!F143/'Tabel 4F B'!F143*100,"-")) -> - | G143: =IF(OR('Tabel 4F B'!G143<5, 'Tabel 4 B'!G143<0.5),"-",IFERROR('Tabel 4 B'!G143/'Tabel 4F B'!G143*100,"-")) -> - | I143: =IF(OR('Tabel 4F B'!I143<5, 'Tabel 4 B'!I143<0.5),"-",IFERROR('Tabel 4 B'!I143/'Tabel 4F B'!I143*100,"-")) -> -
A144: HA | C144: =IF(OR('Tabel 4F B'!C144<5, 'Tabel 4 B'!C144<0.5),"-",IFERROR('Tabel 4 B'!C144/'Tabel 4F B'!C144*100,"-")) -> - | D144: =IF(OR('Tabel 4F B'!D144<5, 'Tabel 4 B'!D144<0.5),"-",IFERROR('Tabel 4 B'!D144/'Tabel 4F B'!D144*100,"-")) -> - | E144: =IF(OR('Tabel 4F B'!E144<5, 'Tabel 4 B'!E144<0.5),"-",IFERROR('Tabel 4 B'!E144/'Tabel 4F B'!E144*100,"-")) -> - | F144: =IF(OR('Tabel 4F B'!F144<5, 'Tabel 4 B'!F144<0.5),"-",IFERROR('Tabel 4 B'!F144/'Tabel 4F B'!F144*100,"-")) -> - | G144: =IF(OR('Tabel 4F B'!G144<5, 'Tabel 4 B'!G144<0.5),"-",IFERROR('Tabel 4 B'!G144/'Tabel 4F B'!G144*100,"-")) -> - | I144: =IF(OR('Tabel 4F B'!I144<5, 'Tabel 4 B'!I144<0.5),"-",IFERROR('Tabel 4 B'!I144/'Tabel 4F B'!I144*100,"-")) -> -
A145: HD | C145: =IF(OR('Tabel 4F B'!C145<5, 'Tabel 4 B'!C145<0.5),"-",IFERROR('Tabel 4 B'!C145/'Tabel 4F B'!C145*100,"-")) -> - | D145: =IF(OR('Tabel 4F B'!D145<5, 'Tabel 4 B'!D145<0.5),"-",IFERROR('Tabel 4 B'!D145/'Tabel 4F B'!D145*100,"-")) -> - | E145: =IF(OR('Tabel 4F B'!E145<5, 'Tabel 4 B'!E145<0.5),"-",IFERROR('Tabel 4 B'!E145/'Tabel 4F B'!E145*100,"-")) -> - | F145: =IF(OR('Tabel 4F B'!F145<5, 'Tabel 4 B'!F145<0.5),"-",IFERROR('Tabel 4 B'!F145/'Tabel 4F B'!F145*100,"-")) -> - | G145: =IF(OR('Tabel 4F B'!G145<5, 'Tabel 4 B'!G145<0.5),"-",IFERROR('Tabel 4 B'!G145/'Tabel 4F B'!G145*100,"-")) -> - | I145: =IF(OR('Tabel 4F B'!I145<5, 'Tabel 4 B'!I145<0.5),"-",IFERROR('Tabel 4 B'!I145/'Tabel 4F B'!I145*100,"-")) -> -
A146: Komm. og Sprog | C146: =IF(OR('Tabel 4F B'!C146<5, 'Tabel 4 B'!C146<0.5),"-",IFERROR('Tabel 4 B'!C146/'Tabel 4F B'!C146*100,"-")) -> - | D146: =IF(OR('Tabel 4F B'!D146<5, 'Tabel 4 B'!D146<0.5),"-",IFERROR('Tabel 4 B'!D146/'Tabel 4F B'!D146*100,"-")) -> - | E146: =IF(OR('Tabel 4F B'!E146<5, 'Tabel 4 B'!E146<0.5),"-",IFERROR('Tabel 4 B'!E146/'Tabel 4F B'!E146*100,"-")) -> - | F146: =IF(OR('Tabel 4F B'!F146<5, 'Tabel 4 B'!F146<0.5),"-",IFERROR('Tabel 4 B'!F146/'Tabel 4F B'!F146*100,"-")) -> - | G146: =IF(OR('Tabel 4F B'!G146<5, 'Tabel 4 B'!G146<0.5),"-",IFERROR('Tabel 4 B'!G146/'Tabel 4F B'!G146*100,"-")) -> - | I146: =IF(OR('Tabel 4F B'!I146<5, 'Tabel 4 B'!I146<0.5),"-",IFERROR('Tabel 4 B'!I146/'Tabel 4F B'!I146*100,"-")) -> -
A147: Bygningskonst. | C147: =IF(OR('Tabel 4F B'!C147<5, 'Tabel 4 B'!C147<0.5),"-",IFERROR('Tabel 4 B'!C147/'Tabel 4F B'!C147*100,"-")) -> - | D147: =IF(OR('Tabel 4F B'!D147<5, 'Tabel 4 B'!D147<0.5),"-",IFERROR('Tabel 4 B'!D147/'Tabel 4F B'!D147*100,"-")) -> - | E147: =IF(OR('Tabel 4F B'!E147<5, 'Tabel 4 B'!E147<0.5),"-",IFERROR('Tabel 4 B'!E147/'Tabel 4F B'!E147*100,"-")) -> - | F147: =IF(OR('Tabel 4F B'!F147<5, 'Tabel 4 B'!F147<0.5),"-",IFERROR('Tabel 4 B'!F147/'Tabel 4F B'!F147*100,"-")) -> - | G147: =IF(OR('Tabel 4F B'!G147<5, 'Tabel 4 B'!G147<0.5),"-",IFERROR('Tabel 4 B'!G147/'Tabel 4F B'!G147*100,"-")) -> - | I147: =IF(OR('Tabel 4F B'!I147<5, 'Tabel 4 B'!I147<0.5),"-",IFERROR('Tabel 4 B'!I147/'Tabel 4F B'!I147*100,"-")) -> -
A148: Cand. IT. | C148: =IF(OR('Tabel 4F B'!C148<5, 'Tabel 4 B'!C148<0.5),"-",IFERROR('Tabel 4 B'!C148/'Tabel 4F B'!C148*100,"-")) -> - | D148: =IF(OR('Tabel 4F B'!D148<5, 'Tabel 4 B'!D148<0.5),"-",IFERROR('Tabel 4 B'!D148/'Tabel 4F B'!D148*100,"-")) -> - | E148: =IF(OR('Tabel 4F B'!E148<5, 'Tabel 4 B'!E148<0.5),"-",IFERROR('Tabel 4 B'!E148/'Tabel 4F B'!E148*100,"-")) -> - | F148: =IF(OR('Tabel 4F B'!F148<5, 'Tabel 4 B'!F148<0.5),"-",IFERROR('Tabel 4 B'!F148/'Tabel 4F B'!F148*100,"-")) -> - | G148: =IF(OR('Tabel 4F B'!G148<5, 'Tabel 4 B'!G148<0.5),"-",IFERROR('Tabel 4 B'!G148/'Tabel 4F B'!G148*100,"-")) -> - | I148: =IF(OR('Tabel 4F B'!I148<5, 'Tabel 4 B'!I148<0.5),"-",IFERROR('Tabel 4 B'!I148/'Tabel 4F B'!I148*100,"-")) -> -
A149: Bac. Samf. | C149: =IF(OR('Tabel 4F B'!C149<5, 'Tabel 4 B'!C149<0.5),"-",IFERROR('Tabel 4 B'!C149/'Tabel 4F B'!C149*100,"-")) -> - | D149: =IF(OR('Tabel 4F B'!D149<5, 'Tabel 4 B'!D149<0.5),"-",IFERROR('Tabel 4 B'!D149/'Tabel 4F B'!D149*100,"-")) -> - | E149: =IF(OR('Tabel 4F B'!E149<5, 'Tabel 4 B'!E149<0.5),"-",IFERROR('Tabel 4 B'!E149/'Tabel 4F B'!E149*100,"-")) -> - | F149: =IF(OR('Tabel 4F B'!F149<5, 'Tabel 4 B'!F149<0.5),"-",IFERROR('Tabel 4 B'!F149/'Tabel 4F B'!F149*100,"-")) -> - | G149: =IF(OR('Tabel 4F B'!G149<5, 'Tabel 4 B'!G149<0.5),"-",IFERROR('Tabel 4 B'!G149/'Tabel 4F B'!G149*100,"-")) -> - | I149: =IF(OR('Tabel 4F B'!I149<5, 'Tabel 4 B'!I149<0.5),"-",IFERROR('Tabel 4 B'!I149/'Tabel 4F B'!I149*100,"-")) -> -
A150: Bac. Hum. | C150: =IF(OR('Tabel 4F B'!C150<5, 'Tabel 4 B'!C150<0.5),"-",IFERROR('Tabel 4 B'!C150/'Tabel 4F B'!C150*100,"-")) -> - | D150: =IF(OR('Tabel 4F B'!D150<5, 'Tabel 4 B'!D150<0.5),"-",IFERROR('Tabel 4 B'!D150/'Tabel 4F B'!D150*100,"-")) -> - | E150: =IF(OR('Tabel 4F B'!E150<5, 'Tabel 4 B'!E150<0.5),"-",IFERROR('Tabel 4 B'!E150/'Tabel 4F B'!E150*100,"-")) -> - | F150: =IF(OR('Tabel 4F B'!F150<5, 'Tabel 4 B'!F150<0.5),"-",IFERROR('Tabel 4 B'!F150/'Tabel 4F B'!F150*100,"-")) -> - | G150: =IF(OR('Tabel 4F B'!G150<5, 'Tabel 4 B'!G150<0.5),"-",IFERROR('Tabel 4 B'!G150/'Tabel 4F B'!G150*100,"-")) -> - | I150: =IF(OR('Tabel 4F B'!I150<5, 'Tabel 4 B'!I150<0.5),"-",IFERROR('Tabel 4 B'!I150/'Tabel 4F B'!I150*100,"-")) -> -
A151: Bac. Nat. | C151: =IF(OR('Tabel 4F B'!C151<5, 'Tabel 4 B'!C151<0.5),"-",IFERROR('Tabel 4 B'!C151/'Tabel 4F B'!C151*100,"-")) -> - | D151: =IF(OR('Tabel 4F B'!D151<5, 'Tabel 4 B'!D151<0.5),"-",IFERROR('Tabel 4 B'!D151/'Tabel 4F B'!D151*100,"-")) -> - | E151: =IF(OR('Tabel 4F B'!E151<5, 'Tabel 4 B'!E151<0.5),"-",IFERROR('Tabel 4 B'!E151/'Tabel 4F B'!E151*100,"-")) -> - | F151: =IF(OR('Tabel 4F B'!F151<5, 'Tabel 4 B'!F151<0.5),"-",IFERROR('Tabel 4 B'!F151/'Tabel 4F B'!F151*100,"-")) -> - | G151: =IF(OR('Tabel 4F B'!G151<5, 'Tabel 4 B'!G151<0.5),"-",IFERROR('Tabel 4 B'!G151/'Tabel 4F B'!G151*100,"-")) -> - | I151: =IF(OR('Tabel 4F B'!I151<5, 'Tabel 4 B'!I151<0.5),"-",IFERROR('Tabel 4 B'!I151/'Tabel 4F B'!I151*100,"-")) -> -
A152: Andre | C152: =IF(OR('Tabel 4F B'!C152<5, 'Tabel 4 B'!C152<0.5),"-",IFERROR('Tabel 4 B'!C152/'Tabel 4F B'!C152*100,"-")) -> - | D152: =IF(OR('Tabel 4F B'!D152<5, 'Tabel 4 B'!D152<0.5),"-",IFERROR('Tabel 4 B'!D152/'Tabel 4F B'!D152*100,"-")) -> - | E152: =IF(OR('Tabel 4F B'!E152<5, 'Tabel 4 B'!E152<0.5),"-",IFERROR('Tabel 4 B'!E152/'Tabel 4F B'!E152*100,"-")) -> - | F152: =IF(OR('Tabel 4F B'!F152<5, 'Tabel 4 B'!F152<0.5),"-",IFERROR('Tabel 4 B'!F152/'Tabel 4F B'!F152*100,"-")) -> - | G152: =IF(OR('Tabel 4F B'!G152<5, 'Tabel 4 B'!G152<0.5),"-",IFERROR('Tabel 4 B'!G152/'Tabel 4F B'!G152*100,"-")) -> - | I152: =IF(OR('Tabel 4F B'!I152<5, 'Tabel 4 B'!I152<0.5),"-",IFERROR('Tabel 4 B'!I152/'Tabel 4F B'!I152*100,"-")) -> -
A154: Total | C154: =IF(OR('Tabel 4F B'!C154<5, 'Tabel 4 B'!C154<0.5),"-",IFERROR('Tabel 4 B'!C154/'Tabel 4F B'!C154*100,"-")) -> - | D154: =IF(OR('Tabel 4F B'!D154<5, 'Tabel 4 B'!D154<0.5),"-",IFERROR('Tabel 4 B'!D154/'Tabel 4F B'!D154*100,"-")) -> - | E154: =IF(OR('Tabel 4F B'!E154<5, 'Tabel 4 B'!E154<0.5),"-",IFERROR('Tabel 4 B'!E154/'Tabel 4F B'!E154*100,"-")) -> - | F154: =IF(OR('Tabel 4F B'!F154<5, 'Tabel 4 B'!F154<0.5),"-",IFERROR('Tabel 4 B'!F154/'Tabel 4F B'!F154*100,"-")) -> - | G154: =IF(OR('Tabel 4F B'!G154<5, 'Tabel 4 B'!G154<0.5),"-",IFERROR('Tabel 4 B'!G154/'Tabel 4F B'!G154*100,"-")) -> - | I154: =IF(OR('Tabel 4F B'!I154<5, 'Tabel 4 B'!I154<0.5),"-",IFERROR('Tabel 4 B'!I154/'Tabel 4F B'!I154*100,"-")) -> -
A156: Ingeniører i alt | C156: =IF(OR('Tabel 4F B'!C156<5, 'Tabel 4 B'!C156<0.5),"-",IFERROR('Tabel 4 B'!C156/'Tabel 4F B'!C156*100,"-")) -> - | D156: =IF(OR('Tabel 4F B'!D156<5, 'Tabel 4 B'!D156<0.5),"-",IFERROR('Tabel 4 B'!D156/'Tabel 4F B'!D156*100,"-")) -> - | E156: =IF(OR('Tabel 4F B'!E156<5, 'Tabel 4 B'!E156<0.5),"-",IFERROR('Tabel 4 B'!E156/'Tabel 4F B'!E156*100,"-")) -> - | F156: =IF(OR('Tabel 4F B'!F156<5, 'Tabel 4 B'!F156<0.5),"-",IFERROR('Tabel 4 B'!F156/'Tabel 4F B'!F156*100,"-")) -> - | G156: =IF(OR('Tabel 4F B'!G156<5, 'Tabel 4 B'!G156<0.5),"-",IFERROR('Tabel 4 B'!G156/'Tabel 4F B'!G156*100,"-")) -> - | I156: =IF(OR('Tabel 4F B'!I156<5, 'Tabel 4 B'!I156<0.5),"-",IFERROR('Tabel 4 B'!I156/'Tabel 4F B'!I156*100,"-")) -> -
A157: Magistre i alt | C157: =IF(OR('Tabel 4F B'!C157<5, 'Tabel 4 B'!C157<0.5),"-",IFERROR('Tabel 4 B'!C157/'Tabel 4F B'!C157*100,"-")) -> - | D157: =IF(OR('Tabel 4F B'!D157<5, 'Tabel 4 B'!D157<0.5),"-",IFERROR('Tabel 4 B'!D157/'Tabel 4F B'!D157*100,"-")) -> - | E157: =IF(OR('Tabel 4F B'!E157<5, 'Tabel 4 B'!E157<0.5),"-",IFERROR('Tabel 4 B'!E157/'Tabel 4F B'!E157*100,"-")) -> - | F157: =IF(OR('Tabel 4F B'!F157<5, 'Tabel 4 B'!F157<0.5),"-",IFERROR('Tabel 4 B'!F157/'Tabel 4F B'!F157*100,"-")) -> - | G157: =IF(OR('Tabel 4F B'!G157<5, 'Tabel 4 B'!G157<0.5),"-",IFERROR('Tabel 4 B'!G157/'Tabel 4F B'!G157*100,"-")) -> - | I157: =IF(OR('Tabel 4F B'!I157<5, 'Tabel 4 B'!I157<0.5),"-",IFERROR('Tabel 4 B'!I157/'Tabel 4F B'!I157*100,"-")) -> -
A158: DJØF'ere i alt | C158: =IF(OR('Tabel 4F B'!C158<5, 'Tabel 4 B'!C158<0.5),"-",IFERROR('Tabel 4 B'!C158/'Tabel 4F B'!C158*100,"-")) -> - | D158: =IF(OR('Tabel 4F B'!D158<5, 'Tabel 4 B'!D158<0.5),"-",IFERROR('Tabel 4 B'!D158/'Tabel 4F B'!D158*100,"-")) -> - | E158: =IF(OR('Tabel 4F B'!E158<5, 'Tabel 4 B'!E158<0.5),"-",IFERROR('Tabel 4 B'!E158/'Tabel 4F B'!E158*100,"-")) -> - | F158: =IF(OR('Tabel 4F B'!F158<5, 'Tabel 4 B'!F158<0.5),"-",IFERROR('Tabel 4 B'!F158/'Tabel 4F B'!F158*100,"-")) -> - | G158: =IF(OR('Tabel 4F B'!G158<5, 'Tabel 4 B'!G158<0.5),"-",IFERROR('Tabel 4 B'!G158/'Tabel 4F B'!G158*100,"-")) -> - | I158: =IF(OR('Tabel 4F B'!I158<5, 'Tabel 4 B'!I158<0.5),"-",IFERROR('Tabel 4 B'!I158/'Tabel 4F B'!I158*100,"-")) -> -

Sheet Tabel 4(Br)P B
A1: Tabel 4. Ledighedsberørte - aldersfordelt
A3: Bornholm
C5: Under 30 år | D5: 30 - 39 år | E5: 40 - 49 år | F5: 50 - 59 år | G5: Over 60 år | I5: I alt
A7: Civ. ing. | C7: =IF(OR('Tabel 4F B'!C7<5,'Tabel 4(Br) B'!C7<0.5),"-",IFERROR('Tabel 4(Br) B'!C7/'Tabel 4F B'!C7*100,"-")) -> - | D7: =IF(OR('Tabel 4F B'!D7<5,'Tabel 4(Br) B'!D7<0.5),"-",IFERROR('Tabel 4(Br) B'!D7/'Tabel 4F B'!D7*100,"-")) -> 15.38173671 | E7: =IF(OR('Tabel 4F B'!E7<5,'Tabel 4(Br) B'!E7<0.5),"-",IFERROR('Tabel 4(Br) B'!E7/'Tabel 4F B'!E7*100,"-")) -> 11.10903207 | F7: =IF(OR('Tabel 4F B'!F7<5,'Tabel 4(Br) B'!F7<0.5),"-",IFERROR('Tabel 4(Br) B'!F7/'Tabel 4F B'!F7*100,"-")) -> - | G7: =IF(OR('Tabel 4F B'!G7<5,'Tabel 4(Br) B'!G7<0.5),"-",IFERROR('Tabel 4(Br) B'!G7/'Tabel 4F B'!G7*100,"-")) -> - | I7: =IF(OR('Tabel 4F B'!I7<5,'Tabel 4(Br) B'!I7<0.5),"-",IFERROR('Tabel 4(Br) B'!I7/'Tabel 4F B'!I7*100,"-")) -> 8.821878405
A8: Diplom ing. | C8: =IF(OR('Tabel 4F B'!C8<5,'Tabel 4(Br) B'!C8<0.5),"-",IFERROR('Tabel 4(Br) B'!C8/'Tabel 4F B'!C8*100,"-")) -> - | D8: =IF(OR('Tabel 4F B'!D8<5,'Tabel 4(Br) B'!D8<0.5),"-",IFERROR('Tabel 4(Br) B'!D8/'Tabel 4F B'!D8*100,"-")) -> 5.483881801 | E8: =IF(OR('Tabel 4F B'!E8<5,'Tabel 4(Br) B'!E8<0.5),"-",IFERROR('Tabel 4(Br) B'!E8/'Tabel 4F B'!E8*100,"-")) -> - | F8: =IF(OR('Tabel 4F B'!F8<5,'Tabel 4(Br) B'!F8<0.5),"-",IFERROR('Tabel 4(Br) B'!F8/'Tabel 4F B'!F8*100,"-")) -> 9.089208054 | G8: =IF(OR('Tabel 4F B'!G8<5,'Tabel 4(Br) B'!G8<0.5),"-",IFERROR('Tabel 4(Br) B'!G8/'Tabel 4F B'!G8*100,"-")) -> - | I8: =IF(OR('Tabel 4F B'!I8<5,'Tabel 4(Br) B'!I8<0.5),"-",IFERROR('Tabel 4(Br) B'!I8/'Tabel 4F B'!I8*100,"-")) -> 4.305603819
A9: Cand. Scient. Tek | C9: =IF(OR('Tabel 4F B'!C9<5,'Tabel 4(Br) B'!C9<0.5),"-",IFERROR('Tabel 4(Br) B'!C9/'Tabel 4F B'!C9*100,"-")) -> - | D9: =IF(OR('Tabel 4F B'!D9<5,'Tabel 4(Br) B'!D9<0.5),"-",IFERROR('Tabel 4(Br) B'!D9/'Tabel 4F B'!D9*100,"-")) -> 21.50711217 | E9: =IF(OR('Tabel 4F B'!E9<5,'Tabel 4(Br) B'!E9<0.5),"-",IFERROR('Tabel 4(Br) B'!E9/'Tabel 4F B'!E9*100,"-")) -> - | F9: =IF(OR('Tabel 4F B'!F9<5,'Tabel 4(Br) B'!F9<0.5),"-",IFERROR('Tabel 4(Br) B'!F9/'Tabel 4F B'!F9*100,"-")) -> - | G9: =IF(OR('Tabel 4F B'!G9<5,'Tabel 4(Br) B'!G9<0.5),"-",IFERROR('Tabel 4(Br) B'!G9/'Tabel 4F B'!G9*100,"-")) -> - | I9: =IF(OR('Tabel 4F B'!I9<5,'Tabel 4(Br) B'!I9<0.5),"-",IFERROR('Tabel 4(Br) B'!I9/'Tabel 4F B'!I9*100,"-")) -> 15.99287676
A10: MA. Hum. | C10: =IF(OR('Tabel 4F B'!C10<5,'Tabel 4(Br) B'!C10<0.5),"-",IFERROR('Tabel 4(Br) B'!C10/'Tabel 4F B'!C10*100,"-")) -> 33.3270962 | D10: =IF(OR('Tabel 4F B'!D10<5,'Tabel 4(Br) B'!D10<0.5),"-",IFERROR('Tabel 4(Br) B'!D10/'Tabel 4F B'!D10*100,"-")) -> 10.00136293 | E10: =IF(OR('Tabel 4F B'!E10<5,'Tabel 4(Br) B'!E10<0.5),"-",IFERROR('Tabel 4(Br) B'!E10/'Tabel 4F B'!E10*100,"-")) -> 21.78839477 | F10: =IF(OR('Tabel 4F B'!F10<5,'Tabel 4(Br) B'!F10<0.5),"-",IFERROR('Tabel 4(Br) B'!F10/'Tabel 4F B'!F10*100,"-")) -> 4.99906443 | G10: =IF(OR('Tabel 4F B'!G10<5,'Tabel 4(Br) B'!G10<0.5),"-",IFERROR('Tabel 4(Br) B'!G10/'Tabel 4F B'!G10*100,"-")) -> 20.5898863 | I10: =IF(OR('Tabel 4F B'!I10<5,'Tabel 4(Br) B'!I10<0.5),"-",IFERROR('Tabel 4(Br) B'!I10/'Tabel 4F B'!I10*100,"-")) -> 14.34138863
A11: MA. Nat. | C11: =IF(OR('Tabel 4F B'!C11<5,'Tabel 4(Br) B'!C11<0.5),"-",IFERROR('Tabel 4(Br) B'!C11/'Tabel 4F B'!C11*100,"-")) -> - | D11: =IF(OR('Tabel 4F B'!D11<5,'Tabel 4(Br) B'!D11<0.5),"-",IFERROR('Tabel 4(Br) B'!D11/'Tabel 4F B'!D11*100,"-")) -> - | E11: =IF(OR('Tabel 4F B'!E11<5,'Tabel 4(Br) B'!E11<0.5),"-",IFERROR('Tabel 4(Br) B'!E11/'Tabel 4F B'!E11*100,"-")) -> 11.76250454 | F11: =IF(OR('Tabel 4F B'!F11<5,'Tabel 4(Br) B'!F11<0.5),"-",IFERROR('Tabel 4(Br) B'!F11/'Tabel 4F B'!F11*100,"-")) -> - | G11: =IF(OR('Tabel 4F B'!G11<5,'Tabel 4(Br) B'!G11<0.5),"-",IFERROR('Tabel 4(Br) B'!G11/'Tabel 4F B'!G11*100,"-")) -> 16.6635481 | I11: =IF(OR('Tabel 4F B'!I11<5,'Tabel 4(Br) B'!I11<0.5),"-",IFERROR('Tabel 4(Br) B'!I11/'Tabel 4F B'!I11*100,"-")) -> 6.520518821
A12: MA. Ph.d. | C12: =IF(OR('Tabel 4F B'!C12<5,'Tabel 4(Br) B'!C12<0.5),"-",IFERROR('Tabel 4(Br) B'!C12/'Tabel 4F B'!C12*100,"-")) -> - | D12: =IF(OR('Tabel 4F B'!D12<5,'Tabel 4(Br) B'!D12<0.5),"-",IFERROR('Tabel 4(Br) B'!D12/'Tabel 4F B'!D12*100,"-")) -> - | E12: =IF(OR('Tabel 4F B'!E12<5,'Tabel 4(Br) B'!E12<0.5),"-",IFERROR('Tabel 4(Br) B'!E12/'Tabel 4F B'!E12*100,"-")) -> - | F12: =IF(OR('Tabel 4F B'!F12<5,'Tabel 4(Br) B'!F12<0.5),"-",IFERROR('Tabel 4(Br) B'!F12/'Tabel 4F B'!F12*100,"-")) -> - | G12: =IF(OR('Tabel 4F B'!G12<5,'Tabel 4(Br) B'!G12<0.5),"-",IFERROR('Tabel 4(Br) B'!G12/'Tabel 4F B'!G12*100,"-")) -> - | I12: =IF(OR('Tabel 4F B'!I12<5,'Tabel 4(Br) B'!I12<0.5),"-",IFERROR('Tabel 4(Br) B'!I12/'Tabel 4F B'!I12*100,"-")) -> 14.28304123
A13: MA. Samf. | C13: =IF(OR('Tabel 4F B'!C13<5,'Tabel 4(Br) B'!C13<0.5),"-",IFERROR('Tabel 4(Br) B'!C13/'Tabel 4F B'!C13*100,"-")) -> - | D13: =IF(OR('Tabel 4F B'!D13<5,'Tabel 4(Br) B'!D13<0.5),"-",IFERROR('Tabel 4(Br) B'!D13/'Tabel 4F B'!D13*100,"-")) -> - | E13: =IF(OR('Tabel 4F B'!E13<5,'Tabel 4(Br) B'!E13<0.5),"-",IFERROR('Tabel 4(Br) B'!E13/'Tabel 4F B'!E13*100,"-")) -> - | F13: =IF(OR('Tabel 4F B'!F13<5,'Tabel 4(Br) B'!F13<0.5),"-",IFERROR('Tabel 4(Br) B'!F13/'Tabel 4F B'!F13*100,"-")) -> - | G13: =IF(OR('Tabel 4F B'!G13<5,'Tabel 4(Br) B'!G13<0.5),"-",IFERROR('Tabel 4(Br) B'!G13/'Tabel 4F B'!G13*100,"-")) -> - | I13: =IF(OR('Tabel 4F B'!I13<5,'Tabel 4(Br) B'!I13<0.5),"-",IFERROR('Tabel 4(Br) B'!I13/'Tabel 4F B'!I13*100,"-")) -> 12.49766107
A14: Øvrige Mag. | C14: =IF(OR('Tabel 4F B'!C14<5,'Tabel 4(Br) B'!C14<0.5),"-",IFERROR('Tabel 4(Br) B'!C14/'Tabel 4F B'!C14*100,"-")) -> - | D14: =IF(OR('Tabel 4F B'!D14<5,'Tabel 4(Br) B'!D14<0.5),"-",IFERROR('Tabel 4(Br) B'!D14/'Tabel 4F B'!D14*100,"-")) -> 48.45215077 | E14: =IF(OR('Tabel 4F B'!E14<5,'Tabel 4(Br) B'!E14<0.5),"-",IFERROR('Tabel 4(Br) B'!E14/'Tabel 4F B'!E14*100,"-")) -> 39.99251544 | F14: =IF(OR('Tabel 4F B'!F14<5,'Tabel 4(Br) B'!F14<0.5),"-",IFERROR('Tabel 4(Br) B'!F14/'Tabel 4F B'!F14*100,"-")) -> - | G14: =IF(OR('Tabel 4F B'!G14<5,'Tabel 4(Br) B'!G14<0.5),"-",IFERROR('Tabel 4(Br) B'!G14/'Tabel 4F B'!G14*100,"-")) -> - | I14: =IF(OR('Tabel 4F B'!I14<5,'Tabel 4(Br) B'!I14<0.5),"-",IFERROR('Tabel 4(Br) B'!I14/'Tabel 4F B'!I14*100,"-")) -> 28.86326364
A15: Agronom | C15: =IF(OR('Tabel 4F B'!C15<5,'Tabel 4(Br) B'!C15<0.5),"-",IFERROR('Tabel 4(Br) B'!C15/'Tabel 4F B'!C15*100,"-")) -> - | D15: =IF(OR('Tabel 4F B'!D15<5,'Tabel 4(Br) B'!D15<0.5),"-",IFERROR('Tabel 4(Br) B'!D15/'Tabel 4F B'!D15*100,"-")) -> - | E15: =IF(OR('Tabel 4F B'!E15<5,'Tabel 4(Br) B'!E15<0.5),"-",IFERROR('Tabel 4(Br) B'!E15/'Tabel 4F B'!E15*100,"-")) -> - | F15: =IF(OR('Tabel 4F B'!F15<5,'Tabel 4(Br) B'!F15<0.5),"-",IFERROR('Tabel 4(Br) B'!F15/'Tabel 4F B'!F15*100,"-")) -> - | G15: =IF(OR('Tabel 4F B'!G15<5,'Tabel 4(Br) B'!G15<0.5),"-",IFERROR('Tabel 4(Br) B'!G15/'Tabel 4F B'!G15*100,"-")) -> - | I15: =IF(OR('Tabel 4F B'!I15<5,'Tabel 4(Br) B'!I15<0.5),"-",IFERROR('Tabel 4(Br) B'!I15/'Tabel 4F B'!I15*100,"-")) -> -
A16: Landsk. Arkt. | C16: =IF(OR('Tabel 4F B'!C16<5,'Tabel 4(Br) B'!C16<0.5),"-",IFERROR('Tabel 4(Br) B'!C16/'Tabel 4F B'!C16*100,"-")) -> - | D16: =IF(OR('Tabel 4F B'!D16<5,'Tabel 4(Br) B'!D16<0.5),"-",IFERROR('Tabel 4(Br) B'!D16/'Tabel 4F B'!D16*100,"-")) -> - | E16: =IF(OR('Tabel 4F B'!E16<5,'Tabel 4(Br) B'!E16<0.5),"-",IFERROR('Tabel 4(Br) B'!E16/'Tabel 4F B'!E16*100,"-")) -> - | F16: =IF(OR('Tabel 4F B'!F16<5,'Tabel 4(Br) B'!F16<0.5),"-",IFERROR('Tabel 4(Br) B'!F16/'Tabel 4F B'!F16*100,"-")) -> - | G16: =IF(OR('Tabel 4F B'!G16<5,'Tabel 4(Br) B'!G16<0.5),"-",IFERROR('Tabel 4(Br) B'!G16/'Tabel 4F B'!G16*100,"-")) -> - | I16: =IF(OR('Tabel 4F B'!I16<5,'Tabel 4(Br) B'!I16<0.5),"-",IFERROR('Tabel 4(Br) B'!I16/'Tabel 4F B'!I16*100,"-")) -> -
A17: Hortonom | C17: =IF(OR('Tabel 4F B'!C17<5,'Tabel 4(Br) B'!C17<0.5),"-",IFERROR('Tabel 4(Br) B'!C17/'Tabel 4F B'!C17*100,"-")) -> - | D17: =IF(OR('Tabel 4F B'!D17<5,'Tabel 4(Br) B'!D17<0.5),"-",IFERROR('Tabel 4(Br) B'!D17/'Tabel 4F B'!D17*100,"-")) -> - | E17: =IF(OR('Tabel 4F B'!E17<5,'Tabel 4(Br) B'!E17<0.5),"-",IFERROR('Tabel 4(Br) B'!E17/'Tabel 4F B'!E17*100,"-")) -> - | F17: =IF(OR('Tabel 4F B'!F17<5,'Tabel 4(Br) B'!F17<0.5),"-",IFERROR('Tabel 4(Br) B'!F17/'Tabel 4F B'!F17*100,"-")) -> - | G17: =IF(OR('Tabel 4F B'!G17<5,'Tabel 4(Br) B'!G17<0.5),"-",IFERROR('Tabel 4(Br) B'!G17/'Tabel 4F B'!G17*100,"-")) -> - | I17: =IF(OR('Tabel 4F B'!I17<5,'Tabel 4(Br) B'!I17<0.5),"-",IFERROR('Tabel 4(Br) B'!I17/'Tabel 4F B'!I17*100,"-")) -> -
A18: Forstkand. | C18: =IF(OR('Tabel 4F B'!C18<5,'Tabel 4(Br) B'!C18<0.5),"-",IFERROR('Tabel 4(Br) B'!C18/'Tabel 4F B'!C18*100,"-")) -> - | D18: =IF(OR('Tabel 4F B'!D18<5,'Tabel 4(Br) B'!D18<0.5),"-",IFERROR('Tabel 4(Br) B'!D18/'Tabel 4F B'!D18*100,"-")) -> - | E18: =IF(OR('Tabel 4F B'!E18<5,'Tabel 4(Br) B'!E18<0.5),"-",IFERROR('Tabel 4(Br) B'!E18/'Tabel 4F B'!E18*100,"-")) -> - | F18: =IF(OR('Tabel 4F B'!F18<5,'Tabel 4(Br) B'!F18<0.5),"-",IFERROR('Tabel 4(Br) B'!F18/'Tabel 4F B'!F18*100,"-")) -> - | G18: =IF(OR('Tabel 4F B'!G18<5,'Tabel 4(Br) B'!G18<0.5),"-",IFERROR('Tabel 4(Br) B'!G18/'Tabel 4F B'!G18*100,"-")) -> - | I18: =IF(OR('Tabel 4F B'!I18<5,'Tabel 4(Br) B'!I18<0.5),"-",IFERROR('Tabel 4(Br) B'!I18/'Tabel 4F B'!I18*100,"-")) -> -
A19: Jordbrugsakad. | C19: =IF(OR('Tabel 4F B'!C19<5,'Tabel 4(Br) B'!C19<0.5),"-",IFERROR('Tabel 4(Br) B'!C19/'Tabel 4F B'!C19*100,"-")) -> - | D19: =IF(OR('Tabel 4F B'!D19<5,'Tabel 4(Br) B'!D19<0.5),"-",IFERROR('Tabel 4(Br) B'!D19/'Tabel 4F B'!D19*100,"-")) -> - | E19: =IF(OR('Tabel 4F B'!E19<5,'Tabel 4(Br) B'!E19<0.5),"-",IFERROR('Tabel 4(Br) B'!E19/'Tabel 4F B'!E19*100,"-")) -> - | F19: =IF(OR('Tabel 4F B'!F19<5,'Tabel 4(Br) B'!F19<0.5),"-",IFERROR('Tabel 4(Br) B'!F19/'Tabel 4F B'!F19*100,"-")) -> - | G19: =IF(OR('Tabel 4F B'!G19<5,'Tabel 4(Br) B'!G19<0.5),"-",IFERROR('Tabel 4(Br) B'!G19/'Tabel 4F B'!G19*100,"-")) -> - | I19: =IF(OR('Tabel 4F B'!I19<5,'Tabel 4(Br) B'!I19<0.5),"-",IFERROR('Tabel 4(Br) B'!I19/'Tabel 4F B'!I19*100,"-")) -> -
A20: Mejeriing. | C20: =IF(OR('Tabel 4F B'!C20<5,'Tabel 4(Br) B'!C20<0.5),"-",IFERROR('Tabel 4(Br) B'!C20/'Tabel 4F B'!C20*100,"-")) -> - | D20: =IF(OR('Tabel 4F B'!D20<5,'Tabel 4(Br) B'!D20<0.5),"-",IFERROR('Tabel 4(Br) B'!D20/'Tabel 4F B'!D20*100,"-")) -> - | E20: =IF(OR('Tabel 4F B'!E20<5,'Tabel 4(Br) B'!E20<0.5),"-",IFERROR('Tabel 4(Br) B'!E20/'Tabel 4F B'!E20*100,"-")) -> - | F20: =IF(OR('Tabel 4F B'!F20<5,'Tabel 4(Br) B'!F20<0.5),"-",IFERROR('Tabel 4(Br) B'!F20/'Tabel 4F B'!F20*100,"-")) -> - | G20: =IF(OR('Tabel 4F B'!G20<5,'Tabel 4(Br) B'!G20<0.5),"-",IFERROR('Tabel 4(Br) B'!G20/'Tabel 4F B'!G20*100,"-")) -> - | I20: =IF(OR('Tabel 4F B'!I20<5,'Tabel 4(Br) B'!I20<0.5),"-",IFERROR('Tabel 4(Br) B'!I20/'Tabel 4F B'!I20*100,"-")) -> -
A21: Levn.m.kand. | C21: =IF(OR('Tabel 4F B'!C21<5,'Tabel 4(Br) B'!C21<0.5),"-",IFERROR('Tabel 4(Br) B'!C21/'Tabel 4F B'!C21*100,"-")) -> - | D21: =IF(OR('Tabel 4F B'!D21<5,'Tabel 4(Br) B'!D21<0.5),"-",IFERROR('Tabel 4(Br) B'!D21/'Tabel 4F B'!D21*100,"-")) -> - | E21: =IF(OR('Tabel 4F B'!E21<5,'Tabel 4(Br) B'!E21<0.5),"-",IFERROR('Tabel 4(Br) B'!E21/'Tabel 4F B'!E21*100,"-")) -> - | F21: =IF(OR('Tabel 4F B'!F21<5,'Tabel 4(Br) B'!F21<0.5),"-",IFERROR('Tabel 4(Br) B'!F21/'Tabel 4F B'!F21*100,"-")) -> - | G21: =IF(OR('Tabel 4F B'!G21<5,'Tabel 4(Br) B'!G21<0.5),"-",IFERROR('Tabel 4(Br) B'!G21/'Tabel 4F B'!G21*100,"-")) -> - | I21: =IF(OR('Tabel 4F B'!I21<5,'Tabel 4(Br) B'!I21<0.5),"-",IFERROR('Tabel 4(Br) B'!I21/'Tabel 4F B'!I21*100,"-")) -> -
A22: Dyrlæge | C22: =IF(OR('Tabel 4F B'!C22<5,'Tabel 4(Br) B'!C22<0.5),"-",IFERROR('Tabel 4(Br) B'!C22/'Tabel 4F B'!C22*100,"-")) -> - | D22: =IF(OR('Tabel 4F B'!D22<5,'Tabel 4(Br) B'!D22<0.5),"-",IFERROR('Tabel 4(Br) B'!D22/'Tabel 4F B'!D22*100,"-")) -> - | E22: =IF(OR('Tabel 4F B'!E22<5,'Tabel 4(Br) B'!E22<0.5),"-",IFERROR('Tabel 4(Br) B'!E22/'Tabel 4F B'!E22*100,"-")) -> - | F22: =IF(OR('Tabel 4F B'!F22<5,'Tabel 4(Br) B'!F22<0.5),"-",IFERROR('Tabel 4(Br) B'!F22/'Tabel 4F B'!F22*100,"-")) -> - | G22: =IF(OR('Tabel 4F B'!G22<5,'Tabel 4(Br) B'!G22<0.5),"-",IFERROR('Tabel 4(Br) B'!G22/'Tabel 4F B'!G22*100,"-")) -> - | I22: =IF(OR('Tabel 4F B'!I22<5,'Tabel 4(Br) B'!I22<0.5),"-",IFERROR('Tabel 4(Br) B'!I22/'Tabel 4F B'!I22*100,"-")) -> 3.844748777
A23: Farmaceut | C23: =IF(OR('Tabel 4F B'!C23<5,'Tabel 4(Br) B'!C23<0.5),"-",IFERROR('Tabel 4(Br) B'!C23/'Tabel 4F B'!C23*100,"-")) -> - | D23: =IF(OR('Tabel 4F B'!D23<5,'Tabel 4(Br) B'!D23<0.5),"-",IFERROR('Tabel 4(Br) B'!D23/'Tabel 4F B'!D23*100,"-")) -> - | E23: =IF(OR('Tabel 4F B'!E23<5,'Tabel 4(Br) B'!E23<0.5),"-",IFERROR('Tabel 4(Br) B'!E23/'Tabel 4F B'!E23*100,"-")) -> - | F23: =IF(OR('Tabel 4F B'!F23<5,'Tabel 4(Br) B'!F23<0.5),"-",IFERROR('Tabel 4(Br) B'!F23/'Tabel 4F B'!F23*100,"-")) -> - | G23: =IF(OR('Tabel 4F B'!G23<5,'Tabel 4(Br) B'!G23<0.5),"-",IFERROR('Tabel 4(Br) B'!G23/'Tabel 4F B'!G23*100,"-")) -> - | I23: =IF(OR('Tabel 4F B'!I23<5,'Tabel 4(Br) B'!I23<0.5),"-",IFERROR('Tabel 4(Br) B'!I23/'Tabel 4F B'!I23*100,"-")) -> -
A24: Læge | C24: =IF(OR('Tabel 4F B'!C24<5,'Tabel 4(Br) B'!C24<0.5),"-",IFERROR('Tabel 4(Br) B'!C24/'Tabel 4F B'!C24*100,"-")) -> - | D24: =IF(OR('Tabel 4F B'!D24<5,'Tabel 4(Br) B'!D24<0.5),"-",IFERROR('Tabel 4(Br) B'!D24/'Tabel 4F B'!D24*100,"-")) -> - | E24: =IF(OR('Tabel 4F B'!E24<5,'Tabel 4(Br) B'!E24<0.5),"-",IFERROR('Tabel 4(Br) B'!E24/'Tabel 4F B'!E24*100,"-")) -> - | F24: =IF(OR('Tabel 4F B'!F24<5,'Tabel 4(Br) B'!F24<0.5),"-",IFERROR('Tabel 4(Br) B'!F24/'Tabel 4F B'!F24*100,"-")) -> - | G24: =IF(OR('Tabel 4F B'!G24<5,'Tabel 4(Br) B'!G24<0.5),"-",IFERROR('Tabel 4(Br) B'!G24/'Tabel 4F B'!G24*100,"-")) -> - | I24: =IF(OR('Tabel 4F B'!I24<5,'Tabel 4(Br) B'!I24<0.5),"-",IFERROR('Tabel 4(Br) B'!I24/'Tabel 4F B'!I24*100,"-")) -> -
A25: Tandlæge | C25: =IF(OR('Tabel 4F B'!C25<5,'Tabel 4(Br) B'!C25<0.5),"-",IFERROR('Tabel 4(Br) B'!C25/'Tabel 4F B'!C25*100,"-")) -> - | D25: =IF(OR('Tabel 4F B'!D25<5,'Tabel 4(Br) B'!D25<0.5),"-",IFERROR('Tabel 4(Br) B'!D25/'Tabel 4F B'!D25*100,"-")) -> - | E25: =IF(OR('Tabel 4F B'!E25<5,'Tabel 4(Br) B'!E25<0.5),"-",IFERROR('Tabel 4(Br) B'!E25/'Tabel 4F B'!E25*100,"-")) -> - | F25: =IF(OR('Tabel 4F B'!F25<5,'Tabel 4(Br) B'!F25<0.5),"-",IFERROR('Tabel 4(Br) B'!F25/'Tabel 4F B'!F25*100,"-")) -> - | G25: =IF(OR('Tabel 4F B'!G25<5,'Tabel 4(Br) B'!G25<0.5),"-",IFERROR('Tabel 4(Br) B'!G25/'Tabel 4F B'!G25*100,"-")) -> - | I25: =IF(OR('Tabel 4F B'!I25<5,'Tabel 4(Br) B'!I25<0.5),"-",IFERROR('Tabel 4(Br) B'!I25/'Tabel 4F B'!I25*100,"-")) -> -
A26: Arkitekt | C26: =IF(OR('Tabel 4F B'!C26<5,'Tabel 4(Br) B'!C26<0.5),"-",IFERROR('Tabel 4(Br) B'!C26/'Tabel 4F B'!C26*100,"-")) -> - | D26: =IF(OR('Tabel 4F B'!D26<5,'Tabel 4(Br) B'!D26<0.5),"-",IFERROR('Tabel 4(Br) B'!D26/'Tabel 4F B'!D26*100,"-")) -> - | E26: =IF(OR('Tabel 4F B'!E26<5,'Tabel 4(Br) B'!E26<0.5),"-",IFERROR('Tabel 4(Br) B'!E26/'Tabel 4F B'!E26*100,"-")) -> - | F26: =IF(OR('Tabel 4F B'!F26<5,'Tabel 4(Br) B'!F26<0.5),"-",IFERROR('Tabel 4(Br) B'!F26/'Tabel 4F B'!F26*100,"-")) -> - | G26: =IF(OR('Tabel 4F B'!G26<5,'Tabel 4(Br) B'!G26<0.5),"-",IFERROR('Tabel 4(Br) B'!G26/'Tabel 4F B'!G26*100,"-")) -> - | I26: =IF(OR('Tabel 4F B'!I26<5,'Tabel 4(Br) B'!I26<0.5),"-",IFERROR('Tabel 4(Br) B'!I26/'Tabel 4F B'!I26*100,"-")) -> 7.141520614
A27: Landinspek. | C27: =IF(OR('Tabel 4F B'!C27<5,'Tabel 4(Br) B'!C27<0.5),"-",IFERROR('Tabel 4(Br) B'!C27/'Tabel 4F B'!C27*100,"-")) -> - | D27: =IF(OR('Tabel 4F B'!D27<5,'Tabel 4(Br) B'!D27<0.5),"-",IFERROR('Tabel 4(Br) B'!D27/'Tabel 4F B'!D27*100,"-")) -> - | E27: =IF(OR('Tabel 4F B'!E27<5,'Tabel 4(Br) B'!E27<0.5),"-",IFERROR('Tabel 4(Br) B'!E27/'Tabel 4F B'!E27*100,"-")) -> - | F27: =IF(OR('Tabel 4F B'!F27<5,'Tabel 4(Br) B'!F27<0.5),"-",IFERROR('Tabel 4(Br) B'!F27/'Tabel 4F B'!F27*100,"-")) -> - | G27: =IF(OR('Tabel 4F B'!G27<5,'Tabel 4(Br) B'!G27<0.5),"-",IFERROR('Tabel 4(Br) B'!G27/'Tabel 4F B'!G27*100,"-")) -> - | I27: =IF(OR('Tabel 4F B'!I27<5,'Tabel 4(Br) B'!I27<0.5),"-",IFERROR('Tabel 4(Br) B'!I27/'Tabel 4F B'!I27*100,"-")) -> -
A28: Bibliotekar | C28: =IF(OR('Tabel 4F B'!C28<5,'Tabel 4(Br) B'!C28<0.5),"-",IFERROR('Tabel 4(Br) B'!C28/'Tabel 4F B'!C28*100,"-")) -> - | D28: =IF(OR('Tabel 4F B'!D28<5,'Tabel 4(Br) B'!D28<0.5),"-",IFERROR('Tabel 4(Br) B'!D28/'Tabel 4F B'!D28*100,"-")) -> - | E28: =IF(OR('Tabel 4F B'!E28<5,'Tabel 4(Br) B'!E28<0.5),"-",IFERROR('Tabel 4(Br) B'!E28/'Tabel 4F B'!E28*100,"-")) -> - | F28: =IF(OR('Tabel 4F B'!F28<5,'Tabel 4(Br) B'!F28<0.5),"-",IFERROR('Tabel 4(Br) B'!F28/'Tabel 4F B'!F28*100,"-")) -> - | G28: =IF(OR('Tabel 4F B'!G28<5,'Tabel 4(Br) B'!G28<0.5),"-",IFERROR('Tabel 4(Br) B'!G28/'Tabel 4F B'!G28*100,"-")) -> - | I28: =IF(OR('Tabel 4F B'!I28<5,'Tabel 4(Br) B'!I28<0.5),"-",IFERROR('Tabel 4(Br) B'!I28/'Tabel 4F B'!I28*100,"-")) -> 6.665419239
A29: Musikudd. | C29: =IF(OR('Tabel 4F B'!C29<5,'Tabel 4(Br) B'!C29<0.5),"-",IFERROR('Tabel 4(Br) B'!C29/'Tabel 4F B'!C29*100,"-")) -> - | D29: =IF(OR('Tabel 4F B'!D29<5,'Tabel 4(Br) B'!D29<0.5),"-",IFERROR('Tabel 4(Br) B'!D29/'Tabel 4F B'!D29*100,"-")) -> - | E29: =IF(OR('Tabel 4F B'!E29<5,'Tabel 4(Br) B'!E29<0.5),"-",IFERROR('Tabel 4(Br) B'!E29/'Tabel 4F B'!E29*100,"-")) -> - | F29: =IF(OR('Tabel 4F B'!F29<5,'Tabel 4(Br) B'!F29<0.5),"-",IFERROR('Tabel 4(Br) B'!F29/'Tabel 4F B'!F29*100,"-")) -> - | G29: =IF(OR('Tabel 4F B'!G29<5,'Tabel 4(Br) B'!G29<0.5),"-",IFERROR('Tabel 4(Br) B'!G29/'Tabel 4F B'!G29*100,"-")) -> - | I29: =IF(OR('Tabel 4F B'!I29<5,'Tabel 4(Br) B'!I29<0.5),"-",IFERROR('Tabel 4(Br) B'!I29/'Tabel 4F B'!I29*100,"-")) -> -
A30: Teolog | C30: =IF(OR('Tabel 4F B'!C30<5,'Tabel 4(Br) B'!C30<0.5),"-",IFERROR('Tabel 4(Br) B'!C30/'Tabel 4F B'!C30*100,"-")) -> - | D30: =IF(OR('Tabel 4F B'!D30<5,'Tabel 4(Br) B'!D30<0.5),"-",IFERROR('Tabel 4(Br) B'!D30/'Tabel 4F B'!D30*100,"-")) -> - | E30: =IF(OR('Tabel 4F B'!E30<5,'Tabel 4(Br) B'!E30<0.5),"-",IFERROR('Tabel 4(Br) B'!E30/'Tabel 4F B'!E30*100,"-")) -> - | F30: =IF(OR('Tabel 4F B'!F30<5,'Tabel 4(Br) B'!F30<0.5),"-",IFERROR('Tabel 4(Br) B'!F30/'Tabel 4F B'!F30*100,"-")) -> - | G30: =IF(OR('Tabel 4F B'!G30<5,'Tabel 4(Br) B'!G30<0.5),"-",IFERROR('Tabel 4(Br) B'!G30/'Tabel 4F B'!G30*100,"-")) -> - | I30: =IF(OR('Tabel 4F B'!I30<5,'Tabel 4(Br) B'!I30<0.5),"-",IFERROR('Tabel 4(Br) B'!I30/'Tabel 4F B'!I30*100,"-")) -> -
A31: Psykolog | C31: =IF(OR('Tabel 4F B'!C31<5,'Tabel 4(Br) B'!C31<0.5),"-",IFERROR('Tabel 4(Br) B'!C31/'Tabel 4F B'!C31*100,"-")) -> - | D31: =IF(OR('Tabel 4F B'!D31<5,'Tabel 4(Br) B'!D31<0.5),"-",IFERROR('Tabel 4(Br) B'!D31/'Tabel 4F B'!D31*100,"-")) -> 14.28304123 | E31: =IF(OR('Tabel 4F B'!E31<5,'Tabel 4(Br) B'!E31<0.5),"-",IFERROR('Tabel 4(Br) B'!E31/'Tabel 4F B'!E31*100,"-")) -> 4.174425961 | F31: =IF(OR('Tabel 4F B'!F31<5,'Tabel 4(Br) B'!F31<0.5),"-",IFERROR('Tabel 4(Br) B'!F31/'Tabel 4F B'!F31*100,"-")) -> - | G31: =IF(OR('Tabel 4F B'!G31<5,'Tabel 4(Br) B'!G31<0.5),"-",IFERROR('Tabel 4(Br) B'!G31/'Tabel 4F B'!G31*100,"-")) -> - | I31: =IF(OR('Tabel 4F B'!I31<5,'Tabel 4(Br) B'!I31<0.5),"-",IFERROR('Tabel 4(Br) B'!I31/'Tabel 4F B'!I31*100,"-")) -> 5.280775068
A32: Jurist | C32: =IF(OR('Tabel 4F B'!C32<5,'Tabel 4(Br) B'!C32<0.5),"-",IFERROR('Tabel 4(Br) B'!C32/'Tabel 4F B'!C32*100,"-")) -> - | D32: =IF(OR('Tabel 4F B'!D32<5,'Tabel 4(Br) B'!D32<0.5),"-",IFERROR('Tabel 4(Br) B'!D32/'Tabel 4F B'!D32*100,"-")) -> - | E32: =IF(OR('Tabel 4F B'!E32<5,'Tabel 4(Br) B'!E32<0.5),"-",IFERROR('Tabel 4(Br) B'!E32/'Tabel 4F B'!E32*100,"-")) -> - | F32: =IF(OR('Tabel 4F B'!F32<5,'Tabel 4(Br) B'!F32<0.5),"-",IFERROR('Tabel 4(Br) B'!F32/'Tabel 4F B'!F32*100,"-")) -> - | G32: =IF(OR('Tabel 4F B'!G32<5,'Tabel 4(Br) B'!G32<0.5),"-",IFERROR('Tabel 4(Br) B'!G32/'Tabel 4F B'!G32*100,"-")) -> - | I32: =IF(OR('Tabel 4F B'!I32<5,'Tabel 4(Br) B'!I32<0.5),"-",IFERROR('Tabel 4(Br) B'!I32/'Tabel 4F B'!I32*100,"-")) -> -
A33: Økonom | C33: =IF(OR('Tabel 4F B'!C33<5,'Tabel 4(Br) B'!C33<0.5),"-",IFERROR('Tabel 4(Br) B'!C33/'Tabel 4F B'!C33*100,"-")) -> - | D33: =IF(OR('Tabel 4F B'!D33<5,'Tabel 4(Br) B'!D33<0.5),"-",IFERROR('Tabel 4(Br) B'!D33/'Tabel 4F B'!D33*100,"-")) -> - | E33: =IF(OR('Tabel 4F B'!E33<5,'Tabel 4(Br) B'!E33<0.5),"-",IFERROR('Tabel 4(Br) B'!E33/'Tabel 4F B'!E33*100,"-")) -> - | F33: =IF(OR('Tabel 4F B'!F33<5,'Tabel 4(Br) B'!F33<0.5),"-",IFERROR('Tabel 4(Br) B'!F33/'Tabel 4F B'!F33*100,"-")) -> - | G33: =IF(OR('Tabel 4F B'!G33<5,'Tabel 4(Br) B'!G33<0.5),"-",IFERROR('Tabel 4(Br) B'!G33/'Tabel 4F B'!G33*100,"-")) -> - | I33: =IF(OR('Tabel 4F B'!I33<5,'Tabel 4(Br) B'!I33<0.5),"-",IFERROR('Tabel 4(Br) B'!I33/'Tabel 4F B'!I33*100,"-")) -> -
A34: Samf. Adm. | C34: =IF(OR('Tabel 4F B'!C34<5,'Tabel 4(Br) B'!C34<0.5),"-",IFERROR('Tabel 4(Br) B'!C34/'Tabel 4F B'!C34*100,"-")) -> - | D34: =IF(OR('Tabel 4F B'!D34<5,'Tabel 4(Br) B'!D34<0.5),"-",IFERROR('Tabel 4(Br) B'!D34/'Tabel 4F B'!D34*100,"-")) -> - | E34: =IF(OR('Tabel 4F B'!E34<5,'Tabel 4(Br) B'!E34<0.5),"-",IFERROR('Tabel 4(Br) B'!E34/'Tabel 4F B'!E34*100,"-")) -> 4.761013742 | F34: =IF(OR('Tabel 4F B'!F34<5,'Tabel 4(Br) B'!F34<0.5),"-",IFERROR('Tabel 4(Br) B'!F34/'Tabel 4F B'!F34*100,"-")) -> 19.99625772 | G34: =IF(OR('Tabel 4F B'!G34<5,'Tabel 4(Br) B'!G34<0.5),"-",IFERROR('Tabel 4(Br) B'!G34/'Tabel 4F B'!G34*100,"-")) -> - | I34: =IF(OR('Tabel 4F B'!I34<5,'Tabel 4(Br) B'!I34<0.5),"-",IFERROR('Tabel 4(Br) B'!I34/'Tabel 4F B'!I34*100,"-")) -> 5.768151265
A35: Cand. Merc. | C35: =IF(OR('Tabel 4F B'!C35<5,'Tabel 4(Br) B'!C35<0.5),"-",IFERROR('Tabel 4(Br) B'!C35/'Tabel 4F B'!C35*100,"-")) -> - | D35: =IF(OR('Tabel 4F B'!D35<5,'Tabel 4(Br) B'!D35<0.5),"-",IFERROR('Tabel 4(Br) B'!D35/'Tabel 4F B'!D35*100,"-")) -> - | E35: =IF(OR('Tabel 4F B'!E35<5,'Tabel 4(Br) B'!E35<0.5),"-",IFERROR('Tabel 4(Br) B'!E35/'Tabel 4F B'!E35*100,"-")) -> 26.0026196 | F35: =IF(OR('Tabel 4F B'!F35<5,'Tabel 4(Br) B'!F35<0.5),"-",IFERROR('Tabel 4(Br) B'!F35/'Tabel 4F B'!F35*100,"-")) -> - | G35: =IF(OR('Tabel 4F B'!G35<5,'Tabel 4(Br) B'!G35<0.5),"-",IFERROR('Tabel 4(Br) B'!G35/'Tabel 4F B'!G35*100,"-")) -> - | I35: =IF(OR('Tabel 4F B'!I35<5,'Tabel 4(Br) B'!I35<0.5),"-",IFERROR('Tabel 4(Br) B'!I35/'Tabel 4F B'!I35*100,"-")) -> 8.966420551
A36: HA | C36: =IF(OR('Tabel 4F B'!C36<5,'Tabel 4(Br) B'!C36<0.5),"-",IFERROR('Tabel 4(Br) B'!C36/'Tabel 4F B'!C36*100,"-")) -> - | D36: =IF(OR('Tabel 4F B'!D36<5,'Tabel 4(Br) B'!D36<0.5),"-",IFERROR('Tabel 4(Br) B'!D36/'Tabel 4F B'!D36*100,"-")) -> - | E36: =IF(OR('Tabel 4F B'!E36<5,'Tabel 4(Br) B'!E36<0.5),"-",IFERROR('Tabel 4(Br) B'!E36/'Tabel 4F B'!E36*100,"-")) -> - | F36: =IF(OR('Tabel 4F B'!F36<5,'Tabel 4(Br) B'!F36<0.5),"-",IFERROR('Tabel 4(Br) B'!F36/'Tabel 4F B'!F36*100,"-")) -> - | G36: =IF(OR('Tabel 4F B'!G36<5,'Tabel 4(Br) B'!G36<0.5),"-",IFERROR('Tabel 4(Br) B'!G36/'Tabel 4F B'!G36*100,"-")) -> - | I36: =IF(OR('Tabel 4F B'!I36<5,'Tabel 4(Br) B'!I36<0.5),"-",IFERROR('Tabel 4(Br) B'!I36/'Tabel 4F B'!I36*100,"-")) -> -
A37: HD | C37: =IF(OR('Tabel 4F B'!C37<5,'Tabel 4(Br) B'!C37<0.5),"-",IFERROR('Tabel 4(Br) B'!C37/'Tabel 4F B'!C37*100,"-")) -> - | D37: =IF(OR('Tabel 4F B'!D37<5,'Tabel 4(Br) B'!D37<0.5),"-",IFERROR('Tabel 4(Br) B'!D37/'Tabel 4F B'!D37*100,"-")) -> - | E37: =IF(OR('Tabel 4F B'!E37<5,'Tabel 4(Br) B'!E37<0.5),"-",IFERROR('Tabel 4(Br) B'!E37/'Tabel 4F B'!E37*100,"-")) -> - | F37: =IF(OR('Tabel 4F B'!F37<5,'Tabel 4(Br) B'!F37<0.5),"-",IFERROR('Tabel 4(Br) B'!F37/'Tabel 4F B'!F37*100,"-")) -> - | G37: =IF(OR('Tabel 4F B'!G37<5,'Tabel 4(Br) B'!G37<0.5),"-",IFERROR('Tabel 4(Br) B'!G37/'Tabel 4F B'!G37*100,"-")) -> - | I37: =IF(OR('Tabel 4F B'!I37<5,'Tabel 4(Br) B'!I37<0.5),"-",IFERROR('Tabel 4(Br) B'!I37/'Tabel 4F B'!I37*100,"-")) -> -
A38: Komm. og Sprog | C38: =IF(OR('Tabel 4F B'!C38<5,'Tabel 4(Br) B'!C38<0.5),"-",IFERROR('Tabel 4(Br) B'!C38/'Tabel 4F B'!C38*100,"-")) -> - | D38: =IF(OR('Tabel 4F B'!D38<5,'Tabel 4(Br) B'!D38<0.5),"-",IFERROR('Tabel 4(Br) B'!D38/'Tabel 4F B'!D38*100,"-")) -> 28.56608245 | E38: =IF(OR('Tabel 4F B'!E38<5,'Tabel 4(Br) B'!E38<0.5),"-",IFERROR('Tabel 4(Br) B'!E38/'Tabel 4F B'!E38*100,"-")) -> - | F38: =IF(OR('Tabel 4F B'!F38<5,'Tabel 4(Br) B'!F38<0.5),"-",IFERROR('Tabel 4(Br) B'!F38/'Tabel 4F B'!F38*100,"-")) -> - | G38: =IF(OR('Tabel 4F B'!G38<5,'Tabel 4(Br) B'!G38<0.5),"-",IFERROR('Tabel 4(Br) B'!G38/'Tabel 4F B'!G38*100,"-")) -> - | I38: =IF(OR('Tabel 4F B'!I38<5,'Tabel 4(Br) B'!I38<0.5),"-",IFERROR('Tabel 4(Br) B'!I38/'Tabel 4F B'!I38*100,"-")) -> 26.66167696
A39: Bygningskonst. | C39: =IF(OR('Tabel 4F B'!C39<5,'Tabel 4(Br) B'!C39<0.5),"-",IFERROR('Tabel 4(Br) B'!C39/'Tabel 4F B'!C39*100,"-")) -> - | D39: =IF(OR('Tabel 4F B'!D39<5,'Tabel 4(Br) B'!D39<0.5),"-",IFERROR('Tabel 4(Br) B'!D39/'Tabel 4F B'!D39*100,"-")) -> - | E39: =IF(OR('Tabel 4F B'!E39<5,'Tabel 4(Br) B'!E39<0.5),"-",IFERROR('Tabel 4(Br) B'!E39/'Tabel 4F B'!E39*100,"-")) -> - | F39: =IF(OR('Tabel 4F B'!F39<5,'Tabel 4(Br) B'!F39<0.5),"-",IFERROR('Tabel 4(Br) B'!F39/'Tabel 4F B'!F39*100,"-")) -> - | G39: =IF(OR('Tabel 4F B'!G39<5,'Tabel 4(Br) B'!G39<0.5),"-",IFERROR('Tabel 4(Br) B'!G39/'Tabel 4F B'!G39*100,"-")) -> - | I39: =IF(OR('Tabel 4F B'!I39<5,'Tabel 4(Br) B'!I39<0.5),"-",IFERROR('Tabel 4(Br) B'!I39/'Tabel 4F B'!I39*100,"-")) -> -
A40: Cand. IT. | C40: =IF(OR('Tabel 4F B'!C40<5,'Tabel 4(Br) B'!C40<0.5),"-",IFERROR('Tabel 4(Br) B'!C40/'Tabel 4F B'!C40*100,"-")) -> - | D40: =IF(OR('Tabel 4F B'!D40<5,'Tabel 4(Br) B'!D40<0.5),"-",IFERROR('Tabel 4(Br) B'!D40/'Tabel 4F B'!D40*100,"-")) -> - | E40: =IF(OR('Tabel 4F B'!E40<5,'Tabel 4(Br) B'!E40<0.5),"-",IFERROR('Tabel 4(Br) B'!E40/'Tabel 4F B'!E40*100,"-")) -> - | F40: =IF(OR('Tabel 4F B'!F40<5,'Tabel 4(Br) B'!F40<0.5),"-",IFERROR('Tabel 4(Br) B'!F40/'Tabel 4F B'!F40*100,"-")) -> - | G40: =IF(OR('Tabel 4F B'!G40<5,'Tabel 4(Br) B'!G40<0.5),"-",IFERROR('Tabel 4(Br) B'!G40/'Tabel 4F B'!G40*100,"-")) -> - | I40: =IF(OR('Tabel 4F B'!I40<5,'Tabel 4(Br) B'!I40<0.5),"-",IFERROR('Tabel 4(Br) B'!I40/'Tabel 4F B'!I40*100,"-")) -> -
A41: Bac. Samf. | C41: =IF(OR('Tabel 4F B'!C41<5,'Tabel 4(Br) B'!C41<0.5),"-",IFERROR('Tabel 4(Br) B'!C41/'Tabel 4F B'!C41*100,"-")) -> - | D41: =IF(OR('Tabel 4F B'!D41<5,'Tabel 4(Br) B'!D41<0.5),"-",IFERROR('Tabel 4(Br) B'!D41/'Tabel 4F B'!D41*100,"-")) -> - | E41: =IF(OR('Tabel 4F B'!E41<5,'Tabel 4(Br) B'!E41<0.5),"-",IFERROR('Tabel 4(Br) B'!E41/'Tabel 4F B'!E41*100,"-")) -> - | F41: =IF(OR('Tabel 4F B'!F41<5,'Tabel 4(Br) B'!F41<0.5),"-",IFERROR('Tabel 4(Br) B'!F41/'Tabel 4F B'!F41*100,"-")) -> - | G41: =IF(OR('Tabel 4F B'!G41<5,'Tabel 4(Br) B'!G41<0.5),"-",IFERROR('Tabel 4(Br) B'!G41/'Tabel 4F B'!G41*100,"-")) -> - | I41: =IF(OR('Tabel 4F B'!I41<5,'Tabel 4(Br) B'!I41<0.5),"-",IFERROR('Tabel 4(Br) B'!I41/'Tabel 4F B'!I41*100,"-")) -> -
A42: Bac. Hum. | C42: =IF(OR('Tabel 4F B'!C42<5,'Tabel 4(Br) B'!C42<0.5),"-",IFERROR('Tabel 4(Br) B'!C42/'Tabel 4F B'!C42*100,"-")) -> - | D42: =IF(OR('Tabel 4F B'!D42<5,'Tabel 4(Br) B'!D42<0.5),"-",IFERROR('Tabel 4(Br) B'!D42/'Tabel 4F B'!D42*100,"-")) -> - | E42: =IF(OR('Tabel 4F B'!E42<5,'Tabel 4(Br) B'!E42<0.5),"-",IFERROR('Tabel 4(Br) B'!E42/'Tabel 4F B'!E42*100,"-")) -> - | F42: =IF(OR('Tabel 4F B'!F42<5,'Tabel 4(Br) B'!F42<0.5),"-",IFERROR('Tabel 4(Br) B'!F42/'Tabel 4F B'!F42*100,"-")) -> - | G42: =IF(OR('Tabel 4F B'!G42<5,'Tabel 4(Br) B'!G42<0.5),"-",IFERROR('Tabel 4(Br) B'!G42/'Tabel 4F B'!G42*100,"-")) -> - | I42: =IF(OR('Tabel 4F B'!I42<5,'Tabel 4(Br) B'!I42<0.5),"-",IFERROR('Tabel 4(Br) B'!I42/'Tabel 4F B'!I42*100,"-")) -> 15.38173671
A43: Bac. Nat. | C43: =IF(OR('Tabel 4F B'!C43<5,'Tabel 4(Br) B'!C43<0.5),"-",IFERROR('Tabel 4(Br) B'!C43/'Tabel 4F B'!C43*100,"-")) -> - | D43: =IF(OR('Tabel 4F B'!D43<5,'Tabel 4(Br) B'!D43<0.5),"-",IFERROR('Tabel 4(Br) B'!D43/'Tabel 4F B'!D43*100,"-")) -> - | E43: =IF(OR('Tabel 4F B'!E43<5,'Tabel 4(Br) B'!E43<0.5),"-",IFERROR('Tabel 4(Br) B'!E43/'Tabel 4F B'!E43*100,"-")) -> - | F43: =IF(OR('Tabel 4F B'!F43<5,'Tabel 4(Br) B'!F43<0.5),"-",IFERROR('Tabel 4(Br) B'!F43/'Tabel 4F B'!F43*100,"-")) -> - | G43: =IF(OR('Tabel 4F B'!G43<5,'Tabel 4(Br) B'!G43<0.5),"-",IFERROR('Tabel 4(Br) B'!G43/'Tabel 4F B'!G43*100,"-")) -> - | I43: =IF(OR('Tabel 4F B'!I43<5,'Tabel 4(Br) B'!I43<0.5),"-",IFERROR('Tabel 4(Br) B'!I43/'Tabel 4F B'!I43*100,"-")) -> 19.93388636
A44: Andre | C44: =IF(OR('Tabel 4F B'!C44<5,'Tabel 4(Br) B'!C44<0.5),"-",IFERROR('Tabel 4(Br) B'!C44/'Tabel 4F B'!C44*100,"-")) -> - | D44: =IF(OR('Tabel 4F B'!D44<5,'Tabel 4(Br) B'!D44<0.5),"-",IFERROR('Tabel 4(Br) B'!D44/'Tabel 4F B'!D44*100,"-")) -> 9.309746017 | E44: =IF(OR('Tabel 4F B'!E44<5,'Tabel 4(Br) B'!E44<0.5),"-",IFERROR('Tabel 4(Br) B'!E44/'Tabel 4F B'!E44*100,"-")) -> 17.73025827 | F44: =IF(OR('Tabel 4F B'!F44<5,'Tabel 4(Br) B'!F44<0.5),"-",IFERROR('Tabel 4(Br) B'!F44/'Tabel 4F B'!F44*100,"-")) -> 5.713216491 | G44: =IF(OR('Tabel 4F B'!G44<5,'Tabel 4(Br) B'!G44<0.5),"-",IFERROR('Tabel 4(Br) B'!G44/'Tabel 4F B'!G44*100,"-")) -> 7.872350234 | I44: =IF(OR('Tabel 4F B'!I44<5,'Tabel 4(Br) B'!I44<0.5),"-",IFERROR('Tabel 4(Br) B'!I44/'Tabel 4F B'!I44*100,"-")) -> 9.522416092
A46: Total | C46: =IF(OR('Tabel 4F B'!C46<5,'Tabel 4(Br) B'!C46<0.5),"-",IFERROR('Tabel 4(Br) B'!C46/'Tabel 4F B'!C46*100,"-")) -> 5.257338557 | D46: =IF(OR('Tabel 4F B'!D46<5,'Tabel 4(Br) B'!D46<0.5),"-",IFERROR('Tabel 4(Br) B'!D46/'Tabel 4F B'!D46*100,"-")) -> 9.161659633 | E46: =IF(OR('Tabel 4F B'!E46<5,'Tabel 4(Br) B'!E46<0.5),"-",IFERROR('Tabel 4(Br) B'!E46/'Tabel 4F B'!E46*100,"-")) -> 10.03328363 | F46: =IF(OR('Tabel 4F B'!F46<5,'Tabel 4(Br) B'!F46<0.5),"-",IFERROR('Tabel 4(Br) B'!F46/'Tabel 4F B'!F46*100,"-")) -> 7.267822616 | G46: =IF(OR('Tabel 4F B'!G46<5,'Tabel 4(Br) B'!G46<0.5),"-",IFERROR('Tabel 4(Br) B'!G46/'Tabel 4F B'!G46*100,"-")) -> 6.962425711 | I46: =IF(OR('Tabel 4F B'!I46<5,'Tabel 4(Br) B'!I46<0.5),"-",IFERROR('Tabel 4(Br) B'!I46/'Tabel 4F B'!I46*100,"-")) -> 8.384427021
A48: Ingeniører i alt | C48: =IF(OR('Tabel 4F B'!C48<5,'Tabel 4(Br) B'!C48<0.5),"-",IFERROR('Tabel 4(Br) B'!C48/'Tabel 4F B'!C48*100,"-")) -> - | D48: =IF(OR('Tabel 4F B'!D48<5,'Tabel 4(Br) B'!D48<0.5),"-",IFERROR('Tabel 4(Br) B'!D48/'Tabel 4F B'!D48*100,"-")) -> 10.43280925 | E48: =IF(OR('Tabel 4F B'!E48<5,'Tabel 4(Br) B'!E48<0.5),"-",IFERROR('Tabel 4(Br) B'!E48/'Tabel 4F B'!E48*100,"-")) -> 3.703010689 | F48: =IF(OR('Tabel 4F B'!F48<5,'Tabel 4(Br) B'!F48<0.5),"-",IFERROR('Tabel 4(Br) B'!F48/'Tabel 4F B'!F48*100,"-")) -> 6.665419239 | G48: =IF(OR('Tabel 4F B'!G48<5,'Tabel 4(Br) B'!G48<0.5),"-",IFERROR('Tabel 4(Br) B'!G48/'Tabel 4F B'!G48*100,"-")) -> - | I48: =IF(OR('Tabel 4F B'!I48<5,'Tabel 4(Br) B'!I48<0.5),"-",IFERROR('Tabel 4(Br) B'!I48/'Tabel 4F B'!I48*100,"-")) -> 5.888627901
A49: Magistre i alt | C49: =IF(OR('Tabel 4F B'!C49<5,'Tabel 4(Br) B'!C49<0.5),"-",IFERROR('Tabel 4(Br) B'!C49/'Tabel 4F B'!C49*100,"-")) -> 18.17841611 | D49: =IF(OR('Tabel 4F B'!D49<5,'Tabel 4(Br) B'!D49<0.5),"-",IFERROR('Tabel 4(Br) B'!D49/'Tabel 4F B'!D49*100,"-")) -> 11.53870143 | E49: =IF(OR('Tabel 4F B'!E49<5,'Tabel 4(Br) B'!E49<0.5),"-",IFERROR('Tabel 4(Br) B'!E49/'Tabel 4F B'!E49*100,"-")) -> 20.53194532 | F49: =IF(OR('Tabel 4F B'!F49<5,'Tabel 4(Br) B'!F49<0.5),"-",IFERROR('Tabel 4(Br) B'!F49/'Tabel 4F B'!F49*100,"-")) -> 6.520518821 | G49: =IF(OR('Tabel 4F B'!G49<5,'Tabel 4(Br) B'!G49<0.5),"-",IFERROR('Tabel 4(Br) B'!G49/'Tabel 4F B'!G49*100,"-")) -> 16.0717627 | I49: =IF(OR('Tabel 4F B'!I49<5,'Tabel 4(Br) B'!I49<0.5),"-",IFERROR('Tabel 4(Br) B'!I49/'Tabel 4F B'!I49*100,"-")) -> 13.66140668
A50: DJØF'ere i alt | C50: =IF(OR('Tabel 4F B'!C50<5,'Tabel 4(Br) B'!C50<0.5),"-",IFERROR('Tabel 4(Br) B'!C50/'Tabel 4F B'!C50*100,"-")) -> - | D50: =IF(OR('Tabel 4F B'!D50<5,'Tabel 4(Br) B'!D50<0.5),"-",IFERROR('Tabel 4(Br) B'!D50/'Tabel 4F B'!D50*100,"-")) -> - | E50: =IF(OR('Tabel 4F B'!E50<5,'Tabel 4(Br) B'!E50<0.5),"-",IFERROR('Tabel 4(Br) B'!E50/'Tabel 4F B'!E50*100,"-")) -> 8.181988286 | F50: =IF(OR('Tabel 4F B'!F50<5,'Tabel 4(Br) B'!F50<0.5),"-",IFERROR('Tabel 4(Br) B'!F50/'Tabel 4F B'!F50*100,"-")) -> 4.99906443 | G50: =IF(OR('Tabel 4F B'!G50<5,'Tabel 4(Br) B'!G50<0.5),"-",IFERROR('Tabel 4(Br) B'!G50/'Tabel 4F B'!G50*100,"-")) -> - | I50: =IF(OR('Tabel 4F B'!I50<5,'Tabel 4(Br) B'!I50<0.5),"-",IFERROR('Tabel 4(Br) B'!I50/'Tabel 4F B'!I50*100,"-")) -> 4.178881058
A57: Bornholm
C59: Under 30 år | D59: 30 - 39 år | E59: 40 - 49 år | F59: 50 - 59 år | G59: Over 60 år | I59: I alt
A61: Civ. ing. | C61: =IF(OR('Tabel 4F B'!C61<5,'Tabel 4(Br) B'!C61<0.5),"-",IFERROR('Tabel 4(Br) B'!C61/'Tabel 4F B'!C61*100,"-")) -> - | D61: =IF(OR('Tabel 4F B'!D61<5,'Tabel 4(Br) B'!D61<0.5),"-",IFERROR('Tabel 4(Br) B'!D61/'Tabel 4F B'!D61*100,"-")) -> 15.38173671 | E61: =IF(OR('Tabel 4F B'!E61<5,'Tabel 4(Br) B'!E61<0.5),"-",IFERROR('Tabel 4(Br) B'!E61/'Tabel 4F B'!E61*100,"-")) -> 11.10903207 | F61: =IF(OR('Tabel 4F B'!F61<5,'Tabel 4(Br) B'!F61<0.5),"-",IFERROR('Tabel 4(Br) B'!F61/'Tabel 4F B'!F61*100,"-")) -> - | G61: =IF(OR('Tabel 4F B'!G61<5,'Tabel 4(Br) B'!G61<0.5),"-",IFERROR('Tabel 4(Br) B'!G61/'Tabel 4F B'!G61*100,"-")) -> - | I61: =IF(OR('Tabel 4F B'!I61<5,'Tabel 4(Br) B'!I61<0.5),"-",IFERROR('Tabel 4(Br) B'!I61/'Tabel 4F B'!I61*100,"-")) -> 8.821878405
A62: Diplom ing. | C62: =IF(OR('Tabel 4F B'!C62<5,'Tabel 4(Br) B'!C62<0.5),"-",IFERROR('Tabel 4(Br) B'!C62/'Tabel 4F B'!C62*100,"-")) -> - | D62: =IF(OR('Tabel 4F B'!D62<5,'Tabel 4(Br) B'!D62<0.5),"-",IFERROR('Tabel 4(Br) B'!D62/'Tabel 4F B'!D62*100,"-")) -> 5.483881801 | E62: =IF(OR('Tabel 4F B'!E62<5,'Tabel 4(Br) B'!E62<0.5),"-",IFERROR('Tabel 4(Br) B'!E62/'Tabel 4F B'!E62*100,"-")) -> - | F62: =IF(OR('Tabel 4F B'!F62<5,'Tabel 4(Br) B'!F62<0.5),"-",IFERROR('Tabel 4(Br) B'!F62/'Tabel 4F B'!F62*100,"-")) -> 9.089208054 | G62: =IF(OR('Tabel 4F B'!G62<5,'Tabel 4(Br) B'!G62<0.5),"-",IFERROR('Tabel 4(Br) B'!G62/'Tabel 4F B'!G62*100,"-")) -> - | I62: =IF(OR('Tabel 4F B'!I62<5,'Tabel 4(Br) B'!I62<0.5),"-",IFERROR('Tabel 4(Br) B'!I62/'Tabel 4F B'!I62*100,"-")) -> 4.305603819
A63: Cand. Scient. Tek | C63: =IF(OR('Tabel 4F B'!C63<5,'Tabel 4(Br) B'!C63<0.5),"-",IFERROR('Tabel 4(Br) B'!C63/'Tabel 4F B'!C63*100,"-")) -> - | D63: =IF(OR('Tabel 4F B'!D63<5,'Tabel 4(Br) B'!D63<0.5),"-",IFERROR('Tabel 4(Br) B'!D63/'Tabel 4F B'!D63*100,"-")) -> 21.50711217 | E63: =IF(OR('Tabel 4F B'!E63<5,'Tabel 4(Br) B'!E63<0.5),"-",IFERROR('Tabel 4(Br) B'!E63/'Tabel 4F B'!E63*100,"-")) -> - | F63: =IF(OR('Tabel 4F B'!F63<5,'Tabel 4(Br) B'!F63<0.5),"-",IFERROR('Tabel 4(Br) B'!F63/'Tabel 4F B'!F63*100,"-")) -> - | G63: =IF(OR('Tabel 4F B'!G63<5,'Tabel 4(Br) B'!G63<0.5),"-",IFERROR('Tabel 4(Br) B'!G63/'Tabel 4F B'!G63*100,"-")) -> - | I63: =IF(OR('Tabel 4F B'!I63<5,'Tabel 4(Br) B'!I63<0.5),"-",IFERROR('Tabel 4(Br) B'!I63/'Tabel 4F B'!I63*100,"-")) -> 15.99287676
A64: MA. Hum. | C64: =IF(OR('Tabel 4F B'!C64<5,'Tabel 4(Br) B'!C64<0.5),"-",IFERROR('Tabel 4(Br) B'!C64/'Tabel 4F B'!C64*100,"-")) -> 33.3270962 | D64: =IF(OR('Tabel 4F B'!D64<5,'Tabel 4(Br) B'!D64<0.5),"-",IFERROR('Tabel 4(Br) B'!D64/'Tabel 4F B'!D64*100,"-")) -> 10.00136293 | E64: =IF(OR('Tabel 4F B'!E64<5,'Tabel 4(Br) B'!E64<0.5),"-",IFERROR('Tabel 4(Br) B'!E64/'Tabel 4F B'!E64*100,"-")) -> 21.78839477 | F64: =IF(OR('Tabel 4F B'!F64<5,'Tabel 4(Br) B'!F64<0.5),"-",IFERROR('Tabel 4(Br) B'!F64/'Tabel 4F B'!F64*100,"-")) -> 4.99906443 | G64: =IF(OR('Tabel 4F B'!G64<5,'Tabel 4(Br) B'!G64<0.5),"-",IFERROR('Tabel 4(Br) B'!G64/'Tabel 4F B'!G64*100,"-")) -> 20.5898863 | I64: =IF(OR('Tabel 4F B'!I64<5,'Tabel 4(Br) B'!I64<0.5),"-",IFERROR('Tabel 4(Br) B'!I64/'Tabel 4F B'!I64*100,"-")) -> 14.34138863
A65: MA. Nat. | C65: =IF(OR('Tabel 4F B'!C65<5,'Tabel 4(Br) B'!C65<0.5),"-",IFERROR('Tabel 4(Br) B'!C65/'Tabel 4F B'!C65*100,"-")) -> - | D65: =IF(OR('Tabel 4F B'!D65<5,'Tabel 4(Br) B'!D65<0.5),"-",IFERROR('Tabel 4(Br) B'!D65/'Tabel 4F B'!D65*100,"-")) -> - | E65: =IF(OR('Tabel 4F B'!E65<5,'Tabel 4(Br) B'!E65<0.5),"-",IFERROR('Tabel 4(Br) B'!E65/'Tabel 4F B'!E65*100,"-")) -> 11.76250454 | F65: =IF(OR('Tabel 4F B'!F65<5,'Tabel 4(Br) B'!F65<0.5),"-",IFERROR('Tabel 4(Br) B'!F65/'Tabel 4F B'!F65*100,"-")) -> - | G65: =IF(OR('Tabel 4F B'!G65<5,'Tabel 4(Br) B'!G65<0.5),"-",IFERROR('Tabel 4(Br) B'!G65/'Tabel 4F B'!G65*100,"-")) -> 16.6635481 | I65: =IF(OR('Tabel 4F B'!I65<5,'Tabel 4(Br) B'!I65<0.5),"-",IFERROR('Tabel 4(Br) B'!I65/'Tabel 4F B'!I65*100,"-")) -> 6.520518821
A66: MA. Ph.d. | C66: =IF(OR('Tabel 4F B'!C66<5,'Tabel 4(Br) B'!C66<0.5),"-",IFERROR('Tabel 4(Br) B'!C66/'Tabel 4F B'!C66*100,"-")) -> - | D66: =IF(OR('Tabel 4F B'!D66<5,'Tabel 4(Br) B'!D66<0.5),"-",IFERROR('Tabel 4(Br) B'!D66/'Tabel 4F B'!D66*100,"-")) -> - | E66: =IF(OR('Tabel 4F B'!E66<5,'Tabel 4(Br) B'!E66<0.5),"-",IFERROR('Tabel 4(Br) B'!E66/'Tabel 4F B'!E66*100,"-")) -> - | F66: =IF(OR('Tabel 4F B'!F66<5,'Tabel 4(Br) B'!F66<0.5),"-",IFERROR('Tabel 4(Br) B'!F66/'Tabel 4F B'!F66*100,"-")) -> - | G66: =IF(OR('Tabel 4F B'!G66<5,'Tabel 4(Br) B'!G66<0.5),"-",IFERROR('Tabel 4(Br) B'!G66/'Tabel 4F B'!G66*100,"-")) -> - | I66: =IF(OR('Tabel 4F B'!I66<5,'Tabel 4(Br) B'!I66<0.5),"-",IFERROR('Tabel 4(Br) B'!I66/'Tabel 4F B'!I66*100,"-")) -> 14.28304123
A67: MA. Samf. | C67: =IF(OR('Tabel 4F B'!C67<5,'Tabel 4(Br) B'!C67<0.5),"-",IFERROR('Tabel 4(Br) B'!C67/'Tabel 4F B'!C67*100,"-")) -> - | D67: =IF(OR('Tabel 4F B'!D67<5,'Tabel 4(Br) B'!D67<0.5),"-",IFERROR('Tabel 4(Br) B'!D67/'Tabel 4F B'!D67*100,"-")) -> - | E67: =IF(OR('Tabel 4F B'!E67<5,'Tabel 4(Br) B'!E67<0.5),"-",IFERROR('Tabel 4(Br) B'!E67/'Tabel 4F B'!E67*100,"-")) -> - | F67: =IF(OR('Tabel 4F B'!F67<5,'Tabel 4(Br) B'!F67<0.5),"-",IFERROR('Tabel 4(Br) B'!F67/'Tabel 4F B'!F67*100,"-")) -> - | G67: =IF(OR('Tabel 4F B'!G67<5,'Tabel 4(Br) B'!G67<0.5),"-",IFERROR('Tabel 4(Br) B'!G67/'Tabel 4F B'!G67*100,"-")) -> - | I67: =IF(OR('Tabel 4F B'!I67<5,'Tabel 4(Br) B'!I67<0.5),"-",IFERROR('Tabel 4(Br) B'!I67/'Tabel 4F B'!I67*100,"-")) -> 12.49766107
A68: Øvrige Mag. | C68: =IF(OR('Tabel 4F B'!C68<5,'Tabel 4(Br) B'!C68<0.5),"-",IFERROR('Tabel 4(Br) B'!C68/'Tabel 4F B'!C68*100,"-")) -> - | D68: =IF(OR('Tabel 4F B'!D68<5,'Tabel 4(Br) B'!D68<0.5),"-",IFERROR('Tabel 4(Br) B'!D68/'Tabel 4F B'!D68*100,"-")) -> 48.45215077 | E68: =IF(OR('Tabel 4F B'!E68<5,'Tabel 4(Br) B'!E68<0.5),"-",IFERROR('Tabel 4(Br) B'!E68/'Tabel 4F B'!E68*100,"-")) -> 39.99251544 | F68: =IF(OR('Tabel 4F B'!F68<5,'Tabel 4(Br) B'!F68<0.5),"-",IFERROR('Tabel 4(Br) B'!F68/'Tabel 4F B'!F68*100,"-")) -> - | G68: =IF(OR('Tabel 4F B'!G68<5,'Tabel 4(Br) B'!G68<0.5),"-",IFERROR('Tabel 4(Br) B'!G68/'Tabel 4F B'!G68*100,"-")) -> - | I68: =IF(OR('Tabel 4F B'!I68<5,'Tabel 4(Br) B'!I68<0.5),"-",IFERROR('Tabel 4(Br) B'!I68/'Tabel 4F B'!I68*100,"-")) -> 28.86326364
A69: Agronom | C69: =IF(OR('Tabel 4F B'!C69<5,'Tabel 4(Br) B'!C69<0.5),"-",IFERROR('Tabel 4(Br) B'!C69/'Tabel 4F B'!C69*100,"-")) -> - | D69: =IF(OR('Tabel 4F B'!D69<5,'Tabel 4(Br) B'!D69<0.5),"-",IFERROR('Tabel 4(Br) B'!D69/'Tabel 4F B'!D69*100,"-")) -> - | E69: =IF(OR('Tabel 4F B'!E69<5,'Tabel 4(Br) B'!E69<0.5),"-",IFERROR('Tabel 4(Br) B'!E69/'Tabel 4F B'!E69*100,"-")) -> - | F69: =IF(OR('Tabel 4F B'!F69<5,'Tabel 4(Br) B'!F69<0.5),"-",IFERROR('Tabel 4(Br) B'!F69/'Tabel 4F B'!F69*100,"-")) -> - | G69: =IF(OR('Tabel 4F B'!G69<5,'Tabel 4(Br) B'!G69<0.5),"-",IFERROR('Tabel 4(Br) B'!G69/'Tabel 4F B'!G69*100,"-")) -> - | I69: =IF(OR('Tabel 4F B'!I69<5,'Tabel 4(Br) B'!I69<0.5),"-",IFERROR('Tabel 4(Br) B'!I69/'Tabel 4F B'!I69*100,"-")) -> -
A70: Landsk. Arkt. | C70: =IF(OR('Tabel 4F B'!C70<5,'Tabel 4(Br) B'!C70<0.5),"-",IFERROR('Tabel 4(Br) B'!C70/'Tabel 4F B'!C70*100,"-")) -> - | D70: =IF(OR('Tabel 4F B'!D70<5,'Tabel 4(Br) B'!D70<0.5),"-",IFERROR('Tabel 4(Br) B'!D70/'Tabel 4F B'!D70*100,"-")) -> - | E70: =IF(OR('Tabel 4F B'!E70<5,'Tabel 4(Br) B'!E70<0.5),"-",IFERROR('Tabel 4(Br) B'!E70/'Tabel 4F B'!E70*100,"-")) -> - | F70: =IF(OR('Tabel 4F B'!F70<5,'Tabel 4(Br) B'!F70<0.5),"-",IFERROR('Tabel 4(Br) B'!F70/'Tabel 4F B'!F70*100,"-")) -> - | G70: =IF(OR('Tabel 4F B'!G70<5,'Tabel 4(Br) B'!G70<0.5),"-",IFERROR('Tabel 4(Br) B'!G70/'Tabel 4F B'!G70*100,"-")) -> - | I70: =IF(OR('Tabel 4F B'!I70<5,'Tabel 4(Br) B'!I70<0.5),"-",IFERROR('Tabel 4(Br) B'!I70/'Tabel 4F B'!I70*100,"-")) -> -
A71: Hortonom | C71: =IF(OR('Tabel 4F B'!C71<5,'Tabel 4(Br) B'!C71<0.5),"-",IFERROR('Tabel 4(Br) B'!C71/'Tabel 4F B'!C71*100,"-")) -> - | D71: =IF(OR('Tabel 4F B'!D71<5,'Tabel 4(Br) B'!D71<0.5),"-",IFERROR('Tabel 4(Br) B'!D71/'Tabel 4F B'!D71*100,"-")) -> - | E71: =IF(OR('Tabel 4F B'!E71<5,'Tabel 4(Br) B'!E71<0.5),"-",IFERROR('Tabel 4(Br) B'!E71/'Tabel 4F B'!E71*100,"-")) -> - | F71: =IF(OR('Tabel 4F B'!F71<5,'Tabel 4(Br) B'!F71<0.5),"-",IFERROR('Tabel 4(Br) B'!F71/'Tabel 4F B'!F71*100,"-")) -> - | G71: =IF(OR('Tabel 4F B'!G71<5,'Tabel 4(Br) B'!G71<0.5),"-",IFERROR('Tabel 4(Br) B'!G71/'Tabel 4F B'!G71*100,"-")) -> - | I71: =IF(OR('Tabel 4F B'!I71<5,'Tabel 4(Br) B'!I71<0.5),"-",IFERROR('Tabel 4(Br) B'!I71/'Tabel 4F B'!I71*100,"-")) -> -
A72: Forstkand. | C72: =IF(OR('Tabel 4F B'!C72<5,'Tabel 4(Br) B'!C72<0.5),"-",IFERROR('Tabel 4(Br) B'!C72/'Tabel 4F B'!C72*100,"-")) -> - | D72: =IF(OR('Tabel 4F B'!D72<5,'Tabel 4(Br) B'!D72<0.5),"-",IFERROR('Tabel 4(Br) B'!D72/'Tabel 4F B'!D72*100,"-")) -> - | E72: =IF(OR('Tabel 4F B'!E72<5,'Tabel 4(Br) B'!E72<0.5),"-",IFERROR('Tabel 4(Br) B'!E72/'Tabel 4F B'!E72*100,"-")) -> - | F72: =IF(OR('Tabel 4F B'!F72<5,'Tabel 4(Br) B'!F72<0.5),"-",IFERROR('Tabel 4(Br) B'!F72/'Tabel 4F B'!F72*100,"-")) -> - | G72: =IF(OR('Tabel 4F B'!G72<5,'Tabel 4(Br) B'!G72<0.5),"-",IFERROR('Tabel 4(Br) B'!G72/'Tabel 4F B'!G72*100,"-")) -> - | I72: =IF(OR('Tabel 4F B'!I72<5,'Tabel 4(Br) B'!I72<0.5),"-",IFERROR('Tabel 4(Br) B'!I72/'Tabel 4F B'!I72*100,"-")) -> -
A73: Jordbrugsakad. | C73: =IF(OR('Tabel 4F B'!C73<5,'Tabel 4(Br) B'!C73<0.5),"-",IFERROR('Tabel 4(Br) B'!C73/'Tabel 4F B'!C73*100,"-")) -> - | D73: =IF(OR('Tabel 4F B'!D73<5,'Tabel 4(Br) B'!D73<0.5),"-",IFERROR('Tabel 4(Br) B'!D73/'Tabel 4F B'!D73*100,"-")) -> - | E73: =IF(OR('Tabel 4F B'!E73<5,'Tabel 4(Br) B'!E73<0.5),"-",IFERROR('Tabel 4(Br) B'!E73/'Tabel 4F B'!E73*100,"-")) -> - | F73: =IF(OR('Tabel 4F B'!F73<5,'Tabel 4(Br) B'!F73<0.5),"-",IFERROR('Tabel 4(Br) B'!F73/'Tabel 4F B'!F73*100,"-")) -> - | G73: =IF(OR('Tabel 4F B'!G73<5,'Tabel 4(Br) B'!G73<0.5),"-",IFERROR('Tabel 4(Br) B'!G73/'Tabel 4F B'!G73*100,"-")) -> - | I73: =IF(OR('Tabel 4F B'!I73<5,'Tabel 4(Br) B'!I73<0.5),"-",IFERROR('Tabel 4(Br) B'!I73/'Tabel 4F B'!I73*100,"-")) -> -
A74: Mejeriing. | C74: =IF(OR('Tabel 4F B'!C74<5,'Tabel 4(Br) B'!C74<0.5),"-",IFERROR('Tabel 4(Br) B'!C74/'Tabel 4F B'!C74*100,"-")) -> - | D74: =IF(OR('Tabel 4F B'!D74<5,'Tabel 4(Br) B'!D74<0.5),"-",IFERROR('Tabel 4(Br) B'!D74/'Tabel 4F B'!D74*100,"-")) -> - | E74: =IF(OR('Tabel 4F B'!E74<5,'Tabel 4(Br) B'!E74<0.5),"-",IFERROR('Tabel 4(Br) B'!E74/'Tabel 4F B'!E74*100,"-")) -> - | F74: =IF(OR('Tabel 4F B'!F74<5,'Tabel 4(Br) B'!F74<0.5),"-",IFERROR('Tabel 4(Br) B'!F74/'Tabel 4F B'!F74*100,"-")) -> - | G74: =IF(OR('Tabel 4F B'!G74<5,'Tabel 4(Br) B'!G74<0.5),"-",IFERROR('Tabel 4(Br) B'!G74/'Tabel 4F B'!G74*100,"-")) -> - | I74: =IF(OR('Tabel 4F B'!I74<5,'Tabel 4(Br) B'!I74<0.5),"-",IFERROR('Tabel 4(Br) B'!I74/'Tabel 4F B'!I74*100,"-")) -> -
A75: Levn.m.kand. | C75: =IF(OR('Tabel 4F B'!C75<5,'Tabel 4(Br) B'!C75<0.5),"-",IFERROR('Tabel 4(Br) B'!C75/'Tabel 4F B'!C75*100,"-")) -> - | D75: =IF(OR('Tabel 4F B'!D75<5,'Tabel 4(Br) B'!D75<0.5),"-",IFERROR('Tabel 4(Br) B'!D75/'Tabel 4F B'!D75*100,"-")) -> - | E75: =IF(OR('Tabel 4F B'!E75<5,'Tabel 4(Br) B'!E75<0.5),"-",IFERROR('Tabel 4(Br) B'!E75/'Tabel 4F B'!E75*100,"-")) -> - | F75: =IF(OR('Tabel 4F B'!F75<5,'Tabel 4(Br) B'!F75<0.5),"-",IFERROR('Tabel 4(Br) B'!F75/'Tabel 4F B'!F75*100,"-")) -> - | G75: =IF(OR('Tabel 4F B'!G75<5,'Tabel 4(Br) B'!G75<0.5),"-",IFERROR('Tabel 4(Br) B'!G75/'Tabel 4F B'!G75*100,"-")) -> - | I75: =IF(OR('Tabel 4F B'!I75<5,'Tabel 4(Br) B'!I75<0.5),"-",IFERROR('Tabel 4(Br) B'!I75/'Tabel 4F B'!I75*100,"-")) -> -
A76: Dyrlæge | C76: =IF(OR('Tabel 4F B'!C76<5,'Tabel 4(Br) B'!C76<0.5),"-",IFERROR('Tabel 4(Br) B'!C76/'Tabel 4F B'!C76*100,"-")) -> - | D76: =IF(OR('Tabel 4F B'!D76<5,'Tabel 4(Br) B'!D76<0.5),"-",IFERROR('Tabel 4(Br) B'!D76/'Tabel 4F B'!D76*100,"-")) -> - | E76: =IF(OR('Tabel 4F B'!E76<5,'Tabel 4(Br) B'!E76<0.5),"-",IFERROR('Tabel 4(Br) B'!E76/'Tabel 4F B'!E76*100,"-")) -> - | F76: =IF(OR('Tabel 4F B'!F76<5,'Tabel 4(Br) B'!F76<0.5),"-",IFERROR('Tabel 4(Br) B'!F76/'Tabel 4F B'!F76*100,"-")) -> - | G76: =IF(OR('Tabel 4F B'!G76<5,'Tabel 4(Br) B'!G76<0.5),"-",IFERROR('Tabel 4(Br) B'!G76/'Tabel 4F B'!G76*100,"-")) -> - | I76: =IF(OR('Tabel 4F B'!I76<5,'Tabel 4(Br) B'!I76<0.5),"-",IFERROR('Tabel 4(Br) B'!I76/'Tabel 4F B'!I76*100,"-")) -> 3.844748777
A77: Farmaceut | C77: =IF(OR('Tabel 4F B'!C77<5,'Tabel 4(Br) B'!C77<0.5),"-",IFERROR('Tabel 4(Br) B'!C77/'Tabel 4F B'!C77*100,"-")) -> - | D77: =IF(OR('Tabel 4F B'!D77<5,'Tabel 4(Br) B'!D77<0.5),"-",IFERROR('Tabel 4(Br) B'!D77/'Tabel 4F B'!D77*100,"-")) -> - | E77: =IF(OR('Tabel 4F B'!E77<5,'Tabel 4(Br) B'!E77<0.5),"-",IFERROR('Tabel 4(Br) B'!E77/'Tabel 4F B'!E77*100,"-")) -> - | F77: =IF(OR('Tabel 4F B'!F77<5,'Tabel 4(Br) B'!F77<0.5),"-",IFERROR('Tabel 4(Br) B'!F77/'Tabel 4F B'!F77*100,"-")) -> - | G77: =IF(OR('Tabel 4F B'!G77<5,'Tabel 4(Br) B'!G77<0.5),"-",IFERROR('Tabel 4(Br) B'!G77/'Tabel 4F B'!G77*100,"-")) -> - | I77: =IF(OR('Tabel 4F B'!I77<5,'Tabel 4(Br) B'!I77<0.5),"-",IFERROR('Tabel 4(Br) B'!I77/'Tabel 4F B'!I77*100,"-")) -> -
A78: Læge | C78: =IF(OR('Tabel 4F B'!C78<5,'Tabel 4(Br) B'!C78<0.5),"-",IFERROR('Tabel 4(Br) B'!C78/'Tabel 4F B'!C78*100,"-")) -> - | D78: =IF(OR('Tabel 4F B'!D78<5,'Tabel 4(Br) B'!D78<0.5),"-",IFERROR('Tabel 4(Br) B'!D78/'Tabel 4F B'!D78*100,"-")) -> - | E78: =IF(OR('Tabel 4F B'!E78<5,'Tabel 4(Br) B'!E78<0.5),"-",IFERROR('Tabel 4(Br) B'!E78/'Tabel 4F B'!E78*100,"-")) -> - | F78: =IF(OR('Tabel 4F B'!F78<5,'Tabel 4(Br) B'!F78<0.5),"-",IFERROR('Tabel 4(Br) B'!F78/'Tabel 4F B'!F78*100,"-")) -> - | G78: =IF(OR('Tabel 4F B'!G78<5,'Tabel 4(Br) B'!G78<0.5),"-",IFERROR('Tabel 4(Br) B'!G78/'Tabel 4F B'!G78*100,"-")) -> - | I78: =IF(OR('Tabel 4F B'!I78<5,'Tabel 4(Br) B'!I78<0.5),"-",IFERROR('Tabel 4(Br) B'!I78/'Tabel 4F B'!I78*100,"-")) -> -
A79: Tandlæge | C79: =IF(OR('Tabel 4F B'!C79<5,'Tabel 4(Br) B'!C79<0.5),"-",IFERROR('Tabel 4(Br) B'!C79/'Tabel 4F B'!C79*100,"-")) -> - | D79: =IF(OR('Tabel 4F B'!D79<5,'Tabel 4(Br) B'!D79<0.5),"-",IFERROR('Tabel 4(Br) B'!D79/'Tabel 4F B'!D79*100,"-")) -> - | E79: =IF(OR('Tabel 4F B'!E79<5,'Tabel 4(Br) B'!E79<0.5),"-",IFERROR('Tabel 4(Br) B'!E79/'Tabel 4F B'!E79*100,"-")) -> - | F79: =IF(OR('Tabel 4F B'!F79<5,'Tabel 4(Br) B'!F79<0.5),"-",IFERROR('Tabel 4(Br) B'!F79/'Tabel 4F B'!F79*100,"-")) -> - | G79: =IF(OR('Tabel 4F B'!G79<5,'Tabel 4(Br) B'!G79<0.5),"-",IFERROR('Tabel 4(Br) B'!G79/'Tabel 4F B'!G79*100,"-")) -> - | I79: =IF(OR('Tabel 4F B'!I79<5,'Tabel 4(Br) B'!I79<0.5),"-",IFERROR('Tabel 4(Br) B'!I79/'Tabel 4F B'!I79*100,"-")) -> -
A80: Arkitekt | C80: =IF(OR('Tabel 4F B'!C80<5,'Tabel 4(Br) B'!C80<0.5),"-",IFERROR('Tabel 4(Br) B'!C80/'Tabel 4F B'!C80*100,"-")) -> - | D80: =IF(OR('Tabel 4F B'!D80<5,'Tabel 4(Br) B'!D80<0.5),"-",IFERROR('Tabel 4(Br) B'!D80/'Tabel 4F B'!D80*100,"-")) -> - | E80: =IF(OR('Tabel 4F B'!E80<5,'Tabel 4(Br) B'!E80<0.5),"-",IFERROR('Tabel 4(Br) B'!E80/'Tabel 4F B'!E80*100,"-")) -> - | F80: =IF(OR('Tabel 4F B'!F80<5,'Tabel 4(Br) B'!F80<0.5),"-",IFERROR('Tabel 4(Br) B'!F80/'Tabel 4F B'!F80*100,"-")) -> - | G80: =IF(OR('Tabel 4F B'!G80<5,'Tabel 4(Br) B'!G80<0.5),"-",IFERROR('Tabel 4(Br) B'!G80/'Tabel 4F B'!G80*100,"-")) -> - | I80: =IF(OR('Tabel 4F B'!I80<5,'Tabel 4(Br) B'!I80<0.5),"-",IFERROR('Tabel 4(Br) B'!I80/'Tabel 4F B'!I80*100,"-")) -> 7.141520614
A81: Landinspek. | C81: =IF(OR('Tabel 4F B'!C81<5,'Tabel 4(Br) B'!C81<0.5),"-",IFERROR('Tabel 4(Br) B'!C81/'Tabel 4F B'!C81*100,"-")) -> - | D81: =IF(OR('Tabel 4F B'!D81<5,'Tabel 4(Br) B'!D81<0.5),"-",IFERROR('Tabel 4(Br) B'!D81/'Tabel 4F B'!D81*100,"-")) -> - | E81: =IF(OR('Tabel 4F B'!E81<5,'Tabel 4(Br) B'!E81<0.5),"-",IFERROR('Tabel 4(Br) B'!E81/'Tabel 4F B'!E81*100,"-")) -> - | F81: =IF(OR('Tabel 4F B'!F81<5,'Tabel 4(Br) B'!F81<0.5),"-",IFERROR('Tabel 4(Br) B'!F81/'Tabel 4F B'!F81*100,"-")) -> - | G81: =IF(OR('Tabel 4F B'!G81<5,'Tabel 4(Br) B'!G81<0.5),"-",IFERROR('Tabel 4(Br) B'!G81/'Tabel 4F B'!G81*100,"-")) -> - | I81: =IF(OR('Tabel 4F B'!I81<5,'Tabel 4(Br) B'!I81<0.5),"-",IFERROR('Tabel 4(Br) B'!I81/'Tabel 4F B'!I81*100,"-")) -> -
A82: Bibliotekar | C82: =IF(OR('Tabel 4F B'!C82<5,'Tabel 4(Br) B'!C82<0.5),"-",IFERROR('Tabel 4(Br) B'!C82/'Tabel 4F B'!C82*100,"-")) -> - | D82: =IF(OR('Tabel 4F B'!D82<5,'Tabel 4(Br) B'!D82<0.5),"-",IFERROR('Tabel 4(Br) B'!D82/'Tabel 4F B'!D82*100,"-")) -> - | E82: =IF(OR('Tabel 4F B'!E82<5,'Tabel 4(Br) B'!E82<0.5),"-",IFERROR('Tabel 4(Br) B'!E82/'Tabel 4F B'!E82*100,"-")) -> - | F82: =IF(OR('Tabel 4F B'!F82<5,'Tabel 4(Br) B'!F82<0.5),"-",IFERROR('Tabel 4(Br) B'!F82/'Tabel 4F B'!F82*100,"-")) -> - | G82: =IF(OR('Tabel 4F B'!G82<5,'Tabel 4(Br) B'!G82<0.5),"-",IFERROR('Tabel 4(Br) B'!G82/'Tabel 4F B'!G82*100,"-")) -> - | I82: =IF(OR('Tabel 4F B'!I82<5,'Tabel 4(Br) B'!I82<0.5),"-",IFERROR('Tabel 4(Br) B'!I82/'Tabel 4F B'!I82*100,"-")) -> 6.665419239
A83: Musikudd. | C83: =IF(OR('Tabel 4F B'!C83<5,'Tabel 4(Br) B'!C83<0.5),"-",IFERROR('Tabel 4(Br) B'!C83/'Tabel 4F B'!C83*100,"-")) -> - | D83: =IF(OR('Tabel 4F B'!D83<5,'Tabel 4(Br) B'!D83<0.5),"-",IFERROR('Tabel 4(Br) B'!D83/'Tabel 4F B'!D83*100,"-")) -> - | E83: =IF(OR('Tabel 4F B'!E83<5,'Tabel 4(Br) B'!E83<0.5),"-",IFERROR('Tabel 4(Br) B'!E83/'Tabel 4F B'!E83*100,"-")) -> - | F83: =IF(OR('Tabel 4F B'!F83<5,'Tabel 4(Br) B'!F83<0.5),"-",IFERROR('Tabel 4(Br) B'!F83/'Tabel 4F B'!F83*100,"-")) -> - | G83: =IF(OR('Tabel 4F B'!G83<5,'Tabel 4(Br) B'!G83<0.5),"-",IFERROR('Tabel 4(Br) B'!G83/'Tabel 4F B'!G83*100,"-")) -> - | I83: =IF(OR('Tabel 4F B'!I83<5,'Tabel 4(Br) B'!I83<0.5),"-",IFERROR('Tabel 4(Br) B'!I83/'Tabel 4F B'!I83*100,"-")) -> -
A84: Teolog | C84: =IF(OR('Tabel 4F B'!C84<5,'Tabel 4(Br) B'!C84<0.5),"-",IFERROR('Tabel 4(Br) B'!C84/'Tabel 4F B'!C84*100,"-")) -> - | D84: =IF(OR('Tabel 4F B'!D84<5,'Tabel 4(Br) B'!D84<0.5),"-",IFERROR('Tabel 4(Br) B'!D84/'Tabel 4F B'!D84*100,"-")) -> - | E84: =IF(OR('Tabel 4F B'!E84<5,'Tabel 4(Br) B'!E84<0.5),"-",IFERROR('Tabel 4(Br) B'!E84/'Tabel 4F B'!E84*100,"-")) -> - | F84: =IF(OR('Tabel 4F B'!F84<5,'Tabel 4(Br) B'!F84<0.5),"-",IFERROR('Tabel 4(Br) B'!F84/'Tabel 4F B'!F84*100,"-")) -> - | G84: =IF(OR('Tabel 4F B'!G84<5,'Tabel 4(Br) B'!G84<0.5),"-",IFERROR('Tabel 4(Br) B'!G84/'Tabel 4F B'!G84*100,"-")) -> - | I84: =IF(OR('Tabel 4F B'!I84<5,'Tabel 4(Br) B'!I84<0.5),"-",IFERROR('Tabel 4(Br) B'!I84/'Tabel 4F B'!I84*100,"-")) -> -
A85: Psykolog | C85: =IF(OR('Tabel 4F B'!C85<5,'Tabel 4(Br) B'!C85<0.5),"-",IFERROR('Tabel 4(Br) B'!C85/'Tabel 4F B'!C85*100,"-")) -> - | D85: =IF(OR('Tabel 4F B'!D85<5,'Tabel 4(Br) B'!D85<0.5),"-",IFERROR('Tabel 4(Br) B'!D85/'Tabel 4F B'!D85*100,"-")) -> 14.28304123 | E85: =IF(OR('Tabel 4F B'!E85<5,'Tabel 4(Br) B'!E85<0.5),"-",IFERROR('Tabel 4(Br) B'!E85/'Tabel 4F B'!E85*100,"-")) -> 4.174425961 | F85: =IF(OR('Tabel 4F B'!F85<5,'Tabel 4(Br) B'!F85<0.5),"-",IFERROR('Tabel 4(Br) B'!F85/'Tabel 4F B'!F85*100,"-")) -> - | G85: =IF(OR('Tabel 4F B'!G85<5,'Tabel 4(Br) B'!G85<0.5),"-",IFERROR('Tabel 4(Br) B'!G85/'Tabel 4F B'!G85*100,"-")) -> - | I85: =IF(OR('Tabel 4F B'!I85<5,'Tabel 4(Br) B'!I85<0.5),"-",IFERROR('Tabel 4(Br) B'!I85/'Tabel 4F B'!I85*100,"-")) -> 5.280775068
A86: Jurist | C86: =IF(OR('Tabel 4F B'!C86<5,'Tabel 4(Br) B'!C86<0.5),"-",IFERROR('Tabel 4(Br) B'!C86/'Tabel 4F B'!C86*100,"-")) -> - | D86: =IF(OR('Tabel 4F B'!D86<5,'Tabel 4(Br) B'!D86<0.5),"-",IFERROR('Tabel 4(Br) B'!D86/'Tabel 4F B'!D86*100,"-")) -> - | E86: =IF(OR('Tabel 4F B'!E86<5,'Tabel 4(Br) B'!E86<0.5),"-",IFERROR('Tabel 4(Br) B'!E86/'Tabel 4F B'!E86*100,"-")) -> - | F86: =IF(OR('Tabel 4F B'!F86<5,'Tabel 4(Br) B'!F86<0.5),"-",IFERROR('Tabel 4(Br) B'!F86/'Tabel 4F B'!F86*100,"-")) -> - | G86: =IF(OR('Tabel 4F B'!G86<5,'Tabel 4(Br) B'!G86<0.5),"-",IFERROR('Tabel 4(Br) B'!G86/'Tabel 4F B'!G86*100,"-")) -> - | I86: =IF(OR('Tabel 4F B'!I86<5,'Tabel 4(Br) B'!I86<0.5),"-",IFERROR('Tabel 4(Br) B'!I86/'Tabel 4F B'!I86*100,"-")) -> -
A87: Økonom | C87: =IF(OR('Tabel 4F B'!C87<5,'Tabel 4(Br) B'!C87<0.5),"-",IFERROR('Tabel 4(Br) B'!C87/'Tabel 4F B'!C87*100,"-")) -> - | D87: =IF(OR('Tabel 4F B'!D87<5,'Tabel 4(Br) B'!D87<0.5),"-",IFERROR('Tabel 4(Br) B'!D87/'Tabel 4F B'!D87*100,"-")) -> - | E87: =IF(OR('Tabel 4F B'!E87<5,'Tabel 4(Br) B'!E87<0.5),"-",IFERROR('Tabel 4(Br) B'!E87/'Tabel 4F B'!E87*100,"-")) -> - | F87: =IF(OR('Tabel 4F B'!F87<5,'Tabel 4(Br) B'!F87<0.5),"-",IFERROR('Tabel 4(Br) B'!F87/'Tabel 4F B'!F87*100,"-")) -> - | G87: =IF(OR('Tabel 4F B'!G87<5,'Tabel 4(Br) B'!G87<0.5),"-",IFERROR('Tabel 4(Br) B'!G87/'Tabel 4F B'!G87*100,"-")) -> - | I87: =IF(OR('Tabel 4F B'!I87<5,'Tabel 4(Br) B'!I87<0.5),"-",IFERROR('Tabel 4(Br) B'!I87/'Tabel 4F B'!I87*100,"-")) -> -
A88: Samf. Adm. | C88: =IF(OR('Tabel 4F B'!C88<5,'Tabel 4(Br) B'!C88<0.5),"-",IFERROR('Tabel 4(Br) B'!C88/'Tabel 4F B'!C88*100,"-")) -> - | D88: =IF(OR('Tabel 4F B'!D88<5,'Tabel 4(Br) B'!D88<0.5),"-",IFERROR('Tabel 4(Br) B'!D88/'Tabel 4F B'!D88*100,"-")) -> - | E88: =IF(OR('Tabel 4F B'!E88<5,'Tabel 4(Br) B'!E88<0.5),"-",IFERROR('Tabel 4(Br) B'!E88/'Tabel 4F B'!E88*100,"-")) -> 4.761013742 | F88: =IF(OR('Tabel 4F B'!F88<5,'Tabel 4(Br) B'!F88<0.5),"-",IFERROR('Tabel 4(Br) B'!F88/'Tabel 4F B'!F88*100,"-")) -> 19.99625772 | G88: =IF(OR('Tabel 4F B'!G88<5,'Tabel 4(Br) B'!G88<0.5),"-",IFERROR('Tabel 4(Br) B'!G88/'Tabel 4F B'!G88*100,"-")) -> - | I88: =IF(OR('Tabel 4F B'!I88<5,'Tabel 4(Br) B'!I88<0.5),"-",IFERROR('Tabel 4(Br) B'!I88/'Tabel 4F B'!I88*100,"-")) -> 5.768151265
A89: Cand. Merc. | C89: =IF(OR('Tabel 4F B'!C89<5,'Tabel 4(Br) B'!C89<0.5),"-",IFERROR('Tabel 4(Br) B'!C89/'Tabel 4F B'!C89*100,"-")) -> - | D89: =IF(OR('Tabel 4F B'!D89<5,'Tabel 4(Br) B'!D89<0.5),"-",IFERROR('Tabel 4(Br) B'!D89/'Tabel 4F B'!D89*100,"-")) -> - | E89: =IF(OR('Tabel 4F B'!E89<5,'Tabel 4(Br) B'!E89<0.5),"-",IFERROR('Tabel 4(Br) B'!E89/'Tabel 4F B'!E89*100,"-")) -> 26.0026196 | F89: =IF(OR('Tabel 4F B'!F89<5,'Tabel 4(Br) B'!F89<0.5),"-",IFERROR('Tabel 4(Br) B'!F89/'Tabel 4F B'!F89*100,"-")) -> - | G89: =IF(OR('Tabel 4F B'!G89<5,'Tabel 4(Br) B'!G89<0.5),"-",IFERROR('Tabel 4(Br) B'!G89/'Tabel 4F B'!G89*100,"-")) -> - | I89: =IF(OR('Tabel 4F B'!I89<5,'Tabel 4(Br) B'!I89<0.5),"-",IFERROR('Tabel 4(Br) B'!I89/'Tabel 4F B'!I89*100,"-")) -> 8.966420551
A90: HA | C90: =IF(OR('Tabel 4F B'!C90<5,'Tabel 4(Br) B'!C90<0.5),"-",IFERROR('Tabel 4(Br) B'!C90/'Tabel 4F B'!C90*100,"-")) -> - | D90: =IF(OR('Tabel 4F B'!D90<5,'Tabel 4(Br) B'!D90<0.5),"-",IFERROR('Tabel 4(Br) B'!D90/'Tabel 4F B'!D90*100,"-")) -> - | E90: =IF(OR('Tabel 4F B'!E90<5,'Tabel 4(Br) B'!E90<0.5),"-",IFERROR('Tabel 4(Br) B'!E90/'Tabel 4F B'!E90*100,"-")) -> - | F90: =IF(OR('Tabel 4F B'!F90<5,'Tabel 4(Br) B'!F90<0.5),"-",IFERROR('Tabel 4(Br) B'!F90/'Tabel 4F B'!F90*100,"-")) -> - | G90: =IF(OR('Tabel 4F B'!G90<5,'Tabel 4(Br) B'!G90<0.5),"-",IFERROR('Tabel 4(Br) B'!G90/'Tabel 4F B'!G90*100,"-")) -> - | I90: =IF(OR('Tabel 4F B'!I90<5,'Tabel 4(Br) B'!I90<0.5),"-",IFERROR('Tabel 4(Br) B'!I90/'Tabel 4F B'!I90*100,"-")) -> -
A91: HD | C91: =IF(OR('Tabel 4F B'!C91<5,'Tabel 4(Br) B'!C91<0.5),"-",IFERROR('Tabel 4(Br) B'!C91/'Tabel 4F B'!C91*100,"-")) -> - | D91: =IF(OR('Tabel 4F B'!D91<5,'Tabel 4(Br) B'!D91<0.5),"-",IFERROR('Tabel 4(Br) B'!D91/'Tabel 4F B'!D91*100,"-")) -> - | E91: =IF(OR('Tabel 4F B'!E91<5,'Tabel 4(Br) B'!E91<0.5),"-",IFERROR('Tabel 4(Br) B'!E91/'Tabel 4F B'!E91*100,"-")) -> - | F91: =IF(OR('Tabel 4F B'!F91<5,'Tabel 4(Br) B'!F91<0.5),"-",IFERROR('Tabel 4(Br) B'!F91/'Tabel 4F B'!F91*100,"-")) -> - | G91: =IF(OR('Tabel 4F B'!G91<5,'Tabel 4(Br) B'!G91<0.5),"-",IFERROR('Tabel 4(Br) B'!G91/'Tabel 4F B'!G91*100,"-")) -> - | I91: =IF(OR('Tabel 4F B'!I91<5,'Tabel 4(Br) B'!I91<0.5),"-",IFERROR('Tabel 4(Br) B'!I91/'Tabel 4F B'!I91*100,"-")) -> -
A92: Komm. og Sprog | C92: =IF(OR('Tabel 4F B'!C92<5,'Tabel 4(Br) B'!C92<0.5),"-",IFERROR('Tabel 4(Br) B'!C92/'Tabel 4F B'!C92*100,"-")) -> - | D92: =IF(OR('Tabel 4F B'!D92<5,'Tabel 4(Br) B'!D92<0.5),"-",IFERROR('Tabel 4(Br) B'!D92/'Tabel 4F B'!D92*100,"-")) -> 28.56608245 | E92: =IF(OR('Tabel 4F B'!E92<5,'Tabel 4(Br) B'!E92<0.5),"-",IFERROR('Tabel 4(Br) B'!E92/'Tabel 4F B'!E92*100,"-")) -> - | F92: =IF(OR('Tabel 4F B'!F92<5,'Tabel 4(Br) B'!F92<0.5),"-",IFERROR('Tabel 4(Br) B'!F92/'Tabel 4F B'!F92*100,"-")) -> - | G92: =IF(OR('Tabel 4F B'!G92<5,'Tabel 4(Br) B'!G92<0.5),"-",IFERROR('Tabel 4(Br) B'!G92/'Tabel 4F B'!G92*100,"-")) -> - | I92: =IF(OR('Tabel 4F B'!I92<5,'Tabel 4(Br) B'!I92<0.5),"-",IFERROR('Tabel 4(Br) B'!I92/'Tabel 4F B'!I92*100,"-")) -> 26.66167696
A93: Bygningskonst. | C93: =IF(OR('Tabel 4F B'!C93<5,'Tabel 4(Br) B'!C93<0.5),"-",IFERROR('Tabel 4(Br) B'!C93/'Tabel 4F B'!C93*100,"-")) -> - | D93: =IF(OR('Tabel 4F B'!D93<5,'Tabel 4(Br) B'!D93<0.5),"-",IFERROR('Tabel 4(Br) B'!D93/'Tabel 4F B'!D93*100,"-")) -> - | E93: =IF(OR('Tabel 4F B'!E93<5,'Tabel 4(Br) B'!E93<0.5),"-",IFERROR('Tabel 4(Br) B'!E93/'Tabel 4F B'!E93*100,"-")) -> - | F93: =IF(OR('Tabel 4F B'!F93<5,'Tabel 4(Br) B'!F93<0.5),"-",IFERROR('Tabel 4(Br) B'!F93/'Tabel 4F B'!F93*100,"-")) -> - | G93: =IF(OR('Tabel 4F B'!G93<5,'Tabel 4(Br) B'!G93<0.5),"-",IFERROR('Tabel 4(Br) B'!G93/'Tabel 4F B'!G93*100,"-")) -> - | I93: =IF(OR('Tabel 4F B'!I93<5,'Tabel 4(Br) B'!I93<0.5),"-",IFERROR('Tabel 4(Br) B'!I93/'Tabel 4F B'!I93*100,"-")) -> -
A94: Cand. IT. | C94: =IF(OR('Tabel 4F B'!C94<5,'Tabel 4(Br) B'!C94<0.5),"-",IFERROR('Tabel 4(Br) B'!C94/'Tabel 4F B'!C94*100,"-")) -> - | D94: =IF(OR('Tabel 4F B'!D94<5,'Tabel 4(Br) B'!D94<0.5),"-",IFERROR('Tabel 4(Br) B'!D94/'Tabel 4F B'!D94*100,"-")) -> - | E94: =IF(OR('Tabel 4F B'!E94<5,'Tabel 4(Br) B'!E94<0.5),"-",IFERROR('Tabel 4(Br) B'!E94/'Tabel 4F B'!E94*100,"-")) -> - | F94: =IF(OR('Tabel 4F B'!F94<5,'Tabel 4(Br) B'!F94<0.5),"-",IFERROR('Tabel 4(Br) B'!F94/'Tabel 4F B'!F94*100,"-")) -> - | G94: =IF(OR('Tabel 4F B'!G94<5,'Tabel 4(Br) B'!G94<0.5),"-",IFERROR('Tabel 4(Br) B'!G94/'Tabel 4F B'!G94*100,"-")) -> - | I94: =IF(OR('Tabel 4F B'!I94<5,'Tabel 4(Br) B'!I94<0.5),"-",IFERROR('Tabel 4(Br) B'!I94/'Tabel 4F B'!I94*100,"-")) -> -
A95: Bac. Samf. | C95: =IF(OR('Tabel 4F B'!C95<5,'Tabel 4(Br) B'!C95<0.5),"-",IFERROR('Tabel 4(Br) B'!C95/'Tabel 4F B'!C95*100,"-")) -> - | D95: =IF(OR('Tabel 4F B'!D95<5,'Tabel 4(Br) B'!D95<0.5),"-",IFERROR('Tabel 4(Br) B'!D95/'Tabel 4F B'!D95*100,"-")) -> - | E95: =IF(OR('Tabel 4F B'!E95<5,'Tabel 4(Br) B'!E95<0.5),"-",IFERROR('Tabel 4(Br) B'!E95/'Tabel 4F B'!E95*100,"-")) -> - | F95: =IF(OR('Tabel 4F B'!F95<5,'Tabel 4(Br) B'!F95<0.5),"-",IFERROR('Tabel 4(Br) B'!F95/'Tabel 4F B'!F95*100,"-")) -> - | G95: =IF(OR('Tabel 4F B'!G95<5,'Tabel 4(Br) B'!G95<0.5),"-",IFERROR('Tabel 4(Br) B'!G95/'Tabel 4F B'!G95*100,"-")) -> - | I95: =IF(OR('Tabel 4F B'!I95<5,'Tabel 4(Br) B'!I95<0.5),"-",IFERROR('Tabel 4(Br) B'!I95/'Tabel 4F B'!I95*100,"-")) -> -
A96: Bac. Hum. | C96: =IF(OR('Tabel 4F B'!C96<5,'Tabel 4(Br) B'!C96<0.5),"-",IFERROR('Tabel 4(Br) B'!C96/'Tabel 4F B'!C96*100,"-")) -> - | D96: =IF(OR('Tabel 4F B'!D96<5,'Tabel 4(Br) B'!D96<0.5),"-",IFERROR('Tabel 4(Br) B'!D96/'Tabel 4F B'!D96*100,"-")) -> - | E96: =IF(OR('Tabel 4F B'!E96<5,'Tabel 4(Br) B'!E96<0.5),"-",IFERROR('Tabel 4(Br) B'!E96/'Tabel 4F B'!E96*100,"-")) -> - | F96: =IF(OR('Tabel 4F B'!F96<5,'Tabel 4(Br) B'!F96<0.5),"-",IFERROR('Tabel 4(Br) B'!F96/'Tabel 4F B'!F96*100,"-")) -> - | G96: =IF(OR('Tabel 4F B'!G96<5,'Tabel 4(Br) B'!G96<0.5),"-",IFERROR('Tabel 4(Br) B'!G96/'Tabel 4F B'!G96*100,"-")) -> - | I96: =IF(OR('Tabel 4F B'!I96<5,'Tabel 4(Br) B'!I96<0.5),"-",IFERROR('Tabel 4(Br) B'!I96/'Tabel 4F B'!I96*100,"-")) -> 15.38173671
A97: Bac. Nat. | C97: =IF(OR('Tabel 4F B'!C97<5,'Tabel 4(Br) B'!C97<0.5),"-",IFERROR('Tabel 4(Br) B'!C97/'Tabel 4F B'!C97*100,"-")) -> - | D97: =IF(OR('Tabel 4F B'!D97<5,'Tabel 4(Br) B'!D97<0.5),"-",IFERROR('Tabel 4(Br) B'!D97/'Tabel 4F B'!D97*100,"-")) -> - | E97: =IF(OR('Tabel 4F B'!E97<5,'Tabel 4(Br) B'!E97<0.5),"-",IFERROR('Tabel 4(Br) B'!E97/'Tabel 4F B'!E97*100,"-")) -> - | F97: =IF(OR('Tabel 4F B'!F97<5,'Tabel 4(Br) B'!F97<0.5),"-",IFERROR('Tabel 4(Br) B'!F97/'Tabel 4F B'!F97*100,"-")) -> - | G97: =IF(OR('Tabel 4F B'!G97<5,'Tabel 4(Br) B'!G97<0.5),"-",IFERROR('Tabel 4(Br) B'!G97/'Tabel 4F B'!G97*100,"-")) -> - | I97: =IF(OR('Tabel 4F B'!I97<5,'Tabel 4(Br) B'!I97<0.5),"-",IFERROR('Tabel 4(Br) B'!I97/'Tabel 4F B'!I97*100,"-")) -> 19.93388636
A98: Andre | C98: =IF(OR('Tabel 4F B'!C98<5,'Tabel 4(Br) B'!C98<0.5),"-",IFERROR('Tabel 4(Br) B'!C98/'Tabel 4F B'!C98*100,"-")) -> - | D98: =IF(OR('Tabel 4F B'!D98<5,'Tabel 4(Br) B'!D98<0.5),"-",IFERROR('Tabel 4(Br) B'!D98/'Tabel 4F B'!D98*100,"-")) -> 9.309746017 | E98: =IF(OR('Tabel 4F B'!E98<5,'Tabel 4(Br) B'!E98<0.5),"-",IFERROR('Tabel 4(Br) B'!E98/'Tabel 4F B'!E98*100,"-")) -> 17.73025827 | F98: =IF(OR('Tabel 4F B'!F98<5,'Tabel 4(Br) B'!F98<0.5),"-",IFERROR('Tabel 4(Br) B'!F98/'Tabel 4F B'!F98*100,"-")) -> 5.713216491 | G98: =IF(OR('Tabel 4F B'!G98<5,'Tabel 4(Br) B'!G98<0.5),"-",IFERROR('Tabel 4(Br) B'!G98/'Tabel 4F B'!G98*100,"-")) -> 7.872350234 | I98: =IF(OR('Tabel 4F B'!I98<5,'Tabel 4(Br) B'!I98<0.5),"-",IFERROR('Tabel 4(Br) B'!I98/'Tabel 4F B'!I98*100,"-")) -> 9.522416092
A100: Total | C100: =IF(OR('Tabel 4F B'!C100<5,'Tabel 4(Br) B'!C100<0.5),"-",IFERROR('Tabel 4(Br) B'!C100/'Tabel 4F B'!C100*100,"-")) -> 5.257338557 | D100: =IF(OR('Tabel 4F B'!D100<5,'Tabel 4(Br) B'!D100<0.5),"-",IFERROR('Tabel 4(Br) B'!D100/'Tabel 4F B'!D100*100,"-")) -> 9.161659633 | E100: =IF(OR('Tabel 4F B'!E100<5,'Tabel 4(Br) B'!E100<0.5),"-",IFERROR('Tabel 4(Br) B'!E100/'Tabel 4F B'!E100*100,"-")) -> 10.03328363 | F100: =IF(OR('Tabel 4F B'!F100<5,'Tabel 4(Br) B'!F100<0.5),"-",IFERROR('Tabel 4(Br) B'!F100/'Tabel 4F B'!F100*100,"-")) -> 7.267822616 | G100: =IF(OR('Tabel 4F B'!G100<5,'Tabel 4(Br) B'!G100<0.5),"-",IFERROR('Tabel 4(Br) B'!G100/'Tabel 4F B'!G100*100,"-")) -> 7.029372112 | I100: =IF(OR('Tabel 4F B'!I100<5,'Tabel 4(Br) B'!I100<0.5),"-",IFERROR('Tabel 4(Br) B'!I100/'Tabel 4F B'!I100*100,"-")) -> 8.394739969
A102: Ingeniører i alt | C102: =IF(OR('Tabel 4F B'!C102<5,'Tabel 4(Br) B'!C102<0.5),"-",IFERROR('Tabel 4(Br) B'!C102/'Tabel 4F B'!C102*100,"-")) -> - | D102: =IF(OR('Tabel 4F B'!D102<5,'Tabel 4(Br) B'!D102<0.5),"-",IFERROR('Tabel 4(Br) B'!D102/'Tabel 4F B'!D102*100,"-")) -> 10.43280925 | E102: =IF(OR('Tabel 4F B'!E102<5,'Tabel 4(Br) B'!E102<0.5),"-",IFERROR('Tabel 4(Br) B'!E102/'Tabel 4F B'!E102*100,"-")) -> 3.703010689 | F102: =IF(OR('Tabel 4F B'!F102<5,'Tabel 4(Br) B'!F102<0.5),"-",IFERROR('Tabel 4(Br) B'!F102/'Tabel 4F B'!F102*100,"-")) -> 6.665419239 | G102: =IF(OR('Tabel 4F B'!G102<5,'Tabel 4(Br) B'!G102<0.5),"-",IFERROR('Tabel 4(Br) B'!G102/'Tabel 4F B'!G102*100,"-")) -> - | I102: =IF(OR('Tabel 4F B'!I102<5,'Tabel 4(Br) B'!I102<0.5),"-",IFERROR('Tabel 4(Br) B'!I102/'Tabel 4F B'!I102*100,"-")) -> 5.888627901
A103: Magistre i alt | C103: =IF(OR('Tabel 4F B'!C103<5,'Tabel 4(Br) B'!C103<0.5),"-",IFERROR('Tabel 4(Br) B'!C103/'Tabel 4F B'!C103*100,"-")) -> 18.17841611 | D103: =IF(OR('Tabel 4F B'!D103<5,'Tabel 4(Br) B'!D103<0.5),"-",IFERROR('Tabel 4(Br) B'!D103/'Tabel 4F B'!D103*100,"-")) -> 11.53870143 | E103: =IF(OR('Tabel 4F B'!E103<5,'Tabel 4(Br) B'!E103<0.5),"-",IFERROR('Tabel 4(Br) B'!E103/'Tabel 4F B'!E103*100,"-")) -> 20.53194532 | F103: =IF(OR('Tabel 4F B'!F103<5,'Tabel 4(Br) B'!F103<0.5),"-",IFERROR('Tabel 4(Br) B'!F103/'Tabel 4F B'!F103*100,"-")) -> 6.520518821 | G103: =IF(OR('Tabel 4F B'!G103<5,'Tabel 4(Br) B'!G103<0.5),"-",IFERROR('Tabel 4(Br) B'!G103/'Tabel 4F B'!G103*100,"-")) -> 16.0717627 | I103: =IF(OR('Tabel 4F B'!I103<5,'Tabel 4(Br) B'!I103<0.5),"-",IFERROR('Tabel 4(Br) B'!I103/'Tabel 4F B'!I103*100,"-")) -> 13.66140668
A104: DJØF'ere i alt | C104: =IF(OR('Tabel 4F B'!C104<5,'Tabel 4(Br) B'!C104<0.5),"-",IFERROR('Tabel 4(Br) B'!C104/'Tabel 4F B'!C104*100,"-")) -> - | D104: =IF(OR('Tabel 4F B'!D104<5,'Tabel 4(Br) B'!D104<0.5),"-",IFERROR('Tabel 4(Br) B'!D104/'Tabel 4F B'!D104*100,"-")) -> - | E104: =IF(OR('Tabel 4F B'!E104<5,'Tabel 4(Br) B'!E104<0.5),"-",IFERROR('Tabel 4(Br) B'!E104/'Tabel 4F B'!E104*100,"-")) -> 8.181988286 | F104: =IF(OR('Tabel 4F B'!F104<5,'Tabel 4(Br) B'!F104<0.5),"-",IFERROR('Tabel 4(Br) B'!F104/'Tabel 4F B'!F104*100,"-")) -> 4.99906443 | G104: =IF(OR('Tabel 4F B'!G104<5,'Tabel 4(Br) B'!G104<0.5),"-",IFERROR('Tabel 4(Br) B'!G104/'Tabel 4F B'!G104*100,"-")) -> - | I104: =IF(OR('Tabel 4F B'!I104<5,'Tabel 4(Br) B'!I104<0.5),"-",IFERROR('Tabel 4(Br) B'!I104/'Tabel 4F B'!I104*100,"-")) -> 4.178881058
A111: Christiansø
C113: Under 30 år | D113: 30 - 39 år | E113: 40 - 49 år | F113: 50 - 59 år | G113: Over 60 år | I113: I alt
A115: Civ. ing. | C115: =IF(OR('Tabel 4F B'!C115<5,'Tabel 4(Br) B'!C115<0.5),"-",IFERROR('Tabel 4(Br) B'!C115/'Tabel 4F B'!C115*100,"-")) -> - | D115: =IF(OR('Tabel 4F B'!D115<5,'Tabel 4(Br) B'!D115<0.5),"-",IFERROR('Tabel 4(Br) B'!D115/'Tabel 4F B'!D115*100,"-")) -> - | E115: =IF(OR('Tabel 4F B'!E115<5,'Tabel 4(Br) B'!E115<0.5),"-",IFERROR('Tabel 4(Br) B'!E115/'Tabel 4F B'!E115*100,"-")) -> - | F115: =IF(OR('Tabel 4F B'!F115<5,'Tabel 4(Br) B'!F115<0.5),"-",IFERROR('Tabel 4(Br) B'!F115/'Tabel 4F B'!F115*100,"-")) -> - | G115: =IF(OR('Tabel 4F B'!G115<5,'Tabel 4(Br) B'!G115<0.5),"-",IFERROR('Tabel 4(Br) B'!G115/'Tabel 4F B'!G115*100,"-")) -> - | I115: =IF(OR('Tabel 4F B'!I115<5,'Tabel 4(Br) B'!I115<0.5),"-",IFERROR('Tabel 4(Br) B'!I115/'Tabel 4F B'!I115*100,"-")) -> -
A116: Diplom ing. | C116: =IF(OR('Tabel 4F B'!C116<5,'Tabel 4(Br) B'!C116<0.5),"-",IFERROR('Tabel 4(Br) B'!C116/'Tabel 4F B'!C116*100,"-")) -> - | D116: =IF(OR('Tabel 4F B'!D116<5,'Tabel 4(Br) B'!D116<0.5),"-",IFERROR('Tabel 4(Br) B'!D116/'Tabel 4F B'!D116*100,"-")) -> - | E116: =IF(OR('Tabel 4F B'!E116<5,'Tabel 4(Br) B'!E116<0.5),"-",IFERROR('Tabel 4(Br) B'!E116/'Tabel 4F B'!E116*100,"-")) -> - | F116: =IF(OR('Tabel 4F B'!F116<5,'Tabel 4(Br) B'!F116<0.5),"-",IFERROR('Tabel 4(Br) B'!F116/'Tabel 4F B'!F116*100,"-")) -> - | G116: =IF(OR('Tabel 4F B'!G116<5,'Tabel 4(Br) B'!G116<0.5),"-",IFERROR('Tabel 4(Br) B'!G116/'Tabel 4F B'!G116*100,"-")) -> - | I116: =IF(OR('Tabel 4F B'!I116<5,'Tabel 4(Br) B'!I116<0.5),"-",IFERROR('Tabel 4(Br) B'!I116/'Tabel 4F B'!I116*100,"-")) -> -
A117: Cand. Scient. Tek | C117: =IF(OR('Tabel 4F B'!C117<5,'Tabel 4(Br) B'!C117<0.5),"-",IFERROR('Tabel 4(Br) B'!C117/'Tabel 4F B'!C117*100,"-")) -> - | D117: =IF(OR('Tabel 4F B'!D117<5,'Tabel 4(Br) B'!D117<0.5),"-",IFERROR('Tabel 4(Br) B'!D117/'Tabel 4F B'!D117*100,"-")) -> - | E117: =IF(OR('Tabel 4F B'!E117<5,'Tabel 4(Br) B'!E117<0.5),"-",IFERROR('Tabel 4(Br) B'!E117/'Tabel 4F B'!E117*100,"-")) -> - | F117: =IF(OR('Tabel 4F B'!F117<5,'Tabel 4(Br) B'!F117<0.5),"-",IFERROR('Tabel 4(Br) B'!F117/'Tabel 4F B'!F117*100,"-")) -> - | G117: =IF(OR('Tabel 4F B'!G117<5,'Tabel 4(Br) B'!G117<0.5),"-",IFERROR('Tabel 4(Br) B'!G117/'Tabel 4F B'!G117*100,"-")) -> - | I117: =IF(OR('Tabel 4F B'!I117<5,'Tabel 4(Br) B'!I117<0.5),"-",IFERROR('Tabel 4(Br) B'!I117/'Tabel 4F B'!I117*100,"-")) -> -
A118: MA. Hum. | C118: =IF(OR('Tabel 4F B'!C118<5,'Tabel 4(Br) B'!C118<0.5),"-",IFERROR('Tabel 4(Br) B'!C118/'Tabel 4F B'!C118*100,"-")) -> - | D118: =IF(OR('Tabel 4F B'!D118<5,'Tabel 4(Br) B'!D118<0.5),"-",IFERROR('Tabel 4(Br) B'!D118/'Tabel 4F B'!D118*100,"-")) -> - | E118: =IF(OR('Tabel 4F B'!E118<5,'Tabel 4(Br) B'!E118<0.5),"-",IFERROR('Tabel 4(Br) B'!E118/'Tabel 4F B'!E118*100,"-")) -> - | F118: =IF(OR('Tabel 4F B'!F118<5,'Tabel 4(Br) B'!F118<0.5),"-",IFERROR('Tabel 4(Br) B'!F118/'Tabel 4F B'!F118*100,"-")) -> - | G118: =IF(OR('Tabel 4F B'!G118<5,'Tabel 4(Br) B'!G118<0.5),"-",IFERROR('Tabel 4(Br) B'!G118/'Tabel 4F B'!G118*100,"-")) -> - | I118: =IF(OR('Tabel 4F B'!I118<5,'Tabel 4(Br) B'!I118<0.5),"-",IFERROR('Tabel 4(Br) B'!I118/'Tabel 4F B'!I118*100,"-")) -> -
A119: MA. Nat. | C119: =IF(OR('Tabel 4F B'!C119<5,'Tabel 4(Br) B'!C119<0.5),"-",IFERROR('Tabel 4(Br) B'!C119/'Tabel 4F B'!C119*100,"-")) -> - | D119: =IF(OR('Tabel 4F B'!D119<5,'Tabel 4(Br) B'!D119<0.5),"-",IFERROR('Tabel 4(Br) B'!D119/'Tabel 4F B'!D119*100,"-")) -> - | E119: =IF(OR('Tabel 4F B'!E119<5,'Tabel 4(Br) B'!E119<0.5),"-",IFERROR('Tabel 4(Br) B'!E119/'Tabel 4F B'!E119*100,"-")) -> - | F119: =IF(OR('Tabel 4F B'!F119<5,'Tabel 4(Br) B'!F119<0.5),"-",IFERROR('Tabel 4(Br) B'!F119/'Tabel 4F B'!F119*100,"-")) -> - | G119: =IF(OR('Tabel 4F B'!G119<5,'Tabel 4(Br) B'!G119<0.5),"-",IFERROR('Tabel 4(Br) B'!G119/'Tabel 4F B'!G119*100,"-")) -> - | I119: =IF(OR('Tabel 4F B'!I119<5,'Tabel 4(Br) B'!I119<0.5),"-",IFERROR('Tabel 4(Br) B'!I119/'Tabel 4F B'!I119*100,"-")) -> -
A120: MA. Ph.d. | C120: =IF(OR('Tabel 4F B'!C120<5,'Tabel 4(Br) B'!C120<0.5),"-",IFERROR('Tabel 4(Br) B'!C120/'Tabel 4F B'!C120*100,"-")) -> - | D120: =IF(OR('Tabel 4F B'!D120<5,'Tabel 4(Br) B'!D120<0.5),"-",IFERROR('Tabel 4(Br) B'!D120/'Tabel 4F B'!D120*100,"-")) -> - | E120: =IF(OR('Tabel 4F B'!E120<5,'Tabel 4(Br) B'!E120<0.5),"-",IFERROR('Tabel 4(Br) B'!E120/'Tabel 4F B'!E120*100,"-")) -> - | F120: =IF(OR('Tabel 4F B'!F120<5,'Tabel 4(Br) B'!F120<0.5),"-",IFERROR('Tabel 4(Br) B'!F120/'Tabel 4F B'!F120*100,"-")) -> - | G120: =IF(OR('Tabel 4F B'!G120<5,'Tabel 4(Br) B'!G120<0.5),"-",IFERROR('Tabel 4(Br) B'!G120/'Tabel 4F B'!G120*100,"-")) -> - | I120: =IF(OR('Tabel 4F B'!I120<5,'Tabel 4(Br) B'!I120<0.5),"-",IFERROR('Tabel 4(Br) B'!I120/'Tabel 4F B'!I120*100,"-")) -> -
A121: MA. Samf. | C121: =IF(OR('Tabel 4F B'!C121<5,'Tabel 4(Br) B'!C121<0.5),"-",IFERROR('Tabel 4(Br) B'!C121/'Tabel 4F B'!C121*100,"-")) -> - | D121: =IF(OR('Tabel 4F B'!D121<5,'Tabel 4(Br) B'!D121<0.5),"-",IFERROR('Tabel 4(Br) B'!D121/'Tabel 4F B'!D121*100,"-")) -> - | E121: =IF(OR('Tabel 4F B'!E121<5,'Tabel 4(Br) B'!E121<0.5),"-",IFERROR('Tabel 4(Br) B'!E121/'Tabel 4F B'!E121*100,"-")) -> - | F121: =IF(OR('Tabel 4F B'!F121<5,'Tabel 4(Br) B'!F121<0.5),"-",IFERROR('Tabel 4(Br) B'!F121/'Tabel 4F B'!F121*100,"-")) -> - | G121: =IF(OR('Tabel 4F B'!G121<5,'Tabel 4(Br) B'!G121<0.5),"-",IFERROR('Tabel 4(Br) B'!G121/'Tabel 4F B'!G121*100,"-")) -> - | I121: =IF(OR('Tabel 4F B'!I121<5,'Tabel 4(Br) B'!I121<0.5),"-",IFERROR('Tabel 4(Br) B'!I121/'Tabel 4F B'!I121*100,"-")) -> -
